Workbook

Sheet Bernoulli
A1: UNIVARIATE BERNOULLI
A3: Observation Number | B3: Uniform Random Variate | C3: Bernoulli Random Variate | D3: Macro Generated Variate, U(0,1) submitted | E3: Macro Generated Variate w/o U(0,1)
A4: 1 | B4: 0.2686895342 | C4: =IF($B4<=$H$7,1,0) -> 1 | D4: =bernoulli($H$7,$B4) -> 1 | E4: =bernoulli($H$7) -> 1
A5: =A4+1 -> 2 | B5: 0.7937742381 | C5: =IF($B5<=$H$7,1,0) -> 1 | D5: =bernoulli($H$7,$B5) -> 1 | E5: 1 | G5: Population Parameters
A6: =A5+1 -> 3 | B6: 0.8219803517 | C6: 0 | D6: 0 | E6: 1 | G6: Name | H6: Value | I6: Type | J6: Feasible Range
A7: 4 | B7: 0.6651967236 | C7: 1 | D7: 1 | E7: 1 | G7: prob = | H7: 0.8 | I7: Location | J7: Any real number between 0 and 1, inclusive
A8: 5 | B8: 0.867173427 | C8: 0 | D8: 0 | E8: 0
A9: 6 | B9: 0.279943005 | C9: 1 | D9: 1 | E9: 1 | G9: Distribution Type: | J9: Discrete
A10: 7 | B10: 0.9366722078 | C10: 0 | D10: 0 | E10: 1 | G10: Distrbution Name: | J10: Bernoulli
A11: 8 | B11: 0.4319115567 | C11: 1 | D11: 1 | E11: 1 | G11: Variate Number: | J11: Univariate
A12: 9 | B12: 0.9620370153 | C12: 0 | D12: 0 | E12: 0 | G12: Simulation Method: | J12: Pseudo-Inverse Transform
A13: 10 | B13: 0.1424035458 | C13: 1 | D13: 1 | E13: 1
A14: 11 | B14: 0.2017197184 | C14: 1 | D14: 1 | E14: 0 | G14: Macro Format: | J14: =Bernoulli(prob, [unif])
A15: 12 | B15: 0.5804161826 | C15: 1 | D15: 1 | E15: 1
A16: 13 | B16: 0.3436685132 | C16: 1 | D16: 1 | E16: 1 | I16: Notes: | J16: 1. With this function you can optionally submit
A17: 14 | B17: 0.9651686826 | C17: 0 | D17: 0 | E17: 1 | J17: your own uniform random variable (unif). If
A18: 15 | B18: 0.3870480883 | C18: 1 | D18: 1 | E18: 1 | J18: not provided, the function will generate one
A19: 16 | B19: 0.8638575657 | C19: 0 | D19: 0 | E19: 0 | J19: to be used in the formula.
A20: 17 | B20: 0.1747628204 | C20: 1 | D20: 1 | E20: 1
A21: 18 | B21: 0.3811765959 | C21: 1 | D21: 1 | E21: 0 | J21: 2. Column C shows the formula used in the
A22: 19 | B22: 0.8779450603 | C22: 0 | D22: 0 | E22: 1 | J22: macro directly in the cell. Column D generates
A23: 20 | B23: 0.1823801902 | C23: 1 | D23: 1 | E23: 1 | J23: the random variable with the macro, using the
A24: 21 | B24: 0.397533352 | C24: 1 | D24: 1 | E24: 1 | J24: same uniform random variable (column A) as
A25: 22 | B25: 0.7419975794 | C25: 1 | D25: 1 | E25: 1 | J25: used in Column C, and therefore the output of
A26: 23 | B26: 0.5708289459 | C26: 1 | D26: 1 | E26: 0 | J26: Columns C and D will match. Column E runs
A27: 24 | B27: 0.9019586936 | C27: 0 | D27: 0 | E27: 1 | J27: the macro using an internally generated
A28: 25 | B28: 0.4384305586 | C28: 1 | D28: 1 | E28: 1 | J28: uniform random input.
A29: 26 | B29: 0.392949239 | C29: 1 | D29: 1 | E29: 1
A30: 27 | B30: 0.2515715048 | C30: 1 | D30: 1 | E30: 1
A31: 28 | B31: 0.305500214 | C31: 1 | D31: 1 | E31: 1
A32: 29 | B32: 0.07938744748 | C32: 1 | D32: 1 | E32: 1
A33: 30 | B33: 0.8205781142 | C33: 0 | D33: 0 | E33: 1
A34: 31 | B34: 0.005076745533 | C34: 1 | D34: 1 | E34: 0
A35: 32 | B35: 0.02998045736 | C35: 1 | D35: 1 | E35: 1
A36: 33 | B36: 0.8969873922 | C36: 0 | D36: 0 | E36: 1
A37: 34 | B37: 0.04851801844 | C37: 1 | D37: 1 | E37: 1
A38: 35 | B38: 0.3712391652 | C38: 1 | D38: 1 | E38: 0
A39: 36 | B39: 0.1827388583 | C39: 1 | D39: 1 | E39: 0
A40: 37 | B40: 0.1205000529 | C40: 1 | D40: 1 | E40: 1
A41: 38 | B41: 0.6494569336 | C41: 1 | D41: 1 | E41: 0
A42: 39 | B42: 0.8452335485 | C42: 0 | D42: 0 | E42: 1
A43: 40 | B43: 0.9655911328 | C43: 0 | D43: 0 | E43: 1
A44: 41 | B44: 0.6649923293 | C44: 1 | D44: 1 | E44: 1
A45: 42 | B45: 0.4871681719 | C45: 1 | D45: 1 | E45: 1
A46: 43 | B46: 0.7721031561 | C46: 1 | D46: 1 | E46: 1
A47: 44 | B47: 0.8263662763 | C47: 0 | D47: 0 | E47: 0
A48: 45 | B48: 0.3099628364 | C48: 1 | D48: 1 | E48: 1
A49: 46 | B49: 0.1840653162 | C49: 1 | D49: 1 | E49: 1
A50: 47 | B50: 0.582757888 | C50: 1 | D50: 1 | E50: 1
A51: 48 | B51: 0.3211056531 | C51: 1 | D51: 1 | E51: 1
A52: 49 | B52: 0.9405997337 | C52: 0 | D52: 0 | E52: 1
A53: 50 | B53: 0.1490762062 | C53: 1 | D53: 1 | E53: 1
A54: 51 | B54: 0.3830204418 | C54: 1 | D54: 1 | E54: 1
A55: 52 | B55: 0.08481595248 | C55: 1 | D55: 1 | E55: 1
A56: 53 | B56: 0.8422140741 | C56: 0 | D56: 0 | E56: 1
A57: 54 | B57: 0.404985595 | C57: 1 | D57: 1 | E57: 1
A58: 55 | B58: 0.3119225423 | C58: 1 | D58: 1 | E58: 1
A59: 56 | B59: 0.0739452196 | C59: 1 | D59: 1 | E59: 1
A60: 57 | B60: 0.4154056191 | C60: 1 | D60: 1 | E60: 0
A61: 58 | B61: 0.9433448155 | C61: 0 | D61: 0 | E61: 1
A62: 59 | B62: 0.6294690698 | C62: 1 | D62: 1 | E62: 1
A63: 60 | B63: 0.2175176524 | C63: 1 | D63: 1 | E63: 1
A64: 61 | B64: 0.8113218223 | C64: 0 | D64: 0 | E64: 0
A65: 62 | B65: 0.4764195342 | C65: 1 | D65: 1 | E65: 1
A66: 63 | B66: 0.9230861553 | C66: 0 | D66: 0 | E66: 1
A67: 64 | B67: 0.6224165836 | C67: 1 | D67: 1 | E67: 1
A68: 65 | B68: 0.5629027479 | C68: 1 | D68: 1 | E68: 1
A69: 66 | B69: 0.2761746025 | C69: =IF($B69<=$H$7,1,0) -> 1 | D69: =bernoulli($H$7,$B69) -> 1 | E69: =bernoulli($H$7) -> 0
A70: =A69+1 -> 67 | B70: 0.981830979 | C70: 0 | D70: 0 | E70: 0
A71: 68 | B71: 0.1785586425 | C71: 1 | D71: 1 | E71: 1
A72: 69 | B72: 0.1410671686 | C72: 1 | D72: 1 | E72: 1
A73: 70 | B73: 0.7879989282 | C73: 1 | D73: 1 | E73: 0
A74: 71 | B74: 0.6201986948 | C74: 1 | D74: 1 | E74: 1
A75: 72 | B75: 0.3207061634 | C75: 1 | D75: 1 | E75: 1
A76: 73 | B76: 0.7191682701 | C76: 1 | D76: 1 | E76: 1
A77: 74 | B77: 0.7029073638 | C77: 1 | D77: 1 | E77: 1
A78: 75 | B78: 0.1541728342 | C78: 1 | D78: 1 | E78: 1
A79: 76 | B79: 0.2797729539 | C79: 1 | D79: 1 | E79: 1
A80: 77 | B80: 0.4232106228 | C80: 1 | D80: 1 | E80: 1
A81: 78 | B81: 0.9813614277 | C81: 0 | D81: 0 | E81: 1
A82: 79 | B82: 0.2008575604 | C82: 1 | D82: 1 | E82: 1
A83: 80 | B83: 0.1613377982 | C83: 1 | D83: 1 | E83: 1
A84: 81 | B84: 0.2586357835 | C84: 1 | D84: 1 | E84: 1
A85: 82 | B85: 0.8347220398 | C85: 0 | D85: 0 | E85: 1
A86: 83 | B86: 0.5159116711 | C86: 1 | D86: 1 | E86: 1
A87: 84 | B87: 0.2463319221 | C87: 1 | D87: 1 | E87: 1
A88: 85 | B88: 0.5906387139 | C88: 1 | D88: 1 | E88: 1
A89: 86 | B89: 0.6539313475 | C89: 1 | D89: 1 | E89: 1
A90: 87 | B90: 0.5644546021 | C90: 1 | D90: 1 | E90: 1
A91: 88 | B91: 0.1056526664 | C91: 1 | D91: 1 | E91: 1
A92: 89 | B92: 0.5922646588 | C92: 1 | D92: 1 | E92: 0
A93: 90 | B93: 0.7208912638 | C93: 1 | D93: 1 | E93: 1
A94: 91 | B94: 0.5880380319 | C94: 1 | D94: 1 | E94: 1
A95: 92 | B95: 0.7660283821 | C95: 1 | D95: 1 | E95: 0
A96: 93 | B96: 0.482858566 | C96: 1 | D96: 1 | E96: 1
A97: 94 | B97: 0.628647185 | C97: 1 | D97: 1 | E97: 1
A98: 95 | B98: 0.3377979428 | C98: 1 | D98: 1 | E98: 0
A99: 96 | B99: 0.4757683134 | C99: 1 | D99: 1 | E99: 1
A100: 97 | B100: 0.05631247312 | C100: 1 | D100: 1 | E100: 1
A101: 98 | B101: 0.8080473364 | C101: 0 | D101: 0 | E101: 1
A102: 99 | B102: 0.4989426697 | C102: 1 | D102: 1 | E102: 1
A103: 100 | B103: 0.320817958 | C103: 1 | D103: 1 | E103: 1

Sheet Beta
A1: UNIVARIATE BETA
A3: Observation Number | B3: Macro Generated Variate
A4: 1 | B4: =beta($F$7,$F$8) -> 0.2184597566
A5: =A4+1 -> 2 | B5: 0.2363804538 | E5: Population Parameters
A6: =A5+1 -> 3 | B6: 0.4149303254 | E6: Name | F6: Value | G6: Type | H6: Feasible Range
A7: 4 | B7: 0.2753692823 | E7: alpha1 = | F7: 2 | G7: Shape | H7: Any Finite Positive Real Number
A8: =A7+1 -> 5 | B8: 0.1894118036 | E8: alpha2 = | F8: 5 | G8: Shape | H8: Any Finite Positive Real Number
A9: 6 | B9: 0.3288519506
A10: 7 | B10: 0.3198017549 | E10: Distribution Type: | H10: Continuous
A11: 8 | B11: 0.178998099 | E11: Distrbution Name: | H11: Beta
A12: 9 | B12: 0.2195624091 | E12: Variate Number: | H12: Univariate
A13: 10 | B13: 0.1964881357 | E13: Simulation Method: | H13: Convolution
A14: 11 | B14: 0.4085157788
A15: 12 | B15: 0.2801379273 | E15: Macro Format: | H15: =Beta(alpha1, alpha2)
A16: 13 | B16: 0.03531831435
A17: 14 | B17: 0.4326283364
A18: 15 | B18: 0.3791871292
A19: 16 | B19: 0.434560683 | G19: Notes: | H19: 1. The Beta distribution does not lend
A20: 17 | B20: 0.381003549 | H20: itself easily to a manual presentation so no
A21: 18 | B21: 0.08822737049 | H21: manual example is provided here, only the
A22: 19 | B22: 0.2234690855 | H22: output of the macro generated variates.
A23: 20 | B23: 0.6694435513
A24: 21 | B24: 0.1321999305
A25: 22 | B25: 0.1742508373
A26: 23 | B26: 0.419612273
A27: 24 | B27: 0.1139389023
A28: 25 | B28: 0.3725558932
A29: 26 | B29: 0.04932145695
A30: 27 | B30: 0.06311613375
A31: 28 | B31: 0.2320667849
A32: 29 | B32: 0.441782687
A33: 30 | B33: 0.2149302228
A34: 31 | B34: 0.207816362
A35: 32 | B35: 0.2381095698
A36: 33 | B36: =beta($F$7,$F$8) -> 0.3416698981
A37: 34 | B37: 0.3210375576
A38: 35 | B38: 0.07841903242
A39: 36 | B39: 0.007157718535
A40: =A39+1 -> 37 | B40: 0.5944739231
A41: 38 | B41: 0.2566238821
A42: 39 | B42: 0.1175440986
A43: 40 | B43: 0.1557259836
A44: 41 | B44: 0.1869132098
A45: 42 | B45: 0.3573034698
A46: 43 | B46: 0.658021559
A47: 44 | B47: 0.5960086238
A48: 45 | B48: 0.6599459474
A49: 46 | B49: 0.1823254722
A50: 47 | B50: 0.2877474851
A51: 48 | B51: 0.07277790412
A52: 49 | B52: 0.4361111833
A53: 50 | B53: 0.2423475358
A54: 51 | B54: 0.1969696312
A55: 52 | B55: 0.5853395726
A56: 53 | B56: 0.1360851501
A57: 54 | B57: 0.2440051091
A58: 55 | B58: 0.2574081194
A59: 56 | B59: 0.4540473361
A60: 57 | B60: 0.6416463002
A61: 58 | B61: 0.2367775454
A62: 59 | B62: 0.5475372109
A63: 60 | B63: 0.3552154015
A64: 61 | B64: 0.7185169571
A65: 62 | B65: 0.3257302564
A66: 63 | B66: 0.1374088667
A67: 64 | B67: 0.1992331402
A68: 65 | B68: =beta($F$7,$F$8) -> 0.2609341484
A69: 66 | B69: 0.3621979709
A70: =A69+1 -> 67 | B70: 0.2492528364
A71: 68 | B71: 0.2143977762
A72: 69 | B72: 0.2425296268
A73: 70 | B73: 0.1257458043
A74: 71 | B74: 0.3479997198
A75: 72 | B75: 0.2210818506
A76: 73 | B76: 0.3017610926
A77: 74 | B77: 0.1242109253
A78: 75 | B78: 0.1210610687
A79: 76 | B79: 0.6847558386
A80: 77 | B80: 0.3577309742
A81: 78 | B81: 0.3140312051
A82: 79 | B82: 0.5099246798
A83: 80 | B83: 0.1679211307
A84: 81 | B84: 0.2963730363
A85: 82 | B85: 0.2328044461
A86: 83 | B86: 0.1413918335
A87: 84 | B87: 0.6690136156
A88: 85 | B88: 0.3770769199
A89: 86 | B89: 0.1204031091
A90: 87 | B90: 0.1316244755
A91: 88 | B91: 0.1781203029
A92: 89 | B92: 0.2155547083
A93: 90 | B93: 0.6341633639
A94: 91 | B94: 0.08090420463
A95: 92 | B95: 0.2369373408
A96: 93 | B96: 0.5985259919
A97: 94 | B97: 0.2019346919
A98: 95 | B98: 0.316499033
A99: 96 | B99: 0.07775556134
A100: 97 | B100: 0.314404275
A101: 98 | B101: 0.2131004213
A102: 99 | B102: 0.2646980864
A103: 100 | B103: 0.3738936962

Sheet Binomial
A1: UNIVARIATE BINOMIAL
A3: Observation Number | B3: Uniform Random Variate #1 | C3: Uniform Random Variate #2 | D3: Uniform Random Variate #3 | E3: Uniform Random Variate #4 | F3: Uniform Random Variate #5 | G3: Uniform Random Variate #6 | H3: Uniform Random Variate #7 | I3: Binomial Random Variate | J3: Macro Generated Variate, uniforms submitted | K3: Macro Generated Variate w/o Uniforms submitted
A4: 1 | B4: 0.2686895342 | C4: 0.4440558018 | D4: 0.9446585172 | E4: 0.4988861242 | F4: 0.09634886979 | G4: 0.09322634477 | H4: 0.1192461544 | I4: =SUM(IF($B4:$H4<=$N$7,1,0)) -> 6 | J4: =Binomial($N$7,$N$8,$B4:$H4) -> 6 | K4: =Binomial($N$7,$N$8) -> 4
A5: =A4+1 -> 2 | B5: 0.7937742381 | C5: 0.657187953 | D5: 0.08390209645 | E5: 0.5998350332 | F5: 0.6242630444 | G5: 0.9180268841 | H5: 0.007808768677 | I5: =SUM(IF($B5:$H5<=$N$7,1,0)) -> 6 | J5: 6 | K5: 7 | M5: Population Parameters
A6: =A5+1 -> 3 | B6: 0.8219803517 | C6: 0.2289734867 | D6: 0.1685409965 | E6: 0.7880284345 | F6: 0.309918716 | G6: 0.8506175999 | H6: 0.5457723485 | I6: =SUM(IF($B6:$H6<=$N$7,1,0)) -> 5 | J6: 5 | K6: 6 | M6: Name | N6: Value | O6: Type | P6: Feasible Range
A7: 4 | B7: 0.6651967236 | C7: 0.5974609611 | D7: 0.9269962534 | E7: 0.03360383669 | F7: 0.9275892992 | G7: 0.9611862704 | H7: 0.1406550624 | I7: =SUM(IF($B7:$H7<=$N$7,1,0)) -> 4 | J7: 4 | K7: 6 | M7: prob = | N7: 0.8 | O7: Location | P7: Any real number between 0 and 1, inclusive
A8: 5 | B8: 0.867173427 | C8: 0.1256472972 | D8: 0.7808885858 | E8: 0.6753063224 | F8: 0.8280575497 | G8: 0.8752017777 | H8: 0.770700637 | I8: =SUM(IF($B8:$H8<=$N$7,1,0)) -> 4 | J8: 4 | K8: 6 | M8: k = | N8: 7 | O8: Shape | P8: Any Finite Positive Integer
A9: 6 | B9: 0.279943005 | C9: 0.5722822591 | D9: 0.5504839302 | E9: 0.3609071909 | F9: 0.1465589731 | G9: 0.9273932532 | H9: 0.1566710523 | I9: =SUM(IF($B9:$H9<=$N$7,1,0)) -> 6 | J9: 6 | K9: 7
A10: 7 | B10: 0.9366722078 | C10: 0.2973990816 | D10: 0.7432095291 | E10: 0.1708444915 | F10: 0.03764533306 | G10: 0.05147372961 | H10: 0.5540158524 | I10: =SUM(IF($B10:$H10<=$N$7,1,0)) -> 6 | J10: 6 | K10: 5 | M10: Distribution Type: | P10: Discrete
A11: 8 | B11: 0.4319115567 | C11: 0.3355232993 | D11: 0.2350445327 | E11: 0.1289192128 | F11: 0.9957305062 | G11: 0.8335850935 | H11: 0.2780688497 | I11: =SUM(IF($B11:$H11<=$N$7,1,0)) -> 5 | J11: 5 | K11: 7 | M11: Distrbution Name: | P11: Binomial
A12: 9 | B12: 0.9620370153 | C12: 0.7916290012 | D12: 0.8240963927 | E12: 0.880727246 | F12: 0.1036601397 | G12: 0.2630751722 | H12: 0.9790884164 | I12: =SUM(IF($B12:$H12<=$N$7,1,0)) -> 3 | J12: 3 | K12: 7 | M12: Variate Number: | P12: Univariate
A13: 10 | B13: 0.1424035458 | C13: 0.2482285966 | D13: 0.09447618177 | E13: 0.4369863336 | F13: 0.5280253261 | G13: 0.2330707697 | H13: 0.6174300745 | I13: =SUM(IF($B13:$H13<=$N$7,1,0)) -> 7 | J13: 7 | K13: 5 | M13: Simulation Method: | P13: Convolution Method
A14: 11 | B14: 0.2017197184 | C14: 0.1405022656 | D14: 0.8245071999 | E14: 0.4214854177 | F14: 0.003032548942 | G14: 0.3332631887 | H14: 0.8011678052 | I14: =SUM(IF($B14:$H14<=$N$7,1,0)) -> 5 | J14: 5 | K14: 4
A15: 12 | B15: 0.5804161826 | C15: 0.243256612 | D15: 0.2353386721 | E15: 0.2563983671 | F15: 0.8140148635 | G15: 0.09082895931 | H15: 0.9075868169 | I15: =SUM(IF($B15:$H15<=$N$7,1,0)) -> 5 | J15: 5 | K15: 7 | M15: Macro Format: | P15: =Binomial(prob, k, [unif])
A16: 13 | B16: 0.3436685132 | C16: 0.6616591683 | D16: 0.417836352 | E16: 0.2211821804 | F16: 0.2013016359 | G16: 0.3495024616 | H16: 0.6412351871 | I16: =SUM(IF($B16:$H16<=$N$7,1,0)) -> 7 | J16: 7 | K16: 4
A17: 14 | B17: 0.9651686826 | C17: 0.5627961296 | D17: 0.2089586881 | E17: 0.4636426204 | F17: 0.1697267914 | G17: 0.1413917056 | H17: 0.4255233626 | I17: =SUM(IF($B17:$H17<=$N$7,1,0)) -> 6 | J17: 6 | K17: 6
A18: 15 | B18: 0.3870480883 | C18: 0.975139176 | D18: 0.6184932312 | E18: 0.1028649985 | F18: 0.4836692525 | G18: 0.9016041161 | H18: 0.7267987876 | I18: =SUM(IF($B18:$H18<=$N$7,1,0)) -> 5 | J18: 5 | K18: 5 | O18: Notes: | P18: 1. Uniform variables input to the macro can
A19: 16 | B19: 0.8638575657 | C19: 0.4311052388 | D19: 0.4134139775 | E19: 0.14141942 | F19: 0.5947251724 | G19: 0.7634250816 | H19: 0.1657252421 | I19: =SUM(IF($B19:$H19<=$N$7,1,0)) -> 6 | J19: 6 | K19: 7 | P19: be in a 1xk row vector or a kx1 column vector
A20: 17 | B20: 0.1747628204 | C20: 0.08372850713 | D20: 0.4512535225 | E20: 0.531150311 | F20: 0.3739814785 | G20: 0.6696126764 | H20: 0.6749341153 | I20: =SUM(IF($B20:$H20<=$N$7,1,0)) -> 7 | J20: 7 | K20: 5 | P20: but the vector dimension (k) must match the
A21: 18 | B21: 0.3811765959 | C21: 0.06616353844 | D21: 0.5509560174 | E21: 0.2412186824 | F21: 0.4861992314 | G21: 0.5517823979 | H21: 0.8600808069 | I21: =SUM(IF($B21:$H21<=$N$7,1,0)) -> 6 | J21: 6 | K21: 6 | P21: k value provided or the macro will return an
A22: 19 | B22: 0.8779450603 | C22: 0.05880060313 | D22: 0.7691656578 | E22: 0.631544891 | F22: 0.289142614 | G22: 0.02341986277 | H22: 0.5509462125 | I22: =SUM(IF($B22:$H22<=$N$7,1,0)) -> 6 | J22: 6 | K22: 5 | P22: error code.
A23: 20 | B23: 0.1823801902 | C23: 0.9142713175 | D23: 0.2074303218 | E23: 0.342591286 | F23: 0.5282430061 | G23: 0.5723804793 | H23: 0.7023756298 | I23: =SUM(IF($B23:$H23<=$N$7,1,0)) -> 6 | J23: 6 | K23: 6 | P23: 2. If a k-dimensional vector of uniform random
A24: 21 | B24: 0.397533352 | C24: 0.9920845257 | D24: 0.9896821072 | E24: 0.2061579232 | F24: 0.301610266 | G24: 0.5003576506 | H24: 0.010524162 | I24: =SUM(IF($B24:$H24<=$N$7,1,0)) -> 5 | J24: 5 | K24: 7 | P24: variables is not provided to the macro, the
A25: 22 | B25: 0.7419975794 | C25: 0.33932003 | D25: 0.2932953023 | E25: 0.7467240936 | F25: 0.5761328484 | G25: 0.1227810442 | H25: 0.6746256332 | I25: =SUM(IF($B25:$H25<=$N$7,1,0)) -> 7 | J25: 7 | K25: 7 | P25: macro will generate all needed uniform
A26: 23 | B26: 0.5708289459 | C26: 0.5102622206 | D26: 0.6437871295 | E26: 0.8249318555 | F26: 0.9146368791 | G26: 0.5076080194 | H26: 0.6636019123 | I26: =SUM(IF($B26:$H26<=$N$7,1,0)) -> 5 | J26: 5 | K26: 6 | P26: variables internally.
A27: 24 | B27: 0.9019586936 | C27: 0.6882338852 | D27: 0.2603486179 | E27: 0.439329676 | F27: 0.8543508976 | G27: 0.7469089964 | H27: 0.1739554595 | I27: =SUM(IF($B27:$H27<=$N$7,1,0)) -> 5 | J27: 5 | K27: 7
A28: 25 | B28: 0.4384305586 | C28: 0.3802352804 | D28: 0.4887563687 | E28: 0.9873724551 | F28: 0.7555084509 | G28: 0.3550900004 | H28: 0.5948010067 | I28: =SUM(IF($B28:$H28<=$N$7,1,0)) -> 6 | J28: 6 | K28: 4
A29: 26 | B29: 0.392949239 | C29: 0.8100758324 | D29: 0.9061144618 | E29: 0.7302896544 | F29: 0.5230061732 | G29: 0.8717630442 | H29: 0.6317317823 | I29: =SUM(IF($B29:$H29<=$N$7,1,0)) -> 4 | J29: 4 | K29: 6
A30: 27 | B30: 0.2515715048 | C30: 0.07194502391 | D30: 0.5058328352 | E30: 0.151008422 | F30: 0.0362339279 | G30: 0.3804917917 | H30: 0.8501669921 | I30: =SUM(IF($B30:$H30<=$N$7,1,0)) -> 6 | J30: 6 | K30: 5
A31: 28 | B31: 0.305500214 | C31: 0.06040511925 | D31: 0.3403360219 | E31: 0.4220907363 | F31: 0.31133185 | G31: 0.2336981857 | H31: 0.7296264846 | I31: =SUM(IF($B31:$H31<=$N$7,1,0)) -> 7 | J31: 7 | K31: 5
A32: 29 | B32: 0.07938744748 | C32: 0.3639030347 | D32: 0.9060754265 | E32: 0.7563224402 | F32: 0.5803651054 | G32: 0.6947580971 | H32: 0.6406844306 | I32: =SUM(IF($B32:$H32<=$N$7,1,0)) -> 6 | J32: 6 | K32: 5
A33: 30 | B33: 0.8205781142 | C33: 0.02340593126 | D33: 0.7012680028 | E33: 0.1422563889 | F33: 0.7591725434 | G33: 0.934633029 | H33: 0.18541556 | I33: =SUM(IF($B33:$H33<=$N$7,1,0)) -> 5 | J33: 5 | K33: 7
A34: 31 | B34: 0.005076745533 | C34: 0.7209489207 | D34: 0.1407794658 | E34: 0.8203233152 | F34: 0.1077696131 | G34: 0.129073954 | H34: 0.1705333023 | I34: =SUM(IF($B34:$H34<=$N$7,1,0)) -> 6 | J34: 6 | K34: 5
A35: 32 | B35: 0.02998045736 | C35: 0.5004593532 | D35: 0.3221744237 | E35: 0.4786909615 | F35: 0.5580786623 | G35: 0.1483137977 | H35: 0.161132995 | I35: =SUM(IF($B35:$H35<=$N$7,1,0)) -> 7 | J35: 7 | K35: 5
A36: 33 | B36: 0.8969873922 | C36: 0.518542377 | D36: 0.4169510675 | E36: 0.9923927945 | F36: 0.0596861142 | G36: 0.03751989742 | H36: 0.9536516474 | I36: =SUM(IF($B36:$H36<=$N$7,1,0)) -> 4 | J36: 4 | K36: 7
A37: 34 | B37: 0.04851801844 | C37: 0.7346561136 | D37: 0.4599008923 | E37: 0.5773846899 | F37: 0.1343992911 | G37: 0.4337531399 | H37: 0.231289131 | I37: =SUM(IF($B37:$H37<=$N$7,1,0)) -> 7 | J37: 7 | K37: 4
A38: 35 | B38: 0.3712391652 | C38: 0.922628827 | D38: 0.6008795965 | E38: 0.905288327 | F38: 0.4740317539 | G38: 0.7461370859 | H38: 0.5140165542 | I38: =SUM(IF($B38:$H38<=$N$7,1,0)) -> 5 | J38: 5 | K38: 5
A39: 36 | B39: 0.1827388583 | C39: 0.7029738861 | D39: 0.4174343426 | E39: 0.053776221 | F39: 0.9246365743 | G39: 0.04493849582 | H39: 0.7488457754 | I39: =SUM(IF($B39:$H39<=$N$7,1,0)) -> 6 | J39: 6 | K39: 5
A40: 37 | B40: 0.1205000529 | C40: 0.4869916073 | D40: 0.7985469515 | E40: 0.3948905499 | F40: 0.04308267127 | G40: 0.005148998517 | H40: 0.6658040522 | I40: =SUM(IF($B40:$H40<=$N$7,1,0)) -> 7 | J40: 7 | K40: 6
A41: 38 | B41: 0.6494569336 | C41: 0.1177189898 | D41: 0.03145377722 | E41: 0.02378277955 | F41: 0.8036652433 | G41: 0.676673738 | H41: 0.982672583 | I41: =SUM(IF($B41:$H41<=$N$7,1,0)) -> 5 | J41: 5 | K41: 5
A42: 39 | B42: 0.8452335485 | C42: 0.9314761065 | D42: 0.7227030982 | E42: 0.8596380588 | F42: 0.4328996649 | G42: 0.335265953 | H42: 0.6875622745 | I42: =SUM(IF($B42:$H42<=$N$7,1,0)) -> 4 | J42: 4 | K42: 5
A43: 40 | B43: 0.9655911328 | C43: 0.5218008587 | D43: 0.360851336 | E43: 0.1244034707 | F43: 0.8935880104 | G43: 0.3070020318 | H43: 0.6523803878 | I43: =SUM(IF($B43:$H43<=$N$7,1,0)) -> 5 | J43: 5 | K43: 5
A44: 41 | B44: 0.6649923293 | C44: 0.7250160203 | D44: 0.3869324873 | E44: 0.02226054866 | F44: 0.01652503043 | G44: 0.89518863 | H44: 0.8818573442 | I44: =SUM(IF($B44:$H44<=$N$7,1,0)) -> 5 | J44: 5 | K44: 7
A45: 42 | B45: 0.4871681719 | C45: 0.5020371216 | D45: 0.6102348278 | E45: 0.1310437958 | F45: 0.9487694179 | G45: 0.07789361777 | H45: 0.4017540033 | I45: =SUM(IF($B45:$H45<=$N$7,1,0)) -> 6 | J45: 6 | K45: 5
A46: 43 | B46: 0.7721031561 | C46: 0.4584762652 | D46: 0.5800372143 | E46: 0.4441513034 | F46: 0.8426524182 | G46: 0.7644727229 | H46: 0.4624990097 | I46: =SUM(IF($B46:$H46<=$N$7,1,0)) -> 6 | J46: 6 | K46: 4
A47: 44 | B47: 0.8263662763 | C47: 0.2765273184 | D47: 0.05938864935 | E47: 0.4126725366 | F47: 0.9450092479 | G47: 0.1629516516 | H47: 0.3506871872 | I47: =SUM(IF($B47:$H47<=$N$7,1,0)) -> 5 | J47: 5 | K47: 6
A48: 45 | B48: 0.3099628364 | C48: 0.1519658463 | D48: 0.9295731411 | E48: 0.7926182276 | F48: 0.9090659442 | G48: 0.8665254675 | H48: 0.06990709899 | I48: =SUM(IF($B48:$H48<=$N$7,1,0)) -> 4 | J48: 4 | K48: 5
A49: 46 | B49: 0.1840653162 | C49: 0.4044368542 | D49: 0.8740891166 | E49: 0.2518065347 | F49: 0.09427634318 | G49: 0.156685802 | H49: 0.1368271529 | I49: =SUM(IF($B49:$H49<=$N$7,1,0)) -> 6 | J49: 6 | K49: 7
A50: 47 | B50: 0.582757888 | C50: 0.5156840304 | D50: 0.4430142865 | E50: 0.2451710697 | F50: 0.3983374017 | G50: 0.01394439533 | H50: 0.5578189876 | I50: =SUM(IF($B50:$H50<=$N$7,1,0)) -> 7 | J50: 7 | K50: 7
A51: 48 | B51: 0.3211056531 | C51: 0.8870747519 | D51: 0.09259831303 | E51: 0.289117665 | F51: 0.5000169645 | G51: 0.5700756258 | H51: 0.8842060079 | I51: =SUM(IF($B51:$H51<=$N$7,1,0)) -> 5 | J51: 5 | K51: 2
A52: 49 | B52: 0.9405997337 | C52: 0.1219970642 | D52: 0.5770554009 | E52: 0.8180838459 | F52: 0.04531803553 | G52: 0.9471112603 | H52: 0.8914058104 | I52: =SUM(IF($B52:$H52<=$N$7,1,0)) -> 3 | J52: 3 | K52: 7
A53: 50 | B53: 0.1490762062 | C53: 0.5485823648 | D53: 0.2679653081 | E53: 0.2195272059 | F53: 0.3615433684 | G53: 0.3177784158 | H53: 0.2276398092 | I53: =SUM(IF($B53:$H53<=$N$7,1,0)) -> 7 | J53: 7 | K53: 7
A54: 51 | B54: 0.3830204418 | C54: 0.5410797994 | D54: 0.1871110413 | E54: 0.3672203857 | F54: 0.5981342056 | G54: 0.9892828019 | H54: 0.244951611 | I54: =SUM(IF($B54:$H54<=$N$7,1,0)) -> 6 | J54: 6 | K54: 7
A55: 52 | B55: 0.08481595248 | C55: 0.0163538557 | D55: 0.4336403716 | E55: 0.2354063566 | F55: 0.1250727644 | G55: 0.3447163615 | H55: 0.3845756203 | I55: =SUM(IF($B55:$H55<=$N$7,1,0)) -> 7 | J55: 7 | K55: 7
A56: 53 | B56: 0.8422140741 | C56: 0.4652930511 | D56: 0.2349566669 | E56: 0.07160846986 | F56: 0.8449617199 | G56: 0.6249274009 | H56: 0.9252932047 | I56: =SUM(IF($B56:$H56<=$N$7,1,0)) -> 4 | J56: 4 | K56: 5
A57: 54 | B57: 0.404985595 | C57: 0.6417596103 | D57: 0.1731970829 | E57: 0.9956963365 | F57: 0.007323286452 | G57: 0.01280853133 | H57: 0.3945436611 | I57: =SUM(IF($B57:$H57<=$N$7,1,0)) -> 6 | J57: 6 | K57: 6
A58: 55 | B58: 0.3119225423 | C58: 0.3842946445 | D58: 0.4990688954 | E58: 0.5815520072 | F58: 0.220759594 | G58: 0.6764433176 | H58: 0.4603255634 | I58: =SUM(IF($B58:$H58<=$N$7,1,0)) -> 7 | J58: 7 | K58: 6
A59: 56 | B59: 0.0739452196 | C59: 0.2671595445 | D59: 0.5359457317 | E59: 0.1437875729 | F59: 0.7850972957 | G59: 0.5807629159 | H59: 0.7371330975 | I59: =SUM(IF($B59:$H59<=$N$7,1,0)) -> 7 | J59: 7 | K59: 4
A60: 57 | B60: 0.4154056191 | C60: 0.4356440688 | D60: 0.7646524018 | E60: 0.7359760874 | F60: 0.4409276106 | G60: 0.8914142178 | H60: 0.09576045955 | I60: =SUM(IF($B60:$H60<=$N$7,1,0)) -> 6 | J60: 6 | K60: 6
A61: 58 | B61: 0.9433448155 | C61: 0.648413642 | D61: 0.1010624422 | E61: 0.374652411 | F61: 0.1588560864 | G61: 0.288796352 | H61: 0.5052175887 | I61: =SUM(IF($B61:$H61<=$N$7,1,0)) -> 6 | J61: 6 | K61: 7
A62: 59 | B62: 0.6294690698 | C62: 0.313425937 | D62: 0.2799966396 | E62: 0.7977122581 | F62: 0.9755442023 | G62: 0.1778556759 | H62: 0.9554329437 | I62: =SUM(IF($B62:$H62<=$N$7,1,0)) -> 5 | J62: 5 | K62: 5
A63: 60 | B63: 0.2175176524 | C63: 0.08424191555 | D63: 0.07623157935 | E63: 0.7788388414 | F63: 0.04297358701 | G63: 0.4652631796 | H63: 0.3920433491 | I63: =SUM(IF($B63:$H63<=$N$7,1,0)) -> 7 | J63: 7 | K63: 7
A64: 61 | B64: 0.8113218223 | C64: 0.6853004857 | D64: 0.9184332179 | E64: 0.8707860968 | F64: 0.4571751112 | G64: 0.7670201794 | H64: 0.120702281 | I64: =SUM(IF($B64:$H64<=$N$7,1,0)) -> 4 | J64: 4 | K64: 5
A65: 62 | B65: 0.4764195342 | C65: 0.4937383142 | D65: 0.6111688986 | E65: 0.1367777283 | F65: 0.9835388236 | G65: 0.6915807455 | H65: 0.9605430431 | I65: =SUM(IF($B65:$H65<=$N$7,1,0)) -> 5 | J65: 5 | K65: 4
A66: 63 | B66: 0.9230861553 | C66: 0.8285612592 | D66: 0.6713535427 | E66: 0.3870602864 | F66: 0.941623744 | G66: 0.8757579158 | H66: 0.4786294226 | I66: =SUM(IF($B66:$H66<=$N$7,1,0)) -> 3 | J66: 3 | K66: 7
A67: 64 | B67: 0.6224165836 | C67: 0.995215233 | D67: 0.1510846765 | E67: 0.1318279902 | F67: 0.2007620951 | G67: 0.007678645197 | H67: 0.9107377835 | I67: =SUM(IF($B67:$H67<=$N$7,1,0)) -> 5 | J67: 5 | K67: 5
A68: 65 | B68: 0.5629027479 | C68: 0.5743923956 | D68: 0.9400107753 | E68: 0.7908305903 | F68: 0.1286877078 | G68: 0.49658634 | H68: 0.9728214088 | I68: =SUM(IF($B68:$H68<=$N$7,1,0)) -> 5 | J68: 5 | K68: 5
A69: 66 | B69: 0.2761746025 | C69: 0.9051454919 | D69: 0.9323863101 | E69: 0.7200472491 | F69: 0.01520721347 | G69: 0.1412494068 | H69: 0.9740995875 | I69: =SUM(IF($B69:$H69<=$N$7,1,0)) -> 4 | J69: =Binomial($N$7,$N$8,$B69:$H69) -> 4 | K69: =Binomial($N$7,$N$8) -> 2
A70: =A69+1 -> 67 | B70: 0.981830979 | C70: 0.426635734 | D70: 0.4026859997 | E70: 0.4664830889 | F70: 0.07809789681 | G70: 0.1546921662 | H70: 0.104066711 | I70: =SUM(IF($B70:$H70<=$N$7,1,0)) -> 6 | J70: 6 | K70: 5
A71: 68 | B71: 0.1785586425 | C71: 0.9218268293 | D71: 0.2748745048 | E71: 0.5999856991 | F71: 0.2023992129 | G71: 0.4574151321 | H71: 0.2943127708 | I71: =SUM(IF($B71:$H71<=$N$7,1,0)) -> 6 | J71: 6 | K71: 7
A72: 69 | B72: 0.1410671686 | C72: 0.4131659608 | D72: 0.2278674282 | E72: 0.6754928607 | F72: 0.6062801162 | G72: 0.7188258256 | H72: 0.5086053833 | I72: =SUM(IF($B72:$H72<=$N$7,1,0)) -> 7 | J72: 7 | K72: 7
A73: 70 | B73: 0.7879989282 | C73: 0.1046542347 | D73: 0.7483721012 | E73: 0.7984145485 | F73: 0.0785660646 | G73: 0.1515141804 | H73: 0.8096613944 | I73: =SUM(IF($B73:$H73<=$N$7,1,0)) -> 6 | J73: 6 | K73: 7
A74: 71 | B74: 0.6201986948 | C74: 0.03719790204 | D74: 0.1941654433 | E74: 0.1283716018 | F74: 0.7643020895 | G74: 0.497461859 | H74: 0.7260034223 | I74: =SUM(IF($B74:$H74<=$N$7,1,0)) -> 7 | J74: 7 | K74: 5
A75: 72 | B75: 0.3207061634 | C75: 0.3477175183 | D75: 0.4503552586 | E75: 0.6463731145 | F75: 0.09692305418 | G75: 0.599797832 | H75: 0.8730102236 | I75: =SUM(IF($B75:$H75<=$N$7,1,0)) -> 6 | J75: 6 | K75: 5
A76: 73 | B76: 0.7191682701 | C76: 0.6291997286 | D76: 0.1143559696 | E76: 0.4394249007 | F76: 0.9878691149 | G76: 0.1812790649 | H76: 0.06381201902 | I76: =SUM(IF($B76:$H76<=$N$7,1,0)) -> 6 | J76: 6 | K76: 6
A77: 74 | B77: 0.7029073638 | C77: 0.3302869132 | D77: 0.6034165843 | E77: 0.9882855808 | F77: 0.4894277482 | G77: 0.0357787955 | H77: 0.01314301834 | I77: =SUM(IF($B77:$H77<=$N$7,1,0)) -> 6 | J77: 6 | K77: 7
A78: 75 | B78: 0.1541728342 | C78: 0.8293481007 | D78: 0.9751912951 | E78: 0.6686337885 | F78: 0.5743208364 | G78: 0.1932962213 | H78: 0.6450536184 | I78: =SUM(IF($B78:$H78<=$N$7,1,0)) -> 5 | J78: 5 | K78: 6
A79: 76 | B79: 0.2797729539 | C79: 0.2479116646 | D79: 0.9001587527 | E79: 0.8279854079 | F79: 0.7504258449 | G79: 0.4644568201 | H79: 0.7855463101 | I79: =SUM(IF($B79:$H79<=$N$7,1,0)) -> 5 | J79: 5 | K79: 6
A80: 77 | B80: 0.4232106228 | C80: 0.1169119436 | D80: 0.1826800588 | E80: 0.578630703 | F80: 0.6515436218 | G80: 0.8133136348 | H80: 0.3460215017 | I80: =SUM(IF($B80:$H80<=$N$7,1,0)) -> 6 | J80: 6 | K80: 5
A81: 78 | B81: 0.9813614277 | C81: 0.2126052669 | D81: 0.4937843286 | E81: 0.1291787097 | F81: 0.1703793937 | G81: 0.1763970525 | H81: 0.6143713158 | I81: =SUM(IF($B81:$H81<=$N$7,1,0)) -> 6 | J81: 6 | K81: 4
A82: 79 | B82: 0.2008575604 | C82: 0.5448278331 | D82: 0.1520698042 | E82: 0.8064984359 | F82: 0.4679433776 | G82: 0.09966938772 | H82: 0.08742203493 | I82: =SUM(IF($B82:$H82<=$N$7,1,0)) -> 6 | J82: 6 | K82: 5
A83: 80 | B83: 0.1613377982 | C83: 0.04819874457 | D83: 0.8383078361 | E83: 0.1804602568 | F83: 0.7178460031 | G83: 0.7233241431 | H83: 0.9676179329 | I83: =SUM(IF($B83:$H83<=$N$7,1,0)) -> 5 | J83: 5 | K83: 6
A84: 81 | B84: 0.2586357835 | C84: 0.4225478705 | D84: 0.7789330747 | E84: 0.1490571979 | F84: 0.4826768392 | G84: 0.3673765455 | H84: 0.12522263 | I84: =SUM(IF($B84:$H84<=$N$7,1,0)) -> 7 | J84: 7 | K84: 6
A85: 82 | B85: 0.8347220398 | C85: 0.3930839196 | D85: 0.3484439756 | E85: 0.6820990534 | F85: 0.0003196990241 | G85: 0.1490546017 | H85: 0.04836536616 | I85: =SUM(IF($B85:$H85<=$N$7,1,0)) -> 6 | J85: 6 | K85: 6
A86: 83 | B86: 0.5159116711 | C86: 0.8518230054 | D86: 0.2918457063 | E86: 0.1979153715 | F86: 0.08343290608 | G86: 0.625695092 | H86: 0.1802868078 | I86: =SUM(IF($B86:$H86<=$N$7,1,0)) -> 6 | J86: 6 | K86: 6
A87: 84 | B87: 0.2463319221 | C87: 0.1181290531 | D87: 0.8600294726 | E87: 0.5061786403 | F87: 0.9207569091 | G87: 0.2663619546 | H87: 0.7092825075 | I87: =SUM(IF($B87:$H87<=$N$7,1,0)) -> 5 | J87: 5 | K87: 6
A88: 85 | B88: 0.5906387139 | C88: 0.4205643981 | D88: 0.8077042714 | E88: 0.8327784981 | F88: 0.1708236659 | G88: 0.9564376701 | H88: 0.4964952901 | I88: =SUM(IF($B88:$H88<=$N$7,1,0)) -> 4 | J88: 4 | K88: 5
A89: 86 | B89: 0.6539313475 | C89: 0.01483163667 | D89: 0.3172125436 | E89: 0.2533165053 | F89: 0.3575438719 | G89: 0.08869490421 | H89: 0.5125265437 | I89: =SUM(IF($B89:$H89<=$N$7,1,0)) -> 7 | J89: 7 | K89: 5
A90: 87 | B90: 0.5644546021 | C90: 0.3671603547 | D90: 0.1472890651 | E90: 0.02722803498 | F90: 0.8976583659 | G90: 0.4133597503 | H90: 0.5856492704 | I90: =SUM(IF($B90:$H90<=$N$7,1,0)) -> 6 | J90: 6 | K90: 7
A91: 88 | B91: 0.1056526664 | C91: 0.2451461443 | D91: 0.7569926447 | E91: 0.1883652352 | F91: 0.3890506912 | G91: 0.9149320387 | H91: 0.4202602308 | I91: =SUM(IF($B91:$H91<=$N$7,1,0)) -> 6 | J91: 6 | K91: 7
A92: 89 | B92: 0.5922646588 | C92: 0.2032418515 | D92: 0.5569816923 | E92: 0.8225080927 | F92: 0.4961883902 | G92: 0.359186821 | H92: 0.8565024038 | I92: =SUM(IF($B92:$H92<=$N$7,1,0)) -> 5 | J92: 5 | K92: 6
A93: 90 | B93: 0.7208912638 | C93: 0.6153593343 | D93: 0.3449051483 | E93: 0.6456615533 | F93: 0.5882032318 | G93: 0.2816834527 | H93: 0.7117046217 | I93: =SUM(IF($B93:$H93<=$N$7,1,0)) -> 7 | J93: 7 | K93: 6
A94: 91 | B94: 0.5880380319 | C94: 0.2315669825 | D94: 0.2083359665 | E94: 0.05958464497 | F94: 0.2522061883 | G94: 0.1421291063 | H94: 0.8503534543 | I94: =SUM(IF($B94:$H94<=$N$7,1,0)) -> 6 | J94: 6 | K94: 6
A95: 92 | B95: 0.7660283821 | C95: 0.2477513385 | D95: 0.7417777073 | E95: 0.3422449811 | F95: 0.7142984253 | G95: 0.2054018822 | H95: 0.6120745021 | I95: =SUM(IF($B95:$H95<=$N$7,1,0)) -> 7 | J95: 7 | K95: 6
A96: 93 | B96: 0.482858566 | C96: 0.01937188814 | D96: 0.5973424148 | E96: 0.08884993578 | F96: 0.7611903261 | G96: 0.3907694253 | H96: 0.5989472598 | I96: =SUM(IF($B96:$H96<=$N$7,1,0)) -> 7 | J96: 7 | K96: 6
A97: 94 | B97: 0.628647185 | C97: 0.8552590359 | D97: 0.7265108279 | E97: 0.1756853789 | F97: 0.6589877093 | G97: 0.7979048976 | H97: 0.7274249702 | I97: =SUM(IF($B97:$H97<=$N$7,1,0)) -> 6 | J97: 6 | K97: 5
A98: 95 | B98: 0.3377979428 | C98: 0.966005029 | D98: 0.7289084959 | E98: 0.1676091167 | F98: 0.1022055669 | G98: 0.04433446532 | H98: 0.1139333865 | I98: =SUM(IF($B98:$H98<=$N$7,1,0)) -> 6 | J98: 6 | K98: 6
A99: 96 | B99: 0.4757683134 | C99: 0.1234208843 | D99: 0.8450043928 | E99: 0.3713331432 | F99: 0.2298523323 | G99: 0.5377420969 | H99: 0.6422797347 | I99: =SUM(IF($B99:$H99<=$N$7,1,0)) -> 6 | J99: 6 | K99: 6
A100: 97 | B100: 0.05631247312 | C100: 0.8261558409 | D100: 0.3974682019 | E100: 0.7677003371 | F100: 0.788339125 | G100: 0.4666087859 | H100: 0.8654324238 | I100: =SUM(IF($B100:$H100<=$N$7,1,0)) -> 5 | J100: 5 | K100: 5
A101: 98 | B101: 0.8080473364 | C101: 0.2678116684 | D101: 0.1519069407 | E101: 0.6080271991 | F101: 0.4256672636 | G101: 0.9978331666 | H101: 0.7596836438 | I101: =SUM(IF($B101:$H101<=$N$7,1,0)) -> 5 | J101: 5 | K101: 5
A102: 99 | B102: 0.4989426697 | C102: 0.5954395098 | D102: 0.4899612906 | E102: 0.1806451878 | F102: 0.6737255896 | G102: 0.7458464568 | H102: 0.7958588143 | I102: =SUM(IF($B102:$H102<=$N$7,1,0)) -> 7 | J102: 7 | K102: 4
A103: 100 | B103: 0.320817958 | C103: 0.1521917407 | D103: 0.1276199537 | E103: 0.7235728832 | F103: 0.4697158882 | G103: 0.02689213153 | H103: 0.8234235406 | I103: =SUM(IF($B103:$H103<=$N$7,1,0)) -> 6 | J103: 6 | K103: 7

Sheet Cauchy
A1: UNIVARIATE CAUCHY
A3: Observation Number | B3: Uniform Random Variate | C3: Cauchy Random Variate | D3: Macro Generated Variate, U(0,1) submitted | E3: Macro Generated Variate w/o U(0,1)
A4: 1 | B4: 0.2686895342 | C4: =$H$7+$H$8*TAN(PI()*($B4-0.5)) -> -1.555848569 | D4: =cauchy($H$7,$H$8,$B4) -> -1.555848569 | E4: =cauchy($H$7,$H$8) -> -179.2360826
A5: =A4+1 -> 2 | B5: 0.7937742381 | C5: =$H$7+$H$8*TAN(PI()*($B5-0.5)) -> 7.284990329 | D5: 7.284990329 | E5: =cauchy($H$7,$H$8) -> -4.267521167 | G5: Population Parameters
A6: =A5+1 -> 3 | B6: 0.8219803517 | C6: 8.390527618 | D6: 8.390527618 | E6: -12.83584772 | G6: Name | H6: Value | I6: Type | J6: Feasible Range
A7: 4 | B7: 0.6651967236 | C7: 4.284837261 | D7: 4.284837261 | E7: -1.240112933 | G7: mu = | H7: 2 | I7: Location | J7: Any finite real number
A8: 5 | B8: 0.867173427 | C8: 11.02277863 | D8: 11.02277863 | E8: 2.831379692 | G8: sigma = | H8: 4 | I8: Scale | J8: Real number greater than zero
A9: 6 | B9: 0.279943005 | C9: -1.310294348 | D9: -1.310294348 | E9: -3.124214552
A10: 7 | B10: 0.9366722078 | C10: 21.83957191 | D10: 21.83957191 | E10: -1.496726265 | G10: Distribution Type: | J10: Continuous
A11: 8 | B11: 0.4319115567 | C11: 1.131082094 | D11: 1.131082094 | E11: 6.66674969 | G11: Distrbution Name: | J11: Cauchy
A12: 9 | B12: 0.9620370153 | C12: 35.37980369 | D12: 35.37980369 | E12: 3.985135214 | G12: Variate Number: | J12: Univariate
A13: 10 | B13: 0.1424035458 | C13: -6.336453901 | D13: -6.336453901 | E13: 4.375633684 | G13: Simulation Method: | J13: Inverse Transform
A14: 11 | B14: 0.2017197184 | C14: -3.44343842 | D14: -3.44343842 | E14: -89.16413201
A15: 12 | B15: 0.5804161826 | C15: 3.032601997 | D15: 3.032601997 | E15: 33.82454655 | G15: Macro Format: | J15: =Cauchy(mu, sigma, [unif])
A16: 13 | B16: 0.3436685132 | C16: -0.139361275 | D16: -0.139361275 | E16: -2.693062481
A17: 14 | B17: 0.9651686826 | C17: 38.40842925 | D17: 38.40842925 | E17: 8.437996253 | I17: Notes: | J17: 1. With this function you can optionally submit
A18: 15 | B18: 0.3870480883 | C18: 0.5178669104 | D18: 0.5178669104 | E18: -10.25364909 | J18: your own uniform random variable (unif). If
A19: 16 | B19: 0.8638575657 | C19: 10.77491055 | D19: 10.77491055 | E19: -4.840035115 | J19: not provided, the function will generate one
A20: 17 | B20: 0.1747628204 | C20: -4.538337386 | D20: -4.538337386 | E20: 0.5845344047 | J20: to be used in the formula.
A21: 18 | B21: 0.3811765959 | C21: 0.4333663544 | D21: 0.4333663544 | E21: 0.731004812
A22: 19 | B22: 0.8779450603 | C22: 11.91534685 | D22: 11.91534685 | E22: 0.6404090573 | J22: 2. Column C shows the formula used in the
A23: 20 | B23: 0.1823801902 | C23: -4.200025551 | D23: -4.200025551 | E23: -371.6656865 | J23: macro directly in the cell. Column D generates
A24: 21 | B24: 0.397533352 | C24: 0.6659647891 | D24: 0.6659647891 | E24: 13.44997029 | J24: the random variable with the macro, using the
A25: 22 | B25: 0.7419975794 | C25: 5.803769201 | D25: 5.803769201 | E25: -1.880185937 | J25: same uniform random variable (column A) as
A26: 23 | B26: 0.5708289459 | C26: 2.905049636 | D26: 2.905049636 | E26: -4.377116301 | J26: used in Column C, and therefore the output of
A27: 24 | B27: 0.9019586936 | C27: 14.57347095 | D27: 14.57347095 | E27: -910.3682569 | J27: Columns C and D will match. Column E runs
A28: 25 | B28: 0.4384305586 | C28: 1.216499921 | D28: 1.216499921 | E28: 0.8772378863 | J28: the macro using an internally generated
A29: 26 | B29: 0.392949239 | C29: 0.6016383498 | D29: 0.6016383498 | E29: 3.623973924 | J29: uniform random input.
A30: 27 | B30: 0.2515715048 | C30: -1.960697494 | D30: -1.960697494 | E30: 109.8473979
A31: 28 | B31: 0.305500214 | C31: -0.8018666908 | D31: -0.8018666908 | E31: 2.797491138
A32: 29 | B32: 0.07938744748 | C32: -13.70437351 | D32: -13.70437351 | E32: 1.399218782
A33: 30 | B33: 0.8205781142 | C33: 8.328367242 | D33: 8.328367242 | E33: -4.327747368
A34: 31 | B34: 0.005076745533 | C34: -248.7771121 | D34: -248.7771121 | E34: 3.425388968
A35: 32 | B35: 0.02998045736 | C35: -40.34332718 | D35: -40.34332718 | E35: 1.946645314
A36: 33 | B36: 0.8969873922 | C36: 13.92549467 | D36: 13.92549467 | E36: 207.6075753
A37: 34 | B37: 0.04851801844 | C37: -24.03906496 | D37: -24.03906496 | E37: 8.308608836
A38: 35 | B38: 0.3712391652 | C38: 0.2875022595 | D38: 0.2875022595 | E38: -3.766307599
A39: 36 | B39: 0.1827388583 | C39: -4.184716593 | D39: -4.184716593 | E39: 4.504192396
A40: 37 | B40: 0.1205000529 | C40: -8.056660068 | D40: -8.056660068 | E40: 7.690545694
A41: 38 | B41: 0.6494569336 | C41: 4.029513165 | D41: 4.029513165 | E41: 40.22908841
A42: 39 | B42: 0.8452335485 | C42: 9.568107694 | D42: 9.568107694 | E42: -41.19253853
A43: 40 | B43: 0.9655911328 | C43: 38.85899528 | D43: 38.85899528 | E43: 10.27795853
A44: 41 | B44: 0.6649923293 | C44: 4.281431967 | D44: 4.281431967 | E44: 0.09961347655
A45: 42 | B45: 0.4871681719 | C45: 1.838663087 | D45: 1.838663087 | E45: -7.443168775
A46: 43 | B46: 0.7721031561 | C46: 6.597998865 | D46: 6.597998865 | E46: -0.9128412537
A47: 44 | B47: 0.8263662763 | C47: 8.590740255 | D47: 8.590740255 | E47: 0.6032366651
A48: 45 | B48: 0.3099628364 | C48: -0.7190799508 | D48: -0.7190799508 | E48: 5.603878061
A49: 46 | B49: 0.1840653162 | C49: -4.128559828 | D49: -4.128559828 | E49: 1657.792055
A50: 47 | B50: 0.582757888 | C50: 3.064050073 | D50: 3.064050073 | E50: -3.782389231
A51: 48 | B51: 0.3211056531 | C51: -0.5190302223 | D51: -0.5190302223 | E51: 5.985050685
A52: 49 | B52: 0.9405997337 | C52: 23.18551826 | D52: 23.18551826 | E52: 2.751309938
A53: 50 | B53: 0.1490762062 | C53: -5.907088556 | D53: -5.907088556 | E53: -0.07305993254
A54: 51 | B54: 0.3830204418 | C54: 0.4600308709 | D54: 0.4600308709 | E54: 0.554962942
A55: 52 | B55: 0.08481595248 | C55: -12.65482396 | D55: -12.65482396 | E55: -2.289187383
A56: 53 | B56: 0.8422140741 | C56: 9.397392638 | D56: 9.397392638 | E56: 0.008035363836
A57: 54 | B57: 0.404985595 | C57: 0.7692411679 | D57: 0.7692411679 | E57: -9.933237499
A58: 55 | B58: 0.3119225423 | C58: -0.6832236272 | D58: -0.6832236272 | E58: 1.225807725
A59: 56 | B59: 0.0739452196 | C59: -14.90782523 | D59: -14.90782523 | E59: -4.150887916
A60: 57 | B60: 0.4154056191 | C60: 0.9112005535 | D60: 0.9112005535 | E60: 10.95783465
A61: 58 | B61: 0.9433448155 | C61: 24.23566745 | D61: 24.23566745 | E61: 13.33837685
A62: 59 | B62: 0.6294690698 | C62: 3.723039018 | D62: 3.723039018 | E62: -281.582464
A63: 60 | B63: 0.2175176524 | C63: -2.912675871 | D63: -2.912675871 | E63: -28.17080498
A64: 61 | B64: 0.8113218223 | C64: 7.938720064 | D64: 7.938720064 | E64: 2.980176087
A65: 62 | B65: 0.4764195342 | C65: 1.703135877 | D65: 1.703135877 | E65: 5.0563767
A66: 63 | B66: 0.9230861553 | C66: 18.23066388 | D66: 18.23066388 | E66: -4.710434026
A67: 64 | B67: 0.6224165836 | C67: 3.618946716 | D67: 3.618946716 | E67: -7.787808994
A68: 65 | B68: 0.5629027479 | C68: 2.800912123 | D68: 2.800912123 | E68: -0.7369978348
A69: 66 | B69: 0.2761746025 | C69: =$H$7+$H$8*TAN(PI()*($B69-0.5)) -> -1.390875241 | D69: =cauchy($H$7,$H$8,$B69) -> -1.390875241 | E69: =cauchy($H$7,$H$8) -> -5.399040198
A70: =A69+1 -> 67 | B70: 0.981830979 | C70: 72.00137585 | D70: 72.00137585 | E70: -0.2534474046
A71: 68 | B71: 0.1785586425 | C71: -4.366531205 | D71: -4.366531205 | E71: -0.9990760798
A72: 69 | B72: 0.1410671686 | C72: -6.426982623 | D72: -6.426982623 | E72: 54.2316271
A73: 70 | B73: 0.7879989282 | C73: 7.090366587 | D73: 7.090366587 | E73: 2.720752208
A74: 71 | B74: 0.6201986948 | C74: 3.586601029 | D74: 3.586601029 | E74: 25.33228488
A75: 72 | B75: 0.3207061634 | C75: -0.5260468657 | D75: -0.5260468657 | E75: 113.3429224
A76: 73 | B76: 0.7191682701 | C76: 5.291520881 | D76: 5.291520881 | E76: -14.32599125
A77: 74 | B77: 0.7029073638 | C77: 4.962365118 | D77: 4.962365118 | E77: 9.868355628
A78: 75 | B78: 0.1541728342 | C78: -5.602391995 | D78: -5.602391995 | E78: 6.374961007
A79: 76 | B79: 0.2797729539 | C79: -1.3138964 | D79: -1.3138964 | E79: 6.399729195
A80: 77 | B80: 0.4232106228 | C80: 1.015870553 | D80: 1.015870553 | E80: -0.6948512236
A81: 78 | B81: 0.9813614277 | C81: 70.23398393 | D81: 70.23398393 | E81: 4.159222481
A82: 79 | B82: 0.2008575604 | C82: -3.474451273 | D82: -3.474451273 | E82: -0.6363550163
A83: 80 | B83: 0.1613377982 | C83: -5.204086807 | D83: -5.204086807 | E83: 2.212274028
A84: 81 | B84: 0.2586357835 | C84: -1.788641411 | D84: -1.788641411 | E84: -3.913928249
A85: 82 | B85: 0.8347220398 | C85: 8.998539172 | D85: 8.998539172 | E85: 3.132747744
A86: 83 | B86: 0.5159116711 | C86: 2.200118669 | D86: 2.200118669 | E86: 0.5789930634
A87: 84 | B87: 0.2463319221 | C87: -2.093267762 | D87: -2.093267762 | E87: 34.54575964
A88: 85 | B88: 0.5906387139 | C88: 3.170816299 | D88: 3.170816299 | E88: -4.774209991
A89: 86 | B89: 0.6539313475 | C89: 4.100727614 | D89: 4.100727614 | E89: 2.865404993
A90: 87 | B90: 0.5644546021 | C90: 2.821215105 | D90: 2.821215105 | E90: 7.355633473
A91: 88 | B91: 0.1056526664 | C91: -9.605340564 | D91: -9.605340564 | E91: 15.41269804
A92: 89 | B92: 0.5922646588 | C92: 3.19303248 | D92: 3.19303248 | E92: -2.107027067
A93: 90 | B93: 0.7208912638 | C93: 5.327996593 | D93: 5.327996593 | E93: 2.420215857
A94: 91 | B94: 0.5880380319 | C94: 3.135419051 | D94: 3.135419051 | E94: -18.73103231
A95: 92 | B95: 0.7660283821 | C95: 6.424575437 | D95: 6.424575437 | E95: -9.247167957
A96: 93 | B96: 0.482858566 | C96: 1.784385923 | D96: 1.784385923 | E96: 1.163602649
A97: 94 | B97: 0.628647185 | C97: 3.710808064 | D97: 3.710808064 | E97: 6.968034059
A98: 95 | B98: 0.3377979428 | C98: -0.2351918995 | D98: -0.2351918995 | E98: -3.033065665
A99: 96 | B99: 0.4757683134 | C99: 1.694906059 | D99: 1.694906059 | E99: 7.559260063
A100: 97 | B100: 0.05631247312 | C100: -20.37388321 | D100: -20.37388321 | E100: 1.691164731
A101: 98 | B101: 0.8080473364 | C101: 7.808848232 | D101: 7.808848232 | E101: -4.075742634
A102: 99 | B102: 0.4989426697 | C102: 1.986713147 | D102: 1.986713147 | E102: 7.66858957
A103: 100 | B103: 0.320817958 | C103: -0.5240821831 | D103: -0.5240821831 | E103: 0.7844535859

Sheet Chi-Squared
A1: UNIVARIATE CHI-SQUARED
A3: Observation Number | B3: Macro Generated Variate
A4: 1 | B4: =Chisquared($F$7) -> 8.458903146
A5: =A4+1 -> 2 | B5: 7.557535896 | E5: Population Parameters
A6: =A5+1 -> 3 | B6: 27.49821898 | E6: Name | F6: Value | G6: Type | H6: Feasible Range
A7: 4 | B7: 20.43103575 | E7: k = | F7: 7 | G7: Shape | H7: Any Finite Positive Integer
A8: 5 | B8: 6.753281934
A9: 6 | B9: 5.659661516 | E9: Distribution Type: | H9: Continuous
A10: 7 | B10: 6.680671918 | E10: Distrbution Name: | H10: Chi-Squared
A11: 8 | B11: 3.55695321 | E11: Variate Number: | H11: Univariate
A12: 9 | B12: 9.248671344 | E12: Simulation Method: | H12: Convolution
A13: 10 | B13: 13.09205974
A14: 11 | B14: 6.980573989 | E14: Macro Format: | H14: =Chisquared(k)
A15: 12 | B15: 4.18992849
A16: 13 | B16: 7.095119293
A17: 14 | B17: 4.864370437
A18: 15 | B18: 6.532757308 | G18: Notes: | H18: 1. The Chi-Squared distribution does not lend
A19: 16 | B19: 5.448215462 | H19: itself easily to a manual presentation so no
A20: 17 | B20: 3.984069542 | H20: manual example is provided here, only the
A21: 18 | B21: 3.65028756 | H21: output of the macro generated variates.
A22: 19 | B22: 7.275470987 | H22: 2. The input parameter k is also commonly
A23: 20 | B23: 8.375043902 | H23: called the "degrees of freedom" of the
A24: 21 | B24: 13.55570524 | H24: chi-squared distribution.
A25: 22 | B25: 4.033947874
A26: 23 | B26: 4.978790676
A27: 24 | B27: 11.64959299
A28: 25 | B28: 4.736513138
A29: 26 | B29: 9.652901464
A30: 27 | B30: 2.579823804
A31: 28 | B31: 2.440808097
A32: 29 | B32: 1.925425606
A33: 30 | B33: 7.754374308
A34: 31 | B34: 8.234627705
A35: 32 | B35: 14.08497276
A36: 33 | B36: 2.179363817
A37: 34 | B37: 11.86398174
A38: 35 | B38: 3.508764072
A39: 36 | B39: 0.9035164468
A40: 37 | B40: 1.799232762
A41: 38 | B41: 17.24110753
A42: 39 | B42: 1.882727408
A43: 40 | B43: 13.76181505
A44: 41 | B44: 11.85014416
A45: 42 | B45: 8.369969646
A46: 43 | B46: 6.390410482
A47: 44 | B47: 10.97099773
A48: 45 | B48: 6.767565393
A49: 46 | B49: 7.017812894
A50: 47 | B50: 4.160784231
A51: 48 | B51: 5.925024473
A52: 49 | B52: 3.168340402
A53: 50 | B53: 5.371584763
A54: 51 | B54: 3.827149811
A55: 52 | B55: 11.46611854
A56: 53 | B56: 12.28262099
A57: 54 | B57: 15.05689666
A58: 55 | B58: 8.009676444
A59: 56 | B59: 2.624308365
A60: 57 | B60: 15.09284913
A61: 58 | B61: 3.207452917
A62: 59 | B62: 7.526609534
A63: 60 | B63: 3.285040409
A64: 61 | B64: 5.185287028
A65: 62 | B65: 11.50372346
A66: 63 | B66: 4.387293417
A67: 64 | B67: 1.989438929
A68: 65 | B68: 4.266914356
A69: 66 | B69: =Chisquared($F$7) -> 4.34035171
A70: =A69+1 -> 67 | B70: 1.980767832
A71: 68 | B71: 5.179200447
A72: 69 | B72: 6.470059785
A73: 70 | B73: 3.963222073
A74: 71 | B74: 5.255507884
A75: 72 | B75: 6.357012755
A76: 73 | B76: 11.19920858
A77: 74 | B77: 16.6479637
A78: 75 | B78: 10.10219191
A79: 76 | B79: 3.952873877
A80: 77 | B80: 7.742765959
A81: 78 | B81: 5.535126304
A82: 79 | B82: 6.84284467
A83: 80 | B83: 9.405187709
A84: 81 | B84: 3.932972017
A85: 82 | B85: 3.984771142
A86: 83 | B86: 17.42032793
A87: 84 | B87: 9.920886888
A88: 85 | B88: 4.058876674
A89: 86 | B89: 1.981735485
A90: 87 | B90: 5.131207613
A91: 88 | B91: 6.86686391
A92: 89 | B92: 7.797755638
A93: 90 | B93: 9.709811331
A94: 91 | B94: 15.4742766
A95: 92 | B95: 5.436054767
A96: 93 | B96: 5.855209318
A97: 94 | B97: 13.77417838
A98: 95 | B98: 4.45417395
A99: 96 | B99: 3.887351021
A100: 97 | B100: 4.779921686
A101: 98 | B101: 9.866289845
A102: 99 | B102: 11.25591627
A103: 100 | B103: 4.237118025

Sheet Discrete Uniform
A1: UNIVARIATE DISCRETE UNIFORM
A3: Observation Number | B3: Uniform Random Variate | C3: Discrete Uniform Random Variate | D3: Macro Generated Variate, U(0,1) submitted | E3: Macro Generated Variate w/o U(0,1)
A4: 1 | B4: 0.2686895342 | C4: =$H$7+FLOOR(($H$8-$H$7+1)*$B4,1) -> 2 | D4: =discrete($H$7,$H$8,$B4) -> 2 | E4: =discrete($H$7,$H$8) -> 1
A5: =A4+1 -> 2 | B5: 0.7937742381 | C5: =$H$7+FLOOR(($H$8-$H$7+1)*$B5,1) -> 5 | D5: =discrete($H$7,$H$8,$B5) -> 5 | E5: =discrete($H$7,$H$8) -> 1 | G5: Population Parameters
A6: =A5+1 -> 3 | B6: 0.8219803517 | C6: 5 | D6: 5 | E6: 4 | G6: Name | H6: Value | I6: Type | J6: Feasible Range
A7: 4 | B7: 0.6651967236 | C7: 4 | D7: 4 | E7: 2 | G7: a = | H7: 1 | I7: Location | J7: Any finite integer
A8: 5 | B8: 0.867173427 | C8: 6 | D8: 6 | E8: 2 | G8: b = | H8: 6 | I8: Location | J8: Any finite integer such that b >= a
A9: =A8+1 -> 6 | B9: 0.279943005 | C9: 2 | D9: 2 | E9: 2
A10: =A9+1 -> 7 | B10: 0.9366722078 | C10: 6 | D10: 6 | E10: 6 | G10: Distribution Type: | J10: Discrete
A11: =A10+1 -> 8 | B11: 0.4319115567 | C11: 3 | D11: 3 | E11: 2 | G11: Distrbution Name: | J11: Uniform
A12: =A11+1 -> 9 | B12: 0.9620370153 | C12: 6 | D12: 6 | E12: 2 | G12: Variate Number: | J12: Univariate
A13: =A12+1 -> 10 | B13: 0.1424035458 | C13: 1 | D13: 1 | E13: 6 | G13: Simulation Method: | J13: Inverse Transform
A14: =A13+1 -> 11 | B14: 0.2017197184 | C14: 2 | D14: 2 | E14: 4
A15: =A14+1 -> 12 | B15: 0.5804161826 | C15: 4 | D15: 4 | E15: 2 | G15: Macro Format: | J15: =discrete(a, b, [unif])
A16: =A15+1 -> 13 | B16: 0.3436685132 | C16: 3 | D16: 3 | E16: 3
A17: =A16+1 -> 14 | B17: 0.9651686826 | C17: 6 | D17: 6 | E17: 2 | I17: Notes: | J17: 1. With this function you can optionally submit
A18: =A17+1 -> 15 | B18: 0.3870480883 | C18: 3 | D18: 3 | E18: 1 | J18: your own uniform random variable (unif). If
A19: =A18+1 -> 16 | B19: 0.8638575657 | C19: 6 | D19: 6 | E19: 1 | J19: not provided, the function will generate one
A20: =A19+1 -> 17 | B20: 0.1747628204 | C20: 2 | D20: 2 | E20: 2 | J20: to be used in the formula.
A21: =A20+1 -> 18 | B21: 0.3811765959 | C21: 3 | D21: 3 | E21: 1 | J21: 2. Column C shows the formula used in the
A22: =A21+1 -> 19 | B22: 0.8779450603 | C22: 6 | D22: 6 | E22: 3 | J22: macro directly in the cell. Column D generates
A23: =A22+1 -> 20 | B23: 0.1823801902 | C23: 2 | D23: 2 | E23: 4 | J23: the random variable with the macro, using the
A24: =A23+1 -> 21 | B24: 0.397533352 | C24: 3 | D24: 3 | E24: 6 | J24: same uniform random variable (column A) as
A25: =A24+1 -> 22 | B25: 0.7419975794 | C25: 5 | D25: 5 | E25: 5 | J25: used in Column C, and therefore the output of
A26: =A25+1 -> 23 | B26: 0.5708289459 | C26: 4 | D26: 4 | E26: 1 | J26: Columns C and D will match. Column E runs
A27: =A26+1 -> 24 | B27: 0.9019586936 | C27: 6 | D27: 6 | E27: 6 | J27: the macro using an internally generated
A28: =A27+1 -> 25 | B28: 0.4384305586 | C28: 3 | D28: 3 | E28: 3
A29: =A28+1 -> 26 | B29: 0.392949239 | C29: 3 | D29: 3 | E29: 3
A30: =A29+1 -> 27 | B30: 0.2515715048 | C30: 2 | D30: 2 | E30: 5
A31: =A30+1 -> 28 | B31: 0.305500214 | C31: 2 | D31: 2 | E31: 5
A32: =A31+1 -> 29 | B32: 0.07938744748 | C32: 1 | D32: 1 | E32: 5
A33: =A32+1 -> 30 | B33: 0.8205781142 | C33: 5 | D33: 5 | E33: 6
A34: =A33+1 -> 31 | B34: 0.005076745533 | C34: 1 | D34: 1 | E34: 5
A35: =A34+1 -> 32 | B35: 0.02998045736 | C35: 1 | D35: 1 | E35: 1
A36: =A35+1 -> 33 | B36: 0.8969873922 | C36: 6 | D36: 6 | E36: 3
A37: =A36+1 -> 34 | B37: 0.04851801844 | C37: 1 | D37: 1 | E37: 1
A38: =A37+1 -> 35 | B38: 0.3712391652 | C38: 3 | D38: 3 | E38: 3
A39: =A38+1 -> 36 | B39: 0.1827388583 | C39: 2 | D39: 2 | E39: 6
A40: =A39+1 -> 37 | B40: 0.1205000529 | C40: 1 | D40: 1 | E40: 6
A41: =A40+1 -> 38 | B41: 0.6494569336 | C41: 4 | D41: 4 | E41: 3
A42: =A41+1 -> 39 | B42: 0.8452335485 | C42: 6 | D42: 6 | E42: 3
A43: =A42+1 -> 40 | B43: 0.9655911328 | C43: 6 | D43: 6 | E43: 6
A44: =A43+1 -> 41 | B44: 0.6649923293 | C44: 4 | D44: 4 | E44: 5
A45: =A44+1 -> 42 | B45: 0.4871681719 | C45: 3 | D45: 3 | E45: 3
A46: =A45+1 -> 43 | B46: 0.7721031561 | C46: 5 | D46: 5 | E46: 1
A47: =A46+1 -> 44 | B47: 0.8263662763 | C47: 5 | D47: 5 | E47: 3
A48: =A47+1 -> 45 | B48: 0.3099628364 | C48: 2 | D48: 2 | E48: 4
A49: =A48+1 -> 46 | B49: 0.1840653162 | C49: 2 | D49: 2 | E49: 5
A50: =A49+1 -> 47 | B50: 0.582757888 | C50: 4 | D50: 4 | E50: 5
A51: =A50+1 -> 48 | B51: 0.3211056531 | C51: 2 | D51: 2 | E51: 2
A52: =A51+1 -> 49 | B52: 0.9405997337 | C52: 6 | D52: 6 | E52: 6
A53: =A52+1 -> 50 | B53: 0.1490762062 | C53: 1 | D53: 1 | E53: 1
A54: =A53+1 -> 51 | B54: 0.3830204418 | C54: 3 | D54: 3 | E54: 6
A55: =A54+1 -> 52 | B55: 0.08481595248 | C55: 1 | D55: 1 | E55: 1
A56: =A55+1 -> 53 | B56: 0.8422140741 | C56: 6 | D56: 6 | E56: 6
A57: =A56+1 -> 54 | B57: 0.404985595 | C57: 3 | D57: 3 | E57: 5
A58: =A57+1 -> 55 | B58: 0.3119225423 | C58: 2 | D58: 2 | E58: 5
A59: =A58+1 -> 56 | B59: 0.0739452196 | C59: 1 | D59: 1 | E59: 1
A60: =A59+1 -> 57 | B60: 0.4154056191 | C60: 3 | D60: 3 | E60: 2
A61: =A60+1 -> 58 | B61: 0.9433448155 | C61: 6 | D61: 6 | E61: 6
A62: =A61+1 -> 59 | B62: 0.6294690698 | C62: 4 | D62: 4 | E62: 4
A63: =A62+1 -> 60 | B63: 0.2175176524 | C63: 2 | D63: 2 | E63: 3
A64: =A63+1 -> 61 | B64: 0.8113218223 | C64: 5 | D64: 5 | E64: 2
A65: =A64+1 -> 62 | B65: 0.4764195342 | C65: 3 | D65: 3 | E65: 1
A66: =A65+1 -> 63 | B66: 0.9230861553 | C66: 6 | D66: 6 | E66: 6
A67: =A66+1 -> 64 | B67: 0.6224165836 | C67: 4 | D67: 4 | E67: 1
A68: =A67+1 -> 65 | B68: 0.5629027479 | C68: 4 | D68: 4 | E68: 4
A69: =A68+1 -> 66 | B69: 0.2761746025 | C69: =$H$7+FLOOR(($H$8-$H$7+1)*$B69,1) -> 2 | D69: =discrete($H$7,$H$8,$B69) -> 2 | E69: =discrete($H$7,$H$8) -> 5
A70: =A69+1 -> 67 | B70: 0.981830979 | C70: 6 | D70: 6 | E70: 3
A71: 68 | B71: 0.1785586425 | C71: 2 | D71: 2 | E71: 5
A72: 69 | B72: 0.1410671686 | C72: 1 | D72: 1 | E72: 3
A73: 70 | B73: 0.7879989282 | C73: 5 | D73: 5 | E73: 6
A74: 71 | B74: 0.6201986948 | C74: 4 | D74: 4 | E74: 4
A75: 72 | B75: 0.3207061634 | C75: 2 | D75: 2 | E75: 2
A76: 73 | B76: 0.7191682701 | C76: 5 | D76: 5 | E76: 1
A77: 74 | B77: 0.7029073638 | C77: 5 | D77: 5 | E77: 1
A78: 75 | B78: 0.1541728342 | C78: 1 | D78: 1 | E78: 1
A79: 76 | B79: 0.2797729539 | C79: 2 | D79: 2 | E79: 5
A80: 77 | B80: 0.4232106228 | C80: 3 | D80: 3 | E80: 2
A81: 78 | B81: 0.9813614277 | C81: 6 | D81: 6 | E81: 2
A82: 79 | B82: 0.2008575604 | C82: 2 | D82: 2 | E82: 2
A83: 80 | B83: 0.1613377982 | C83: 1 | D83: 1 | E83: 5
A84: 81 | B84: 0.2586357835 | C84: 2 | D84: 2 | E84: 3
A85: 82 | B85: 0.8347220398 | C85: 6 | D85: 6 | E85: 5
A86: 83 | B86: 0.5159116711 | C86: 4 | D86: 4 | E86: 2
A87: 84 | B87: 0.2463319221 | C87: 2 | D87: 2 | E87: 2
A88: 85 | B88: 0.5906387139 | C88: 4 | D88: 4 | E88: 1
A89: 86 | B89: 0.6539313475 | C89: 4 | D89: 4 | E89: 2
A90: 87 | B90: 0.5644546021 | C90: 4 | D90: 4 | E90: 4
A91: 88 | B91: 0.1056526664 | C91: 1 | D91: 1 | E91: 5
A92: 89 | B92: 0.5922646588 | C92: 4 | D92: 4 | E92: 2
A93: 90 | B93: 0.7208912638 | C93: 5 | D93: 5 | E93: 5
A94: 91 | B94: 0.5880380319 | C94: 4 | D94: 4 | E94: 2
A95: 92 | B95: 0.7660283821 | C95: 5 | D95: 5 | E95: 5
A96: 93 | B96: 0.482858566 | C96: 3 | D96: 3 | E96: 4
A97: 94 | B97: 0.628647185 | C97: 4 | D97: 4 | E97: 6
A98: 95 | B98: 0.3377979428 | C98: 3 | D98: 3 | E98: 6
A99: 96 | B99: 0.4757683134 | C99: 3 | D99: 3 | E99: 2
A100: 97 | B100: 0.05631247312 | C100: 1 | D100: 1 | E100: 5
A101: 98 | B101: 0.8080473364 | C101: 5 | D101: 5 | E101: 5
A102: 99 | B102: 0.4989426697 | C102: 3 | D102: 3 | E102: 4
A103: 100 | B103: 0.320817958 | C103: 2 | D103: 2 | E103: 3

Sheet Erlang
A1: UNIVARIATE ERLANG
A3: Observation Number | B3: Uniform Random Variate #1 | C3: Uniform Random Variate #2 | D3: Uniform Random Variate #3 | E3: Uniform Random Variate #4 | F3: Uniform Random Variate #5 | G3: Uniform Random Variate #6 | H3: Uniform Random Variate #7 | I3: Erlang Random Variate | J3: Macro Generated Variate, uniforms submitted | K3: Macro Generated Variate w/o Uniforms submitted
A4: 1 | B4: 0.2686895342 | C4: 0.4440558018 | D4: 0.9446585172 | E4: 0.4988861242 | F4: 0.09634886979 | G4: 0.09322634477 | H4: 0.1192461544 | I4: =-(LN(PRODUCT($B4:$H4))/$N$7) -> 3.23912763 | J4: =Erlang($N$7,$N$8,$B4:$H4) -> 3.23912763 | K4: =Erlang($N$7,$N$8) -> 3.078015062
A5: =A4+1 -> 2 | B5: 0.7937742381 | C5: 0.657187953 | D5: 0.08390209645 | E5: 0.5998350332 | F5: 0.6242630444 | G5: 0.9180268841 | H5: 0.007808768677 | I5: =-(LN(PRODUCT($B5:$H5))/$N$7) -> 3.016388915 | J5: 3.016388915 | K5: 1.379275197 | M5: Population Parameters
A6: =A5+1 -> 3 | B6: 0.8219803517 | C6: 0.2289734867 | D6: 0.1685409965 | E6: 0.7880284345 | F6: 0.309918716 | G6: 0.8506175999 | H6: 0.5457723485 | I6: 1.875925457 | J6: 1.875925457 | K6: 1.295772881 | M6: Name | N6: Value | O6: Type | P6: Feasible Range
A7: 4 | B7: 0.6651967236 | C7: 0.5974609611 | D7: 0.9269962534 | E7: 0.03360383669 | F7: 0.9275892992 | G7: 0.9611862704 | H7: 0.1406550624 | I7: 2.155952533 | J7: 2.155952533 | K7: 2.165694636 | M7: sigma = | N7: 3 | O7: Scale | P7: Real number greater than zero
A8: 5 | B8: 0.867173427 | C8: 0.1256472972 | D8: 0.7808885858 | E8: 0.6753063224 | F8: 0.8280575497 | G8: 0.8752017777 | H8: 0.770700637 | I8: 1.14637773 | J8: 1.14637773 | K8: 5.059788553 | M8: k = | N8: 7 | O8: Shape | P8: Any Finite Positive Integer
A9: 6 | B9: 0.279943005 | C9: 0.5722822591 | D9: 0.5504839302 | E9: 0.3609071909 | F9: 0.1465589731 | G9: 0.9273932532 | H9: 0.1566710523 | I9: 2.432232001 | J9: 2.432232001 | K9: 1.611395921
A10: 7 | B10: 0.9366722078 | C10: 0.2973990816 | D10: 0.7432095291 | E10: 0.1708444915 | F10: 0.03764533306 | G10: 0.05147372961 | H10: 0.5540158524 | I10: 3.392891003 | J10: 3.392891003 | K10: 1.688609978 | M10: Distribution Type: | P10: Continuous
A11: 8 | B11: 0.4319115567 | C11: 0.3355232993 | D11: 0.2350445327 | E11: 0.1289192128 | F11: 0.9957305062 | G11: 0.8335850935 | H11: 0.2780688497 | I11: 2.298110863 | J11: 2.298110863 | K11: 1.869452994 | M11: Distrbution Name: | P11: Erlang
A12: 9 | B12: 0.9620370153 | C12: 0.7916290012 | D12: 0.8240963927 | E12: 0.880727246 | F12: 0.1036601397 | G12: 0.2630751722 | H12: 0.9790884164 | I12: 1.405308753 | J12: 1.405308753 | K12: 3.672256825 | M12: Variate Number: | P12: Univariate
A13: 10 | B13: 0.1424035458 | C13: 0.2482285966 | D13: 0.09447618177 | E13: 0.4369863336 | F13: 0.5280253261 | G13: 0.2330707697 | H13: 0.6174300745 | I13: 3.035656694 | J13: 3.035656694 | K13: 1.484649878 | M13: Simulation Method: | P13: Convolution
A14: 11 | B14: 0.2017197184 | C14: 0.1405022656 | D14: 0.8245071999 | E14: 0.4214854177 | F14: 0.003032548942 | G14: 0.3332631887 | H14: 0.8011678052 | I14: 3.913068876 | J14: 3.913068876 | K14: 1.19776895
A15: 12 | B15: 0.5804161826 | C15: 0.243256612 | D15: 0.2353386721 | E15: 0.2563983671 | F15: 0.8140148635 | G15: 0.09082895931 | H15: 0.9075868169 | I15: 2.488973545 | J15: 2.488973545 | K15: 1.724560232 | M15: Macro Format: | P15: =Erlang(sigma, k, [unif])
A16: 13 | B16: 0.3436685132 | C16: 0.6616591683 | D16: 0.417836352 | E16: 0.2211821804 | F16: 0.2013016359 | G16: 0.3495024616 | H16: 0.6412351871 | I16: 2.320356964 | J16: 2.320356964 | K16: 2.67848048
A17: 14 | B17: 0.9651686826 | C17: 0.5627961296 | D17: 0.2089586881 | E17: 0.4636426204 | F17: 0.1697267914 | G17: 0.1413917056 | H17: 0.4255233626 | I17: 2.509590677 | J17: 2.509590677 | K17: 1.415445478
A18: 15 | B18: 0.3870480883 | C18: 0.975139176 | D18: 0.6184932312 | E18: 0.1028649985 | F18: 0.4836692525 | G18: 0.9016041161 | H18: 0.7267987876 | I18: 1.626075871 | J18: 1.626075871 | K18: 2.506500773 | O18: Notes: | P18: 1. With this function you can optionally submit
A19: 16 | B19: 0.8638575657 | C19: 0.4311052388 | D19: 0.4134139775 | E19: 0.14141942 | F19: 0.5947251724 | G19: 0.7634250816 | H19: 0.1657252421 | I19: 2.138033876 | J19: 2.138033876 | K19: 2.429561969 | P19: your own uniform random variables (unif). If
A20: 17 | B20: 0.1747628204 | C20: 0.08372850713 | D20: 0.4512535225 | E20: 0.531150311 | F20: 0.3739814785 | G20: 0.6696126764 | H20: 0.6749341153 | I20: 2.476894178 | J20: 2.476894178 | K20: 2.410534543 | P20: not provided, the function will generate all
A21: 18 | B21: 0.3811765959 | C21: 0.06616353844 | D21: 0.5509560174 | E21: 0.2412186824 | F21: 0.4861992314 | G21: 0.5517823979 | H21: 0.8600808069 | I21: 2.388245719 | J21: 2.388245719 | K21: 1.893277837 | P21: needed uniform RVs to be used in the formula.
A22: 19 | B22: 0.8779450603 | C22: 0.05880060313 | D22: 0.7691656578 | E22: 0.631544891 | F22: 0.289142614 | G22: 0.02341986277 | H22: 0.5509462125 | I22: 3.092311235 | J22: 3.092311235 | K22: 2.056586968 | P22: 2. Uniform variables input to the macro can
A23: 20 | B23: 0.1823801902 | C23: 0.9142713175 | D23: 0.2074303218 | E23: 0.342591286 | F23: 0.5282430061 | G23: 0.5723804793 | H23: 0.7023756298 | I23: 1.994967924 | J23: 1.994967924 | K23: 1.622591219 | P23: be in a 1xk row vector or a kx1 column vector
A24: 21 | B24: 0.397533352 | C24: 0.9920845257 | D24: 0.9896821072 | E24: 0.2061579232 | F24: 0.301610266 | G24: 0.5003576506 | H24: 0.010524162 | I24: 2.988346984 | J24: 2.988346984 | K24: 2.107834928 | P24: but the vector dimension (k) must match the
A25: 22 | B25: 0.7419975794 | C25: 0.33932003 | D25: 0.2932953023 | E25: 0.7467240936 | F25: 0.5761328484 | G25: 0.1227810442 | H25: 0.6746256332 | I25: 1.980074237 | J25: 1.980074237 | K25: 1.347870702 | P25: k value provided or the macro will return an
A26: 23 | B26: 0.5708289459 | C26: 0.5102622206 | D26: 0.6437871295 | E26: 0.8249318555 | F26: 0.9146368791 | G26: 0.5076080194 | H26: 0.6636019123 | I26: 1.014561529 | J26: 1.014561529 | K26: 1.082559221 | P26: error code.
A27: 24 | B27: 0.9019586936 | C27: 0.6882338852 | D27: 0.2603486179 | E27: 0.439329676 | F27: 0.8543508976 | G27: 0.7469089964 | H27: 0.1739554595 | I27: 1.614411064 | J27: 1.614411064 | K27: 2.499224188 | P27: 3. Column I shows the manual formula for
A28: 25 | B28: 0.4384305586 | C28: 0.3802352804 | D28: 0.4887563687 | E28: 0.9873724551 | F28: 0.7555084509 | G28: 0.3550900004 | H28: 0.5948010067 | I28: 1.451798223 | J28: 1.451798223 | K28: 2.391186781 | P28: generating an Erlang variable, using the seven
A29: 26 | B29: 0.392949239 | C29: 0.8100758324 | D29: 0.9061144618 | E29: 0.7302896544 | F29: 0.5230061732 | G29: 0.8717630442 | H29: 0.6317317823 | I29: 0.9340986485 | J29: 0.9340986485 | K29: 2.505878179 | P29: uniform random variables provided. Column J
A30: 27 | B30: 0.2515715048 | C30: 0.07194502391 | D30: 0.5058328352 | E30: 0.151008422 | F30: 0.0362339279 | G30: 0.3804917917 | H30: 0.8501669921 | I30: 3.67674075 | J30: 3.67674075 | K30: 2.563819481 | P30: replicates those same calculuations via a macro,
A31: 28 | B31: 0.305500214 | C31: 0.06040511925 | D31: 0.3403360219 | E31: 0.4220907363 | F31: 0.31133185 | G31: 0.2336981857 | H31: 0.7296264846 | I31: 2.95622876 | J31: 2.95622876 | K31: 1.694534125 | P31: and the results in J should match those in I.
A32: 29 | B32: 0.07938744748 | C32: 0.3639030347 | D32: 0.9060754265 | E32: 0.7563224402 | F32: 0.5803651054 | G32: 0.6947580971 | H32: 0.6406844306 | I32: 1.758570249 | J32: 1.758570249 | K32: 2.947268332 | P32: In Column K the macro is used without the
A33: 30 | B33: 0.8205781142 | C33: 0.02340593126 | D33: 0.7012680028 | E33: 0.1422563889 | F33: 0.7591725434 | G33: 0.934633029 | H33: 0.18541556 | I33: 2.761928213 | J33: 2.761928213 | K33: 3.445181897 | P33: provided seven uniform random variables, and
A34: 31 | B34: 0.005076745533 | C34: 0.7209489207 | D34: 0.1407794658 | E34: 0.8203233152 | F34: 0.1077696131 | G34: 0.129073954 | H34: 0.1705333023 | I34: 4.604281081 | J34: 4.604281081 | K34: 1.805121887 | P34: instead internally generates seven uniform
A35: 32 | B35: 0.02998045736 | C35: 0.5004593532 | D35: 0.3221744237 | E35: 0.4786909615 | F35: 0.5580786623 | G35: 0.1483137977 | H35: 0.161132995 | I35: 3.462002077 | J35: 3.462002077 | K35: 2.105957696 | P35: RVs for its own use.
A36: 33 | B36: 0.8969873922 | C36: 0.518542377 | D36: 0.4169510675 | E36: 0.9923927945 | F36: 0.0596861142 | G36: 0.03751989742 | H36: 0.9536516474 | I36: 2.598955428 | J36: 2.598955428 | K36: 2.581062714
A37: 34 | B37: 0.04851801844 | C37: 0.7346561136 | D37: 0.4599008923 | E37: 0.5773846899 | F37: 0.1343992911 | G37: 0.4337531399 | H37: 0.231289131 | I37: 2.988823375 | J37: 2.988823375 | K37: 2.235229386
A38: 35 | B38: 0.3712391652 | C38: 0.922628827 | D38: 0.6008795965 | E38: 0.905288327 | F38: 0.4740317539 | G38: 0.7461370859 | H38: 0.5140165542 | I38: 1.128375414 | J38: 1.128375414 | K38: 1.61071688
A39: 36 | B39: 0.1827388583 | C39: 0.7029738861 | D39: 0.4174343426 | E39: 0.053776221 | F39: 0.9246365743 | G39: 0.04493849582 | H39: 0.7488457754 | I39: 3.106240604 | J39: 3.106240604 | K39: 1.50051196
A40: 37 | B40: 0.1205000529 | C40: 0.4869916073 | D40: 0.7985469515 | E40: 0.3948905499 | F40: 0.04308267127 | G40: 0.005148998517 | H40: 0.6658040522 | I40: 4.270022989 | J40: 4.270022989 | K40: 1.477949429
A41: 38 | B41: 0.6494569336 | C41: 0.1177189898 | D41: 0.03145377722 | E41: 0.02378277955 | F41: 0.8036652433 | G41: 0.676673738 | H41: 0.982672583 | I41: 3.465240399 | J41: 3.465240399 | K41: 2.24378161
A42: 39 | B42: 0.8452335485 | C42: 0.9314761065 | D42: 0.7227030982 | E42: 0.8596380588 | F42: 0.4328996649 | G42: 0.335265953 | H42: 0.6875622745 | I42: 1.006603673 | J42: 1.006603673 | K42: 2.22379324
A43: 40 | B43: 0.9655911328 | C43: 0.5218008587 | D43: 0.360851336 | E43: 0.1244034707 | F43: 0.8935880104 | G43: 0.3070020318 | H43: 0.6523803878 | I43: 1.836512434 | J43: 1.836512434 | K43: 4.604098405
A44: 41 | B44: 0.6649923293 | C44: 0.7250160203 | D44: 0.3869324873 | E44: 0.02226054866 | F44: 0.01652503043 | G44: 0.89518863 | H44: 0.8818573442 | I44: 3.27443683 | J44: 3.27443683 | K44: 2.417096703
A45: 42 | B45: 0.4871681719 | C45: 0.5020371216 | D45: 0.6102348278 | E45: 0.1310437958 | F45: 0.9487694179 | G45: 0.07789361777 | H45: 0.4017540033 | I45: 2.483759428 | J45: 2.483759428 | K45: 2.31537354
A46: 43 | B46: 0.7721031561 | C46: 0.4584762652 | D46: 0.5800372143 | E46: 0.4441513034 | F46: 0.8426524182 | G46: 0.7644727229 | H46: 0.4624990097 | I46: 1.201872468 | J46: 1.201872468 | K46: 2.223088315
A47: 44 | B47: 0.8263662763 | C47: 0.2765273184 | D47: 0.05938864935 | E47: 0.4126725366 | F47: 0.9450092479 | G47: 0.1629516516 | H47: 0.3506871872 | I47: 2.701212947 | J47: 2.701212947 | K47: 1.720551547
A48: 45 | B48: 0.3099628364 | C48: 0.1519658463 | D48: 0.9295731411 | E48: 0.7926182276 | F48: 0.9090659442 | G48: 0.8665254675 | H48: 0.06990709899 | I48: 2.086678411 | J48: 2.086678411 | K48: 2.575421024
A49: 46 | B49: 0.1840653162 | C49: 0.4044368542 | D49: 0.8740891166 | E49: 0.2518065347 | F49: 0.09427634318 | G49: 0.156685802 | H49: 0.1368271529 | I49: 3.438488651 | J49: 3.438488651 | K49: 1.970666803
A50: 47 | B50: 0.582757888 | C50: 0.5156840304 | D50: 0.4430142865 | E50: 0.2451710697 | F50: 0.3983374017 | G50: 0.01394439533 | H50: 0.5578189876 | I50: 3.066350371 | J50: 3.066350371 | K50: 1.401705119
A51: 48 | B51: 0.3211056531 | C51: 0.8870747519 | D51: 0.09259831303 | E51: 0.289117665 | F51: 0.5000169645 | G51: 0.5700756258 | H51: 0.8842060079 | I51: 2.084793896 | J51: 2.084793896 | K51: 1.946539182
A52: 49 | B52: 0.9405997337 | C52: 0.1219970642 | D52: 0.5770554009 | E52: 0.8180838459 | F52: 0.04531803553 | G52: 0.9471112603 | H52: 0.8914058104 | I52: 2.059649245 | J52: 2.059649245 | K52: 1.312391279
A53: 50 | B53: 0.1490762062 | C53: 0.5485823648 | D53: 0.2679653081 | E53: 0.2195272059 | F53: 0.3615433684 | G53: 0.3177784158 | H53: 0.2276398092 | I53: 2.993552423 | J53: 2.993552423 | K53: 1.180272283
A54: 51 | B54: 0.3830204418 | C54: 0.5410797994 | D54: 0.1871110413 | E54: 0.3672203857 | F54: 0.5981342056 | G54: 0.9892828019 | H54: 0.244951611 | I54: 2.061037109 | J54: 2.061037109 | K54: 1.688532041
A55: 52 | B55: 0.08481595248 | C55: 0.0163538557 | D55: 0.4336403716 | E55: 0.2354063566 | F55: 0.1250727644 | G55: 0.3447163615 | H55: 0.3845756203 | I55: 4.320684267 | J55: 4.320684267 | K55: 2.817821241
A56: 53 | B56: 0.8422140741 | C56: 0.4652930511 | D56: 0.2349566669 | E56: 0.07160846986 | F56: 0.8449617199 | G56: 0.6249274009 | H56: 0.9252932047 | I56: 1.912644455 | J56: 1.912644455 | K56: 3.804196717
A57: 54 | B57: 0.404985595 | C57: 0.6417596103 | D57: 0.1731970829 | E57: 0.9956963365 | F57: 0.007323286452 | G57: 0.01280853133 | H57: 0.3945436611 | I57: 4.436482905 | J57: 4.436482905 | K57: 3.776997459
A58: 55 | B58: 0.3119225423 | C58: 0.3842946445 | D58: 0.4990688954 | E58: 0.5815520072 | F58: 0.220759594 | G58: 0.6764433176 | H58: 0.4603255634 | I58: 2.011940332 | J58: 2.011940332 | K58: 1.22695397
A59: 56 | B59: 0.0739452196 | C59: 0.2671595445 | D59: 0.5359457317 | E59: 0.1437875729 | F59: 0.7850972957 | G59: 0.5807629159 | H59: 0.7371330975 | I59: 2.525942573 | J59: 2.525942573 | K59: 1.455899012
A60: 57 | B60: 0.4154056191 | C60: 0.4356440688 | D60: 0.7646524018 | E60: 0.7359760874 | F60: 0.4409276106 | G60: 0.8914142178 | H60: 0.09576045955 | I60: 1.854682398 | J60: 1.854682398 | K60: 2.111238649
A61: 58 | B61: 0.9433448155 | C61: 0.648413642 | D61: 0.1010624422 | E61: 0.374652411 | F61: 0.1588560864 | G61: 0.288796352 | H61: 0.5052175887 | I61: 2.509959779 | J61: 2.509959779 | K61: 2.114502189
A62: 59 | B62: 0.6294690698 | C62: 0.313425937 | D62: 0.2799966396 | E62: 0.7977122581 | F62: 0.9755442023 | G62: 0.1778556759 | H62: 0.9554329437 | I62: 1.639729709 | J62: 1.639729709 | K62: 3.986021707
A63: 60 | B63: 0.2175176524 | C63: 0.08424191555 | D63: 0.07623157935 | E63: 0.7788388414 | F63: 0.04297358701 | G63: 0.4652631796 | H63: 0.3920433491 | I63: 3.890724359 | J63: 3.890724359 | K63: 3.85484148
A64: 61 | B64: 0.8113218223 | C64: 0.6853004857 | D64: 0.9184332179 | E64: 0.8707860968 | F64: 0.4571751112 | G64: 0.7670201794 | H64: 0.120702281 | I64: 1.324264187 | J64: 1.324264187 | K64: 4.804190195
A65: 62 | B65: 0.4764195342 | C65: 0.4937383142 | D65: 0.6111688986 | E65: 0.1367777283 | F65: 0.9835388236 | G65: 0.6915807455 | H65: 0.9605430431 | I65: 1.451538702 | J65: 1.451538702 | K65: 1.810552963
A66: 63 | B66: 0.9230861553 | C66: 0.8285612592 | D66: 0.6713535427 | E66: 0.3870602864 | F66: 0.941623744 | G66: 0.8757579158 | H66: 0.4786294226 | I66: 0.8484583785 | J66: 0.8484583785 | K66: 2.311627311
A67: 64 | B67: 0.6224165836 | C67: 0.995215233 | D67: 0.1510846765 | E67: 0.1318279902 | F67: 0.2007620951 | G67: 0.007678645197 | H67: 0.9107377835 | I67: 3.65452038 | J67: 3.65452038 | K67: 2.035685437
A68: 65 | B68: 0.5629027479 | C68: 0.5743923956 | D68: 0.9400107753 | E68: 0.7908305903 | F68: 0.1286877078 | G68: 0.49658634 | H68: 0.9728214088 | I68: 1.401181902 | J68: 1.401181902 | K68: 2.508359374
A69: 66 | B69: 0.2761746025 | C69: 0.9051454919 | D69: 0.9323863101 | E69: 0.7200472491 | F69: 0.01520721347 | G69: 0.1412494068 | H69: 0.9740995875 | I69: =-(LN(PRODUCT($B69:$H69))/$N$7) -> 2.651427772 | J69: =Erlang($N$7,$N$8,$B69:$H69) -> 2.651427772 | K69: =Erlang($N$7,$N$8) -> 1.804620104
A70: =A69+1 -> 67 | B70: 0.981830979 | C70: 0.426635734 | D70: 0.4026859997 | E70: 0.4664830889 | F70: 0.07809789681 | G70: 0.1546921662 | H70: 0.104066711 | I70: 3.073708651 | J70: 3.073708651 | K70: 2.047876975
A71: 68 | B71: 0.1785586425 | C71: 0.9218268293 | D71: 0.2748745048 | E71: 0.5999856991 | F71: 0.2023992129 | G71: 0.4574151321 | H71: 0.2943127708 | I71: 2.403105188 | J71: 2.403105188 | K71: 1.709144839
A72: 69 | B72: 0.1410671686 | C72: 0.4131659608 | D72: 0.2278674282 | E72: 0.6754928607 | F72: 0.6062801162 | G72: 0.7188258256 | H72: 0.5086053833 | I72: 2.073453739 | J72: 2.073453739 | K72: 2.252261744
A73: 70 | B73: 0.7879989282 | C73: 0.1046542347 | D73: 0.7483721012 | E73: 0.7984145485 | F73: 0.0785660646 | G73: 0.1515141804 | H73: 0.8096613944 | I73: 2.55078828 | J73: 2.55078828 | K73: 3.940983921
A74: 71 | B74: 0.6201986948 | C74: 0.03719790204 | D74: 0.1941654433 | E74: 0.1283716018 | F74: 0.7643020895 | G74: 0.497461859 | H74: 0.7260034223 | I74: 2.916106054 | J74: 2.916106054 | K74: 2.014849532
A75: 72 | B75: 0.3207061634 | C75: 0.3477175183 | D75: 0.4503552586 | E75: 0.6463731145 | F75: 0.09692305418 | G75: 0.599797832 | H75: 0.8730102236 | I75: 2.136166744 | J75: 2.136166744 | K75: 3.103630281
A76: 73 | B76: 0.7191682701 | C76: 0.6291997286 | D76: 0.1143559696 | E76: 0.4394249007 | F76: 0.9878691149 | G76: 0.1812790649 | H76: 0.06381201902 | I76: 2.751810162 | J76: 2.751810162 | K76: 1.562101583
A77: 74 | B77: 0.7029073638 | C77: 0.3302869132 | D77: 0.6034165843 | E77: 0.9882855808 | F77: 0.4894277482 | G77: 0.0357787955 | H77: 0.01314301834 | I77: 3.451345887 | J77: 3.451345887 | K77: 2.336580357
A78: 75 | B78: 0.1541728342 | C78: 0.8293481007 | D78: 0.9751912951 | E78: 0.6686337885 | F78: 0.5743208364 | G78: 0.1932962213 | H78: 0.6450536184 | I78: 1.706985693 | J78: 1.706985693 | K78: 1.186671246
A79: 76 | B79: 0.2797729539 | C79: 0.2479116646 | D79: 0.9001587527 | E79: 0.8279854079 | F79: 0.7504258449 | G79: 0.4644568201 | H79: 0.7855463101 | I79: 1.419260184 | J79: 1.419260184 | K79: 3.691764161
A80: 77 | B80: 0.4232106228 | C80: 0.1169119436 | D80: 0.1826800588 | E80: 0.578630703 | F80: 0.6515436218 | G80: 0.8133136348 | H80: 0.3460215017 | I80: 2.316544366 | J80: 2.316544366 | K80: 2.775565578
A81: 78 | B81: 0.9813614277 | C81: 0.2126052669 | D81: 0.4937843286 | E81: 0.1291787097 | F81: 0.1703793937 | G81: 0.1763970525 | H81: 0.6143713158 | I81: 2.770416218 | J81: 2.770416218 | K81: 2.903609859
A82: 79 | B82: 0.2008575604 | C82: 0.5448278331 | D82: 0.1520698042 | E82: 0.8064984359 | F82: 0.4679433776 | G82: 0.09966938772 | H82: 0.08742203493 | I82: 3.271075415 | J82: 3.271075415 | K82: 3.840125309
A83: 80 | B83: 0.1613377982 | C83: 0.04819874457 | D83: 0.8383078361 | E83: 0.1804602568 | F83: 0.7178460031 | G83: 0.7233241431 | H83: 0.9676179329 | I83: 2.477869303 | J83: 2.477869303 | K83: 4.39813132
A84: 81 | B84: 0.2586357835 | C84: 0.4225478705 | D84: 0.7789330747 | E84: 0.1490571979 | F84: 0.4826768392 | G84: 0.3673765455 | H84: 0.12522263 | I84: 2.724826751 | J84: 2.724826751 | K84: 2.474704318
A85: 82 | B85: 0.8347220398 | C85: 0.3930839196 | D85: 0.3484439756 | E85: 0.6820990534 | F85: 0.0003196990241 | G85: 0.1490546017 | H85: 0.04836536616 | I85: 5.177263766 | J85: 5.177263766 | K85: 2.195417973
A86: 83 | B86: 0.5159116711 | C86: 0.8518230054 | D86: 0.2918457063 | E86: 0.1979153715 | F86: 0.08343290608 | G86: 0.625695092 | H86: 0.1802868078 | I86: 2.779817636 | J86: 2.779817636 | K86: 2.398095604
A87: 84 | B87: 0.2463319221 | C87: 0.1181290531 | D87: 0.8600294726 | E87: 0.5061786403 | F87: 0.9207569091 | G87: 0.2663619546 | H87: 0.7092825075 | I87: 2.03922232 | J87: 2.03922232 | K87: 1.912922419
A88: 85 | B88: 0.5906387139 | C88: 0.4205643981 | D88: 0.8077042714 | E88: 0.8327784981 | F88: 0.1708236659 | G88: 0.9564376701 | H88: 0.4964952901 | I88: 1.433699894 | J88: 1.433699894 | K88: 1.664680103
A89: 86 | B89: 0.6539313475 | C89: 0.01483163667 | D89: 0.3172125436 | E89: 0.2533165053 | F89: 0.3575438719 | G89: 0.08869490421 | H89: 0.5125265437 | I89: 3.758832435 | J89: 3.758832435 | K89: 2.511268567
A90: 87 | B90: 0.5644546021 | C90: 0.3671603547 | D90: 0.1472890651 | E90: 0.02722803498 | F90: 0.8976583659 | G90: 0.4133597503 | H90: 0.5856492704 | I90: 2.873051717 | J90: 2.873051717 | K90: 1.406888998
A91: 88 | B91: 0.1056526664 | C91: 0.2451461443 | D91: 0.7569926447 | E91: 0.1883652352 | F91: 0.3890506912 | G91: 0.9149320387 | H91: 0.4202602308 | I91: 2.500368508 | J91: 2.500368508 | K91: 3.592912798
A92: 89 | B92: 0.5922646588 | C92: 0.2032418515 | D92: 0.5569816923 | E92: 0.8225080927 | F92: 0.4961883902 | G92: 0.359186821 | H92: 0.8565024038 | I92: 1.592463522 | J92: 1.592463522 | K92: 1.430514649
A93: 90 | B93: 0.7208912638 | C93: 0.6153593343 | D93: 0.3449051483 | E93: 0.6456615533 | F93: 0.5882032318 | G93: 0.2816834527 | H93: 0.7117046217 | I93: 1.484175979 | J93: 1.484175979 | K93: 2.574696695
A94: 91 | B94: 0.5880380319 | C94: 0.2315669825 | D94: 0.2083359665 | E94: 0.05958464497 | F94: 0.2522061883 | G94: 0.1421291063 | H94: 0.8503534543 | I94: 3.291147117 | J94: 3.291147117 | K94: 1.786694437
A95: 92 | B95: 0.7660283821 | C95: 0.2477513385 | D95: 0.7417777073 | E95: 0.3422449811 | F95: 0.7142984253 | G95: 0.2054018822 | H95: 0.6120745021 | I95: 1.814314145 | J95: 1.814314145 | K95: 1.401680171
A96: 93 | B96: 0.482858566 | C96: 0.01937188814 | D96: 0.5973424148 | E96: 0.08884993578 | F96: 0.7611903261 | G96: 0.3907694253 | H96: 0.5989472598 | I96: 3.111042074 | J96: 3.111042074 | K96: 2.448247876
A97: 94 | B97: 0.628647185 | C97: 0.8552590359 | D97: 0.7265108279 | E97: 0.1756853789 | F97: 0.6589877093 | G97: 0.7979048976 | H97: 0.7274249702 | I97: 1.213386353 | J97: 1.213386353 | K97: 1.189576985
A98: 95 | B98: 0.3377979428 | C98: 0.966005029 | D98: 0.7289084959 | E98: 0.1676091167 | F98: 0.1022055669 | G98: 0.04433446532 | H98: 0.1139333865 | I98: 3.597041581 | J98: 3.597041581 | K98: 1.091780218
A99: 96 | B99: 0.4757683134 | C99: 0.1234208843 | D99: 0.8450043928 | E99: 0.3713331432 | F99: 0.2298523323 | G99: 0.5377420969 | H99: 0.6422797347 | I99: 2.175824699 | J99: 2.175824699 | K99: 2.07965416
A100: 97 | B100: 0.05631247312 | C100: 0.8261558409 | D100: 0.3974682019 | E100: 0.7677003371 | F100: 0.788339125 | G100: 0.4666087859 | H100: 0.8654324238 | I100: 1.799808074 | J100: 1.799808074 | K100: 2.4998824
A101: 98 | B101: 0.8080473364 | C101: 0.2678116684 | D101: 0.1519069407 | E101: 0.6080271991 | F101: 0.4256672636 | G101: 0.9978331666 | H101: 0.7596836438 | I101: 1.681249479 | J101: 1.681249479 | K101: 2.779921481
A102: 99 | B102: 0.4989426697 | C102: 0.5954395098 | D102: 0.4899612906 | E102: 0.1806451878 | F102: 0.6737255896 | G102: 0.7458464568 | H102: 0.7958588143 | I102: 1.518290097 | J102: 1.518290097 | K102: 2.847963226
A103: 100 | B103: 0.320817958 | C103: 0.1521917407 | D103: 0.1276199537 | E103: 0.7235728832 | F103: 0.4697158882 | G103: 0.02689213153 | H103: 0.8234235406 | I103: 3.322527152 | J103: 3.322527152 | K103: 3.077603676

Sheet Exponential
A1: UNIVARIATE EXPONENTIAL
A3: Observation Number | B3: Uniform Random Variate | C3: Exponential Random Variate | D3: Macro Generated Variate, U(0,1) submitted | E3: Macro Generated Variate w/o U(0,1)
A4: 1 | B4: 0.2686895342 | C4: =-$H$7*LN(1-$B4) -> 0.6258343912 | D4: =Exponential($H$7,$B4) -> 0.6258343912 | E4: =Exponential($H$7) -> 0.920065542
A5: =A4+1 -> 2 | B5: 0.7937742381 | C5: =-$H$7*LN(1-$B5) -> 3.157567557 | D5: 3.157567557 | E5: =Exponential($H$7) -> 0.2153868109 | G5: Population Parameters
A6: =A5+1 -> 3 | B6: 0.8219803517 | C6: 3.451722702 | D6: 3.451722702 | E6: 2.237498341 | G6: Name | H6: Value | I6: Type | J6: Feasible Range
A7: 4 | B7: 0.6651967236 | C7: 2.188424309 | D7: 2.188424309 | E7: 0.2310577883 | G7: sigma = | H7: 2 | I7: Scale | J7: Real number greater than zero
A8: 5 | B8: 0.867173427 | C8: 4.037421927 | D8: 4.037421927 | E8: 1.909516628
A9: 6 | B9: 0.279943005 | C9: 0.6568498209 | D9: 0.6568498209 | E9: 3.3509592 | G9: Distribution Type: | J9: Continuous
A10: 7 | B10: 0.9366722078 | C10: 5.518861983 | D10: 5.518861983 | E10: 3.470820077 | G10: Distrbution Name: | J10: Exponential
A11: 8 | B11: 0.4319115567 | C11: 1.130956325 | D11: 1.130956325 | E11: 2.530725186 | G11: Variate Number: | J11: Univariate
A12: 9 | B12: 0.9620370153 | C12: 6.542287361 | D12: 6.542287361 | E12: 3.279616604 | G12: Simulation Method: | J12: Inverse Transform
A13: 10 | B13: 0.1424035458 | C13: 0.3072432464 | D13: 0.3072432464 | E13: 1.967799414
A14: 11 | B14: 0.2017197184 | C14: 0.4505910262 | D14: 0.4505910262 | E14: 0.4880475136 | G14: Macro Format: | J14: =Exponential(sigma, [unif])
A15: 12 | B15: 0.5804161826 | C15: 1.73698394 | D15: 1.73698394 | E15: 0.01462957255
A16: 13 | B16: 0.3436685132 | C16: 0.8421786047 | D16: 0.8421786047 | E16: 1.685544604 | I16: Notes: | J16: 1. With this function you can optionally submit
A17: 14 | B17: 0.9651686826 | C17: 6.714476741 | D17: 6.714476741 | E17: 2.505400056 | J17: your own uniform random variable (unif). If
A18: 15 | B18: 0.3870480883 | C18: 0.9789375872 | D18: 0.9789375872 | E18: 1.305283636 | J18: not provided, the function will generate one
A19: 16 | B19: 0.8638575657 | C19: 3.988107261 | D19: 3.988107261 | E19: 1.463400803 | J19: to be used within the macro.
A20: 17 | B20: 0.1747628204 | C20: 0.384168887 | D20: 0.384168887 | E20: 1.9617259
A21: 18 | B21: 0.3811765959 | C21: 0.9598706784 | D21: 0.9598706784 | E21: 1.174479192 | J21: 2. Column C shows the formula used in the
A22: 19 | B22: 0.8779450603 | C22: 4.20656802 | D22: 4.20656802 | E22: 0.7556265429 | J22: macro directly in the cell. Column D generates
A23: 20 | B23: 0.1823801902 | C23: 0.4027156611 | D23: 0.4027156611 | E23: 3.011476635 | J23: the random variable with the macro, using the
A24: 21 | B24: 0.397533352 | C24: 1.013445942 | D24: 1.013445942 | E24: 0.01101781262 | J24: same uniform random variable (column A) as
A25: 22 | B25: 0.7419975794 | C25: 2.709572624 | D25: 2.709572624 | E25: 2.569540538 | J25: used in Column C, and therefore the output of
A26: 23 | B26: 0.5708289459 | C26: 1.691799424 | D26: 1.691799424 | E26: 0.8263821762 | J26: Columns C and D will match. Column E runs
A27: 24 | B27: 0.9019586936 | C27: 4.644732791 | D27: 4.644732791 | E27: 2.873349507 | J27: the macro using an internally generated
A28: 25 | B28: 0.4384305586 | C28: 1.154039683 | D28: 1.154039683 | E28: 2.002300692 | J28: uniform random input.
A29: 26 | B29: 0.392949239 | C29: 0.9982857309 | D29: 0.9982857309 | E29: 0.3017975359
A30: 27 | B30: 0.2515715048 | C30: 0.579559221 | D30: 0.579559221 | E30: 2.516514802
A31: 28 | B31: 0.305500214 | C31: 0.7291268498 | D31: 0.7291268498 | E31: 0.9405324205
A32: 29 | B32: 0.07938744748 | C32: 0.1654320251 | D32: 0.1654320251 | E32: 1.619006305
A33: 30 | B33: 0.8205781142 | C33: 3.436030684 | D33: 3.436030684 | E33: 0.1385627481
A34: 31 | B34: 0.005076745533 | C34: 0.01017935197 | D34: 0.01017935197 | E34: 0.2635454593
A35: 32 | B35: 0.02998045736 | C35: 0.06087812128 | D35: 0.06087812128 | E35: 0.1239964748
A36: 33 | B36: 0.8969873922 | C36: 4.545807784 | D36: 4.545807784 | E36: 1.050370652
A37: 34 | B37: 0.04851801844 | C37: 0.09946905861 | D37: 0.09946905861 | E37: 1.987538837
A38: 35 | B38: 0.3712391652 | C38: 0.9280086508 | D38: 0.9280086508 | E38: 0.1078004659
A39: 36 | B39: 0.1827388583 | C39: 0.4035932005 | D39: 0.4035932005 | E39: 0.03944925386
A40: 37 | B40: 0.1205000529 | C40: 0.2568035499 | D40: 0.2568035499 | E40: 1.666840309
A41: 38 | B41: 0.6494569336 | C41: 2.096543418 | D41: 2.096543418 | E41: 1.646758264
A42: 39 | B42: 0.8452335485 | C42: 3.731676126 | D42: 3.731676126 | E42: 2.722378669
A43: 40 | B43: 0.9655911328 | C43: 6.73888196 | D43: 6.73888196 | E43: 5.573100499
A44: 41 | B44: 0.6649923293 | C44: 2.1872037 | D44: 2.1872037 | E44: 0.442925069
A45: 42 | B45: 0.4871681719 | C45: 1.335614616 | D45: 1.335614616 | E45: 0.2147509718
A46: 43 | B46: 0.7721031561 | C46: 2.957724383 | D46: 2.957724383 | E46: 1.28980547
A47: 44 | B47: 0.8263662763 | C47: 3.501614469 | D47: 3.501614469 | E47: 2.322473422
A48: 45 | B48: 0.3099628364 | C48: 0.742019645 | D48: 0.742019645 | E48: 4.192423096
A49: 46 | B49: 0.1840653162 | C49: 0.4068419432 | D49: 0.4068419432 | E49: 3.399563457
A50: 47 | B50: 0.582757888 | C50: 1.748177243 | D50: 1.748177243 | E50: 1.830059513
A51: 48 | B51: 0.3211056531 | C51: 0.7745795291 | D51: 0.7745795291 | E51: 0.262473932
A52: 49 | B52: 0.9405997337 | C52: 5.64691314 | D52: 5.64691314 | E52: 1.026551303
A53: 50 | B53: 0.1490762062 | C53: 0.3228654069 | D53: 0.3228654069 | E53: 1.037541344
A54: 51 | B54: 0.3830204418 | C54: 0.9658387731 | D54: 0.9658387731 | E54: 3.141168087
A55: 52 | B55: 0.08481595248 | C55: 0.1772601782 | D55: 0.1772601782 | E55: 0.8983228035
A56: 53 | B56: 0.8422140741 | C56: 3.693032129 | D56: 3.693032129 | E56: 1.213285004
A57: 54 | B57: 0.404985595 | C57: 1.038339327 | D57: 1.038339327 | E57: 0.09246454892
A58: 55 | B58: 0.3119225423 | C58: 0.747707727 | D58: 0.747707727 | E58: 1.351503744
A59: 56 | B59: 0.0739452196 | C59: 0.153643776 | D59: 0.153643776 | E59: 1.661865646
A60: 57 | B60: 0.4154056191 | C60: 1.073674077 | D60: 1.073674077 | E60: 4.566930498
A61: 58 | B61: 0.9433448155 | C61: 5.741543554 | D61: 5.741543554 | E61: 1.214844447
A62: 59 | B62: 0.6294690698 | C62: 1.985636711 | D62: 1.985636711 | E62: 4.225783623
A63: 60 | B63: 0.2175176524 | C63: 0.4905678317 | D63: 0.4905678317 | E63: 1.338872156
A64: 61 | B64: 0.8113218223 | C64: 3.335424958 | D64: 3.335424958 | E64: 0.1726916076
A65: 62 | B65: 0.4764195342 | C65: 1.294129106 | D65: 1.294129106 | E65: 0.4476243029
A66: 63 | B66: 0.9230861553 | C66: 5.130138767 | D66: 5.130138767 | E66: 0.2432651168
A67: 64 | B67: 0.6224165836 | C67: 1.947927528 | D67: 1.947927528 | E67: 9.698711851
A68: 65 | B68: 0.5629027479 | C68: 1.655199128 | D68: 1.655199128 | E68: 0.4187866306
A69: 66 | B69: 0.2761746025 | C69: =-$H$7*LN(1-$B69) -> 0.6464101588 | D69: =Exponential($H$7,$B69) -> 0.6464101588 | E69: =Exponential($H$7) -> 1.391707822
A70: =A69+1 -> 67 | B70: 0.981830979 | C70: 8.016074554 | D70: 8.016074554 | E70: 1.848646501
A71: 68 | B71: 0.1785586425 | C71: 0.3933894575 | D71: 0.3933894575 | E71: 4.812187822
A72: 69 | B72: 0.1410671686 | C72: 0.304129108 | D72: 0.304129108 | E72: 0.8039612376
A73: 70 | B73: 0.7879989282 | C73: 3.102327897 | D73: 3.102327897 | E73: 1.626389221
A74: 71 | B74: 0.6201986948 | C74: 1.936214088 | D74: 1.936214088 | E74: 5.600597126
A75: 72 | B75: 0.3207061634 | C75: 0.773402992 | D75: 0.773402992 | E75: 2.649257289
A76: 73 | B76: 0.7191682701 | C76: 2.53999923 | D76: 2.53999923 | E76: 4.530973747
A77: 74 | B77: 0.7029073638 | C77: 2.427422565 | D77: 2.427422565 | E77: 1.066516776
A78: 75 | B78: 0.1541728342 | C78: 0.334880472 | D78: 0.334880472 | E78: 3.64822559
A79: 76 | B79: 0.2797729539 | C79: 0.6563775497 | D79: 0.6563775497 | E79: 7.691869739
A80: 77 | B80: 0.4232106228 | C80: 1.10055622 | D80: 1.10055622 | E80: 0.7690988946
A81: 78 | B81: 0.9813614277 | C81: 7.965044134 | D81: 7.965044134 | E81: 3.018597144
A82: 79 | B82: 0.2008575604 | C82: 0.4484321535 | D82: 0.4484321535 | E82: 0.05444729188
A83: 80 | B83: 0.1613377982 | C83: 0.3518945472 | D83: 0.3518945472 | E83: 3.60093497
A84: 81 | B84: 0.2586357835 | C84: 0.5985265085 | D84: 0.5985265085 | E84: 0.6587282224
A85: 82 | B85: 0.8347220398 | C85: 3.600253231 | D85: 3.600253231 | E85: 0.4672242313
A86: 83 | B86: 0.5159116711 | C86: 1.450975782 | D86: 1.450975782 | E86: 1.128394426
A87: 84 | B87: 0.2463319221 | C87: 0.5656064458 | D87: 0.5656064458 | E87: 1.099055885
A88: 85 | B88: 0.5906387139 | C88: 1.786314345 | D88: 1.786314345 | E88: 0.2004871012
A89: 86 | B89: 0.6539313475 | C89: 2.122236212 | D89: 2.122236212 | E89: 5.159825117
A90: 87 | B90: 0.5644546021 | C90: 1.66231249 | D90: 1.66231249 | E90: 0.4570268113
A91: 88 | B91: 0.1056526664 | C91: 0.2233221258 | D91: 0.2233221258 | E91: 1.392360336
A92: 89 | B92: 0.5922646588 | C92: 1.794273977 | D92: 1.794273977 | E92: 0.7139467386
A93: 90 | B93: 0.7208912638 | C93: 2.552307675 | D93: 2.552307675 | E93: 1.842923756
A94: 91 | B94: 0.5880380319 | C94: 1.773648488 | D94: 1.773648488 | E94: 1.663573341
A95: 92 | B95: 0.7660283821 | C95: 2.905110924 | D95: 2.905110924 | E95: 1.540490081
A96: 93 | B96: 0.482858566 | C96: 1.31887775 | D96: 1.31887775 | E96: 4.536066575
A97: 94 | B97: 0.628647185 | C97: 1.981205369 | D97: 1.981205369 | E97: 3.892202639
A98: 95 | B98: 0.3377979428 | C98: 0.8243690946 | D98: 0.8243690946 | E98: 1.748173253
A99: 96 | B99: 0.4757683134 | C99: 1.291643085 | D99: 1.291643085 | E99: 6.136020339
A100: 97 | B100: 0.05631247312 | C100: 0.1159203546 | D100: 0.1159203546 | E100: 0.8463792261
A101: 98 | B101: 0.8080473364 | C101: 3.301012962 | D101: 3.301012962 | E101: 2.85914163
A102: 99 | B102: 0.4989426697 | C102: 1.382069505 | D102: 1.382069505 | E102: 1.537988738
A103: 100 | B103: 0.320817958 | C103: 0.7737321687 | D103: 0.7737321687 | E103: 2.080954208

Sheet F Distribution
A1: UNIVARIATE F-DISTRIBUTION
A3: Observation Number | B3: Macro Generated Variate
A4: 1 | B4: =Fdistribution($F$7,$F$8) -> 0.02032033702
A5: =A4+1 -> 2 | B5: 0.3043068548 | E5: Population Parameters
A6: =A5+1 -> 3 | B6: 0.1811091224 | E6: Name | F6: Value | G6: Type | H6: Feasible Range
A7: 4 | B7: 0.4143222958 | E7: k1 = | F7: 2 | G7: Shape | H7: Any Finite Positive Integer
A8: 5 | B8: 0.4176041691 | E8: k2 = | F8: 7 | G8: Shape | H8: Any Finite Positive Integer
A9: 6 | B9: 1.581412749
A10: 7 | B10: 0.6562932554 | E10: Distribution Type: | H10: Continuous
A11: 8 | B11: 0.1136954069 | E11: Distrbution Name: | H11: F-Distribution
A12: 9 | B12: 0.6143610694 | E12: Variate Number: | H12: Univariate
A13: 10 | B13: 1.039179078 | E13: Simulation Method: | H13: Convolution
A14: 11 | B14: 0.7955194575
A15: 12 | B15: 12.16521043 | E15: Macro Format: | H15: =Fdistribution(k1, k2)
A16: 13 | B16: 2.094518892
A17: 14 | B17: 0.2114033038
A18: 15 | B18: 4.208164317 | G18: Notes: | H18: 1. The F distribution does not lend itself
A19: 16 | B19: 9.033143973 | H19: easily to a manual presentation so no manual
A20: 17 | B20: 0.1754084147 | H20: example is provided here, only the output
A21: 18 | B21: 0.02625366193 | H21: of the macro generated variates.
A22: 19 | B22: 0.5888191082 | H22: 2. The input parameters k1 and k2 are also
A23: 20 | B23: 0.6088601294 | H23: commonly called the "degrees of freedom" of
A24: 21 | B24: 0.1205851033 | H24: the F distribution.
A25: 22 | B25: 1.729125386
A26: 23 | B26: 0.8684502624
A27: 24 | B27: 1.157984039
A28: 25 | B28: 2.099835005
A29: 26 | B29: 1.080024602
A30: 27 | B30: 0.9633232273
A31: 28 | B31: 0.1072312767
A32: 29 | B32: 7.712261572
A33: 30 | B33: 1.64436569
A34: 31 | B34: 0.2166764793
A35: 32 | B35: 0.330913113
A36: 33 | B36: 1.159484468
A37: 34 | B37: 0.07288585685
A38: 35 | B38: 0.3211055056
A39: 36 | B39: 0.7878720952
A40: 37 | B40: 0.3143574233
A41: 38 | B41: 1.384757774
A42: 39 | B42: 2.917315121
A43: 40 | B43: 2.38826782
A44: 41 | B44: 3.129383126
A45: 42 | B45: 0.8710614266
A46: 43 | B46: 0.03470481043
A47: 44 | B47: 2.176246887
A48: 45 | B48: 3.346567969
A49: 46 | B49: 5.494243532
A50: 47 | B50: 0.522879659
A51: 48 | B51: 5.676388979
A52: 49 | B52: 0.9230289848
A53: 50 | B53: 1.848507755
A54: 51 | B54: 0.99594684
A55: 52 | B55: 9.487763829
A56: 53 | B56: 0.1119892176
A57: 54 | B57: 1.731321059
A58: 55 | B58: 1.117173505
A59: 56 | B59: 7.179798837
A60: 57 | B60: 6.185952399
A61: 58 | B61: 1.251620222
A62: 59 | B62: 0.4441290394
A63: 60 | B63: 0.4175087438
A64: 61 | B64: 2.467951512
A65: 62 | B65: 4.549910037
A66: 63 | B66: 3.734224102
A67: 64 | B67: 4.368481994
A68: 65 | B68: 4.410127832
A69: 66 | B69: =Fdistribution($F$7,$F$8) -> 0.2640248504
A70: =A69+1 -> 67 | B70: 0.1663106039
A71: 68 | B71: 1.220695889
A72: 69 | B72: 0.1150612273
A73: 70 | B73: 1.4947847
A74: 71 | B74: 2.723558442
A75: 72 | B75: 0.452168195
A76: 73 | B76: 6.333582571
A77: 74 | B77: 0.9490118137
A78: 75 | B78: 1.208790721
A79: 76 | B79: 6.161050756
A80: 77 | B80: 0.187240904
A81: 78 | B81: 2.427595127
A82: 79 | B82: 1.168183902
A83: 80 | B83: 0.04183688499
A84: 81 | B84: 0.2305691303
A85: 82 | B85: 0.4612000526
A86: 83 | B86: 0.8684250853
A87: 84 | B87: 0.7546577004
A88: 85 | B88: 2.418403845
A89: 86 | B89: 0.529212255
A90: 87 | B90: 0.6370670105
A91: 88 | B91: 0.2699442898
A92: 89 | B92: 0.4932007565
A93: 90 | B93: 0.2185591502
A94: 91 | B94: 0.3207111633
A95: 92 | B95: 7.039388744
A96: 93 | B96: 3.226255463
A97: 94 | B97: 0.7912496111
A98: 95 | B98: 0.8595835356
A99: 96 | B99: 2.236555622
A100: 97 | B100: 2.990432535
A101: 98 | B101: 0.3346634466
A102: 99 | B102: 0.7866407681
A103: 100 | B103: 3.970334221

Sheet Frechet
A1: UNIVARIATE FRÉCHET
A3: Observation Number | B3: Uniform Random Variate | C3: Fréchet Random Variate | D3: Macro Generated Variate, U(0,1) submitted | E3: Macro Generated Variate w/o U(0,1)
A4: 1 | B4: 0.2686895342 | C4: =$H$7+$H$8*(-LN($B4))^(-1/$H$9) -> 3.744614496 | D4: =Frechet($H$7,$H$8,$H$9,$B4) -> 3.744614496 | E4: =Frechet($H$7,$H$8,$H$9) -> 3.556596968
A5: =A4+1 -> 2 | B5: 0.7937742381 | C5: =$H$7+$H$8*(-LN($B5))^(-1/$H$9) -> 6.16164652 | D5: 6.16164652 | E5: 6.362673807 | G5: Population Parameters
A6: =A5+1 -> 3 | B6: 0.8219803517 | C6: 6.517092583 | D6: 6.517092583 | E6: 4.04702414 | G6: Name | H6: Value | I6: Type | J6: Feasible Range
A7: 4 | B7: 0.6651967236 | C7: 5.132379047 | D7: 5.132379047 | E7: 6.562518025 | G7: mu = | H7: 2 | I7: Location | J7: Any finite real number
A8: 5 | B8: 0.867173427 | C8: 7.297826604 | D8: 7.297826604 | E8: 4.290004254 | G8: sigma = | H8: 2 | I8: Scale | J8: Real number greater than zero
A9: 6 | B9: 0.279943005 | C9: 3.772502781 | D9: 3.772502781 | E9: 3.346115536 | G9: alpha = | H9: 2 | I9: Shape | J9: Real number greater than zero
A10: 7 | B10: 0.9366722078 | C10: 9.819310411 | D10: 9.819310411 | E10: 3.722141001
A11: 8 | B11: 0.4319115567 | C11: 4.182783875 | D11: 4.182783875 | E11: 3.583375099 | G11: Distribution Type: | J11: Continuous
A12: 9 | B12: 0.9620370153 | C12: 12.16626248 | D12: 12.16626248 | E12: 5.166840431 | G12: Distrbution Name: | J12: Fréchet
A13: 10 | B13: 0.1424035458 | C13: 3.432563912 | D13: 3.432563912 | E13: 5.93252698 | G13: Variate Number: | J13: Univariate
A14: 11 | B14: 0.2017197184 | C14: 3.580706132 | D14: 3.580706132 | E14: 3.83843962 | G14: Simulation Method: | J14: Inverse Transform
A15: 12 | B15: 0.5804161826 | C15: 4.711606108 | D15: 4.711606108 | E15: 4.206968472
A16: 13 | B16: 0.3436685132 | C16: 3.935212095 | D16: 3.935212095 | E16: 4.983587947 | G16: Macro Format: | J16: =Frechet(mu, sigma, alpha, [unif])
A17: 14 | B17: 0.9651686826 | C17: 12.62202263 | D17: 12.62202263 | E17: 3.266940671
A18: 15 | B18: 0.3870480883 | C18: 4.052814382 | D18: 4.052814382 | E18: 3.519617974 | I18: Notes: | J18: 1. With this function you can optionally submit
A19: 16 | B19: 0.8638575657 | C19: 7.228023395 | D19: 7.228023395 | E19: 2.931091871 | J19: your own uniform random variable (unif). If
A20: 17 | B20: 0.1747628204 | C20: 3.514315007 | D20: 3.514315007 | E20: 5.665601808 | J20: not provided, the function will generate one
A21: 18 | B21: 0.3811765959 | C21: 4.036481959 | D21: 4.036481959 | E21: 3.847024635 | J21: to be used within the macro.
A22: 19 | B22: 0.8779450603 | C22: 7.543351779 | D22: 7.543351779 | E22: 4.320783191 | J22: 2. Column C shows the formula used in the
A23: 20 | B23: 0.1823801902 | C23: 3.53318079 | D23: 3.53318079 | E23: 4.919842725 | J23: macro directly in the cell. Column D generates
A24: 21 | B24: 0.397533352 | C24: 4.082343412 | D24: 4.082343412 | E24: 3.717655998 | J24: the random variable with the macro, using the
A25: 22 | B25: 0.7419975794 | C25: 5.661203089 | D25: 5.661203089 | E25: 3.494924471 | J25: same uniform random variable (column A) as
A26: 23 | B26: 0.5708289459 | C26: 4.671025339 | D26: 4.671025339 | E26: 7.237351955 | J26: used in Column C, and therefore the output of
A27: 24 | B27: 0.9019586936 | C27: 8.226133676 | D27: 8.226133676 | E27: 3.600371905 | J27: Columns C and D will match. Column E runs
A28: 25 | B28: 0.4384305586 | C28: 4.202523172 | D28: 4.202523172 | E28: 4.562234815 | J28: the macro using an internally generated
A29: 26 | B29: 0.392949239 | C29: 4.069374814 | D29: 4.069374814 | E29: 3.154478277 | J29: uniform random input.
A30: 27 | B30: 0.2515715048 | C30: 3.70249578 | D30: 3.70249578 | E30: 5.034728784
A31: 28 | B31: 0.305500214 | C31: 3.836637273 | D31: 3.836637273 | E31: 3.807347247
A32: 29 | B32: 0.07938744748 | C32: 3.256541468 | D32: 3.256541468 | E32: 6.475719659
A33: 30 | B33: 0.8205781142 | C33: 6.497549537 | D33: 6.497549537 | E33: 3.617662291
A34: 31 | B34: 0.005076745533 | C34: 2.870134127 | D34: 2.870134127 | E34: 4.490524636
A35: 32 | B35: 0.02998045736 | C35: 3.067945621 | D35: 3.067945621 | E35: 4.27762655
A36: 33 | B36: 0.8969873922 | C36: 8.065803138 | D36: 8.065803138 | E36: 4.648848118
A37: 34 | B37: 0.04851801844 | C37: 3.149763317 | D37: 3.149763317 | E37: 4.267366951
A38: 35 | B38: 0.3712391652 | C38: 4.009153687 | D38: 4.009153687 | E38: 7.004941702
A39: 36 | B39: 0.1827388583 | C39: 3.534066629 | D39: 3.534066629 | E39: 3.403398176
A40: 37 | B40: 0.1205000529 | C40: 3.374869191 | D40: 3.374869191 | E40: 6.051384213
A41: 38 | B41: 0.6494569336 | C41: 5.044246696 | D41: 5.044246696 | E41: 8.451036006
A42: 39 | B42: 0.8452335485 | C42: 6.877435135 | D42: 6.877435135 | E42: 3.564975278
A43: 40 | B43: 0.9655911328 | C43: 12.68819129 | D43: 12.68819129 | E43: 3.823723386
A44: 41 | B44: 0.6649923293 | C44: 5.131199072 | D44: 5.131199072 | E44: 5.000355555
A45: 42 | B45: 0.4871681719 | C45: 4.358421869 | D45: 4.358421869 | E45: 5.426676683
A46: 43 | B46: 0.7721031561 | C46: 5.932643432 | D46: 5.932643432 | E46: 5.923173661
A47: 44 | B47: 0.8263662763 | C47: 6.579679637 | D47: 6.579679637 | E47: 5.137718824
A48: 45 | B48: 0.3099628364 | C48: 3.847972022 | D48: 3.847972022 | E48: 4.077385749
A49: 46 | B49: 0.1840653162 | C49: 3.537340959 | D49: 3.537340959 | E49: 4.065071696
A50: 47 | B50: 0.582757888 | C50: 4.721696939 | D50: 4.721696939 | E50: 4.594594327
A51: 48 | B51: 0.3211056531 | C51: 3.876478891 | D51: 3.876478891 | E51: 3.200013257
A52: 49 | B52: 0.9405997337 | C52: 10.08203899 | D52: 10.08203899 | E52: 9.678050589
A53: 50 | B53: 0.1490762062 | C53: 3.449694995 | D53: 3.449694995 | E53: 5.601872067
A54: 51 | B54: 0.3830204418 | C54: 4.041595659 | D54: 4.041595659 | E54: 4.323980425
A55: 52 | B55: 0.08481595248 | C55: 3.27327295 | D55: 3.27327295 | E55: 3.731457177
A56: 53 | B56: 0.8422140741 | C56: 6.826343466 | D56: 6.826343466 | E56: 3.777939246
A57: 54 | B57: 0.404985595 | C57: 4.103627765 | D57: 4.103627765 | E57: 7.572672536
A58: 55 | B58: 0.3119225423 | C58: 3.852963913 | D58: 3.852963913 | E58: 3.679046168
A59: 56 | B59: 0.0739452196 | C59: 3.239291839 | D59: 3.239291839 | E59: 3.917380266
A60: 57 | B60: 0.4154056191 | C60: 4.133826735 | D60: 4.133826735 | E60: 4.165806221
A61: 58 | B61: 0.9433448155 | C61: 10.28149148 | D61: 10.28149148 | E61: 4.190487335
A62: 59 | B62: 0.6294690698 | C62: 4.939655664 | D62: 4.939655664 | E62: 5.70760025
A63: 60 | B63: 0.2175176524 | C63: 3.61930035 | D63: 3.61930035 | E63: 3.906625013
A64: 61 | B64: 0.8113218223 | C64: 6.373839716 | D64: 6.373839716 | E64: 6.597493281
A65: 62 | B65: 0.4764195342 | C65: 4.322668207 | D65: 4.322668207 | E65: 7.510374362
A66: 63 | B66: 0.9230861553 | C66: 9.069622834 | D66: 9.069622834 | E66: 4.577230017
A67: 64 | B67: 0.6224165836 | C67: 4.904518219 | D67: 4.904518219 | E67: 4.966230907
A68: 65 | B68: 0.5629027479 | C68: 4.638328646 | D68: 4.638328646 | E68: 7.963849207
A69: 66 | B69: 0.2761746025 | C69: =$H$7+$H$8*(-LN($B69))^(-1/$H$9) -> 3.76314339 | D69: =Frechet($H$7,$H$8,$H$9,$B69) -> 3.76314339 | E69: =Frechet($H$7,$H$8,$H$9) -> 4.223751587
A70: =A69+1 -> 67 | B70: 0.981830979 | C70: 16.76986265 | D70: 16.76986265 | E70: 4.039821398
A71: 68 | B71: 0.1785586425 | C71: 3.523729056 | D71: 3.523729056 | E71: 6.149615468
A72: 69 | B72: 0.1410671686 | C72: 3.429111411 | D72: 3.429111411 | E72: 6.836768795
A73: 70 | B73: 0.7879989282 | C73: 6.097375338 | D73: 6.097375338 | E73: 3.623267582
A74: 71 | B74: 0.6201986948 | C74: 4.893645904 | D74: 4.893645904 | E74: 3.219264432
A75: 72 | B75: 0.3207061634 | C75: 3.875451556 | D75: 3.875451556 | E75: 4.534473196
A76: 73 | B76: 0.7191682701 | C76: 5.483348482 | D76: 5.483348482 | E76: 3.235020145
A77: 74 | B77: 0.7029073638 | C77: 5.368463543 | D77: 5.368463543 | E77: 3.758034338
A78: 75 | B78: 0.1541728342 | C78: 3.462669608 | D78: 3.462669608 | E78: 5.565121084
A79: 76 | B79: 0.2797729539 | C79: 3.772079959 | D79: 3.772079959 | E79: 3.389184713
A80: 77 | B80: 0.4232106228 | C80: 4.1567993 | D80: 4.1567993 | E80: 6.154410191
A81: 78 | B81: 0.9813614277 | C81: 16.58089301 | D81: 16.58089301 | E81: 11.98174817
A82: 79 | B82: 0.2008575604 | C82: 3.57859575 | D82: 3.57859575 | E82: 3.527601521
A83: 80 | B83: 0.1613377982 | C83: 3.480768696 | D83: 3.480768696 | E83: 9.012134825
A84: 81 | B84: 0.2586357835 | C84: 3.719839583 | D84: 3.719839583 | E84: 3.88483788
A85: 82 | B85: 0.8347220398 | C85: 6.705472119 | D85: 6.705472119 | E85: 3.724027493
A86: 83 | B86: 0.5159116711 | C86: 4.458443024 | D86: 4.458443024 | E86: 3.765056639
A87: 84 | B87: 0.2463319221 | C87: 3.689659699 | D87: 3.689659699 | E87: 5.432874969
A88: 85 | B88: 0.5906387139 | C88: 4.756194571 | D88: 4.756194571 | E88: 5.35074648
A89: 86 | B89: 0.6539313475 | C89: 5.068752167 | D89: 5.068752167 | E89: 4.512292128
A90: 87 | B90: 0.5644546021 | C90: 4.644671434 | D90: 4.644671434 | E90: 6.979813793
A91: 88 | B91: 0.1056526664 | C91: 3.334045519 | D91: 3.334045519 | E91: 4.256164477
A92: 89 | B92: 0.5922646588 | C92: 4.763417796 | D92: 4.763417796 | E92: 3.421387782
A93: 90 | B93: 0.7208912638 | C93: 5.496060265 | D93: 5.496060265 | E93: 5.385063491
A94: 91 | B94: 0.5880380319 | C94: 4.744717171 | D94: 4.744717171 | E94: 9.468709809
A95: 92 | B95: 0.7660283821 | C95: 5.873932158 | D95: 5.873932158 | E95: 3.082029425
A96: 93 | B96: 0.482858566 | C96: 4.343985457 | D96: 4.343985457 | E96: 6.818311011
A97: 94 | B97: 0.628647185 | C97: 4.935515654 | D97: 4.935515654 | E97: 4.895585906
A98: 95 | B98: 0.3377979428 | C98: 3.919789538 | D98: 3.919789538 | E98: 7.647420244
A99: 96 | B99: 0.4757683134 | C99: 4.320528734 | D99: 4.320528734 | E99: 4.276688689
A100: 97 | B100: 0.05631247312 | C100: 3.179158539 | D100: 3.179158539 | E100: 3.909591588
A101: 98 | B101: 0.8080473364 | C101: 6.33214494 | D101: 6.33214494 | E101: 4.287191216
A102: 99 | B102: 0.4989426697 | C102: 4.398584922 | D102: 4.398584922 | E102: 3.616945378
A103: 100 | B103: 0.320817958 | C103: 3.875739008 | D103: 3.875739008 | E103: 4.360349529

Sheet Gamma
A1: UNIVARIATE GAMMA
A3: Observation Number | B3: Macro Generated Variate
A4: 1 | B4: =Gammarv($F$7,$F$8) -> 0.1786565801
A5: =A4+1 -> 2 | B5: =Gammarv($F$7,$F$8) -> 0.09386197281 | E5: Population Parameters
A6: =A5+1 -> 3 | B6: 0.3780080924 | E6: Name | F6: Value | G6: Type | H6: Feasible Range
A7: 4 | B7: 0.01562334093 | E7: alpha = | F7: 1 | G7: Shape | H7: Any Finite Positive Real Number
A8: =A7+1 -> 5 | B8: 0.006823101534 | E8: beta = | F8: 5 | G8: Scale | H8: Any Finite Positive Real Number
A9: 6 | B9: 0.4649724866
A10: 7 | B10: 0.01268453781 | E10: Distribution Type: | H10: Continuous
A11: 8 | B11: 0.6866995526 | E11: Distrbution Name: | H11: Gamma
A12: 9 | B12: 0.2282261687 | E12: Variate Number: | H12: Univariate
A13: 10 | B13: 0.02039491046 | E13: Simulation Method: | H13: Convolution
A14: 11 | B14: 0.03913392315
A15: 12 | B15: 0.03865968458 | E15: Macro Format: | H15: =Gammarv(alpha, beta)
A16: 13 | B16: 0.1712580536
A17: 14 | B17: 0.2154421716
A18: 15 | B18: 0.3054862831
A19: 16 | B19: 0.121793138 | G19: Notes: | H19: 1. The Gamma distribution does not lend
A20: 17 | B20: 0.4385815413 | H20: itself easily to a manual presentation so no
A21: 18 | B21: 0.4234511179 | H21: manual example is provided here, only the
A22: 19 | B22: 0.2480393845 | H22: output of the macro generated variates.
A23: 20 | B23: 0.5629930484
A24: 21 | B24: 0.1837078506
A25: 22 | B25: 0.09408347586
A26: 23 | B26: 0.02785447059
A27: 24 | B27: 0.3260930588
A28: 25 | B28: 0.05883188585
A29: 26 | B29: 0.1118317557
A30: 27 | B30: 0.1984387074
A31: 28 | B31: 0.05137789029
A32: 29 | B32: 0.0616841054
A33: 30 | B33: 0.0001607631023
A34: 31 | B34: 0.09603583777
A35: 32 | B35: 0.006948761564
A36: 33 | B36: 0.4653698313
A37: 34 | B37: 0.03910382305
A38: 35 | B38: 0.0480337224
A39: 36 | B39: 0.1411937819
A40: =A39+1 -> 37 | B40: 0.1065508035
A41: 38 | B41: 0.1786279202
A42: 39 | B42: 0.08467534032
A43: 40 | B43: 0.08319468055
A44: 41 | B44: 0.09918893541
A45: 42 | B45: 0.1563057519
A46: 43 | B46: 0.1310638366
A47: 44 | B47: 1.302131549
A48: 45 | B48: 0.2739205194
A49: 46 | B49: 0.3755879405
A50: 47 | B50: 0.0743600217
A51: 48 | B51: 0.3047886025
A52: 49 | B52: 0.1780696372
A53: 50 | B53: 0.5112420422
A54: 51 | B54: 0.01299750089
A55: 52 | B55: 0.1972331866
A56: 53 | B56: 0.2730850278
A57: 54 | B57: 0.001343633364
A58: 55 | B58: 0.1102801075
A59: 56 | B59: 0.1866058608
A60: 57 | B60: 0.4002660331
A61: 58 | B61: 0.06991570181
A62: 59 | B62: 0.3080175497
A63: 60 | B63: 0.1596917631
A64: 61 | B64: 0.3879970495
A65: 62 | B65: 0.2971215215
A66: 63 | B66: 0.04643795447
A67: 64 | B67: 0.1920616852
A68: 65 | B68: 0.2082681077
A69: 66 | B69: =Gammarv($F$7,$F$8) -> 0.03108681969
A70: =A69+1 -> 67 | B70: 0.3066690193
A71: 68 | B71: 0.1902103529
A72: 69 | B72: 0.03744325878
A73: 70 | B73: 0.1685371905
A74: 71 | B74: 0.1334235929
A75: 72 | B75: 0.221723326
A76: 73 | B76: 0.3568098899
A77: 74 | B77: 1.47735356
A78: 75 | B78: 0.2335671147
A79: 76 | B79: 0.4070891615
A80: 77 | B80: 0.2643534339
A81: 78 | B81: 0.04589660285
A82: 79 | B82: 0.1759466862
A83: 80 | B83: 0.3444608374
A84: 81 | B84: 0.3123592569
A85: 82 | B85: 0.03865186715
A86: 83 | B86: 0.1790093124
A87: 84 | B87: 0.05821775967
A88: 85 | B88: 0.1217254305
A89: 86 | B89: 0.01672255116
A90: 87 | B90: 0.5553753943
A91: 88 | B91: 0.1682068272
A92: 89 | B92: 0.1111767277
A93: 90 | B93: 0.6994150791
A94: 91 | B94: 0.06262566038
A95: 92 | B95: 0.05076892867
A96: 93 | B96: 0.07839546035
A97: 94 | B97: 0.1318575737
A98: 95 | B98: 0.1178818356
A99: 96 | B99: 0.2158102648
A100: 97 | B100: 0.3770145461
A101: 98 | B101: 0.1826627983
A102: 99 | B102: 0.2026546921
A103: 100 | B103: 0.1935288693

Sheet Geometric
A1: UNIVARIATE GEOMETRIC
A3: Observation Number | B3: Uniform Random Variate | C3: Geometric Random Variate | D3: Macro Generated Variate, U(0,1) submitted | E3: Macro Generated Variate w/o U(0,1)
A4: 1 | B4: 0.2686895342 | C4: =FLOOR(LN($B4)/LN(1-$H$7),1) -> 5 | D4: =geometric($H$7,$B4) -> 5 | E4: =geometric($H$7) -> 8
A5: =A4+1 -> 2 | B5: 0.7937742381 | C5: =FLOOR(LN($B5)/LN(1-$H$7),1) -> 1 | D5: 1 | E5: 0 | G5: Population Parameters
A6: =A5+1 -> 3 | B6: 0.8219803517 | C6: 0 | D6: 0 | E6: 1 | G6: Name | H6: Value | I6: Type | J6: Feasible Range
A7: 4 | B7: 0.6651967236 | C7: 1 | D7: 1 | E7: 0 | G7: prob = | H7: 0.2 | I7: Location | J7: Any real number between 0 and 1, inclusive
A8: 5 | B8: 0.867173427 | C8: 0 | D8: 0 | E8: 0
A9: 6 | B9: 0.279943005 | C9: 5 | D9: 5 | E9: 0 | G9: Distribution Type: | J9: Discrete
A10: 7 | B10: 0.9366722078 | C10: 0 | D10: 0 | E10: 0 | G10: Distrbution Name: | J10: Geometric
A11: 8 | B11: 0.4319115567 | C11: 3 | D11: 3 | E11: 8 | G11: Variate Number: | J11: Univariate
A12: 9 | B12: 0.9620370153 | C12: 0 | D12: 0 | E12: 1 | G12: Simulation Method: | J12: Convolution
A13: 10 | B13: 0.1424035458 | C13: 8 | D13: 8 | E13: 1
A14: 11 | B14: 0.2017197184 | C14: 7 | D14: 7 | E14: 2 | G14: Macro Format: | J14: =Geometric(prob, [unif])
A15: 12 | B15: 0.5804161826 | C15: 2 | D15: 2 | E15: 5
A16: 13 | B16: 0.3436685132 | C16: 4 | D16: 4 | E16: 1 | I16: Notes: | J16: 1. With this function you can optionally submit
A17: 14 | B17: 0.9651686826 | C17: 0 | D17: 0 | E17: 0 | J17: your own uniform random variable (unif). If
A18: 15 | B18: 0.3870480883 | C18: 4 | D18: 4 | E18: 2 | J18: not provided, the function will generate one
A19: 16 | B19: 0.8638575657 | C19: 0 | D19: 0 | E19: 8 | J19: to be used in the formula.
A20: 17 | B20: 0.1747628204 | C20: 7 | D20: 7 | E20: 4 | J20: 2. Column C shows the formula used in the
A21: 18 | B21: 0.3811765959 | C21: 4 | D21: 4 | E21: 6 | J21: macro directly in the cell. Column D generates
A22: 19 | B22: 0.8779450603 | C22: 0 | D22: 0 | E22: 0 | J22: the random variable with the macro, using the
A23: 20 | B23: 0.1823801902 | C23: 7 | D23: 7 | E23: 4 | J23: same uniform random variable (column A) as
A24: 21 | B24: 0.397533352 | C24: 4 | D24: 4 | E24: 3 | J24: used in Column C, and therefore the output of
A25: 22 | B25: 0.7419975794 | C25: 1 | D25: 1 | E25: 4 | J25: Columns C and D will match. Column E runs
A26: 23 | B26: 0.5708289459 | C26: 2 | D26: 2 | E26: 3 | J26: the macro using an internally generated
A27: 24 | B27: 0.9019586936 | C27: 0 | D27: 0 | E27: 1 | J27: uniform random input.
A28: 25 | B28: 0.4384305586 | C28: 3 | D28: 3 | E28: 13
A29: 26 | B29: 0.392949239 | C29: 4 | D29: 4 | E29: 3
A30: 27 | B30: 0.2515715048 | C30: 6 | D30: 6 | E30: 2
A31: 28 | B31: 0.305500214 | C31: 5 | D31: 5 | E31: 1
A32: 29 | B32: 0.07938744748 | C32: 11 | D32: 11 | E32: 0
A33: 30 | B33: 0.8205781142 | C33: 0 | D33: 0 | E33: 0
A34: 31 | B34: 0.005076745533 | C34: 23 | D34: 23 | E34: 0
A35: 32 | B35: 0.02998045736 | C35: 15 | D35: 15 | E35: 19
A36: 33 | B36: 0.8969873922 | C36: 0 | D36: 0 | E36: 2
A37: 34 | B37: 0.04851801844 | C37: 13 | D37: 13 | E37: 2
A38: 35 | B38: 0.3712391652 | C38: 4 | D38: 4 | E38: 7
A39: 36 | B39: 0.1827388583 | C39: 7 | D39: 7 | E39: 1
A40: 37 | B40: 0.1205000529 | C40: 9 | D40: 9 | E40: 11
A41: 38 | B41: 0.6494569336 | C41: 1 | D41: 1 | E41: 3
A42: 39 | B42: 0.8452335485 | C42: 0 | D42: 0 | E42: 0
A43: 40 | B43: 0.9655911328 | C43: 0 | D43: 0 | E43: 6
A44: 41 | B44: 0.6649923293 | C44: 1 | D44: 1 | E44: 1
A45: 42 | B45: 0.4871681719 | C45: 3 | D45: 3 | E45: 1
A46: 43 | B46: 0.7721031561 | C46: 1 | D46: 1 | E46: 9
A47: 44 | B47: 0.8263662763 | C47: 0 | D47: 0 | E47: 3
A48: 45 | B48: 0.3099628364 | C48: 5 | D48: 5 | E48: 13
A49: 46 | B49: 0.1840653162 | C49: 7 | D49: 7 | E49: 1
A50: 47 | B50: 0.582757888 | C50: 2 | D50: 2 | E50: 2
A51: 48 | B51: 0.3211056531 | C51: 5 | D51: 5 | E51: 18
A52: 49 | B52: 0.9405997337 | C52: 0 | D52: 0 | E52: 3
A53: 50 | B53: 0.1490762062 | C53: 8 | D53: 8 | E53: 5
A54: 51 | B54: 0.3830204418 | C54: 4 | D54: 4 | E54: 1
A55: 52 | B55: 0.08481595248 | C55: 11 | D55: 11 | E55: 4
A56: 53 | B56: 0.8422140741 | C56: 0 | D56: 0 | E56: 2
A57: 54 | B57: 0.404985595 | C57: 4 | D57: 4 | E57: 10
A58: 55 | B58: 0.3119225423 | C58: 5 | D58: 5 | E58: 0
A59: 56 | B59: 0.0739452196 | C59: 11 | D59: 11 | E59: 0
A60: 57 | B60: 0.4154056191 | C60: 3 | D60: 3 | E60: 0
A61: 58 | B61: 0.9433448155 | C61: 0 | D61: 0 | E61: 2
A62: 59 | B62: 0.6294690698 | C62: 2 | D62: 2 | E62: 1
A63: 60 | B63: 0.2175176524 | C63: 6 | D63: 6 | E63: 1
A64: 61 | B64: 0.8113218223 | C64: 0 | D64: 0 | E64: 6
A65: 62 | B65: 0.4764195342 | C65: 3 | D65: 3 | E65: 3
A66: 63 | B66: 0.9230861553 | C66: 0 | D66: 0 | E66: 6
A67: 64 | B67: 0.6224165836 | C67: 2 | D67: 2 | E67: 3
A68: 65 | B68: 0.5629027479 | C68: 2 | D68: 2 | E68: 6
A69: 66 | B69: 0.2761746025 | C69: =FLOOR(LN($B69)/LN(1-$H$7),1) -> 5 | D69: =geometric($H$7,$B69) -> 5 | E69: =geometric($H$7) -> 1
A70: =A69+1 -> 67 | B70: 0.981830979 | C70: 0 | D70: 0 | E70: 0
A71: 68 | B71: 0.1785586425 | C71: 7 | D71: 7 | E71: 1
A72: 69 | B72: 0.1410671686 | C72: 8 | D72: 8 | E72: 7
A73: 70 | B73: 0.7879989282 | C73: 1 | D73: 1 | E73: 2
A74: 71 | B74: 0.6201986948 | C74: 2 | D74: 2 | E74: 5
A75: 72 | B75: 0.3207061634 | C75: 5 | D75: 5 | E75: 5
A76: 73 | B76: 0.7191682701 | C76: 1 | D76: 1 | E76: 11
A77: 74 | B77: 0.7029073638 | C77: 1 | D77: 1 | E77: 0
A78: 75 | B78: 0.1541728342 | C78: 8 | D78: 8 | E78: 8
A79: 76 | B79: 0.2797729539 | C79: 5 | D79: 5 | E79: 4
A80: 77 | B80: 0.4232106228 | C80: 3 | D80: 3 | E80: 0
A81: 78 | B81: 0.9813614277 | C81: 0 | D81: 0 | E81: 2
A82: 79 | B82: 0.2008575604 | C82: 7 | D82: 7 | E82: 1
A83: 80 | B83: 0.1613377982 | C83: 8 | D83: 8 | E83: 1
A84: 81 | B84: 0.2586357835 | C84: 6 | D84: 6 | E84: 3
A85: 82 | B85: 0.8347220398 | C85: 0 | D85: 0 | E85: 3
A86: 83 | B86: 0.5159116711 | C86: 2 | D86: 2 | E86: 7
A87: 84 | B87: 0.2463319221 | C87: 6 | D87: 6 | E87: 7
A88: 85 | B88: 0.5906387139 | C88: 2 | D88: 2 | E88: 2
A89: 86 | B89: 0.6539313475 | C89: 1 | D89: 1 | E89: 7
A90: 87 | B90: 0.5644546021 | C90: 2 | D90: 2 | E90: 1
A91: 88 | B91: 0.1056526664 | C91: 10 | D91: 10 | E91: 1
A92: 89 | B92: 0.5922646588 | C92: 2 | D92: 2 | E92: 2
A93: 90 | B93: 0.7208912638 | C93: 1 | D93: 1 | E93: 2
A94: 91 | B94: 0.5880380319 | C94: 2 | D94: 2 | E94: 9
A95: 92 | B95: 0.7660283821 | C95: 1 | D95: 1 | E95: 3
A96: 93 | B96: 0.482858566 | C96: 3 | D96: 3 | E96: 15
A97: 94 | B97: 0.628647185 | C97: 2 | D97: 2 | E97: 9
A98: 95 | B98: 0.3377979428 | C98: 4 | D98: 4 | E98: 3
A99: 96 | B99: 0.4757683134 | C99: 3 | D99: 3 | E99: 1
A100: 97 | B100: 0.05631247312 | C100: 12 | D100: 12 | E100: 2
A101: 98 | B101: 0.8080473364 | C101: 0 | D101: 0 | E101: 7
A102: 99 | B102: 0.4989426697 | C102: 3 | D102: 3 | E102: 8
A103: 100 | B103: 0.320817958 | C103: 5 | D103: 5 | E103: 9

Sheet GEV
A1: UNIVARIATE GENERALIZED EXTREME VALUE (GEV)
A3: Observation Number | B3: Uniform Random Variate | C3: GEV Random Variate | D3: Macro Generated Variate, U(0,1) submitted | E3: Macro Generated Variate w/o U(0,1)
A4: 1 | B4: 0.2686895342 | C4: =$H$7-($H$8/$H$9)*(1-(-LN($B4))^(-$H$9)) -> 1.327511949 | D4: =GEV($H$7,$H$8,$H$9,$B4) -> 1.327511949 | E4: =GEV($H$7,$H$8,$H$9) -> 0.9845337568
A5: =A4+1 -> 2 | B5: 0.7937742381 | C5: =$H$7-($H$8/$H$9)*(1-(-LN($B5))^(-$H$9)) -> 18.01920297 | D5: 18.01920297 | E5: 0.1790761149 | G5: Population Parameters
A6: =A5+1 -> 3 | B6: 0.8219803517 | C6: 23.04183089 | D6: 23.04183089 | E6: 0.5441509826 | G6: Name | H6: Value | I6: Type | J6: Feasible Range
A7: 4 | B7: 0.6651967236 | C7: 7.683568002 | D7: 7.683568002 | E7: 1.741939601 | G7: mu = | H7: 2 | I7: Location | J7: Any finite real number
A8: 5 | B8: 0.867173427 | C8: 37.17348074 | D8: 37.17348074 | E8: 1.649459302 | G8: sigma = | H8: 3 | I8: Scale | J8: Real number greater than zero
A9: 6 | B9: 0.279943005 | C9: 1.392197291 | D9: 1.392197291 | E9: 2.166249948 | G9: alpha = | H9: 1.5 | I9: Shape | J9: Real number greater than zero
A10: 7 | B10: 0.9366722078 | C10: 119.5213173 | D10: 119.5213173 | E10: 68.60260193
A11: 8 | B11: 0.4319115567 | C11: 2.599993243 | D11: 2.599993243 | E11: 1.865136458 | G11: Distribution Type: | J11: Continuous
A12: 9 | B12: 0.9620370153 | C12: 262.6781591 | D12: 262.6781591 | E12: 2.860628872 | G12: Distrbution Name: | J12: Generalized Extreme Value (GEV)
A13: 10 | B13: 0.1424035458 | C13: 0.7349910126 | D13: 0.7349910126 | E13: 4.834522497 | G13: Variate Number: | J13: Univariate
A14: 11 | B14: 0.2017197184 | C14: 0.9874006828 | D14: 0.9874006828 | E14: 58.50541472 | G14: Simulation Method: | J14: Inverse Transform
A15: 12 | B15: 0.5804161826 | C15: 4.984479556 | D15: 4.984479556 | E15: 1.161770737
A16: 13 | B16: 0.3436685132 | C16: 1.811864507 | D16: 1.811864507 | E16: 0.8589823863 | G16: Macro Format: | J16: =GEV(mu, sigma, alpha, [unif])
A17: 14 | B17: 0.9651686826 | C17: 299.6137054 | D17: 299.6137054 | E17: 11.58470083
A18: 15 | B18: 0.3870480883 | C18: 2.162664015 | D18: 2.162664015 | E18: 0.8610289986 | I18: Notes: | J18: 1. With this function you can optionally submit
A19: 16 | B19: 0.8638575657 | C19: 35.72338266 | D19: 35.72338266 | E19: 4.00795123 | J19: your own uniform random variable (unif). If
A20: 17 | B20: 0.1747628204 | C20: 0.868137842 | D20: 0.868137842 | E20: 1.272696391 | J20: not provided, the function will generate one
A21: 18 | B21: 0.3811765959 | C21: 2.111454416 | D21: 2.111454416 | E21: 2.462171739 | J21: to be used within the macro.
A22: 19 | B22: 0.8779450603 | C22: 42.58506629 | D22: 42.58506629 | E22: 4.956919487 | J22: 2. Column C shows the formula used in the
A23: 20 | B23: 0.1823801902 | C23: 0.900990301 | D23: 0.900990301 | E23: 0.716968407 | J23: macro directly in the cell. Column D generates
A24: 21 | B24: 0.397533352 | C24: 2.257340472 | D24: 2.257340472 | E24: 1.353555881 | J24: the random variable with the macro, using the
A25: 22 | B25: 0.7419975794 | C25: 12.26906505 | D25: 12.26906505 | E25: 10.91885281 | J25: same uniform random variable (column A) as
A26: 23 | B26: 0.5708289459 | C26: 4.76402501 | D26: 4.76402501 | E26: 0.3586957686 | J26: used in Column C, and therefore the output of
A27: 24 | B27: 0.9019586936 | C27: 60.33861414 | D27: 60.33861414 | E27: 5.574916685 | J27: Columns C and D will match. Column E runs
A28: 25 | B28: 0.4384305586 | C28: 2.671169623 | D28: 2.671169623 | E28: 0.9857349532 | J28: the macro using an internally generated
A29: 26 | B29: 0.392949239 | C29: 2.215427211 | D29: 2.215427211 | E29: 0.8416408391 | J29: uniform random input.
A30: 27 | B30: 0.2515715048 | C30: 1.233667548 | D30: 1.233667548 | E30: 3.152351377
A31: 28 | B31: 0.305500214 | C31: 1.548852959 | D31: 1.548852959 | E31: 11.88953933
A32: 29 | B32: 0.07938744748 | C32: 0.4959872189 | D32: 0.4959872189 | E32: 0.3433077514
A33: 30 | B33: 0.8205781142 | C33: 22.74405386 | D33: 22.74405386 | E33: 0.2910615297
A34: 31 | B34: 0.005076745533 | C34: 0.1647019022 | D34: 0.1647019022 | E34: 234.0444417
A35: 32 | B35: 0.02998045736 | C35: 0.3045000909 | D35: 0.3045000909 | E35: 24.68049925
A36: 33 | B36: 0.8969873922 | C36: 55.79624119 | D36: 55.79624119 | E36: 0.9650193587
A37: 34 | B37: 0.04851801844 | C37: 0.3799840386 | D37: 0.3799840386 | E37: 5.761059139
A38: 35 | B38: 0.3712391652 | C38: 2.027586938 | D38: 2.027586938 | E38: 5.02956124
A39: 36 | B39: 0.1827388583 | C39: 0.9025529221 | D39: 0.9025529221 | E39: 1.109997443
A40: 37 | B40: 0.1205000529 | C40: 0.6497168781 | D40: 0.6497168781 | E40: 1.578417352
A41: 38 | B41: 0.6494569336 | C41: 7.053091834 | D41: 7.053091834 | E41: 7.406568675
A42: 39 | B42: 0.8452335485 | C42: 29.00778153 | D42: 29.00778153 | E42: 17.94456684
A43: 40 | B43: 0.9655911328 | C43: 305.2478845 | D43: 305.2478845 | E43: 1.784540596
A44: 41 | B44: 0.6649923293 | C44: 7.674888013 | D44: 7.674888013 | E44: 2.460288939
A45: 42 | B45: 0.4871681719 | C45: 3.279476238 | D45: 3.279476238 | E45: 0.2744653075
A46: 43 | B46: 0.7721031561 | C46: 15.20525551 | D46: 15.20525551 | E46: 8.75025966
A47: 44 | B47: 0.8263662763 | C47: 24.0129383 | D47: 24.0129383 | E47: 1.139555467
A48: 45 | B48: 0.3099628364 | C48: 1.577706387 | D48: 1.577706387 | E48: 8.69360446
A49: 46 | B49: 0.1840653162 | C49: 0.9083445259 | D49: 0.9083445259 | E49: 2.29625971
A50: 47 | B50: 0.582757888 | C50: 5.04033385 | D50: 5.04033385 | E50: 1.192002579
A51: 48 | B51: 0.3211056531 | C51: 1.651851716 | D51: 1.651851716 | E51: 2.052338292
A52: 49 | B52: 0.9405997337 | C52: 131.9783919 | D52: 131.9783919 | E52: 5.50705576
A53: 50 | B53: 0.1490762062 | C53: 0.7616753972 | D53: 0.7616753972 | E53: 0.7994704908
A54: 51 | B54: 0.3830204418 | C54: 2.127400268 | D54: 2.127400268 | E54: 1.589644659
A55: 52 | B55: 0.08481595248 | C55: 0.5160651675 | D55: 0.5160651675 | E55: 2.003341656
A56: 53 | B56: 0.8422140741 | C56: 28.10571798 | D56: 28.10571798 | E56: 1.066431941
A57: 54 | B57: 0.404985595 | C57: 2.327269573 | D57: 2.327269573 | E57: 2664.566021
A58: 55 | B58: 0.3119225423 | C58: 1.59052644 | D58: 1.59052644 | E58: 5.420886968
A59: 56 | B59: 0.0739452196 | C59: 0.4758398148 | D59: 0.4758398148 | E59: 0.9060231947
A60: 57 | B60: 0.4154056191 | C60: 2.428943793 | D60: 2.428943793 | E60: 10.92642025
A61: 58 | B61: 0.9433448155 | C61: 141.9925921 | D61: 141.9925921 | E61: 2.514155484
A62: 59 | B62: 0.6294690698 | C62: 6.350814038 | D62: 6.350814038 | E62: 6.726036926
A63: 60 | B63: 0.2175176524 | C63: 1.061505474 | D63: 1.061505474 | E63: 1.349425672
A64: 61 | B64: 0.8113218223 | C64: 20.91840659 | D64: 20.91840659 | E64: 1.396932754
A65: 62 | B65: 0.4764195342 | C65: 3.13257541 | D65: 3.13257541 | E65: 1.500183148
A66: 63 | B66: 0.9230861553 | C66: 88.33417206 | D66: 88.33417206 | E66: 1.450766551
A67: 64 | B67: 0.6224165836 | C67: 6.125793091 | D67: 6.125793091 | E67: 18.51228796
A68: 65 | B68: 0.5629027479 | C68: 4.591205029 | D68: 4.591205029 | E68: 7.698188565
A69: 66 | B69: 0.2761746025 | C69: =$H$7-($H$8/$H$9)*(1-(-LN($B69))^(-$H$9)) -> 1.370259773 | D69: =GEV($H$7,$H$8,$H$9,$B69) -> 1.370259773 | E69: =GEV($H$7,$H$8,$H$9) -> 17.0182949
A70: =A69+1 -> 67 | B70: 0.981830979 | C70: 805.5071115 | D70: 805.5071115 | E70: 0.9459922525
A71: 68 | B71: 0.1785586425 | C71: 0.884429573 | D71: 0.884429573 | E71: 0.3321861784
A72: 69 | B72: 0.1410671686 | C72: 0.7296897892 | D72: 0.7296897892 | E72: 4.050967107
A73: 70 | B73: 0.7879989282 | C73: 17.19718075 | D73: 17.19718075 | E73: 1.883101396
A74: 71 | B74: 0.6201986948 | C74: 6.05725929 | D74: 6.05725929 | E74: 3.002936383
A75: 72 | B75: 0.3207061634 | C75: 1.649140132 | D75: 1.649140132 | E75: 1.395519207
A76: 73 | B76: 0.7191682701 | C76: 10.56649086 | D76: 10.56649086 | E76: 9.09133652
A77: 74 | B77: 0.7029073638 | C77: 9.555107178 | D77: 9.555107178 | E77: 26.63232991
A78: 75 | B78: 0.1541728342 | C78: 0.7823097115 | D78: 0.7823097115 | E78: 0.6071301798
A79: 76 | B79: 0.2797729539 | C79: 1.391201224 | D79: 1.391201224 | E79: 1.470564102
A80: 77 | B80: 0.4232106228 | C80: 2.508240699 | D80: 2.508240699 | E80: 14.16958326
A81: 78 | B81: 0.9813614277 | C81: 774.9833618 | D81: 774.9833618 | E81: 13.4148724
A82: 79 | B82: 0.2008575604 | C82: 0.983451158 | D82: 0.983451158 | E82: 7.377956087
A83: 80 | B83: 0.1613377982 | C83: 0.8117114693 | D83: 0.8117114693 | E83: 6.743792786
A84: 81 | B84: 0.2586357835 | C84: 1.271756099 | D84: 1.271756099 | E84: 26.46313458
A85: 82 | B85: 0.8347220398 | C85: 26.04651492 | D85: 26.04651492 | E85: 4.3200652
A86: 83 | B86: 0.5159116711 | C86: 3.714671827 | D86: 3.714671827 | E86: 1.482136056
A87: 84 | B87: 0.2463319221 | C87: 1.205973446 | D87: 1.205973446 | E87: 1.363414129
A88: 85 | B88: 0.5906387139 | C88: 5.234432787 | D88: 5.234432787 | E88: 3.024506874
A89: 86 | B89: 0.6539313475 | C89: 7.224793807 | D89: 7.224793807 | E89: 1.128257037
A90: 87 | B90: 0.5644546021 | C90: 4.624397755 | D90: 4.624397755 | E90: 0.4660271925
A91: 88 | B91: 0.1056526664 | C91: 0.593542681 | D91: 0.593542681 | E91: 0.8295940838
A92: 89 | B92: 0.5922646588 | C92: 5.27569474 | D92: 5.27569474 | E92: 0.2573569375
A93: 90 | B93: 0.7208912638 | C93: 10.68259442 | D93: 10.68259442 | E93: 3.891150925
A94: 91 | B94: 0.5880380319 | C94: 5.16931273 | D94: 5.16931273 | E94: 59.75084689
A95: 92 | B95: 0.7660283821 | C95: 14.53436429 | D95: 14.53436429 | E95: 4.441947203
A96: 93 | B96: 0.482858566 | C96: 3.219620967 | D96: 3.219620967 | E96: 0.3318714355
A97: 94 | B97: 0.628647185 | C97: 6.32401965 | D97: 6.32401965 | E97: 2.412340305
A98: 95 | B98: 0.3377979428 | C98: 1.768890179 | D98: 1.768890179 | E98: 0.3844661632
A99: 96 | B99: 0.4757683134 | C99: 3.123926878 | D99: 3.123926878 | E99: 23.57343854
A100: 97 | B100: 0.05631247312 | C100: 0.4098798883 | D100: 0.4098798883 | E100: 1.63711518
A101: 98 | B101: 0.8080473364 | C101: 20.32586064 | D101: 20.32586064 | E101: 3.417518942
A102: 99 | B102: 0.4989426697 | C102: 3.449890466 | D102: 3.449890466 | E102: 4.820082907
A103: 100 | B103: 0.320817958 | C103: 1.649898543 | D103: 1.649898543 | E103: 6.322797932

Sheet Gompertz
A1: UNIVARIATE GOMPERTZ
A3: Observation Number | B3: Uniform Random Variate | C3: Gompertz Random Variate | D3: Macro Generated Variate, U(0,1) submitted | E3: Macro Generated Variate w/o U(0,1)
A4: 1 | B4: 0.2686895342 | C4: =(1/$H$7)*LN(1-(LN(1-$B4)/$H$8)) -> 0.5814496099 | D4: =gompertz($H$7,$H$8,$B4) -> 0.5814496099 | E4: =gompertz($H$7,$H$8) -> 1.583620537
A5: =A4+1 -> 2 | B5: 0.7937742381 | C5: 2.327503342 | D5: 2.327503342 | E5: 1.421806746 | G5: Population Parameters
A6: =A5+1 -> 3 | B6: 0.8219803517 | C6: 2.488603519 | D6: 2.488603519 | E6: 0.8543935138 | G6: Name | H6: Value | I6: Type | J6: Feasible Range
A7: 4 | B7: 0.6651967236 | C7: 1.745544555 | D7: 1.745544555 | E7: 1.868396512 | G7: sigma = | H7: 0.25 | I7: Scale | J7: Real number greater than zero
A8: 5 | B8: 0.867173427 | C8: 2.791256059 | D8: 2.791256059 | E8: 2.175529348 | G8: alpha = | H8: 2 | I8: Shape | J8: Real number greater than zero
A9: 6 | B9: 0.279943005 | C9: 0.6081794173 | D9: 0.6081794173 | E9: 1.239401527
A10: 7 | B10: 0.9366722078 | C10: 3.467923764 | D10: 3.467923764 | E10: 0.2307585723 | G10: Distribution Type: | J10: Continuous
A11: 8 | B11: 0.4319115567 | C11: 0.9959907951 | D11: 0.9959907951 | E11: 0.3490153646 | G11: Distrbution Name: | J11: Gompertz
A12: 9 | B12: 0.9620370153 | C12: 3.876400702 | D12: 3.876400702 | E12: 2.108561324 | G12: Variate Number: | J12: Univariate
A13: 10 | B13: 0.1424035458 | C13: 0.2960148814 | D13: 0.2960148814 | E13: 1.291390385 | G13: Simulation Method: | J13: Inverse Transform
A14: 11 | B14: 0.2017197184 | C14: 0.4269701644 | D14: 0.4269701644 | E14: 3.181704259
A15: 12 | B15: 0.5804161826 | C15: 1.44255706 | D15: 1.44255706 | E15: 0.1955127268 | G15: Macro Format: | J15: =Gompertz(sigma, alpha, [unif])
A16: 13 | B16: 0.3436685132 | C16: 0.7642815331 | D16: 0.7642815331 | E16: 0.2176270675
A17: 14 | B17: 0.9651686826 | C17: 3.94120573 | D17: 3.94120573 | E17: 5.915516465 | I17: Notes: | J17: 1. With this function you can optionally submit
A18: 15 | B18: 0.3870480883 | C18: 0.875688685 | D18: 0.875688685 | E18: 3.177096953 | J18: your own uniform random variable (unif). If
A19: 16 | B19: 0.8638575657 | C19: 2.766637928 | D19: 2.766637928 | E19: 0.007345869259 | J19: not provided, the function will generate one
A20: 17 | B20: 0.1747628204 | C20: 0.3668228451 | D20: 0.3668228451 | E20: 1.524573109 | J20: to be used within the macro.
A21: 18 | B21: 0.3811765959 | C21: 0.8603412255 | D21: 0.8603412255 | E21: 0.5840921893 | J21: 2. Column C shows the formula used in the
A22: 19 | B22: 0.8779450603 | C22: 2.874561802 | D22: 2.874561802 | E22: 1.907404067 | J22: macro directly in the cell. Column D generates
A23: 20 | B23: 0.1823801902 | C23: 0.3837087405 | D23: 0.3837087405 | E23: 1.490249684 | J23: the random variable with the macro, using the
A24: 21 | B24: 0.397533352 | C24: 0.9033165216 | D24: 0.9033165216 | E24: 1.430352199 | J24: same uniform random variable (column A) as
A25: 22 | B25: 0.7419975794 | C25: 2.068963582 | D25: 2.068963582 | E25: 1.176189505 | J25: used in Column C, and therefore the output of
A26: 23 | B26: 0.5708289459 | C26: 1.410928321 | D26: 1.410928321 | E26: 2.515804354 | J26: Columns C and D will match. Column E runs
A27: 24 | B27: 0.9019586936 | C27: 3.082623394 | D27: 3.082623394 | E27: 3.343772135 | J27: the macro using an internally generated
A28: 25 | B28: 0.4384305586 | C28: 1.013945802 | D28: 1.013945802 | E28: 2.165436899 | J28: uniform random input.
A29: 26 | B29: 0.392949239 | C29: 0.8912025548 | D29: 0.8912025548 | E29: 1.226035932
A30: 27 | B30: 0.2515715048 | C30: 0.5412335697 | D30: 0.5412335697 | E30: 2.814982658
A31: 28 | B31: 0.305500214 | C31: 0.669784904 | D31: 0.669784904 | E31: 0.2825003195
A32: 29 | B32: 0.07938744748 | C32: 0.1621025465 | D32: 0.1621025465 | E32: 2.009560564
A33: 30 | B33: 0.8205781142 | C33: 2.480171341 | D33: 2.480171341 | E33: 0.5802091333
A34: 31 | B34: 0.005076745533 | C34: 0.01016642151 | D34: 0.01016642151 | E34: 0.3404865323
A35: 32 | B35: 0.02998045736 | C35: 0.06041950054 | D35: 0.06041950054 | E35: 1.860882521
A36: 33 | B36: 0.8969873922 | C36: =(1/$H$7)*LN(1-(LN(1-$B36)/$H$8)) -> 3.036585936 | D36: 3.036585936 | E36: 3.472156291
A37: 34 | B37: 0.04851801844 | C37: 0.09825242522 | D37: 0.09825242522 | E37: 0.2421219504
A38: 35 | B38: 0.3712391652 | C38: 0.8345624822 | D38: 0.8345624822 | E38: 0.5248410526
A39: 36 | B39: 0.1827388583 | C39: 0.3845059321 | D39: 0.3845059321 | E39: 3.811394275
A40: 37 | B40: 0.1205000529 | C40: 0.2488967085 | D40: 0.2488967085 | E40: 0.346635786
A41: 38 | B41: 0.6494569336 | C41: 1.685710386 | D41: 1.685710386 | E41: 0.02996959031
A42: 39 | B42: 0.8452335485 | C42: 2.636125247 | D42: 2.636125247 | E42: 0.6350829006
A43: 40 | B43: 0.9655911328 | C43: 3.950306488 | D43: 3.950306488 | E43: 1.633498057
A44: 41 | B44: 0.6649923293 | C44: 1.744755515 | D44: 1.744755515 | E44: 0.02407023106
A45: 42 | B45: 0.4871681719 | C45: 1.152438886 | D45: 1.152438886 | E45: 2.680737719
A46: 43 | B46: 0.7721031561 | C46: 2.214232413 | D46: 2.214232413 | E46: 0.2366707975
A47: 44 | B47: 0.8263662763 | C47: 2.515295595 | D47: 2.515295595 | E47: 1.470209205
A48: 45 | B48: 0.3099628364 | C48: 0.6806750772 | D48: 0.6806750772 | E48: 2.062891923
A49: 46 | B49: 0.1840653162 | C49: 0.3874558366 | D49: 0.3874558366 | E49: 0.1900129812
A50: 47 | B50: 0.582757888 | C50: 1.450353769 | D50: 1.450353769 | E50: 1.290164797
A51: 48 | B51: 0.3211056531 | C51: 0.7080462088 | D51: 0.7080462088 | E51: 0.5402873394
A52: 49 | B52: 0.9405997337 | C52: 3.521374485 | D52: 3.521374485 | E52: 0.7029981115
A53: 50 | B53: 0.1490762062 | C53: 0.3104964396 | D53: 0.3104964396 | E53: 0.891011265
A54: 51 | B54: 0.3830204418 | C54: 0.8651514372 | D54: 0.8651514372 | E54: 1.533654949
A55: 52 | B55: 0.08481595248 | C55: 0.173444843 | D55: 0.173444843 | E55: 1.216662687
A56: 53 | B56: 0.8422140741 | C56: 2.616082559 | D56: 2.616082559 | E56: 2.028552556
A57: 54 | B57: 0.404985595 | C57: 0.9231286724 | D57: 0.9231286724 | E57: 0.2711742729
A58: 55 | B58: 0.3119225423 | C58: 0.6854702267 | D58: 0.6854702267 | E58: 2.015327738
A59: 56 | B59: 0.0739452196 | C59: 0.1507664248 | D59: 0.1507664248 | E59: 2.889296336
A60: 57 | B60: 0.4154056191 | C60: 0.9510834559 | D60: 0.9510834559 | E60: 0.3816371378
A61: 58 | B61: 0.9433448155 | C61: 3.560420879 | D61: 3.560420879 | E61: 0.8291234387
A62: 59 | B62: 0.6294690698 | C62: 1.612273427 | D62: 1.612273427 | E62: 2.994768501
A63: 60 | B63: 0.2175176524 | C63: 0.462739194 | D63: 0.462739194 | E63: 1.412859653
A64: 61 | B64: 0.8113218223 | C64: 2.425683938 | D64: 2.425683938 | E64: 2.070813815
A65: 62 | B65: 0.4764195342 | C65: 1.121216519 | D65: 1.121216519 | E65: 0.843893491
A66: 63 | B66: 0.9230861553 | C66: 3.30114613 | D66: 3.30114613 | E66: 2.900637472
A67: 64 | B67: 0.6224165836 | C67: 1.586993933 | D67: 1.586993933 | E67: 0.0260312649
A68: 65 | B68: 0.5629027479 | C68: =(1/$H$7)*LN(1-(LN(1-$B68)/$H$8)) -> 1.385123842 | D68: 1.385123842 | E68: 2.551642703
A69: 66 | B69: 0.2761746025 | C69: 0.5992022059 | D69: =gompertz($H$7,$H$8,$B69) -> 0.5992022059 | E69: =gompertz($H$7,$H$8) -> 2.47559009
A70: =A69+1 -> 67 | B70: 0.981830979 | C70: 4.399803754 | D70: 4.399803754 | E70: 1.00096279
A71: 68 | B71: 0.1785586425 | C71: 0.3752266162 | D71: 0.3752266162 | E71: 0.2139266748
A72: 69 | B72: 0.1410671686 | C72: 0.293121834 | D72: 0.293121834 | E72: 4.347230102
A73: 70 | B73: 0.7879989282 | C73: 2.296512968 | D73: 2.296512968 | E73: 0.1601241838
A74: 71 | B74: 0.6201986948 | C74: 1.579108841 | D74: 1.579108841 | E74: 0.3152299532
A75: 72 | B75: 0.3207061634 | C75: 0.7070604197 | D75: 0.7070604197 | E75: 0.7676914677
A76: 73 | B76: 0.7191682701 | C76: 1.966570746 | D76: 1.966570746 | E76: 0.6342398871
A77: 74 | B77: 0.7029073638 | C77: 1.897117006 | D77: 1.897117006 | E77: 0.9287731971
A78: 75 | B78: 0.1541728342 | C78: 0.3215987038 | D78: 0.3215987038 | E78: 0.4399846199
A79: 76 | B79: 0.2797729539 | C79: 0.6077737395 | D79: 0.6077737395 | E79: 1.337557515
A80: 77 | B80: 0.4232106228 | C80: 0.9722209415 | D80: 0.9722209415 | E80: 2.652211709
A81: 78 | B81: 0.9813614277 | C81: 4.382780195 | D81: 4.382780195 | E81: 0.04027203117
A82: 79 | B82: 0.2008575604 | C82: 0.4250293917 | D82: 0.4250293917 | E82: 1.47260248
A83: 80 | B83: 0.1613377982 | C83: 0.337267669 | D83: 0.337267669 | E83: 1.099271088
A84: 81 | B84: 0.2586357835 | C84: 0.5577662673 | D84: 0.5577662673 | E84: 0.5705368246
A85: 82 | B85: 0.8347220398 | C85: 2.567548822 | D85: 2.567548822 | E85: 1.760523476
A86: 83 | B86: 0.5159116711 | C86: 1.238001097 | D86: 1.238001097 | E86: 2.822666769
A87: 84 | B87: 0.2463319221 | C87: 0.5290279638 | D87: 0.5290279638 | E87: 4.616022298
A88: 85 | B88: 0.5906387139 | C88: 1.47680469 | D88: 1.47680469 | E88: 1.274721729
A89: 86 | B89: 0.6539313475 | C89: 1.702532251 | D89: 1.702532251 | E89: 0.1163417652
A90: 87 | B90: 0.5644546021 | C90: 1.390152059 | D90: 1.390152059 | E90: 0.3290197483
A91: 88 | B91: 0.1056526664 | C91: 0.2173107633 | D91: 0.2173107633 | E91: 3.726838647
A92: 89 | B92: 0.5922646588 | C92: 1.482303294 | D92: 1.482303294 | E92: 0.4724798252
A93: 90 | B93: 0.7208912638 | C93: 1.974091773 | D93: 1.974091773 | E93: 0.5245866997
A94: 91 | B94: 0.5880380319 | C94: 1.46803936 | D94: 1.46803936 | E94: 1.243816708
A95: 92 | B95: 0.7660283821 | C95: 2.18386996 | D95: 2.18386996 | E95: 1.772986327
A96: 93 | B96: 0.482858566 | C96: 1.139871883 | D96: 1.139871883 | E96: 2.659020222
A97: 94 | B97: 0.628647185 | C97: 1.609311013 | D97: 1.609311013 | E97: 0.5366371154
A98: 95 | B98: 0.3377979428 | C98: 0.7495424301 | D98: 0.7495424301 | E98: 0.05381418715
A99: 96 | B99: 0.4757683134 | C99: 1.119337754 | D99: 1.119337754 | E99: 1.471718667
A100: 97 | B100: 0.05631247312 | C100: 0.1142724259 | D100: 0.1142724259 | E100: 0.2615751134
A101: 98 | B101: 0.8080473364 | C101: 2.406874957 | D101: 2.406874957 | E101: 1.591800733
A102: 99 | B102: 0.4989426697 | C102: 1.187114422 | D102: 1.187114422 | E102: 0.1580274316
A103: 100 | B103: 0.320817958 | C103: 0.7073362526 | D103: 0.7073362526 | E103: 1.850502614

Sheet Gumbel
A1: UNIVARIATE GUMBEL
A3: Observation Number | B3: Uniform Random Variate | C3: Gumbel Random Variate | D3: Macro Generated Variate, U(0,1) submitted | E3: Macro Generated Variate w/o U(0,1)
A4: 1 | B4: 0.2686895342 | C4: =$H$7-$H$8*LN(-LN($B4)) -> 0.9070914526 | D4: =gumbel($H$7,$H$8,$B4) -> 0.9070914526 | E4: =gumbel($H$7,$H$8) -> 1.205876529
A5: =A4+1 -> 2 | B5: 0.7937742381 | C5: =$H$7-$H$8*LN(-LN($B5)) -> 7.862108907 | D5: 7.862108907 | E5: -1.9563234 | G5: Population Parameters
A6: =A5+1 -> 3 | B6: 0.8219803517 | C6: 8.517770981 | D6: 8.517770981 | E6: 2.51436277 | G6: Name | H6: Value | I6: Type | J6: Feasible Range
A7: 4 | B7: 0.6651967236 | C7: 5.589164913 | D7: 5.589164913 | E7: 1.217264197 | G7: mu = | H7: 2 | I7: Location | J7: Any finite real number
A8: 5 | B8: 0.867173427 | C8: 9.793195849 | D8: 9.793195849 | E8: 11.92710683 | G8: sigma = | H8: 4 | I8: Scale | J8: Real number greater than zero
A9: 6 | B9: 0.279943005 | C9: 1.033962943 | D9: 1.033962943 | E9: 6.433726256
A10: 7 | B10: 0.9366722078 | C10: 12.9075935 | D10: 12.9075935 | E10: 1.591451479 | G10: Distribution Type: | J10: Continuous
A11: 8 | B11: 0.4319115567 | C11: 2.699631108 | D11: 2.699631108 | E11: 1.940613525 | G11: Distrbution Name: | J11: Gumbel
A12: 9 | B12: 0.9620370153 | C12: 15.00741966 | D12: 15.00741966 | E12: 1.746444362 | G12: Variate Number: | J12: Univariate
A13: 10 | B13: 0.1424035458 | C13: -0.6694511685 | D13: -0.6694511685 | E13: -4.114616281 | G13: Simulation Method: | J13: Inverse Transform
A14: 11 | B14: 0.2017197184 | C14: 0.1177958875 | D14: 0.1177958875 | E14: 2.168666722
A15: 12 | B15: 0.5804161826 | C15: 4.435151508 | D15: 4.435151508 | E15: 0.4396268293 | G15: Macro Format: | J15: =Gumbel(mu, sigma, [unif])
A16: 13 | B16: 0.3436685132 | C16: 1.736557997 | D16: 1.736557997 | E16: 4.520207846
A17: 14 | B17: 0.9651686826 | C17: 15.35825817 | D17: 15.35825817 | E17: 1.586551798 | I17: Notes: | J17: 1. With this function you can optionally submit
A18: 15 | B18: 0.3870480883 | C18: 2.208516324 | D18: 2.208516324 | E18: 1.58573523 | J18: your own uniform random variable (unif). If
A19: 16 | B19: 0.8638575657 | C19: 9.687088721 | D19: 9.687088721 | E19: 4.783050162 | J19: not provided, the function will generate one
A20: 17 | B20: 0.1747628204 | C20: -0.2254718755 | D20: -0.2254718755 | E20: 12.44215945 | J20: to be used within the macro.
A21: 18 | B21: 0.3811765959 | C21: 2.14461287 | D21: 2.14461287 | E21: 3.052055233 | J21: 2. Column C shows the formula used in the
A22: 19 | B22: 0.8779450603 | C22: 10.15561721 | D22: 10.15561721 | E22: 4.438774634 | J22: macro directly in the cell. Column D generates
A23: 20 | B23: 0.1823801902 | C23: -0.1264212446 | D23: -0.1264212446 | E23: 6.367221059 | J23: the random variable with the macro, using the
A24: 21 | B24: 0.397533352 | C24: 2.322773754 | D24: 2.322773754 | E24: 0.5719085717 | J24: same uniform random variable (column A) as
A25: 22 | B25: 0.7419975794 | C25: 6.837157005 | D25: 6.837157005 | E25: 8.349289284 | J25: used in Column C, and therefore the output of
A26: 23 | B26: 0.5708289459 | C26: 4.314521922 | D26: 4.314521922 | E26: 18.54162601 | J26: Columns C and D will match. Column E runs
A27: 24 | B27: 0.9019586936 | C27: 11.08486689 | D27: 11.08486689 | E27: -1.063952935 | J27: the macro using an internally generated
A28: 25 | B28: 0.4384305586 | C28: 2.771651352 | D28: 2.771651352 | E28: 2.752337078 | J28: uniform random input.
A29: 26 | B29: 0.392949239 | C29: 2.27279487 | D29: 2.27279487 | E29: 17.21625289
A30: 27 | B30: 0.2515715048 | C30: 0.7115847972 | D30: 0.7115847972 | E30: 1.585118067
A31: 28 | B31: 0.305500214 | C31: 1.318313199 | D31: 1.318313199 | E31: 2.37181994
A32: 29 | B32: 0.07938744748 | C32: -1.718272804 | D32: -1.718272804 | E32: 14.29051731
A33: 30 | B33: 0.8205781142 | C33: 8.483084165 | D33: 8.483084165 | E33: 3.279149864
A34: 31 | B34: 0.005076745533 | C34: -4.658040728 | D34: -4.658040728 | E34: 3.487472929
A35: 32 | B35: 0.02998045736 | C35: -3.019282863 | D35: -3.019282863 | E35: 3.659280748
A36: 33 | B36: 0.8969873922 | C36: 10.8761582 | D36: 10.8761582 | E36: 3.04162543
A37: 34 | B37: 0.04851801844 | C37: -2.428728564 | D37: -2.428728564 | E37: -2.264391259
A38: 35 | B38: 0.3712391652 | C38: 2.036531213 | D38: 2.036531213 | E38: 10.28626543
A39: 36 | B39: 0.1827388583 | C39: -0.1218003511 | D39: -0.1218003511 | E39: 4.196391048
A40: 37 | B40: 0.1205000529 | C40: -0.998308703 | D40: -0.998308703 | E40: 2.01132806
A41: 38 | B41: 0.6494569336 | C41: 5.360850395 | D41: 5.360850395 | E41: 11.58850046
A42: 39 | B42: 0.8452335485 | C42: 9.131778512 | D42: 9.131778512 | E42: 0.04038418209
A43: 40 | B43: 0.9655911328 | C43: 15.40793867 | D43: 15.40793867 | E43: -0.03628170996
A44: 41 | B44: 0.6649923293 | C44: 5.586150725 | D44: 5.586150725 | E44: 3.347918801
A45: 42 | B45: 0.4871681719 | C45: 3.318764121 | D45: 3.318764121 | E45: 12.68710357
A46: 43 | B46: 0.7721031561 | C46: 7.409317186 | D46: 7.409317186 | E46: 1.391965646
A47: 44 | B47: 0.8263662763 | C47: 8.627854935 | D47: 8.627854935 | E47: 3.220884379
A48: 45 | B48: 0.3099628364 | C48: 1.367533222 | D48: 1.367533222 | E48: 5.913593074
A49: 46 | B49: 0.1840653162 | C49: -0.104743251 | D49: -0.104743251 | E49: 1.310104626
A50: 47 | B50: 0.582757888 | C50: 4.464867038 | D50: 4.464867038 | E50: 3.022997682
A51: 48 | B51: 0.3211056531 | C51: 1.48999928 | D51: 1.48999928 | E51: 4.713464937
A52: 49 | B52: 0.9405997337 | C52: 13.17197608 | D52: 13.17197608 | E52: 0.6858447602
A53: 50 | B53: 0.1490762062 | C53: -0.5743519536 | D53: -0.5743519536 | E53: 8.43454696
A54: 51 | B54: 0.3830204418 | C54: 2.164676059 | D54: 2.164676059 | E54: 6.146517284
A55: 52 | B55: 0.08481595248 | C55: -1.612451756 | D55: -1.612451756 | E55: -3.031712957
A56: 53 | B56: 0.8422140741 | C56: 9.047535632 | D56: 9.047535632 | E56: 1.560844783
A57: 54 | B57: 0.404985595 | C57: 2.404129447 | D57: 2.404129447 | E57: 12.21147537
A58: 55 | B58: 0.3119225423 | C58: 1.389114334 | D58: 1.389114334 | E58: 2.201982667
A59: 56 | B59: 0.0739452196 | C59: -1.828856495 | D59: -1.828856495 | E59: 8.182060113
A60: 57 | B60: 0.4154056191 | C60: 2.518158211 | D60: 2.518158211 | E60: 2.47496425
A61: 58 | B61: 0.9433448155 | C61: 13.36700722 | D61: 13.36700722 | E61: -1.309874048
A62: 59 | B62: 0.6294690698 | C62: 5.081162184 | D62: 5.081162184 | E62: -0.6433549925
A63: 60 | B63: 0.2175176524 | C63: 0.3107759413 | D63: 0.3107759413 | E63: 1.749301745
A64: 61 | B64: 0.8113218223 | C64: 8.25995277 | D64: 8.25995277 | E64: 11.26569649
A65: 62 | B65: 0.4764195342 | C65: 3.196555467 | D65: 3.196555467 | E65: 13.78398483
A66: 63 | B66: 0.9230861553 | C66: 12.1012796 | D66: 12.1012796 | E66: 10.22298434
A67: 64 | B67: 0.6224165836 | C67: 4.984962804 | D67: 4.984962804 | E67: 0.04832752258
A68: 65 | B68: 0.5629027479 | C68: 4.21598758 | D68: 4.21598758 | E68: 1.868435527
A69: 66 | B69: 0.2761746025 | C69: =$H$7-$H$8*LN(-LN($B69)) -> 0.9916084181 | D69: =gumbel($H$7,$H$8,$B69) -> 0.9916084181 | E69: =gumbel($H$7,$H$8) -> 7.20279594
A70: =A69+1 -> 67 | B70: 0.981830979 | C70: 17.99553294 | D70: 17.99553294 | E70: 1.655599056
A71: 68 | B71: 0.1785586425 | C71: -0.1758921936 | D71: -0.1758921936 | E71: 2.143904
A72: 69 | B72: 0.1410671686 | C72: -0.6887545653 | D72: -0.6887545653 | E72: 9.858414286
A73: 70 | B73: 0.7879989282 | C73: 7.737595414 | D73: 7.737595414 | E73: -0.7446096856
A74: 71 | B74: 0.6201986948 | C74: 4.954960679 | D74: 4.954960679 | E74: -1.280450132
A75: 72 | B75: 0.3207061634 | C75: 1.485618238 | D75: 1.485618238 | E75: 16.28333477
A76: 73 | B76: 0.7191682701 | C76: 6.438774864 | D76: 6.438774864 | E76: 5.883005331
A77: 74 | B77: 0.7029073638 | C77: 6.170476304 | D77: 6.170476304 | E77: -2.59348266
A78: 75 | B78: 0.1541728342 | C78: -0.5030713251 | D78: -0.5030713251 | E78: 11.5948194
A79: 76 | B79: 0.2797729539 | C79: 1.032054355 | D79: 1.032054355 | E79: 2.5668887
A80: 77 | B80: 0.4232106228 | C80: 2.603825094 | D80: 2.603825094 | E80: 1.23898861
A81: 78 | B81: 0.9813614277 | C81: 17.89251835 | D81: 17.89251835 | E81: 20.56350062
A82: 79 | B82: 0.2008575604 | C82: 0.1071080417 | D82: 0.1071080417 | E82: -1.89279397
A83: 80 | B83: 0.1613377982 | C83: -0.4046867089 | D83: -0.4046867089 | E83: -1.947004178
A84: 81 | B84: 0.2586357835 | C84: 0.7926707203 | D84: 0.7926707203 | E84: 4.458887436
A85: 82 | B85: 0.8347220398 | C85: 8.844631452 | D85: 8.844631452 | E85: -0.07025399269
A86: 83 | B86: 0.5159116711 | C86: 3.651048417 | D86: 3.651048417 | E86: -1.047914419
A87: 84 | B87: 0.2463319221 | C87: 0.6510397313 | D87: 0.6510397313 | E87: 13.20607061
A88: 85 | B88: 0.5906387139 | C88: 4.565630154 | D88: 4.565630154 | E88: 8.498205269
A89: 86 | B89: 0.6539313475 | C89: 5.424990704 | D89: 5.424990704 | E89: -1.449163521
A90: 87 | B90: 0.5644546021 | C90: 4.235197245 | D90: 4.235197245 | E90: 2.989828636
A91: 88 | B91: 0.1056526664 | C91: -1.239448891 | D91: -1.239448891 | E91: 4.215316148
A92: 89 | B92: 0.5922646588 | C92: 4.586568518 | D92: 4.586568518 | E92: -0.4572120527
A93: 90 | B93: 0.7208912638 | C93: 6.467916123 | D93: 6.467916123 | E93: 5.923065693
A94: 91 | B94: 0.5880380319 | C94: 4.53224684 | D94: 4.53224684 | E94: 3.90610306
A95: 92 | B95: 0.7660283821 | C95: 7.288982976 | D95: 7.288982976 | E95: 12.0173194
A96: 93 | B96: 0.482858566 | C96: 3.269643893 | D96: 3.269643893 | E96: 5.429984344
A97: 94 | B97: 0.628647185 | C97: 5.069887589 | D97: 5.069887589 | E97: 11.97276466
A98: 95 | B98: 0.3377979428 | C98: 1.672547071 | D98: 1.672547071 | E98: -0.6377241405
A99: 96 | B99: 0.4757683134 | C99: 3.189183053 | D99: 3.189183053 | E99: 3.567861538
A100: 97 | B100: 0.05631247312 | C100: -2.226768795 | D100: -2.226768795 | E100: 1.37860738
A101: 98 | B101: 0.8080473364 | C101: 8.183324848 | D101: 8.183324848 | E101: 5.507007083
A102: 99 | B102: 0.4989426697 | C102: 3.453854136 | D102: 3.453854136 | E102: 0.7479112464
A103: 100 | B103: 0.320817958 | C103: 1.486844311 | D103: 1.486844311 | E103: -0.6867990213

Sheet Laplace
A1: UNIVARIATE LAPLACE
A3: Observation Number | B3: Uniform Random Variate (0,1) | C3: Uniform Random Variate (-1/2, 1/2) | D3: LaPlace Random Variate | E3: Macro Generated Variate, U(0,1) submitted | F3: Macro Generated Variate w/o U(0,1)
A4: 1 | B4: 0.2686895342 | C4: =-1/2+1*B4 -> -0.2313104658 | D4: =$I$7-$I$8*SIGN($C4)*LN(1-2*ABS($C4)) -> -0.2421030666 | E4: =laplace($I$7,$I$8,$B4) -> -0.2421030666 | F4: =laplace($I$7,$I$8) -> -1.217949309
A5: =A4+1 -> 2 | B5: 0.7937742381 | C5: =-1/2+1*B5 -> 0.2937742381 | D5: =$I$7-$I$8*SIGN($C5)*LN(1-2*ABS($C5)) -> 2.771273196 | E5: 2.771273196 | F5: -0.216458763 | H5: Population Parameters
A6: =A5+1 -> 3 | B6: 0.8219803517 | C6: 0.3219803517 | D6: 3.065428341 | E6: 3.065428341 | F6: -1.451353581 | H6: Name | I6: Value | J6: Type | K6: Feasible Range
A7: 4 | B7: 0.6651967236 | C7: 0.1651967236 | D7: 1.802129948 | E7: 1.802129948 | F7: 1.825467686 | H7: mu = | I7: 1 | J7: Location | K7: Any finite real number
A8: 5 | B8: 0.867173427 | C8: 0.367173427 | D8: 3.651127566 | E8: 3.651127566 | F8: -3.124630273 | H8: sigma = | I8: 2 | J8: Scale | K8: Real number greater than zero
A9: 6 | B9: 0.279943005 | C9: -0.220056995 | D9: -0.1600441388 | E9: -0.1600441388 | F9: 1.930609739
A10: 7 | B10: 0.9366722078 | C10: 0.4366722078 | D10: 5.132567622 | E10: 5.132567622 | F10: -1.993345078 | H10: Distribution Type: | K10: Continuous
A11: 8 | B11: 0.4319115567 | C11: -0.06808844329 | D11: 0.7072254781 | E11: 0.7072254781 | F11: 3.645848474 | H11: Distrbution Name: | K11: LaPlace
A12: 9 | B12: 0.9620370153 | C12: 0.4620370153 | D12: 6.155993 | E12: 6.155993 | F12: 1.8733572 | H12: Variate Number: | K12: Univariate
A13: 10 | B13: 0.1424035458 | C13: -0.3575964542 | D13: -1.5118864 | E13: -1.5118864 | F13: 8.221343075 | H13: Simulation Method: | K13: Inverse Transform
A14: 11 | B14: 0.2017197184 | C14: -0.2982802816 | D14: -0.8154577948 | E14: -0.8154577948 | F14: 3.218482015
A15: 12 | B15: 0.5804161826 | C15: 0.08041618262 | D15: 1.350689579 | E15: 1.350689579 | F15: 3.753120112 | H15: Macro Format: | K15: =Laplace(mu, sigma, [unif])
A16: 13 | B16: 0.3436685132 | C16: -0.1563314868 | D16: 0.2501389397 | E16: 0.2501389397 | F16: 1.473300158
A17: 14 | B17: 0.9651686826 | C17: 0.4651686826 | D17: 6.32818238 | E17: 6.32818238 | F17: -3.841031441 | J17: Notes: | K17: 1. With this function you can optionally submit
A18: 15 | B18: 0.3870480883 | C18: -0.1129519117 | D18: 0.4878816921 | E18: 0.4878816921 | F18: 1.79615955 | K18: your own uniform random variable (unif). If
A19: 16 | B19: 0.8638575657 | C19: 0.3638575657 | D19: 3.6018129 | E19: 3.6018129 | F19: 1.137832599 | K19: not provided, the function will generate one
A20: 17 | B20: 0.1747628204 | C20: -0.3252371796 | D20: -1.102356712 | E20: -1.102356712 | F20: -0.5503956352 | K20: to be used within the macro.
A21: 18 | B21: 0.3811765959 | C21: -0.1188234041 | D21: 0.4573093511 | E21: 0.4573093511 | F21: 1.020335232 | K21: 2. Column D shows the formula used in the
A22: 19 | B22: 0.8779450603 | C22: 0.3779450603 | D22: 3.820273659 | E22: 3.820273659 | F22: 1.654518131 | K22: macro directly in the cell. Column E generates
A23: 20 | B23: 0.1823801902 | C23: -0.3176198098 | D23: -1.017029267 | E23: -1.017029267 | F23: -3.073696701 | K23: the random variable with the macro, using the
A24: 21 | B24: 0.397533352 | C24: -0.102466648 | D24: 0.5413414732 | E24: 0.5413414732 | F24: 0.3069038665 | K24: same uniform random variable (column C) as
A25: 22 | B25: 0.7419975794 | C25: 0.2419975794 | D25: 2.323278263 | E25: 2.323278263 | F25: 6.710701104 | K25: used in Column D, and therefore the output of
A26: 23 | B26: 0.5708289459 | C26: 0.07082894587 | D26: 1.305505063 | E26: 1.305505063 | F26: 0.6379179596 | K26: Columns D and E will match. Column F runs
A27: 24 | B27: 0.9019586936 | C27: 0.4019586936 | D27: 4.25843843 | E27: 4.25843843 | F27: 1.436409831 | K27: the macro using an internally generated
A28: 25 | B28: 0.4384305586 | C28: -0.06156944136 | D28: 0.7371866794 | E28: 0.7371866794 | F28: 6.580370684 | K28: uniform random input. Note that Column C is
A29: 26 | B29: 0.392949239 | C29: -0.107050761 | D29: 0.5181446847 | E29: 0.5181446847 | F29: 0.4836955346 | K29: a necessary transform of the uniform random
A30: 27 | B30: 0.2515715048 | C30: -0.2484284952 | D30: -0.3737616717 | E30: -0.3737616717 | F30: -3.820961969 | K30: variable in Column B.
A31: 28 | B31: 0.305500214 | C31: -0.194499786 | D31: 0.01468476123 | E31: 0.01468476123 | F31: -1.011081481
A32: 29 | B32: 0.07938744748 | C32: -0.4206125525 | D32: -2.68053567 | E32: -2.68053567 | F32: -2.522963525
A33: 30 | B33: 0.8205781142 | C33: 0.3205781142 | D33: 3.049736323 | E33: 3.049736323 | F33: -5.53717294
A34: 31 | B34: 0.005076745533 | C34: -0.4949232545 | D34: -8.179875371 | E34: -8.179875371 | F34: 0.7966050649
A35: 32 | B35: 0.02998045736 | C35: -0.4700195426 | D35: -4.628124701 | E35: -4.628124701 | F35: 4.388145137
A36: 33 | B36: 0.8969873922 | C36: 0.3969873922 | D36: 4.159513423 | E36: 4.159513423 | F36: 0.4702333782
A37: 34 | B37: 0.04851801844 | C37: -0.4514819816 | D37: -3.66534571 | E37: -3.66534571 | F37: -0.0627957763
A38: 35 | B38: 0.3712391652 | C38: -0.1287608348 | D38: 0.4044768131 | E38: 0.4044768131 | F38: -1.07422605
A39: 36 | B39: 0.1827388583 | C39: -0.3172611417 | D39: -1.013099938 | E39: -1.013099938 | F39: 1.188073145
A40: 37 | B40: 0.1205000529 | C40: -0.3794999471 | D40: -1.845915813 | E40: -1.845915813 | F40: 0.9163513767
A41: 38 | B41: 0.6494569336 | C41: 0.1494569336 | D41: 1.710249056 | E41: 1.710249056 | F41: -0.7984463106
A42: 39 | B42: 0.8452335485 | C42: 0.3452335485 | D42: 3.345381765 | E42: 3.345381765 | F42: -0.8410292842
A43: 40 | B43: 0.9655911328 | C43: 0.4655911328 | D43: 6.352587599 | E43: 6.352587599 | F43: 1.270608964
A44: 41 | B44: 0.6649923293 | C44: 0.1649923293 | D44: 1.800909339 | E44: 1.800909339 | F44: 2.694794174
A45: 42 | B45: 0.4871681719 | C45: -0.01283182814 | D45: 0.9480025743 | E45: 0.9480025743 | F45: 0.8707380635
A46: 43 | B46: 0.7721031561 | C46: 0.2721031561 | D46: 2.571430022 | E46: 2.571430022 | F46: 2.11245939
A47: 44 | B47: 0.8263662763 | C47: 0.3263662763 | D47: 3.115320108 | E47: 3.115320108 | F47: 1.348762043
A48: 45 | B48: 0.3099628364 | C48: -0.1900371636 | D48: 0.04368861845 | E48: 0.04368861845 | F48: -1.734442598
A49: 46 | B49: 0.1840653162 | C49: -0.3159346838 | D49: -0.9986348489 | E49: -0.9986348489 | F49: -0.447967442
A50: 47 | B50: 0.582757888 | C50: 0.08275788799 | D50: 1.361882882 | E50: 1.361882882 | F50: 0.7498290934
A51: 48 | B51: 0.3211056531 | C51: -0.1788943469 | D51: 0.1143242158 | E51: 0.1143242158 | F51: -2.717484763
A52: 49 | B52: 0.9405997337 | C52: 0.4405997337 | D52: 5.260618779 | E52: 5.260618779 | F52: -1.220204701
A53: 50 | B53: 0.1490762062 | C53: -0.3509237938 | D53: -1.420300944 | E53: -1.420300944 | F53: 0.7976705745
A54: 51 | B54: 0.3830204418 | C54: -0.1169795582 | D54: 0.4669605243 | E54: 0.4669605243 | F54: 1.900543976
A55: 52 | B55: 0.08481595248 | C55: -0.4151840475 | D55: -2.548248909 | E55: -2.548248909 | F55: 1.167045546
A56: 53 | B56: 0.8422140741 | C56: 0.3422140741 | D56: 3.306737767 | E56: 3.306737767 | F56: 0.3228584877
A57: 54 | B57: 0.404985595 | C57: -0.095014405 | D57: 0.5784868003 | E57: 0.5784868003 | F57: -2.723627938
A58: 55 | B58: 0.3119225423 | C58: -0.1880774577 | D58: 0.05629359341 | E58: 0.05629359341 | F58: 1.919696011
A59: 56 | B59: 0.0739452196 | C59: -0.4260547804 | D59: -2.82256711 | E59: -2.82256711 | F59: 2.578724946
A60: 57 | B60: 0.4154056191 | C60: -0.08459438085 | D60: 0.62929468 | E60: 0.62929468 | F60: 1.391649488
A61: 58 | B61: 0.9433448155 | C61: 0.4433448155 | D61: 5.355249193 | E61: 5.355249193 | F61: 1.219101281
A62: 59 | B62: 0.6294690698 | C62: 0.1294690698 | D62: 1.59934235 | E62: 1.59934235 | F62: -2.611184282
A63: 60 | B63: 0.2175176524 | C63: -0.2824823476 | D63: -0.6646561811 | E63: -0.6646561811 | F63: 0.1939942125
A64: 61 | B64: 0.8113218223 | C64: 0.3113218223 | D64: 2.949130597 | E64: 2.949130597 | F64: 3.072269089
A65: 62 | B65: 0.4764195342 | C65: -0.02358046582 | D65: 0.9033814839 | E65: 0.9033814839 | F65: -15.5504538
A66: 63 | B66: 0.9230861553 | C66: 0.4230861553 | D66: 4.743844406 | E66: 4.743844406 | F66: -0.5772565468
A67: 64 | B67: 0.6224165836 | C67: 0.1224165836 | D67: 1.561633167 | E67: 1.561633167 | F67: -2.899112735
A68: 65 | B68: 0.5629027479 | C68: 0.06290274788 | D68: 1.268904766 | E68: 1.268904766 | F68: -0.3875497905
A69: 66 | B69: 0.2761746025 | C69: =-1/2+1*B69 -> -0.2238253975 | D69: =$I$7-$I$8*SIGN($C69)*LN(1-2*ABS($C69)) -> -0.1871496297 | E69: =laplace($I$7,$I$8,$B69) -> -0.1871496297 | F69: =laplace($I$7,$I$8) -> -1.564266284
A70: =A69+1 -> 67 | B70: 0.981830979 | C70: 0.481830979 | D70: 7.629780193 | E70: 7.629780193 | F70: 1.525845999
A71: 68 | B71: 0.1785586425 | C71: -0.3214413575 | D71: -1.059382043 | E71: -1.059382043 | F71: 0.6650973923
A72: 69 | B72: 0.1410671686 | C72: -0.3589328314 | D72: -1.530743897 | E72: -1.530743897 | F72: 3.115375368
A73: 70 | B73: 0.7879989282 | C73: 0.2879989282 | D73: 2.716033536 | E73: 2.716033536 | F73: 0.6218676471
A74: 71 | B74: 0.6201986948 | C74: 0.1201986948 | D74: 1.549919727 | E74: 1.549919727 | F74: -3.925021962
A75: 72 | B75: 0.3207061634 | C75: -0.1792938366 | D75: 0.1118344534 | E75: 0.1118344534 | F75: 0.49381217
A76: 73 | B76: 0.7191682701 | C76: 0.2191682701 | D76: 2.153704869 | E76: 2.153704869 | F76: 6.329800277
A77: 74 | B77: 0.7029073638 | C77: 0.2029073638 | D77: 2.041128204 | E77: 2.041128204 | F77: 6.051030088
A78: 75 | B78: 0.1541728342 | C78: -0.3458271658 | D78: -1.353067651 | E78: -1.353067651 | F78: 8.325956812
A79: 76 | B79: 0.2797729539 | C79: -0.2202270461 | D79: -0.1612594063 | E79: -0.1612594063 | F79: -2.839826545
A80: 77 | B80: 0.4232106228 | C80: -0.07678937723 | D80: 0.6665237658 | E80: 0.6665237658 | F80: -0.05938738735
A81: 78 | B81: 0.9813614277 | C81: 0.4813614277 | D81: 7.578749773 | E81: 7.578749773 | F81: -1.872816008
A82: 79 | B82: 0.2008575604 | C82: -0.2991424396 | D82: -0.8240241926 | E82: -0.8240241926 | F82: -0.2440447745
A83: 80 | B83: 0.1613377982 | C83: -0.3386622018 | D83: -1.262215612 | E83: -1.262215612 | F83: 4.779937164
A84: 81 | B84: 0.2586357835 | C84: -0.2413642165 | D84: -0.3183745352 | E84: -0.3183745352 | F84: -0.426432142
A85: 82 | B85: 0.8347220398 | C85: 0.3347220398 | D85: 3.213958869 | E85: 3.213958869 | F85: -8.572983677
A86: 83 | B86: 0.5159116711 | C86: 0.01591167108 | D86: 1.064681421 | E86: 1.064681421 | F86: -1.140319758
A87: 84 | B87: 0.2463319221 | C87: -0.2536680779 | D87: -0.4158563901 | E87: -0.4158563901 | F87: -3.410219375
A88: 85 | B88: 0.5906387139 | C88: 0.09063871388 | D88: 1.400019984 | E88: 1.400019984 | F88: 6.890993134
A89: 86 | B89: 0.6539313475 | C89: 0.1539313475 | D89: 1.735941851 | E89: 1.735941851 | F89: 2.058952941
A90: 87 | B90: 0.5644546021 | C90: 0.06445460207 | D90: 1.276018129 | E90: 1.276018129 | F90: 1.500973588
A91: 88 | B91: 0.1056526664 | C91: -0.3943473336 | D91: -2.108902233 | E91: -2.108902233 | F91: 3.088124948
A92: 89 | B92: 0.5922646588 | C92: 0.09226465879 | D92: 1.407979616 | E92: 1.407979616 | F92: -1.905102961
A93: 90 | B93: 0.7208912638 | C93: 0.2208912638 | D93: 2.166013314 | E93: 2.166013314 | F93: 1.82501636
A94: 91 | B94: 0.5880380319 | C94: 0.08803803186 | D94: 1.387354127 | E94: 1.387354127 | F94: 1.595119803
A95: 92 | B95: 0.7660283821 | C95: 0.2660283821 | D95: 2.518816563 | E95: 2.518816563 | F95: 2.485031211
A96: 93 | B96: 0.482858566 | C96: -0.01714143397 | D96: 0.9302313768 | E96: 0.9302313768 | F96: 1.304438856
A97: 94 | B97: 0.628647185 | C97: 0.128647185 | D97: 1.594911008 | E97: 1.594911008 | F97: 0.6702089382
A98: 95 | B98: 0.3377979428 | C98: -0.1622020572 | D98: 0.2156796319 | E98: 0.2156796319 | F98: 1.470366437
A99: 96 | B99: 0.4757683134 | C99: -0.02423168661 | D99: 0.9006458015 | E99: 0.9006458015 | F99: 1.633346128
A100: 97 | B100: 0.05631247312 | C100: -0.4436875269 | D100: -3.367384081 | E100: -3.367384081 | F100: -1.229899471
A101: 98 | B101: 0.8080473364 | C101: 0.3080473364 | D101: 2.914718601 | E101: 2.914718601 | F101: 10.34135622
A102: 99 | B102: 0.4989426697 | C102: -0.0010573303 | D102: 0.9957662007 | E102: 0.9957662007 | F102: 0.4560003914
A103: 100 | B103: 0.320817958 | C103: -0.179182042 | D103: 0.1125315099 | E103: 0.1125315099 | F103: -0.5090525588

Sheet Logistic
A1: UNIVARIATE LOGISTIC
A3: Observation Number | B3: Uniform Random Variate | C3: Logistic Random Variate | D3: Macro Generated Variate, U(0,1) submitted | E3: Macro Generated Variate w/o U(0,1)
A4: 1 | B4: 0.2686895342 | C4: =$H$7+$H$8*LN($B4/(1-$B4)) -> -2.005126073 | D4: =Logistic($H$7,$H$8,$B4) -> -2.005126073 | E4: =Logistic($H$7,$H$8) -> -1.309898652
A5: =A4+1 -> 2 | B5: 0.7937742381 | C5: =$H$7+$H$8*LN($B5/(1-$B5)) -> 7.391310342 | D5: 7.391310342 | E5: -2.049269421 | G5: Population Parameters
A6: =A5+1 -> 3 | B6: 0.8219803517 | C6: 8.119290255 | D6: 8.119290255 | E6: 7.271538817 | G6: Name | H6: Value | I6: Type | J6: Feasible Range
A7: =A6+1 -> 4 | B7: 0.6651967236 | C7: 4.746158789 | D7: 4.746158789 | E7: 10.56624925 | G7: mu = | H7: 2 | I7: Location | J7: Any finite real number
A8: 5 | B8: 0.867173427 | C8: 9.50477869 | D8: 9.50477869 | E8: 15.35080644 | G8: sigma = | H8: 4 | I8: Scale | J8: Real number greater than zero
A9: 6 | B9: 0.279943005 | C9: -1.778977358 | D9: -1.778977358 | E9: 9.718141036
A10: 7 | B10: 0.9366722078 | C10: 12.77603641 | D10: 12.77603641 | E10: 2.875412503 | G10: Distribution Type: | J10: Continuous
A11: 8 | B11: 0.4319115567 | C11: 0.9037748833 | D11: 0.9037748833 | E11: 11.95351118 | G11: Distrbution Name: | J11: Logistic
A12: 9 | B12: 0.9620370153 | C12: 14.92976531 | D12: 14.92976531 | E12: 0.05531720989 | G12: Variate Number: | J12: Univariate
A13: 10 | B13: 0.1424035458 | C13: -5.181875029 | D13: -5.181875029 | E13: 15.37997001 | G13: Simulation Method: | J13: Inverse Transform
A14: 11 | B14: 0.2017197184 | C14: -3.50232226 | D14: -3.50232226 | E14: -8.326705835
A15: 12 | B15: 0.5804161826 | C15: 3.297928374 | D15: 3.297928374 | E15: -1.442169004 | G15: Macro Format: | J15: =Logistic(mu, sigma, [unif])
A16: 13 | B16: 0.3436685132 | C16: -0.5879536333 | D16: -0.5879536333 | E16: -4.193682881
A17: 14 | B17: 0.9651686826 | C17: 15.28714391 | D17: 15.28714391 | E17: -6.298072239 | I17: Notes: | J17: 1. With this function you can optionally submit
A18: 15 | B18: 0.3870480883 | C18: 0.1610498364 | D18: 0.1610498364 | E18: -13.8101072 | J18: your own uniform random variable (unif). If
A19: 16 | B19: 0.8638575657 | C19: 9.390825008 | D19: 9.390825008 | E19: 10.47365198 | J19: not provided, the function will generate one
A20: 17 | B20: 0.1747628204 | C20: -4.208964372 | D20: -4.208964372 | E20: -2.017335552 | J20: to be used within the macro.
A21: 18 | B21: 0.3811765959 | C21: 0.06177133673 | D21: 0.06177133673 | E21: 4.390749861 | J21: 2. Column C shows the formula used in the
A22: 19 | B22: 0.8779450603 | C22: 9.892450996 | D22: 9.892450996 | E22: 18.2103341 | J22: macro directly in the cell. Column D generates
A23: 20 | B23: 0.1823801902 | C23: -4.001215933 | D23: -4.001215933 | E23: 7.52038055 | J23: the random variable with the macro, using the
A24: 21 | B24: 0.397533352 | C24: 0.336986109 | D24: 0.336986109 | E24: -0.2115479383 | J24: same uniform random variable (column A) as
A25: 22 | B25: 0.7419975794 | C25: 6.225508055 | D25: 6.225508055 | E25: 6.229499677 | J25: used in Column C, and therefore the output of
A26: 23 | B26: 0.5708289459 | C26: 3.140936113 | D26: 3.140936113 | E26: -1.290499046 | J26: Columns C and D will match. Column E runs
A27: 24 | B27: 0.9019586936 | C27: 10.87671937 | D27: 10.87671937 | E27: -7.57082488 | J27: the macro using an internally generated
A28: 25 | B28: 0.4384305586 | C28: 1.009864002 | D28: 1.009864002 | E28: -11.6540389 | J28: uniform random input.
A29: 26 | B29: 0.392949239 | C29: 0.260272109 | D29: 0.260272109 | E29: 10.71341356
A30: 27 | B30: 0.2515715048 | C30: -2.360993624 | D30: -2.360993624 | E30: 7.288579199
A31: 28 | B31: 0.305500214 | C31: -1.2849655 | D31: -1.2849655 | E31: 26.19688286
A32: 29 | B32: 0.07938744748 | C32: -7.802796011 | D32: -7.802796011 | E32: -0.4721537118
A33: 30 | B33: 0.8205781142 | C33: 8.081076689 | D33: 8.081076689 | E33: 2.004839829
A34: 31 | B34: 0.005076745533 | C34: -19.11198076 | D34: -19.11198076 | E34: -0.5471441267
A35: 32 | B35: 0.02998045736 | C35: -11.90708188 | D35: -11.90708188 | E35: 2.867807059
A36: 33 | B36: 0.8969873922 | C36: 10.65676168 | D36: 10.65676168 | E36: -1.372706349
A37: 34 | B37: 0.04851801844 | C37: -9.904342026 | D37: -9.904342026 | E37: 6.53769678
A38: 35 | B38: 0.3712391652 | C38: -0.1076177946 | D38: -0.1076177946 | E38: -16.76473394
A39: 36 | B39: 0.1827388583 | C39: -3.991602197 | D39: -3.991602197 | E39: 7.200753219
A40: 37 | B40: 0.1205000529 | C40: -5.950813248 | D40: -5.950813248 | E40: -15.62449668
A41: 38 | B41: 0.6494569336 | C41: 4.466611827 | D41: 4.466611827 | E41: 0.9717081751
A42: 39 | B42: 0.8452335485 | C42: 8.790783047 | D42: 8.790783047 | E42: 6.234567615
A43: 40 | B43: 0.9655911328 | C43: 15.33770475 | D43: 15.33770475 | E43: 0.7385290853
A44: 41 | B44: 0.6649923293 | C44: 4.742488306 | D44: 4.742488306 | E44: -7.563992774
A45: 42 | B45: 0.4871681719 | C45: 1.794645658 | D45: 1.794645658 | E45: 0.7696814108
A46: 43 | B46: 0.7721031561 | C46: 6.880900303 | D46: 6.880900303 | E46: 6.883574958
A47: 44 | B47: 0.8263662763 | C47: 8.240360258 | D47: 8.240360258 | E47: 9.401740507
A48: 45 | B48: 0.3099628364 | C48: -1.201172195 | D48: -1.201172195 | E48: 0.9556934476
A49: 46 | B49: 0.1840653162 | C49: -3.956174534 | D49: -3.956174534 | E49: 6.089252353
A50: 47 | B50: 0.582757888 | C50: 3.336420624 | D50: 3.336420624 | E50: 6.217883913
A51: 48 | B51: 0.3211056531 | C51: -0.9947812325 | D51: -0.9947812325 | E51: 6.367828596
A52: 49 | B52: 0.9405997337 | C52: 13.04887591 | D52: 13.04887591 | E52: 13.66327849
A53: 50 | B53: 0.1490762062 | C53: -4.967459797 | D53: -4.967459797 | E53: -2.990977775
A54: 51 | B54: 0.3830204418 | C54: 0.09300987253 | D54: 0.09300987253 | E54: -10.58987228
A55: 52 | B55: 0.08481595248 | C55: -7.514566184 | D55: -7.514566184 | E55: -11.04102067
A56: 53 | B56: 0.8422140741 | C56: 8.699180048 | D56: 8.699180048 | E56: -0.1390927806
A57: 54 | B57: 0.404985595 | C57: 0.4610635329 | D57: 0.4610635329 | E57: -2.130179855
A58: 55 | B58: 0.3119225423 | C58: -1.164586081 | D58: -1.164586081 | E58: 1.23421034
A59: 56 | B59: 0.0739452196 | C59: -8.11043539 | D59: -8.11043539 | E59: -12.37690709
A60: 57 | B60: 0.4154056191 | C60: 0.633348791 | D60: 0.633348791 | E60: -8.980952876
A61: 58 | B61: 0.9433448155 | C61: 13.24979349 | D61: 13.24979349 | E61: -4.446893759
A62: 59 | B62: 0.6294690698 | C62: 4.119759177 | D62: 4.119759177 | E62: 4.047059733
A63: 60 | B63: 0.2175176524 | C63: -3.120765421 | D63: -3.120765421 | E63: 9.625341979
A64: 61 | B64: 0.8113218223 | C64: 7.834487988 | D64: 7.834487988 | E64: 1.551661944
A65: 62 | B65: 0.4764195342 | C65: 1.622432458 | D65: 1.622432458 | E65: -12.54975321
A66: 63 | B66: 0.9230861553 | C66: 11.94014671 | D66: 11.94014671 | E66: -7.683873044
A67: 64 | B67: 0.6224165836 | C67: 3.99927241 | D67: 3.99927241 | E67: -2.586222138
A68: 65 | B68: 0.5629027479 | C68: 3.011804636 | D68: 3.011804636 | E68: -4.500420115
A69: 66 | B69: 0.2761746025 | C69: =$H$7+$H$8*LN($B69/(1-$B69)) -> -1.854067664 | D69: =Logistic($H$7,$H$8,$B69) -> -1.854067664 | E69: =Logistic($H$7,$H$8) -> 8.355922867
A70: =A69+1 -> 67 | B70: 0.981830979 | C70: 17.95880469 | D70: 17.95880469 | E70: 3.865725993
A71: 68 | B71: 0.1785586425 | C71: -4.104573894 | D71: -4.104573894 | E71: -0.8344747091
A72: 69 | B72: 0.1410671686 | C72: -5.225818301 | D72: -5.225818301 | E72: 13.45982392
A73: 70 | B73: 0.7879989282 | C73: 7.251621598 | D73: 7.251621598 | E73: 3.240529876
A74: 71 | B74: 0.6201986948 | C74: 3.961566669 | D74: 3.961566669 | E74: -11.10415589
A75: 72 | B75: 0.3207061634 | C75: -1.002113832 | D75: -1.002113832 | E75: -2.913968655
A76: 73 | B76: 0.7191682701 | C76: 5.761358799 | D76: 5.761358799 | E76: 6.457123774
A77: 74 | B77: 0.7029073638 | C77: 5.444724456 | D77: 5.444724456 | E77: 7.380289666
A78: 75 | B78: 0.1541728342 | C78: -4.80896308 | D78: -4.80896308 | E78: -4.36949775
A79: 76 | B79: 0.2797729539 | C79: -1.782352435 | D79: -1.782352435 | E79: -5.278264054
A80: 77 | B80: 0.4232106228 | C80: 0.761571249 | D80: 0.761571249 | E80: 9.289253279
A81: 78 | B81: 0.9813614277 | C81: 17.85483043 | D81: 17.85483043 | E81: 6.52605837
A82: 79 | B82: 0.2008575604 | C82: -3.5237728 | D82: -3.5237728 | E82: -1.070950983
A83: 80 | B83: 0.1613377982 | C83: -4.593230853 | D83: -4.593230853 | E83: -6.742531151
A84: 81 | B84: 0.2586357835 | C84: -2.212284776 | D84: -2.212284776 | E84: 0.845003967
A85: 82 | B85: 0.8347220398 | C85: 8.477880477 | D85: 8.477880477 | E85: 2.922182372
A86: 83 | B86: 0.5159116711 | C86: 2.254672732 | D86: 2.254672732 | E86: 2.185388372
A87: 84 | B87: 0.2463319221 | C87: -2.473088611 | D87: -2.473088611 | E87: -10.89485158
A88: 85 | B88: 0.5906387139 | C88: 3.466425644 | D88: 3.466425644 | E88: 2.346859597
A89: 86 | B89: 0.6539313475 | C89: 4.545460799 | D89: 4.545460799 | E89: -8.962493255
A90: 87 | B90: 0.5644546021 | C90: 3.037043699 | D90: 3.037043699 | E90: 8.789729861
A91: 88 | B91: 0.1056526664 | C91: -6.543748937 | D91: -6.543748937 | E91: 4.747618856
A92: 89 | B92: 0.5922646588 | C92: 3.493341213 | D92: 3.493341213 | E92: 1.341261829
A93: 90 | B93: 0.7208912638 | C93: 5.795547485 | D93: 5.795547485 | E93: 3.036000331
A94: 91 | B94: 0.5880380319 | C94: 3.423442364 | D94: 3.423442364 | E94: 4.700154958
A95: 92 | B95: 0.7660283821 | C95: 6.744077618 | D95: 6.744077618 | E95: -4.311263636
A96: 93 | B96: 0.482858566 | C96: 1.725629532 | D96: 1.725629532 | E96: 19.67750654
A97: 94 | B97: 0.628647185 | C97: 4.105670363 | D97: 4.105670363 | E97: -0.04494935274
A98: 95 | B98: 0.3377979428 | C98: -0.6924912692 | D98: -0.6924912692 | E98: -2.157552207
A99: 96 | B99: 0.4757683134 | C99: 1.61198905 | D99: 1.61198905 | E99: -0.3236440936
A100: 97 | B100: 0.05631247312 | C100: -9.275516175 | D100: -9.275516175 | E100: -5.686901907
A101: 98 | B101: 0.8080473364 | C101: 7.749487375 | D101: 7.749487375 | E101: 7.203357963
A102: 99 | B102: 0.4989426697 | C102: 1.98308269 | D102: 1.98308269 | E102: 5.029244721
A103: 100 | B103: 0.320817958 | C103: -1.000061365 | D103: -1.000061365 | E103: 6.350412691

Sheet LogNormal
A1: UNIVARIATE LOGNORMAL
A3: Observation Number | B3: Macro Generated Variate
A4: 1 | B4: =Lognormal($F$7,$F$8) -> 6.406142637
A5: =A4+1 -> 2 | B5: 1.432562634 | E5: Population Parameters
A6: =A5+1 -> 3 | B6: 2.931369464 | E6: Name | F6: Value | G6: Type | H6: Feasible Range
A7: 4 | B7: 1.387754227 | E7: mu = | F7: 1 | G7: Location | H7: Any finite real number
A8: 5 | B8: 1.472338019 | E8: sigma = | F8: 0.5 | G8: Scale | H8: Real number greater than zero
A9: 6 | B9: 3.345872064
A10: 7 | B10: 4.139861782 | E10: Distribution Type: | H10: Continuous
A11: 8 | B11: 3.084919408 | E11: Distrbution Name: | H11: Lognormal
A12: 9 | B12: 2.039471457 | E12: Variate Number: | H12: Univariate
A13: 10 | B13: 5.843798683 | E13: Simulation Method: | H13: Convolution
A14: 11 | B14: 4.100321795
A15: 12 | B15: 1.973005275 | E15: Macro Format: | H15: =Lognormal(mu, sigma)
A16: 13 | B16: 4.07326168
A17: 14 | B17: 1.597343414
A18: 15 | B18: 4.415061389 | G18: Notes: | H18: 1. The Lognormal distribution does not lend
A19: 16 | B19: 5.793770546 | H19: itself easily to a manual presentation so no
A20: 17 | B20: 2.123329682 | H20: manual example is provided here, only the
A21: 18 | B21: 2.523312124 | H21: output of the macro generated variates.
A22: 19 | B22: 5.483551542
A23: 20 | B23: 2.536818964
A24: 21 | B24: 1.802316895
A25: 22 | B25: 1.256310713
A26: 23 | B26: 4.658793407
A27: 24 | B27: 1.847981475
A28: 25 | B28: 2.659697159
A29: 26 | B29: 3.371032052
A30: 27 | B30: 1.410768242
A31: 28 | B31: 2.277631374
A32: 29 | B32: 3.678191496
A33: 30 | B33: 3.080027962
A34: 31 | B34: 3.945119354
A35: 32 | B35: 2.217158233
A36: 33 | B36: 4.333324903
A37: 34 | B37: 2.941230555
A38: 35 | B38: 2.653815875
A39: 36 | B39: 4.347334784
A40: 37 | B40: 1.731266876
A41: 38 | B41: 2.730830914
A42: 39 | B42: 2.924142167
A43: 40 | B43: 1.856125477
A44: 41 | B44: 4.365268423
A45: 42 | B45: 3.060889626
A46: 43 | B46: 3.95691407
A47: 44 | B47: 1.386056604
A48: 45 | B48: 7.181305811
A49: 46 | B49: 1.599278277
A50: 47 | B50: 3.53817585
A51: 48 | B51: 2.43068615
A52: 49 | B52: 2.389541302
A53: 50 | B53: 0.7723424835
A54: 51 | B54: 3.362788567
A55: 52 | B55: 4.218399659
A56: 53 | B56: 2.221046273
A57: 54 | B57: 1.936017901
A58: 55 | B58: 3.753509728
A59: 56 | B59: 2.953029783
A60: 57 | B60: 1.672311917
A61: 58 | B61: 3.234891424
A62: 59 | B62: 5.082492293
A63: 60 | B63: 4.267492585
A64: 61 | B64: 4.871257204
A65: 62 | B65: 4.600500193
A66: 63 | B66: 2.908139163
A67: 64 | B67: 2.799222956
A68: 65 | B68: 3.756619779
A69: 66 | B69: =Lognormal($F$7,$F$8) -> 1.468356241
A70: =A69+1 -> 67 | B70: 2.757615023
A71: 68 | B71: 1.868538327
A72: 69 | B72: 4.05635566
A73: 70 | B73: 1.523116081
A74: 71 | B74: 2.896250102
A75: 72 | B75: 9.454920433
A76: 73 | B76: 2.387300331
A77: 74 | B77: 3.669224486
A78: 75 | B78: 2.05115227
A79: 76 | B79: 2.649111382
A80: 77 | B80: 4.342452599
A81: 78 | B81: 1.929154793
A82: 79 | B82: 2.241853573
A83: 80 | B83: 1.80626472
A84: 81 | B84: 2.921906141
A85: 82 | B85: 6.040952911
A86: 83 | B86: 4.864605772
A87: 84 | B87: 3.324040819
A88: 85 | B88: 1.994068014
A89: 86 | B89: 1.357003117
A90: 87 | B90: 2.736497601
A91: 88 | B91: 1.751277862
A92: 89 | B92: 1.433327936
A93: 90 | B93: 3.478964243
A94: 91 | B94: 3.607537511
A95: 92 | B95: 4.003704348
A96: 93 | B96: 2.604214594
A97: 94 | B97: 2.325487368
A98: 95 | B98: 1.449405324
A99: 96 | B99: 2.065215804
A100: 97 | B100: 1.56200841
A101: 98 | B101: 2.523778572
A102: 99 | B102: 0.5279311327
A103: 100 | B103: 6.906522098

Sheet Multinomial
A1: MULTIVARIATE MULTINOMIAL
A4: Observation Number | B4: Macro Generated Event #1 | C4: Macro Generated Event #2 | D4: Macro Generated Event #3 | E4: Macro Generated Event #4 | F4: Macro Generated Event #5 | G4: Macro Generated Event #6 | H4: Total Across All Events, per Observ.
A5: 1 | B5: =Multinomrv($L$8,$L$9:$L$14,$L$15) -> 18 | C5: 21 | D5: 30 | E5: 9 | F5: 14 | G5: 8 | H5: =SUM(B5:G5) -> 100
A6: =A5+1 -> 2 | B6: =Multinomrv($L$8,$L$9:$L$14,$L$15) -> 17 | C6: 24 | D6: 24 | E6: 10 | F6: 19 | G6: 6 | H6: =SUM(B6:G6) -> 100 | K6: Population Parameters
A7: =A6+1 -> 3 | B7: =Multinomrv($L$8,$L$9:$L$14,$L$15) -> 14 | C7: 15 | D7: 31 | E7: 24 | F7: 9 | G7: 7 | H7: 100 | K7: Name | L7: Value | M7: Type | N7: Feasible Range
A8: =A7+1 -> 4 | B8: =Multinomrv($L$8,$L$9:$L$14,$L$15) -> 16 | C8: 21 | D8: 24 | E8: 22 | F8: 15 | G8: 2 | H8: 100 | K8: events = | L8: 6 | M8: Shape | N8: Any Finite Positive Integer
A9: 5 | B9: =Multinomrv($L$8,$L$9:$L$14,$L$15) -> 19 | C9: 22 | D9: 28 | E9: 14 | F9: 12 | G9: 5 | H9: 100 | K9: prob(1) | L9: 0.15 | M9: Shape | N9: A vector of probabilities in range [0,1] sum to 100%
A10: 6 | B10: =Multinomrv($L$8,$L$9:$L$14,$L$15) -> 11 | C10: 20 | D10: 33 | E10: 14 | F10: 16 | G10: 6 | H10: 100 | K10: prob(2) | L10: 0.2 | M10: Shape | N10: A vector of probabilities in range [0,1] sum to 100%
A11: 7 | B11: =Multinomrv($L$8,$L$9:$L$14,$L$15) -> 12 | C11: 19 | D11: 33 | E11: 19 | F11: 11 | G11: 6 | H11: 100 | K11: prob(3) | L11: 0.3 | M11: Shape | N11: A vector of probabilities in range [0,1] sum to 100%
A12: 8 | B12: =Multinomrv($L$8,$L$9:$L$14,$L$15) -> 15 | C12: 20 | D12: 26 | E12: 21 | F12: 14 | G12: 4 | H12: 100 | K12: prob(4) | L12: 0.16 | M12: Shape | N12: A vector of probabilities in range [0,1] sum to 100%
A13: 9 | B13: =Multinomrv($L$8,$L$9:$L$14,$L$15) -> 15 | C13: 17 | D13: 27 | E13: 17 | F13: 12 | G13: 12 | H13: 100 | K13: prob(5) | L13: 0.12 | M13: Shape | N13: A vector of probabilities in range [0,1] sum to 100%
A14: 10 | B14: =Multinomrv($L$8,$L$9:$L$14,$L$15) -> 13 | C14: 20 | D14: 29 | E14: 15 | F14: 17 | G14: 6 | H14: 100 | K14: prob(6) | L14: 0.07 | M14: Shape | N14: A vector of probabilities in range [0,1] sum to 100%
A15: 11 | B15: =Multinomrv($L$8,$L$9:$L$14,$L$15) -> 16 | C15: 20 | D15: 37 | E15: 12 | F15: 7 | G15: 8 | H15: 100 | K15: n = | L15: 100 | M15: Shape | N15: Any Finite Positive Integer
A16: 12 | B16: =Multinomrv($L$8,$L$9:$L$14,$L$15) -> 13 | C16: 20 | D16: 29 | E16: 19 | F16: 11 | G16: 8 | H16: 100
A17: 13 | B17: =Multinomrv($L$8,$L$9:$L$14,$L$15) -> 22 | C17: 19 | D17: 32 | E17: 14 | F17: 8 | G17: 5 | H17: 100 | K17: Distribution Type: | N17: Discrete
A18: 14 | B18: =Multinomrv($L$8,$L$9:$L$14,$L$15) -> 17 | C18: 17 | D18: 32 | E18: 16 | F18: 14 | G18: 4 | H18: 100 | K18: Distrbution Name: | N18: Multinomial
A19: 15 | B19: =Multinomrv($L$8,$L$9:$L$14,$L$15) -> 21 | C19: 21 | D19: 33 | E19: 11 | F19: 9 | G19: 5 | H19: 100 | K19: Variate Number: | N19: Multivariate
A20: 16 | B20: =Multinomrv($L$8,$L$9:$L$14,$L$15) -> 15 | C20: 20 | D20: 22 | E20: 20 | F20: 12 | G20: 11 | H20: 100 | K20: Simulation Method: | N20: Convolution
A21: 17 | B21: =Multinomrv($L$8,$L$9:$L$14,$L$15) -> 9 | C21: 15 | D21: 29 | E21: 25 | F21: 12 | G21: 10 | H21: 100
A22: 18 | B22: =Multinomrv($L$8,$L$9:$L$14,$L$15) -> 17 | C22: 19 | D22: 39 | E22: 16 | F22: 6 | G22: 3 | H22: 100 | K22: Macro Format: | N22: =Multinomrv(events, prob,n)
A23: 19 | B23: =Multinomrv($L$8,$L$9:$L$14,$L$15) -> 12 | C23: 20 | D23: 33 | E23: 14 | F23: 10 | G23: 11 | H23: 100
A24: 20 | B24: =Multinomrv($L$8,$L$9:$L$14,$L$15) -> 18 | C24: 25 | D24: 21 | E24: 16 | F24: 9 | G24: 11 | H24: 100 | M24: Notes: | N24: 1. The Multinomial distribution does not lend
A25: 21 | B25: =Multinomrv($L$8,$L$9:$L$14,$L$15) -> 14 | C25: 25 | D25: 26 | E25: 18 | F25: 9 | G25: 8 | H25: 100 | N25: itself easily to a manual presentation so no
A26: 22 | B26: =Multinomrv($L$8,$L$9:$L$14,$L$15) -> 10 | C26: 16 | D26: 34 | E26: 16 | F26: 16 | G26: 8 | H26: 100 | N26: manual example is provided here, only the
A27: 23 | B27: =Multinomrv($L$8,$L$9:$L$14,$L$15) -> 13 | C27: 22 | D27: 31 | E27: 17 | F27: 9 | G27: 8 | H27: 100 | N27: output of the macro generated variates.
A28: 24 | B28: =Multinomrv($L$8,$L$9:$L$14,$L$15) -> 16 | C28: 19 | D28: 27 | E28: 21 | F28: 9 | G28: 8 | H28: 100 | N28: 2. For each simulation, the total events simulated
A29: 25 | B29: =Multinomrv($L$8,$L$9:$L$14,$L$15) -> 15 | C29: 18 | D29: 31 | E29: 16 | F29: 10 | G29: 10 | H29: 100 | N29: should equal n, the total number of runs
A30: 26 | B30: =Multinomrv($L$8,$L$9:$L$14,$L$15) -> 13 | C30: 19 | D30: 34 | E30: 13 | F30: 12 | G30: 9 | H30: 100 | N30: 3. The total number of events must equal the total
A31: 27 | B31: =Multinomrv($L$8,$L$9:$L$14,$L$15) -> 12 | C31: 21 | D31: 32 | E31: 16 | F31: 10 | G31: 9 | H31: 100 | N31: number of individual event probabilities provided.
A32: 28 | B32: =Multinomrv($L$8,$L$9:$L$14,$L$15) -> 13 | C32: 26 | D32: 27 | E32: 16 | F32: 9 | G32: 9 | H32: 100 | N32: 4. The sum of the event probabilities provied must
A33: 29 | B33: =Multinomrv($L$8,$L$9:$L$14,$L$15) -> 17 | C33: 16 | D33: 27 | E33: 13 | F33: 19 | G33: 8 | H33: 100 | N33: equal 100%.
A34: 30 | B34: =Multinomrv($L$8,$L$9:$L$14,$L$15) -> 15 | C34: 18 | D34: 32 | E34: 9 | F34: 20 | G34: 6 | H34: 100
A35: 31 | B35: =Multinomrv($L$8,$L$9:$L$14,$L$15) -> 11 | C35: 30 | D35: 29 | E35: 14 | F35: 12 | G35: 4 | H35: 100
A36: 32 | B36: =Multinomrv($L$8,$L$9:$L$14,$L$15) -> 16 | C36: 16 | D36: 32 | E36: 12 | F36: 15 | G36: 9 | H36: 100
A37: 33 | B37: =Multinomrv($L$8,$L$9:$L$14,$L$15) -> 19 | C37: 20 | D37: 26 | E37: 18 | F37: 9 | G37: 8 | H37: 100
A38: 34 | B38: =Multinomrv($L$8,$L$9:$L$14,$L$15) -> 16 | C38: 26 | D38: 31 | E38: 15 | F38: 7 | G38: 5 | H38: 100
A39: 35 | B39: =Multinomrv($L$8,$L$9:$L$14,$L$15) -> 17 | C39: 25 | D39: 23 | E39: 20 | F39: 10 | G39: 5 | H39: 100
A40: =A39+1 -> 36 | B40: =Multinomrv($L$8,$L$9:$L$14,$L$15) -> 19 | C40: 23 | D40: 17 | E40: 16 | F40: 19 | G40: 6 | H40: 100
A41: 37 | B41: =Multinomrv($L$8,$L$9:$L$14,$L$15) -> 20 | C41: 19 | D41: 30 | E41: 15 | F41: 9 | G41: 7 | H41: 100
A42: 38 | B42: =Multinomrv($L$8,$L$9:$L$14,$L$15) -> 13 | C42: 17 | D42: 35 | E42: 13 | F42: 15 | G42: 7 | H42: 100
A43: 39 | B43: =Multinomrv($L$8,$L$9:$L$14,$L$15) -> 24 | C43: 23 | D43: 23 | E43: 13 | F43: 13 | G43: 4 | H43: 100
A44: 40 | B44: =Multinomrv($L$8,$L$9:$L$14,$L$15) -> 8 | C44: 20 | D44: 38 | E44: 16 | F44: 14 | G44: 4 | H44: 100
A45: 41 | B45: =Multinomrv($L$8,$L$9:$L$14,$L$15) -> 20 | C45: 20 | D45: 25 | E45: 16 | F45: 12 | G45: 7 | H45: 100
A46: 42 | B46: =Multinomrv($L$8,$L$9:$L$14,$L$15) -> 19 | C46: 13 | D46: 32 | E46: 15 | F46: 12 | G46: 9 | H46: 100
A47: 43 | B47: =Multinomrv($L$8,$L$9:$L$14,$L$15) -> 16 | C47: 19 | D47: 29 | E47: 18 | F47: 12 | G47: 6 | H47: 100
A48: 44 | B48: =Multinomrv($L$8,$L$9:$L$14,$L$15) -> 15 | C48: 21 | D48: 30 | E48: 11 | F48: 13 | G48: 10 | H48: 100
A49: 45 | B49: =Multinomrv($L$8,$L$9:$L$14,$L$15) -> 14 | C49: 22 | D49: 35 | E49: 12 | F49: 12 | G49: 5 | H49: 100
A50: 46 | B50: =Multinomrv($L$8,$L$9:$L$14,$L$15) -> 10 | C50: 10 | D50: 47 | E50: 18 | F50: 8 | G50: 7 | H50: 100
A51: 47 | B51: =Multinomrv($L$8,$L$9:$L$14,$L$15) -> 15 | C51: 27 | D51: 22 | E51: 13 | F51: 15 | G51: 8 | H51: 100
A52: 48 | B52: =Multinomrv($L$8,$L$9:$L$14,$L$15) -> 15 | C52: 20 | D52: 21 | E52: 19 | F52: 18 | G52: 7 | H52: 100
A53: 49 | B53: =Multinomrv($L$8,$L$9:$L$14,$L$15) -> 11 | C53: 20 | D53: 40 | E53: 15 | F53: 7 | G53: 7 | H53: 100
A54: 50 | B54: =Multinomrv($L$8,$L$9:$L$14,$L$15) -> 17 | C54: 15 | D54: 35 | E54: 18 | F54: 8 | G54: 7 | H54: 100
A55: 51 | B55: =Multinomrv($L$8,$L$9:$L$14,$L$15) -> 12 | C55: 24 | D55: 26 | E55: 16 | F55: 14 | G55: 8 | H55: 100
A56: 52 | B56: =Multinomrv($L$8,$L$9:$L$14,$L$15) -> 15 | C56: 18 | D56: 30 | E56: 17 | F56: 12 | G56: 8 | H56: 100
A57: 53 | B57: =Multinomrv($L$8,$L$9:$L$14,$L$15) -> 13 | C57: 22 | D57: 33 | E57: 16 | F57: 7 | G57: 9 | H57: 100
A58: 54 | B58: =Multinomrv($L$8,$L$9:$L$14,$L$15) -> 13 | C58: 15 | D58: 37 | E58: 14 | F58: 12 | G58: 9 | H58: 100
A59: 55 | B59: =Multinomrv($L$8,$L$9:$L$14,$L$15) -> 18 | C59: 19 | D59: 29 | E59: 17 | F59: 9 | G59: 8 | H59: 100
A60: 56 | B60: =Multinomrv($L$8,$L$9:$L$14,$L$15) -> 13 | C60: 14 | D60: 28 | E60: 21 | F60: 17 | G60: 7 | H60: 100
A61: 57 | B61: =Multinomrv($L$8,$L$9:$L$14,$L$15) -> 12 | C61: 23 | D61: 32 | E61: 10 | F61: 16 | G61: 7 | H61: 100
A62: 58 | B62: =Multinomrv($L$8,$L$9:$L$14,$L$15) -> 13 | C62: 20 | D62: 33 | E62: 12 | F62: 14 | G62: 8 | H62: 100
A63: 59 | B63: =Multinomrv($L$8,$L$9:$L$14,$L$15) -> 10 | C63: 22 | D63: 28 | E63: 24 | F63: 11 | G63: 5 | H63: 100
A64: 60 | B64: =Multinomrv($L$8,$L$9:$L$14,$L$15) -> 10 | C64: 18 | D64: 33 | E64: 24 | F64: 14 | G64: 1 | H64: 100
A65: 61 | B65: =Multinomrv($L$8,$L$9:$L$14,$L$15) -> 14 | C65: 18 | D65: 35 | E65: 12 | F65: 13 | G65: 8 | H65: 100
A66: 62 | B66: =Multinomrv($L$8,$L$9:$L$14,$L$15) -> 11 | C66: 16 | D66: 35 | E66: 16 | F66: 13 | G66: 9 | H66: 100
A67: 63 | B67: =Multinomrv($L$8,$L$9:$L$14,$L$15) -> 12 | C67: 23 | D67: 27 | E67: 14 | F67: 14 | G67: 10 | H67: 100
A68: 64 | B68: =Multinomrv($L$8,$L$9:$L$14,$L$15) -> 10 | C68: 22 | D68: 36 | E68: 11 | F68: 16 | G68: 5 | H68: 100
A69: 65 | B69: =Multinomrv($L$8,$L$9:$L$14,$L$15) -> 13 | C69: 21 | D69: 26 | E69: 15 | F69: 14 | G69: 11 | H69: 100
A70: 66 | B70: =Multinomrv($L$8,$L$9:$L$14,$L$15) -> 16 | C70: 15 | D70: 29 | E70: 15 | F70: 18 | G70: 7 | H70: =SUM(B70:G70) -> 100
A71: =A70+1 -> 67 | B71: =Multinomrv($L$8,$L$9:$L$14,$L$15) -> 15 | C71: 19 | D71: 31 | E71: 19 | F71: 10 | G71: 6 | H71: 100
A72: 68 | B72: =Multinomrv($L$8,$L$9:$L$14,$L$15) -> 14 | C72: 32 | D72: 23 | E72: 17 | F72: 10 | G72: 4 | H72: 100
A73: 69 | B73: =Multinomrv($L$8,$L$9:$L$14,$L$15) -> 12 | C73: 19 | D73: 35 | E73: 13 | F73: 11 | G73: 10 | H73: 100
A74: 70 | B74: =Multinomrv($L$8,$L$9:$L$14,$L$15) -> 13 | C74: 22 | D74: 32 | E74: 16 | F74: 13 | G74: 4 | H74: 100
A75: 71 | B75: =Multinomrv($L$8,$L$9:$L$14,$L$15) -> 12 | C75: 19 | D75: 33 | E75: 23 | F75: 7 | G75: 6 | H75: 100
A76: 72 | B76: =Multinomrv($L$8,$L$9:$L$14,$L$15) -> 16 | C76: 26 | D76: 30 | E76: 13 | F76: 8 | G76: 7 | H76: 100
A77: 73 | B77: =Multinomrv($L$8,$L$9:$L$14,$L$15) -> 16 | C77: 24 | D77: 24 | E77: 11 | F77: 11 | G77: 14 | H77: 100
A78: 74 | B78: =Multinomrv($L$8,$L$9:$L$14,$L$15) -> 12 | C78: 27 | D78: 26 | E78: 15 | F78: 17 | G78: 3 | H78: 100
A79: 75 | B79: =Multinomrv($L$8,$L$9:$L$14,$L$15) -> 12 | C79: 25 | D79: 30 | E79: 20 | F79: 7 | G79: 6 | H79: 100
A80: 76 | B80: =Multinomrv($L$8,$L$9:$L$14,$L$15) -> 15 | C80: 21 | D80: 33 | E80: 14 | F80: 12 | G80: 5 | H80: 100
A81: 77 | B81: =Multinomrv($L$8,$L$9:$L$14,$L$15) -> 17 | C81: 26 | D81: 25 | E81: 14 | F81: 13 | G81: 5 | H81: 100
A82: 78 | B82: =Multinomrv($L$8,$L$9:$L$14,$L$15) -> 12 | C82: 24 | D82: 29 | E82: 15 | F82: 14 | G82: 6 | H82: 100
A83: 79 | B83: =Multinomrv($L$8,$L$9:$L$14,$L$15) -> 18 | C83: 16 | D83: 34 | E83: 16 | F83: 7 | G83: 9 | H83: 100
A84: 80 | B84: =Multinomrv($L$8,$L$9:$L$14,$L$15) -> 11 | C84: 18 | D84: 38 | E84: 14 | F84: 14 | G84: 5 | H84: 100
A85: 81 | B85: =Multinomrv($L$8,$L$9:$L$14,$L$15) -> 14 | C85: 26 | D85: 30 | E85: 17 | F85: 12 | G85: 1 | H85: 100
A86: 82 | B86: =Multinomrv($L$8,$L$9:$L$14,$L$15) -> 17 | C86: 15 | D86: 30 | E86: 22 | F86: 6 | G86: 10 | H86: 100
A87: 83 | B87: =Multinomrv($L$8,$L$9:$L$14,$L$15) -> 23 | C87: 17 | D87: 31 | E87: 15 | F87: 5 | G87: 9 | H87: 100
A88: 84 | B88: =Multinomrv($L$8,$L$9:$L$14,$L$15) -> 14 | C88: 15 | D88: 28 | E88: 17 | F88: 17 | G88: 9 | H88: 100
A89: 85 | B89: =Multinomrv($L$8,$L$9:$L$14,$L$15) -> 18 | C89: 16 | D89: 25 | E89: 15 | F89: 20 | G89: 6 | H89: 100
A90: 86 | B90: =Multinomrv($L$8,$L$9:$L$14,$L$15) -> 14 | C90: 23 | D90: 28 | E90: 23 | F90: 7 | G90: 5 | H90: 100
A91: 87 | B91: =Multinomrv($L$8,$L$9:$L$14,$L$15) -> 11 | C91: 14 | D91: 39 | E91: 16 | F91: 11 | G91: 9 | H91: 100
A92: 88 | B92: =Multinomrv($L$8,$L$9:$L$14,$L$15) -> 17 | C92: 15 | D92: 37 | E92: 15 | F92: 13 | G92: 3 | H92: 100
A93: 89 | B93: =Multinomrv($L$8,$L$9:$L$14,$L$15) -> 13 | C93: 19 | D93: 28 | E93: 21 | F93: 10 | G93: 9 | H93: 100
A94: 90 | B94: =Multinomrv($L$8,$L$9:$L$14,$L$15) -> 15 | C94: 18 | D94: 30 | E94: 22 | F94: 12 | G94: 3 | H94: 100
A95: 91 | B95: =Multinomrv($L$8,$L$9:$L$14,$L$15) -> 20 | C95: 20 | D95: 34 | E95: 15 | F95: 8 | G95: 3 | H95: 100
A96: 92 | B96: =Multinomrv($L$8,$L$9:$L$14,$L$15) -> 11 | C96: 22 | D96: 34 | E96: 12 | F96: 14 | G96: 7 | H96: 100
A97: 93 | B97: =Multinomrv($L$8,$L$9:$L$14,$L$15) -> 21 | C97: 19 | D97: 27 | E97: 17 | F97: 14 | G97: 2 | H97: 100
A98: 94 | B98: =Multinomrv($L$8,$L$9:$L$14,$L$15) -> 16 | C98: 19 | D98: 24 | E98: 16 | F98: 15 | G98: 10 | H98: 100
A99: 95 | B99: =Multinomrv($L$8,$L$9:$L$14,$L$15) -> 14 | C99: 22 | D99: 27 | E99: 20 | F99: 15 | G99: 2 | H99: 100
A100: 96 | B100: =Multinomrv($L$8,$L$9:$L$14,$L$15) -> 6 | C100: 18 | D100: 33 | E100: 13 | F100: 13 | G100: 17 | H100: 100
A101: 97 | B101: =Multinomrv($L$8,$L$9:$L$14,$L$15) -> 13 | C101: 23 | D101: 34 | E101: 15 | F101: 6 | G101: 9 | H101: 100
A102: 98 | B102: =Multinomrv($L$8,$L$9:$L$14,$L$15) -> 14 | C102: 22 | D102: 34 | E102: 14 | F102: 9 | G102: 7 | H102: 100
A103: 99 | B103: =Multinomrv($L$8,$L$9:$L$14,$L$15) -> 11 | C103: 19 | D103: 31 | E103: 20 | F103: 12 | G103: 7 | H103: 100
A104: 100 | B104: =Multinomrv($L$8,$L$9:$L$14,$L$15) -> 12 | C104: 16 | D104: 29 | E104: 24 | F104: 11 | G104: 8 | H104: 100
R118: =IF($Q118<B$3,1,0) -> 0 | S118: =SUM(S18:S117) -> 0 | T118: 0 | U118: 0 | V118: 0 | W118: 0 | X118: =SUM(X18:X117) -> 0

Sheet Negative Binomial
A1: UNIVARIATE NEGATIVE BINOMIAL
A3: Observation Number | B3: Uniform Random Variate #1 | C3: Uniform Random Variate #2 | D3: Uniform Random Variate #3 | E3: Uniform Random Variate #4 | F3: Uniform Random Variate #5 | G3: Uniform Random Variate #6 | H3: Uniform Random Variate #7 | I3: Negative Binomial Random Variate | J3: Macro Generated Variate, uniforms submitted | K3: Macro Generated Variate w/o Uniforms submitted
A4: 1 | B4: 0.2686895342 | C4: 0.4440558018 | D4: 0.9446585172 | E4: 0.4988861242 | F4: 0.09634886979 | G4: 0.09322634477 | H4: 0.1192461544 | I4: =FLOOR(LN($B4)/LN($N$7),1)+FLOOR(LN($C4)/LN($N$7),1)+FLOOR(LN($D4)/LN($N$7),1)+FLOOR(LN($E4)/LN($N$7),1)+FLOOR(LN($F4)/LN($N$7),1)+FLOOR(LN($G4)/LN($N$7),1)+FLOOR(LN($H4)/LN($N$7),1) -> 40 | J4: =NegBinomial($N$7,$N$8,$B4:$H4) -> 40 | K4: =NegBinomial($N$7,$N$8) -> 23
A5: =A4+1 -> 2 | B5: 0.7937742381 | C5: 0.657187953 | D5: 0.08390209645 | E5: 0.5998350332 | F5: 0.6242630444 | G5: 0.9180268841 | H5: 0.007808768677 | I5: =FLOOR(LN($B5)/LN($N$7),1)+FLOOR(LN($C5)/LN($N$7),1)+FLOOR(LN($D5)/LN($N$7),1)+FLOOR(LN($E5)/LN($N$7),1)+FLOOR(LN($F5)/LN($N$7),1)+FLOOR(LN($G5)/LN($N$7),1)+FLOOR(LN($H5)/LN($N$7),1) -> 38 | J5: 38 | K5: =NegBinomial($N$7,$N$8) -> 29 | M5: Population Parameters
A6: =A5+1 -> 3 | B6: 0.8219803517 | C6: 0.2289734867 | D6: 0.1685409965 | E6: 0.7880284345 | F6: 0.309918716 | G6: 0.8506175999 | H6: 0.5457723485 | I6: 21 | J6: 21 | K6: 43 | M6: Name | N6: Value | O6: Type | P6: Feasible Range
A7: 4 | B7: 0.6651967236 | C7: 0.5974609611 | D7: 0.9269962534 | E7: 0.03360383669 | F7: 0.9275892992 | G7: 0.9611862704 | H7: 0.1406550624 | I7: 26 | J7: 26 | K7: 37 | M7: prob = | N7: 0.8 | O7: Location | P7: Any real number between 0 and 1, inclusive
A8: 5 | B8: 0.867173427 | C8: 0.1256472972 | D8: 0.7808885858 | E8: 0.6753063224 | F8: 0.8280575497 | G8: 0.8752017777 | H8: 0.770700637 | I8: 12 | J8: 12 | K8: 15 | M8: k = | N8: 7 | O8: Shape | P8: Any Finite Positive Integer
A9: 6 | B9: 0.279943005 | C9: 0.5722822591 | D9: 0.5504839302 | E9: 0.3609071909 | F9: 0.1465589731 | G9: 0.9273932532 | H9: 0.1566710523 | I9: 29 | J9: 29 | K9: 17
A10: 7 | B10: 0.9366722078 | C10: 0.2973990816 | D10: 0.7432095291 | E10: 0.1708444915 | F10: 0.03764533306 | G10: 0.05147372961 | H10: 0.5540158524 | I10: 42 | J10: 42 | K10: 19 | M10: Distribution Type: | P10: Discrete
A11: 8 | B11: 0.4319115567 | C11: 0.3355232993 | D11: 0.2350445327 | E11: 0.1289192128 | F11: 0.9957305062 | G11: 0.8335850935 | H11: 0.2780688497 | I11: 27 | J11: 27 | K11: 34 | M11: Distrbution Name: | P11: Negative Binomial
A12: 9 | B12: 0.9620370153 | C12: 0.7916290012 | D12: 0.8240963927 | E12: 0.880727246 | F12: 0.1036601397 | G12: 0.2630751722 | H12: 0.9790884164 | I12: 16 | J12: 16 | K12: 57 | M12: Variate Number: | P12: Univariate
A13: 10 | B13: 0.1424035458 | C13: 0.2482285966 | D13: 0.09447618177 | E13: 0.4369863336 | F13: 0.5280253261 | G13: 0.2330707697 | H13: 0.6174300745 | I13: 37 | J13: 37 | K13: 11 | M13: Simulation Method: | P13: Convolution
A14: 11 | B14: 0.2017197184 | C14: 0.1405022656 | D14: 0.8245071999 | E14: 0.4214854177 | F14: 0.003032548942 | G14: 0.3332631887 | H14: 0.8011678052 | I14: 47 | J14: 47 | K14: 26
A15: 12 | B15: 0.5804161826 | C15: 0.243256612 | D15: 0.2353386721 | E15: 0.2563983671 | F15: 0.8140148635 | G15: 0.09082895931 | H15: 0.9075868169 | I15: 30 | J15: 30 | K15: 18 | M15: Macro Format: | P15: =Negbinomial(prob, k)
A16: 13 | B16: 0.3436685132 | C16: 0.6616591683 | D16: 0.417836352 | E16: 0.2211821804 | F16: 0.2013016359 | G16: 0.3495024616 | H16: 0.6412351871 | I16: 26 | J16: 26 | K16: 42
A17: 14 | B17: 0.9651686826 | C17: 0.5627961296 | D17: 0.2089586881 | E17: 0.4636426204 | F17: 0.1697267914 | G17: 0.1413917056 | H17: 0.4255233626 | I17: 30 | J17: 30 | K17: 45
A18: 15 | B18: 0.3870480883 | C18: 0.975139176 | D18: 0.6184932312 | E18: 0.1028649985 | F18: 0.4836692525 | G18: 0.9016041161 | H18: 0.7267987876 | I18: 20 | J18: 20 | K18: 27
A19: 16 | B19: 0.8638575657 | C19: 0.4311052388 | D19: 0.4134139775 | E19: 0.14141942 | F19: 0.5947251724 | G19: 0.7634250816 | H19: 0.1657252421 | I19: 25 | J19: 25 | K19: 26
A20: 17 | B20: 0.1747628204 | C20: 0.08372850713 | D20: 0.4512535225 | E20: 0.531150311 | F20: 0.3739814785 | G20: 0.6696126764 | H20: 0.6749341153 | I20: 29 | J20: 29 | K20: 37
A21: 18 | B21: 0.3811765959 | C21: 0.06616353844 | D21: 0.5509560174 | E21: 0.2412186824 | F21: 0.4861992314 | G21: 0.5517823979 | H21: 0.8600808069 | I21: 29 | J21: 29 | K21: 31
A22: 19 | B22: 0.8779450603 | C22: 0.05880060313 | D22: 0.7691656578 | E22: 0.631544891 | F22: 0.289142614 | G22: 0.02341986277 | H22: 0.5509462125 | I22: 38 | J22: 38 | K22: 20
A23: 20 | B23: 0.1823801902 | C23: 0.9142713175 | D23: 0.2074303218 | E23: 0.342591286 | F23: 0.5282430061 | G23: 0.5723804793 | H23: 0.7023756298 | I23: 23 | J23: 23 | K23: 11
A24: 21 | B24: 0.397533352 | C24: 0.9920845257 | D24: 0.9896821072 | E24: 0.2061579232 | F24: 0.301610266 | G24: 0.5003576506 | H24: 0.010524162 | I24: 39 | J24: 39 | K24: 35
A25: 22 | B25: 0.7419975794 | C25: 0.33932003 | D25: 0.2932953023 | E25: 0.7467240936 | F25: 0.5761328484 | G25: 0.1227810442 | H25: 0.6746256332 | I25: 23 | J25: 23 | K25: 11
A26: 23 | B26: 0.5708289459 | C26: 0.5102622206 | D26: 0.6437871295 | E26: 0.8249318555 | F26: 0.9146368791 | G26: 0.5076080194 | H26: 0.6636019123 | I26: 10 | J26: 10 | K26: 25
A27: 24 | B27: 0.9019586936 | C27: 0.6882338852 | D27: 0.2603486179 | E27: 0.439329676 | F27: 0.8543508976 | G27: 0.7469089964 | H27: 0.1739554595 | I27: 18 | J27: 18 | K27: 45
A28: 25 | B28: 0.4384305586 | C28: 0.3802352804 | D28: 0.4887563687 | E28: 0.9873724551 | F28: 0.7555084509 | G28: 0.3550900004 | H28: 0.5948010067 | I28: 17 | J28: 17 | K28: 26
A29: 26 | B29: 0.392949239 | C29: 0.8100758324 | D29: 0.9061144618 | E29: 0.7302896544 | F29: 0.5230061732 | G29: 0.8717630442 | H29: 0.6317317823 | I29: 9 | J29: 9 | K29: 23
A30: 27 | B30: 0.2515715048 | C30: 0.07194502391 | D30: 0.5058328352 | E30: 0.151008422 | F30: 0.0362339279 | G30: 0.3804917917 | H30: 0.8501669921 | I30: 46 | J30: 46 | K30: 31
A31: 28 | B31: 0.305500214 | C31: 0.06040511925 | D31: 0.3403360219 | E31: 0.4220907363 | F31: 0.31133185 | G31: 0.2336981857 | H31: 0.7296264846 | I31: 36 | J31: 36 | K31: 18
A32: 29 | B32: 0.07938744748 | C32: 0.3639030347 | D32: 0.9060754265 | E32: 0.7563224402 | F32: 0.5803651054 | G32: 0.6947580971 | H32: 0.6406844306 | I32: 20 | J32: 20 | K32: 19
A33: 30 | B33: 0.8205781142 | C33: 0.02340593126 | D33: 0.7012680028 | E33: 0.1422563889 | F33: 0.7591725434 | G33: 0.934633029 | H33: 0.18541556 | I33: 33 | J33: 33 | K33: 20
A34: 31 | B34: 0.005076745533 | C34: 0.7209489207 | D34: 0.1407794658 | E34: 0.8203233152 | F34: 0.1077696131 | G34: 0.129073954 | H34: 0.1705333023 | I34: 57 | J34: 57 | K34: 19
A35: 32 | B35: 0.02998045736 | C35: 0.5004593532 | D35: 0.3221744237 | E35: 0.4786909615 | F35: 0.5580786623 | G35: 0.1483137977 | H35: 0.161132995 | I35: 44 | J35: 44 | K35: 24
A36: 33 | B36: 0.8969873922 | C36: 0.518542377 | D36: 0.4169510675 | E36: 0.9923927945 | F36: 0.0596861142 | G36: 0.03751989742 | H36: 0.9536516474 | I36: 31 | J36: 31 | K36: 30
A37: 34 | B37: 0.04851801844 | C37: 0.7346561136 | D37: 0.4599008923 | E37: 0.5773846899 | F37: 0.1343992911 | G37: 0.4337531399 | H37: 0.231289131 | I37: 36 | J37: 36 | K37: 27
A38: 35 | B38: 0.3712391652 | C38: 0.922628827 | D38: 0.6008795965 | E38: 0.905288327 | F38: 0.4740317539 | G38: 0.7461370859 | H38: 0.5140165542 | I38: 12 | J38: 12 | K38: 26
A39: 36 | B39: 0.1827388583 | C39: 0.7029738861 | D39: 0.4174343426 | E39: 0.053776221 | F39: 0.9246365743 | G39: 0.04493849582 | H39: 0.7488457754 | I39: 38 | J39: 38 | K39: 29
A40: 37 | B40: 0.1205000529 | C40: 0.4869916073 | D40: 0.7985469515 | E40: 0.3948905499 | F40: 0.04308267127 | G40: 0.005148998517 | H40: 0.6658040522 | I40: 55 | J40: 55 | K40: 16
A41: 38 | B41: 0.6494569336 | C41: 0.1177189898 | D41: 0.03145377722 | E41: 0.02378277955 | F41: 0.8036652433 | G41: 0.676673738 | H41: 0.982672583 | I41: 42 | J41: 42 | K41: 39
A42: 39 | B42: 0.8452335485 | C42: 0.9314761065 | D42: 0.7227030982 | E42: 0.8596380588 | F42: 0.4328996649 | G42: 0.335265953 | H42: 0.6875622745 | I42: 9 | J42: 9 | K42: 23
A43: 40 | B43: 0.9655911328 | C43: 0.5218008587 | D43: 0.360851336 | E43: 0.1244034707 | F43: 0.8935880104 | G43: 0.3070020318 | H43: 0.6523803878 | I43: 21 | J43: 21 | K43: 21
A44: 41 | B44: 0.6649923293 | C44: 0.7250160203 | D44: 0.3869324873 | E44: 0.02226054866 | F44: 0.01652503043 | G44: 0.89518863 | H44: 0.8818573442 | I44: 41 | J44: 41 | K44: 36
A45: 42 | B45: 0.4871681719 | C45: 0.5020371216 | D45: 0.6102348278 | E45: 0.1310437958 | F45: 0.9487694179 | G45: 0.07789361777 | H45: 0.4017540033 | I45: 32 | J45: 32 | K45: 37
A46: 43 | B46: 0.7721031561 | C46: 0.4584762652 | D46: 0.5800372143 | E46: 0.4441513034 | F46: 0.8426524182 | G46: 0.7644727229 | H46: 0.4624990097 | I46: 13 | J46: 13 | K46: 25
A47: 44 | B47: 0.8263662763 | C47: 0.2765273184 | D47: 0.05938864935 | E47: 0.4126725366 | F47: 0.9450092479 | G47: 0.1629516516 | H47: 0.3506871872 | I47: 32 | J47: 32 | K47: 14
A48: 45 | B48: 0.3099628364 | C48: 0.1519658463 | D48: 0.9295731411 | E48: 0.7926182276 | F48: 0.9090659442 | G48: 0.8665254675 | H48: 0.06990709899 | I48: 25 | J48: 25 | K48: 32
A49: 46 | B49: 0.1840653162 | C49: 0.4044368542 | D49: 0.8740891166 | E49: 0.2518065347 | F49: 0.09427634318 | G49: 0.156685802 | H49: 0.1368271529 | I49: 43 | J49: 43 | K49: 11
A50: 47 | B50: 0.582757888 | C50: 0.5156840304 | D50: 0.4430142865 | E50: 0.2451710697 | F50: 0.3983374017 | G50: 0.01394439533 | H50: 0.5578189876 | I50: 38 | J50: 38 | K50: 56
A51: 48 | B51: 0.3211056531 | C51: 0.8870747519 | D51: 0.09259831303 | E51: 0.289117665 | F51: 0.5000169645 | G51: 0.5700756258 | H51: 0.8842060079 | I51: 25 | J51: 25 | K51: 32
A52: 49 | B52: 0.9405997337 | C52: 0.1219970642 | D52: 0.5770554009 | E52: 0.8180838459 | F52: 0.04531803553 | G52: 0.9471112603 | H52: 0.8914058104 | I52: 24 | J52: 24 | K52: 13
A53: 50 | B53: 0.1490762062 | C53: 0.5485823648 | D53: 0.2679653081 | E53: 0.2195272059 | F53: 0.3615433684 | G53: 0.3177784158 | H53: 0.2276398092 | I53: 36 | J53: 36 | K53: 16
A54: 51 | B54: 0.3830204418 | C54: 0.5410797994 | D54: 0.1871110413 | E54: 0.3672203857 | F54: 0.5981342056 | G54: 0.9892828019 | H54: 0.244951611 | I54: 25 | J54: 25 | K54: 19
A55: 52 | B55: 0.08481595248 | C55: 0.0163538557 | D55: 0.4336403716 | E55: 0.2354063566 | F55: 0.1250727644 | G55: 0.3447163615 | H55: 0.3845756203 | I55: 55 | J55: 55 | K55: 25
A56: 53 | B56: 0.8422140741 | C56: 0.4652930511 | D56: 0.2349566669 | E56: 0.07160846986 | F56: 0.8449617199 | G56: 0.6249274009 | H56: 0.9252932047 | I56: 22 | J56: 22 | K56: 58
A57: 54 | B57: 0.404985595 | C57: 0.6417596103 | D57: 0.1731970829 | E57: 0.9956963365 | F57: 0.007323286452 | G57: 0.01280853133 | H57: 0.3945436611 | I57: 57 | J57: 57 | K57: 41
A58: 55 | B58: 0.3119225423 | C58: 0.3842946445 | D58: 0.4990688954 | E58: 0.5815520072 | F58: 0.220759594 | G58: 0.6764433176 | H58: 0.4603255634 | I58: 24 | J58: 24 | K58: 30
A59: 56 | B59: 0.0739452196 | C59: 0.2671595445 | D59: 0.5359457317 | E59: 0.1437875729 | F59: 0.7850972957 | G59: 0.5807629159 | H59: 0.7371330975 | I59: 30 | J59: 30 | K59: 43
A60: 57 | B60: 0.4154056191 | C60: 0.4356440688 | D60: 0.7646524018 | E60: 0.7359760874 | F60: 0.4409276106 | G60: 0.8914142178 | H60: 0.09576045955 | I60: 21 | J60: 21 | K60: 54
A61: 58 | B61: 0.9433448155 | C61: 0.648413642 | D61: 0.1010624422 | E61: 0.374652411 | F61: 0.1588560864 | G61: 0.288796352 | H61: 0.5052175887 | I61: 31 | J61: 31 | K61: 14
A62: 59 | B62: 0.6294690698 | C62: 0.313425937 | D62: 0.2799966396 | E62: 0.7977122581 | F62: 0.9755442023 | G62: 0.1778556759 | H62: 0.9554329437 | I62: 20 | J62: 20 | K62: 41
A63: 60 | B63: 0.2175176524 | C63: 0.08424191555 | D63: 0.07623157935 | E63: 0.7788388414 | F63: 0.04297358701 | G63: 0.4652631796 | H63: 0.3920433491 | I63: 50 | J63: 50 | K63: 26
A64: 61 | B64: 0.8113218223 | C64: 0.6853004857 | D64: 0.9184332179 | E64: 0.8707860968 | F64: 0.4571751112 | G64: 0.7670201794 | H64: 0.120702281 | I64: 14 | J64: 14 | K64: 38
A65: 62 | B65: 0.4764195342 | C65: 0.4937383142 | D65: 0.6111688986 | E65: 0.1367777283 | F65: 0.9835388236 | G65: 0.6915807455 | H65: 0.9605430431 | I65: 17 | J65: 17 | K65: 23
A66: 63 | B66: 0.9230861553 | C66: 0.8285612592 | D66: 0.6713535427 | E66: 0.3870602864 | F66: 0.941623744 | G66: 0.8757579158 | H66: 0.4786294226 | I66: 8 | J66: 8 | K66: 30
A67: 64 | B67: 0.6224165836 | C67: 0.995215233 | D67: 0.1510846765 | E67: 0.1318279902 | F67: 0.2007620951 | G67: 0.007678645197 | H67: 0.9107377835 | I67: 47 | J67: 47 | K67: 18
A68: 65 | B68: 0.5629027479 | C68: 0.5743923956 | D68: 0.9400107753 | E68: 0.7908305903 | F68: 0.1286877078 | G68: 0.49658634 | H68: 0.9728214088 | I68: 17 | J68: 17 | K68: 18
A69: 66 | B69: 0.2761746025 | C69: 0.9051454919 | D69: 0.9323863101 | E69: 0.7200472491 | F69: 0.01520721347 | G69: 0.1412494068 | H69: 0.9740995875 | I69: =FLOOR(LN($B69)/LN($N$7),1)+FLOOR(LN($C69)/LN($N$7),1)+FLOOR(LN($D69)/LN($N$7),1)+FLOOR(LN($E69)/LN($N$7),1)+FLOOR(LN($F69)/LN($N$7),1)+FLOOR(LN($G69)/LN($N$7),1)+FLOOR(LN($H69)/LN($N$7),1) -> 32 | J69: =NegBinomial($N$7,$N$8,$B69:$H69) -> 32 | K69: =NegBinomial($N$7,$N$8) -> 14
A70: =A69+1 -> 67 | B70: 0.981830979 | C70: 0.426635734 | D70: 0.4026859997 | E70: 0.4664830889 | F70: 0.07809789681 | G70: 0.1546921662 | H70: 0.104066711 | I70: 39 | J70: 39 | K70: 11
A71: 68 | B71: 0.1785586425 | C71: 0.9218268293 | D71: 0.2748745048 | E71: 0.5999856991 | F71: 0.2023992129 | G71: 0.4574151321 | H71: 0.2943127708 | I71: 29 | J71: 29 | K71: 49
A72: 69 | B72: 0.1410671686 | C72: 0.4131659608 | D72: 0.2278674282 | E72: 0.6754928607 | F72: 0.6062801162 | G72: 0.7188258256 | H72: 0.5086053833 | I72: 24 | J72: 24 | K72: 9
A73: 70 | B73: 0.7879989282 | C73: 0.1046542347 | D73: 0.7483721012 | E73: 0.7984145485 | F73: 0.0785660646 | G73: 0.1515141804 | H73: 0.8096613944 | I73: 32 | J73: 32 | K73: 19
A74: 71 | B74: 0.6201986948 | C74: 0.03719790204 | D74: 0.1941654433 | E74: 0.1283716018 | F74: 0.7643020895 | G74: 0.497461859 | H74: 0.7260034223 | I74: 37 | J74: 37 | K74: 20
A75: 72 | B75: 0.3207061634 | C75: 0.3477175183 | D75: 0.4503552586 | E75: 0.6463731145 | F75: 0.09692305418 | G75: 0.599797832 | H75: 0.8730102236 | I75: 25 | J75: 25 | K75: 36
A76: 73 | B76: 0.7191682701 | C76: 0.6291997286 | D76: 0.1143559696 | E76: 0.4394249007 | F76: 0.9878691149 | G76: 0.1812790649 | H76: 0.06381201902 | I76: 34 | J76: 34 | K76: 27
A77: 74 | B77: 0.7029073638 | C77: 0.3302869132 | D77: 0.6034165843 | E77: 0.9882855808 | F77: 0.4894277482 | G77: 0.0357787955 | H77: 0.01314301834 | I77: 43 | J77: 43 | K77: 19
A78: 75 | B78: 0.1541728342 | C78: 0.8293481007 | D78: 0.9751912951 | E78: 0.6686337885 | F78: 0.5743208364 | G78: 0.1932962213 | H78: 0.6450536184 | I78: 19 | J78: 19 | K78: 23
A79: 76 | B79: 0.2797729539 | C79: 0.2479116646 | D79: 0.9001587527 | E79: 0.8279854079 | F79: 0.7504258449 | G79: 0.4644568201 | H79: 0.7855463101 | I79: 16 | J79: 16 | K79: 24
A80: 77 | B80: 0.4232106228 | C80: 0.1169119436 | D80: 0.1826800588 | E80: 0.578630703 | F80: 0.6515436218 | G80: 0.8133136348 | H80: 0.3460215017 | I80: 26 | J80: 26 | K80: 29
A81: 78 | B81: 0.9813614277 | C81: 0.2126052669 | D81: 0.4937843286 | E81: 0.1291787097 | F81: 0.1703793937 | G81: 0.1763970525 | H81: 0.6143713158 | I81: 34 | J81: 34 | K81: 48
A82: 79 | B82: 0.2008575604 | C82: 0.5448278331 | D82: 0.1520698042 | E82: 0.8064984359 | F82: 0.4679433776 | G82: 0.09966938772 | H82: 0.08742203493 | I82: 40 | J82: 40 | K82: 36
A83: 80 | B83: 0.1613377982 | C83: 0.04819874457 | D83: 0.8383078361 | E83: 0.1804602568 | F83: 0.7178460031 | G83: 0.7233241431 | H83: 0.9676179329 | I83: 30 | J83: 30 | K83: 19
A84: 81 | B84: 0.2586357835 | C84: 0.4225478705 | D84: 0.7789330747 | E84: 0.1490571979 | F84: 0.4826768392 | G84: 0.3673765455 | H84: 0.12522263 | I84: 34 | J84: 34 | K84: 23
A85: 82 | B85: 0.8347220398 | C85: 0.3930839196 | D85: 0.3484439756 | E85: 0.6820990534 | F85: 0.0003196990241 | G85: 0.1490546017 | H85: 0.04836536616 | I85: 66 | J85: 66 | K85: 18
A86: 83 | B86: 0.5159116711 | C86: 0.8518230054 | D86: 0.2918457063 | E86: 0.1979153715 | F86: 0.08343290608 | G86: 0.625695092 | H86: 0.1802868078 | I86: 34 | J86: 34 | K86: 28
A87: 84 | B87: 0.2463319221 | C87: 0.1181290531 | D87: 0.8600294726 | E87: 0.5061786403 | F87: 0.9207569091 | G87: 0.2663619546 | H87: 0.7092825075 | I87: 24 | J87: 24 | K87: 11
A88: 85 | B88: 0.5906387139 | C88: 0.4205643981 | D88: 0.8077042714 | E88: 0.8327784981 | F88: 0.1708236659 | G88: 0.9564376701 | H88: 0.4964952901 | I88: 15 | J88: 15 | K88: 33
A89: 86 | B89: 0.6539313475 | C89: 0.01483163667 | D89: 0.3172125436 | E89: 0.2533165053 | F89: 0.3575438719 | G89: 0.08869490421 | H89: 0.5125265437 | I89: 46 | J89: 46 | K89: 34
A90: 87 | B90: 0.5644546021 | C90: 0.3671603547 | D90: 0.1472890651 | E90: 0.02722803498 | F90: 0.8976583659 | G90: 0.4133597503 | H90: 0.5856492704 | I90: 35 | J90: 35 | K90: 18
A91: 88 | B91: 0.1056526664 | C91: 0.2451461443 | D91: 0.7569926447 | E91: 0.1883652352 | F91: 0.3890506912 | G91: 0.9149320387 | H91: 0.4202602308 | I91: 31 | J91: 31 | K91: 34
A92: 89 | B92: 0.5922646588 | C92: 0.2032418515 | D92: 0.5569816923 | E92: 0.8225080927 | F92: 0.4961883902 | G92: 0.359186821 | H92: 0.8565024038 | I92: 18 | J92: 18 | K92: 39
A93: 90 | B93: 0.7208912638 | C93: 0.6153593343 | D93: 0.3449051483 | E93: 0.6456615533 | F93: 0.5882032318 | G93: 0.2816834527 | H93: 0.7117046217 | I93: 16 | J93: 16 | K93: 17
A94: 91 | B94: 0.5880380319 | C94: 0.2315669825 | D94: 0.2083359665 | E94: 0.05958464497 | F94: 0.2522061883 | G94: 0.1421291063 | H94: 0.8503534543 | I94: 41 | J94: 41 | K94: 21
A95: 92 | B95: 0.7660283821 | C95: 0.2477513385 | D95: 0.7417777073 | E95: 0.3422449811 | F95: 0.7142984253 | G95: 0.2054018822 | H95: 0.6120745021 | I95: 22 | J95: 22 | K95: 35
A96: 93 | B96: 0.482858566 | C96: 0.01937188814 | D96: 0.5973424148 | E96: 0.08884993578 | F96: 0.7611903261 | G96: 0.3907694253 | H96: 0.5989472598 | I96: 39 | J96: 39 | K96: 36
A97: 94 | B97: 0.628647185 | C97: 0.8552590359 | D97: 0.7265108279 | E97: 0.1756853789 | F97: 0.6589877093 | G97: 0.7979048976 | H97: 0.7274249702 | I97: 13 | J97: 13 | K97: 9
A98: 95 | B98: 0.3377979428 | C98: 0.966005029 | D98: 0.7289084959 | E98: 0.1676091167 | F98: 0.1022055669 | G98: 0.04433446532 | H98: 0.1139333865 | I98: 45 | J98: 45 | K98: 29
A99: 96 | B99: 0.4757683134 | C99: 0.1234208843 | D99: 0.8450043928 | E99: 0.3713331432 | F99: 0.2298523323 | G99: 0.5377420969 | H99: 0.6422797347 | I99: 25 | J99: 25 | K99: 36
A100: 97 | B100: 0.05631247312 | C100: 0.8261558409 | D100: 0.3974682019 | E100: 0.7677003371 | F100: 0.788339125 | G100: 0.4666087859 | H100: 0.8654324238 | I100: 21 | J100: 21 | K100: 22
A101: 98 | B101: 0.8080473364 | C101: 0.2678116684 | D101: 0.1519069407 | E101: 0.6080271991 | F101: 0.4256672636 | G101: 0.9978331666 | H101: 0.7596836438 | I101: 19 | J101: 19 | K101: 12
A102: 99 | B102: 0.4989426697 | C102: 0.5954395098 | D102: 0.4899612906 | E102: 0.1806451878 | F102: 0.6737255896 | G102: 0.7458464568 | H102: 0.7958588143 | I102: 18 | J102: 18 | K102: 30
A103: 100 | B103: 0.320817958 | C103: 0.1521917407 | D103: 0.1276199537 | E103: 0.7235728832 | F103: 0.4697158882 | G103: 0.02689213153 | H103: 0.8234235406 | I103: 42 | J103: 42 | K103: 25

Sheet Normal (B-M)
A1: UNIVARIATE NORMAL (BOX-MULLER)
A3: Observation Number | B3: Uniform Random Variate #1 | C3: Uniform Random Variate #2 | D3: Normal Random Variate #1 | E3: Macro Generated Variate, uniforms submitted | F3: Macro Generated Variate w/o Uniforms submitted
A4: 1 | B4: 0.2686895342 | C4: 0.4440558018 | D4: =$I$8*SQRT(-2*LN($B4))*COS(2*PI()*$C4)+$I$7 -> -1.044204809 | E4: =Normal_bm($I$7,$I$8,$B4:$C4) -> -1.044204809 | F4: =Normal_bm($I$7,$I$8) -> 0.5101234679
A5: =A4+1 -> 2 | B5: 0.7937742381 | C5: 0.657187953 | D5: 1.25149671 | E5: 1.25149671 | F5: 0.4431842634 | H5: Population Parameters
A6: =A5+1 -> 3 | B6: 0.8219803517 | C6: 0.2289734867 | D6: 2.164967742 | E6: 2.164967742 | F6: 2.503165905 | H6: Name | I6: Value | J6: Type | K6: Feasible Range
A7: 4 | B7: 0.6651967236 | C7: 0.5974609611 | D7: 0.5222250076 | E7: 0.5222250076 | F7: 1.722476737 | H7: mu = | I7: 2 | J7: Location | K7: Any finite real number
A8: 5 | B8: 0.867173427 | C8: 0.1256472972 | D8: 2.751949602 | E8: 2.751949602 | F8: 0.009406059976 | H8: sigma = | I8: 2 | J8: Scale | K8: Real number greater than zero
A9: 6 | B9: 0.279943005 | C9: 0.5722822591 | D9: -0.8679284315 | E9: -0.8679284315 | F9: 2.298130965
A10: 7 | B10: 0.9366722078 | C10: 0.2973990816 | D10: 1.787715993 | E10: 1.787715993 | F10: 1.355422154 | H10: Distribution Type: | K10: Continuous
A11: 8 | B11: 0.4319115567 | C11: 0.3355232993 | D11: 0.6734522626 | E11: 0.6734522626 | F11: 3.034120363 | H11: Distrbution Name: | K11: Normal
A12: 9 | B12: 0.9620370153 | C12: 0.7916290012 | D12: 2.143888518 | E12: 2.143888518 | F12: 0.2912627598 | H12: Variate Number: | K12: Univariate
A13: 10 | B13: 0.1424035458 | C13: 0.2482285966 | D13: 2.043949038 | E13: 2.043949038 | F13: 4.12628671 | H13: Simulation Method: | K13: Box-Muller Transform Method
A14: 11 | B14: 0.2017197184 | C14: 0.1405022656 | D14: 4.272428347 | E14: 4.272428347 | F14: 3.466543336
A15: 12 | B15: 0.5804161826 | C15: 0.243256612 | D15: 2.088364221 | E15: 2.088364221 | F15: -0.2492661951 | H15: Macro Format: | K15: =Normal_BM(mu, sigma, [unif])
A16: 13 | B16: 0.3436685132 | C16: 0.6616591683 | D16: 0.4595287287 | E16: 0.4595287287 | F16: 1.34277869
A17: 14 | B17: 0.9651686826 | C17: 0.5627961296 | D17: 1.508359649 | E17: 1.508359649 | F17: -2.923143677
A18: 15 | B18: 0.3870480883 | C18: 0.975139176 | D18: 4.722107142 | E18: 4.722107142 | F18: 1.449553926 | J18: Notes: | K18: 1. Supplying uniform random variates to this
A19: 16 | B19: 0.8638575657 | C19: 0.4311052388 | D19: 1.017778432 | E19: 1.017778432 | F19: 4.593471161 | K19: macro is optional but if supplied there must be
A20: 17 | B20: 0.1747628204 | C20: 0.08372850713 | D20: 5.230464946 | E20: 5.230464946 | F20: -0.5526163374 | K20: TWO uniform variates provided for each
A21: 18 | B21: 0.3811765959 | C21: 0.06616353844 | D21: 4.541167234 | E21: 4.541167234 | F21: 0.9686781771 | K21: normal RV generated by the macro.
A22: 19 | B22: 0.8779450603 | C22: 0.05880060313 | D22: 2.951618085 | E22: 2.951618085 | F22: 2.500594051 | K22: 2. While the Box-Muller method is designed to
A23: 20 | B23: 0.1823801902 | C23: 0.9142713175 | D23: 5.1671785 | E23: 5.1671785 | F23: 0.5381250921 | K23: return two normal variates, the macro returns
A24: 21 | B24: 0.397533352 | C24: 0.9920845257 | D24: 4.713221805 | E24: 4.713221805 | F24: 2.080432201 | K24: only one. In this case the normal variate from
A25: 22 | B25: 0.7419975794 | C25: 0.33932003 | D25: 1.177685448 | E25: 1.177685448 | F25: 3.807847635 | K25: the "sine" version of the method is returned.
A26: 23 | B26: 0.5708289459 | C26: 0.5102622206 | D26: -0.1134576222 | E26: -0.1134576222 | F26: 2.674939979
A27: 24 | B27: 0.9019586936 | C27: 0.6882338852 | D27: 1.656181088 | E27: 1.656181088 | F27: -0.5944135926
A28: 25 | B28: 0.4384305586 | C28: 0.3802352804 | D28: 0.1251550917 | E28: 0.1251550917 | F28: -0.2935276636
A29: 26 | B29: 0.392949239 | C29: 0.8100758324 | D29: 3.00751818 | E29: 3.00751818 | F29: -0.9717997593
A30: 27 | B30: 0.2515715048 | C30: 0.07194502391 | D30: 4.988940301 | E30: 4.988940301 | F30: 2.077271391
A31: 28 | B31: 0.305500214 | C31: 0.06040511925 | D31: 4.860822013 | E31: 4.860822013 | F31: 1.671356666
A32: 29 | B32: 0.07938744748 | C32: 0.3639030347 | D32: -0.9538298927 | E32: -0.9538298927 | F32: 0.7750725991
A33: 30 | B33: 0.8205781142 | C33: 0.02340593126 | D33: 3.244186824 | E33: 3.244186824 | F33: 1.382825653
A34: 31 | B34: 0.005076745533 | C34: 0.7209489207 | D34: 0.8199060715 | E34: 0.8199060715 | F34: 2.675197463
A35: 32 | B35: 0.02998045736 | C35: 0.5004593532 | D35: -3.296927649 | E35: -3.296927649 | F35: 1.71065821
A36: 33 | B36: 0.8969873922 | C36: 0.518542377 | D36: =$I$8*SQRT(-2*LN($B36))*COS(2*PI()*$C36)+$I$7 -> 1.073740775 | E36: 1.073740775 | F36: 6.58795542
A37: 34 | B37: 0.04851801844 | C37: 0.7346561136 | D37: 1.526403147 | E37: 1.526403147 | F37: 3.365506825
A38: 35 | B38: 0.3712391652 | C38: 0.922628827 | D38: 4.489343827 | E38: 4.489343827 | F38: -1.345457813
A39: 36 | B39: 0.1827388583 | C39: 0.7029738861 | D39: 0.9262284226 | E39: 0.9262284226 | F39: -1.451518446
A40: 37 | B40: 0.1205000529 | C40: 0.4869916073 | D40: -2.100731605 | E40: -2.100731605 | F40: 3.264471996
A41: 38 | B41: 0.6494569336 | C41: 0.1177189898 | D41: 3.372668947 | E41: 3.372668947 | F41: 4.18606563
A42: 39 | B42: 0.8452335485 | C42: 0.9314761065 | D42: 3.05395414 | E42: 3.05395414 | F42: 3.768738603
A43: 40 | B43: 0.9655911328 | C43: 0.5218008587 | D43: 1.475695496 | E43: 1.475695496 | F43: 6.119887096
A44: 41 | B44: 0.6649923293 | C44: 0.7250160203 | D44: 1.71756361 | E44: 1.71756361 | F44: 4.504362417
A45: 42 | B45: 0.4871681719 | C45: 0.5020371216 | D45: -0.3983795898 | E45: -0.3983795898 | F45: 2.050643119
A46: 43 | B46: 0.7721031561 | C46: 0.4584762652 | D46: 0.6102441354 | E46: 0.6102441354 | F46: -0.4898288567
A47: 44 | B47: 0.8263662763 | C47: 0.2765273184 | D47: 1.795072428 | E47: 1.795072428 | F47: 1.679543318
A48: 45 | B48: 0.3099628364 | C48: 0.1519658463 | D48: 3.768552481 | E48: 3.768552481 | F48: 1.693894119
A49: 46 | B49: 0.1840653162 | C49: 0.4044368542 | D49: -1.036017709 | E49: -1.036017709 | F49: 2.350764011
A50: 47 | B50: 0.582757888 | C50: 0.5156840304 | D50: -0.06834524099 | E50: -0.06834524099 | F50: 5.862867487
A51: 48 | B51: 0.3211056531 | C51: 0.8870747519 | D51: 4.287088991 | E51: 4.287088991 | F51: 1.811926024
A52: 49 | B52: 0.9405997337 | C52: 0.1219970642 | D52: 2.504174201 | E52: 2.504174201 | F52: 1.07212292
A53: 50 | B53: 0.1490762062 | C53: 0.5485823648 | D53: -1.721710398 | E53: -1.721710398 | F53: 2.312536855
A54: 51 | B54: 0.3830204418 | C54: 0.5410797994 | D54: -0.6790139141 | E54: -0.6790139141 | F54: 2.665594608
A55: 52 | B55: 0.08481595248 | C55: 0.0163538557 | D55: 6.419332649 | E55: 6.419332649 | F55: 2.587142613
A56: 53 | B56: 0.8422140741 | C56: 0.4652930511 | D56: 0.8556799311 | E56: 0.8556799311 | F56: 5.561307258
A57: 54 | B57: 0.404985595 | C57: 0.6417596103 | D57: 0.3089185846 | E57: 0.3089185846 | F57: 2.990367558
A58: 55 | B58: 0.3119225423 | C58: 0.3842946445 | D58: -0.2810201147 | E58: -0.2810201147 | F58: -2.953913933
A59: 56 | B59: 0.0739452196 | C59: 0.2671595445 | D59: 1.508814777 | E59: 1.508814777 | F59: 0.7379811213
A60: 57 | B60: 0.4154056191 | C60: 0.4356440688 | D60: -0.4372424965 | E60: -0.4372424965 | F60: 3.256102234
A61: 58 | B61: 0.9433448155 | C61: 0.648413642 | D61: 1.593012295 | E61: 1.593012295 | F61: 5.064660065
A62: 59 | B62: 0.6294690698 | C62: 0.313425937 | D62: 1.253261841 | E62: 1.253261841 | F62: 0.9715783723
A63: 60 | B63: 0.2175176524 | C63: 0.08424191555 | D63: 5.015347243 | E63: 5.015347243 | F63: 0.5180174119
A64: 61 | B64: 0.8113218223 | C64: 0.6853004857 | D64: 1.488595355 | E64: 1.488595355 | F64: 1.419723237
A65: 62 | B65: 0.4764195342 | C65: 0.4937383142 | D65: -0.4336134974 | E65: -0.4336134974 | F65: 0.9384142609
A66: 63 | B66: 0.9230861553 | C66: 0.8285612592 | D66: 2.379127391 | E66: 2.379127391 | F66: 1.676545479
A67: 64 | B67: 0.6224165836 | C67: 0.995215233 | D67: 3.94672494 | E67: 3.94672494 | F67: 4.762652232
A68: 65 | B68: 0.5629027479 | C68: 0.5743923956 | D68: =$I$8*SQRT(-2*LN($B68))*COS(2*PI()*$C68)+$I$7 -> 0.08588602863 | E68: 0.08588602863 | F68: -0.4499090861
A69: 66 | B69: 0.2761746025 | C69: 0.9051454919 | D69: 4.655245736 | E69: =Normal_bm($I$7,$I$8,$B69:$C69) -> 4.655245736 | F69: =Normal_bm($I$7,$I$8) -> 1.254107698
A70: =A69+1 -> 67 | B70: 0.981830979 | C70: 0.426635734 | D70: 1.656975691 | E70: 1.656975691 | F70: -2.934160278
A71: 68 | B71: 0.1785586425 | C71: 0.9218268293 | D71: 5.273608724 | E71: 5.273608724 | F71: 3.450207457
A72: 69 | B72: 0.1410671686 | C72: 0.4131659608 | D72: -1.383631627 | E72: -1.383631627 | F72: 0.4385025178
A73: 70 | B73: 0.7879989282 | C73: 0.1046542347 | D73: 3.092727215 | E73: 3.092727215 | F73: 3.44706096
A74: 71 | B74: 0.6201986948 | C74: 0.03719790204 | D74: 3.901770916 | E74: 3.901770916 | F74: 0.6877772691
A75: 72 | B75: 0.3207061634 | C75: 0.3477175183 | D75: 0.262262127 | E75: 0.262262127 | F75: 1.387105631
A76: 73 | B76: 0.7191682701 | C76: 0.6291997286 | D76: 0.8823773906 | E76: 0.8823773906 | F76: 3.48510113
A77: 74 | B77: 0.7029073638 | C77: 0.3302869132 | D77: 1.188311755 | E77: 1.188311755 | F77: -2.403171507
A78: 75 | B78: 0.1541728342 | C78: 0.8293481007 | D78: 3.849278222 | E78: 3.849278222 | F78: 3.988524901
A79: 76 | B79: 0.2797729539 | C79: 0.2479116646 | D79: 2.041885079 | E79: 2.041885079 | F79: 2.185003706
A80: 77 | B80: 0.4232106228 | C80: 0.1169119436 | D80: 3.946413635 | E80: 3.946413635 | F80: 6.475916023
A81: 78 | B81: 0.9813614277 | C81: 0.2126052669 | D81: 2.090318747 | E81: 2.090318747 | F81: 2.957878128
A82: 79 | B82: 0.2008575604 | C82: 0.5448278331 | D82: -1.442265368 | E82: -1.442265368 | F82: 2.253508651
A83: 80 | B83: 0.1613377982 | C83: 0.04819874457 | D83: 5.646367635 | E83: 5.646367635 | F83: 0.872991589
A84: 81 | B84: 0.2586357835 | C84: 0.4225478705 | D84: -0.907323073 | E84: -0.907323073 | F84: 2.050767045
A85: 82 | B85: 0.8347220398 | C85: 0.3930839196 | D85: 1.059025815 | E85: 1.059025815 | F85: 4.925645509
A86: 83 | B86: 0.5159116711 | C86: 0.8518230054 | D86: 3.373721749 | E86: 3.373721749 | F86: -0.4550312121
A87: 84 | B87: 0.2463319221 | C87: 0.1181290531 | D87: 4.467304588 | E87: 4.467304588 | F87: 1.314576295
A88: 85 | B88: 0.5906387139 | C88: 0.4205643981 | D88: 0.1979602535 | E88: 0.1979602535 | F88: 0.8060702747
A89: 86 | B89: 0.6539313475 | C89: 0.01483163667 | D89: 3.835374325 | E89: 3.835374325 | F89: 4.271706457
A90: 87 | B90: 0.5644546021 | C90: 0.3671603547 | D90: 0.5638306021 | E90: 0.5638306021 | F90: 1.643006071
A91: 88 | B91: 0.1056526664 | C91: 0.2451461443 | D91: 2.129301554 | E91: 2.129301554 | F91: 1.061824836
A92: 89 | B92: 0.5922646588 | C92: 0.2032418515 | D92: 2.592788846 | E92: 2.592788846 | F92: 4.016213185
A93: 90 | B93: 0.7208912638 | C93: 0.6153593343 | D93: 0.7886902138 | E93: 0.7886902138 | F93: 1.427579806
A94: 91 | B94: 0.5880380319 | C94: 0.2315669825 | D94: 2.238167411 | E94: 2.238167411 | F94: 1.98665411
A95: 92 | B95: 0.7660283821 | C95: 0.2477513385 | D95: 2.020630629 | E95: 2.020630629 | F95: 1.117084804
A96: 93 | B96: 0.482858566 | C96: 0.01937188814 | D96: 4.395493795 | E96: 4.395493795 | F96: 3.474290245
A97: 94 | B97: 0.628647185 | C97: 0.8552590359 | D97: 3.183572696 | E97: 3.183572696 | F97: 4.36531968
A98: 95 | B98: 0.3377979428 | C98: 0.966005029 | D98: 4.879639211 | E98: 4.879639211 | F98: 2.336355888
A99: 96 | B99: 0.4757683134 | C99: 0.1234208843 | D99: 3.740762746 | E99: 3.740762746 | F99: 3.0420781
A100: 97 | B100: 0.05631247312 | C100: 0.8261558409 | D100: 4.208943411 | E100: 4.208943411 | F100: 2.71068534
A101: 98 | B101: 0.8080473364 | C101: 0.2678116684 | D101: 1.854169109 | E101: 1.854169109 | F101: 0.121200917
A102: 99 | B102: 0.4989426697 | C102: 0.5954395098 | D102: 0.05307046239 | E102: 0.05307046239 | F102: 2.493849745
A103: 100 | B103: 0.320817958 | C103: 0.1521917407 | D103: 3.738876691 | E103: 3.738876691 | F103: -3.503566251

Sheet Normal (Polar)
A1: UNIVARIATE NORMAL (MARSAGLIA POLAR)
A3: Observation Number | B3: Uniform Random Variate #1 | C3: Uniform Random Variate #2 | D3: Uniform Random Variate #1 | E3: Uniform Random Variate #2 | F3: Sum of Squared Uniforms | G3: Normal Random Variate #1 | H3: Normal Random Variate #2 | I3: Macro Generated Variate
A4: 1 | B4: 0.2686895342 | C4: 0.4440558018 | D4: =-1+2*B4 -> -0.4626209316 | E4: =-1+2*C4 -> -0.1118883964 | F4: =D4^2+E4^2 -> 0.2265371396 | G4: =IF(OR($F4>1,$F4<0.0000000000001),NA(),$D4*SQRT(-2*LN($F4)/$F4))*$L$8+$L$7 -> -1.349973162 | H4: =IF(OR($F4>1,$F4<0.0000000000001),NA(),$E4*SQRT(-2*LN($F4)/$F4))*$L$8+$L$7 -> 1.189783472 | I4: =Normal_Polar($L$7,$L$8) -> 1.568359456
A5: =A4+1 -> 2 | B5: 0.7937742381 | C5: 0.657187953 | D5: =-1+2*B5 -> 0.5875484762 | E5: =-1+2*C5 -> 0.314375906 | F5: 0.4440454221 | G5: =IF(OR($F5>1,$F5<0.0000000000001),NA(),$D5*SQRT(-2*LN($F5)/$F5))*$L$8+$L$7 -> 4.247020965 | H5: =IF(OR($F5>1,$F5<0.0000000000001),NA(),$E5*SQRT(-2*LN($F5)/$F5))*$L$8+$L$7 -> 3.202299521 | I5: 2.220450074 | K5: Population Parameters
A6: =A5+1 -> 3 | B6: 0.8219803517 | C6: 0.2289734867 | D6: 0.6439607034 | E6: -0.5420530266 | F6: 0.7085068712 | G6: 3.270243967 | H6: 0.930773907 | I6: 3.700225812 | K6: Name | L6: Value | M6: Type | N6: Feasible Range
A7: 4 | B7: 0.6651967236 | C7: 0.5974609611 | D7: 0.3303934472 | E7: 0.1949219222 | F7: 0.1471543857 | G7: 5.372240221 | H7: 3.989517503 | I7: 4.537274876 | K7: mu = | L7: 2 | M7: Location | N7: Any finite real number
A8: 5 | B8: 0.867173427 | C8: 0.1256472972 | D8: 0.7343468539 | E8: -0.7487054055 | F8: 1.099825086 | I8: -0.9602642469 | K8: sigma = | L8: 2 | M8: Scale | N8: Real number greater than zero
A9: 6 | B9: 0.279943005 | C9: 0.5722822591 | D9: -0.4401139899 | E9: 0.1445645182 | F9: 0.214599224 | G9: -1.333596365 | H9: 3.094988488 | I9: 1.081213273
A10: 7 | B10: 0.9366722078 | C10: 0.2973990816 | D10: 0.8733444157 | E10: -0.4052018368 | F10: 0.9269189969 | G10: 2.706804569 | H10: 1.672066936 | I10: 2.184065337 | K10: Distribution Type: | N10: Continuous
A11: 8 | B11: 0.4319115567 | C11: 0.3355232993 | D11: -0.1361768866 | E11: -0.3289534014 | F11: 0.1267544847 | G11: 0.4451816094 | H11: -1.755870846 | I11: 0.8724289856 | K11: Distrbution Name: | N11: Normal
A12: 9 | B12: 0.9620370153 | C12: 0.7916290012 | D12: 0.9240740306 | E12: 0.5832580024 | F12: 1.194102711 | I12: 2.24512501 | K12: Variate Number: | N12: Univariate
A13: 10 | B13: 0.1424035458 | C13: 0.2482285966 | D13: -0.7151929085 | E13: -0.5035428069 | F13: 0.7650562547 | G13: 0.8031724209 | H13: 1.157354734 | I13: 6.285777913 | K13: Simulation Method: | N13: Marsaglia Polar Method
A14: 11 | B14: 0.2017197184 | C14: 0.1405022656 | D14: -0.5965605633 | E14: -0.7189954687 | F14: 0.8728389897 | G14: 1.333947316 | H14: 1.197250219 | I14: 2.543387101
A15: 12 | B15: 0.5804161826 | C15: 0.243256612 | D15: 0.1608323652 | E15: -0.513486776 | F15: 0.2895357188 | G15: 2.941210006 | H15: -1.00498529 | I15: 3.957958565 | K15: Macro Format: | N15: =Normal_Polar(mu, sigma)
A16: 13 | B16: 0.3436685132 | C16: 0.6616591683 | D16: -0.3126629737 | E16: 0.3233183367 | F16: 0.2022928819 | G16: -0.4855631174 | H16: 4.570269589 | I16: 0.7194421603
A17: 14 | B17: 0.9651686826 | C17: 0.5627961296 | D17: 0.9303373651 | E17: 0.1255922592 | F17: 0.8813010285 | G17: 2.996371487 | H17: 2.134506633 | I17: 3.801770165
A18: 15 | B18: 0.3870480883 | C18: 0.975139176 | D18: -0.2259038234 | E18: 0.9502783521 | F18: 0.9540614839 | G18: 1.858141692 | H18: 2.596735712 | I18: -0.05953276135 | M18: Notes: | N18: 1. The macro for the Polar Method differs from
A19: 16 | B19: 0.8638575657 | C19: 0.4311052388 | D19: 0.7277151314 | E19: -0.1377895224 | F19: 0.548555265 | G19: 4.15348012 | H19: 1.592248416 | I19: 2.338078501 | N19: the macro for the BM method insofar as the
A20: 17 | B20: 0.1747628204 | C20: 0.08372850713 | D20: -0.6504743592 | E20: -0.8325429857 | F20: 1.116244715 | I20: 6.690429337 | N20: Polar Method does not require the user to
A21: 18 | B21: 0.3811765959 | C21: 0.06616353844 | D21: -0.2376468083 | E21: -0.8676729231 | F21: 0.809332307 | G21: 1.656350572 | H21: 0.7453006179 | I21: 1.510439325 | N21: provide uniform random numbers as input.
A22: 19 | B22: 0.8779450603 | C22: 0.05880060313 | D22: 0.7558901206 | E22: -0.8823987937 | F22: 1.349997506 | I22: 3.228573064 | N22: As a result, the "Macro Generated Variate"
A23: 20 | B23: 0.1823801902 | C23: 0.9142713175 | D23: -0.6352396197 | E23: 0.8285426351 | F23: 1.090012273 | I23: 1.33799266 | N23: column will not match either of the two columns
A24: 21 | B24: 0.397533352 | C24: 0.9920845257 | D24: -0.204933296 | E24: 0.9841690514 | F24: 1.010586378 | I24: -0.6206748078 | N24: labeled "Normal Random Variates." This is to
A25: 22 | B25: 0.7419975794 | C25: 0.33932003 | D25: 0.4839951588 | E25: -0.3213599401 | F25: 0.3375235248 | G25: 4.455686407 | H25: 0.3694894005 | I25: 3.540895777 | N25: avoid the macro generating occasional #NA
A26: 23 | B26: 0.5708289459 | C26: 0.5102622206 | D26: 0.1416578917 | E26: 0.02052444129 | F26: 0.02048821098 | G26: 7.519396657 | H26: 2.79969094 | I26: 3.464148702 | N26: values, as the manual approach does in this
A27: 24 | B27: 0.9019586936 | C27: 0.6882338852 | D27: 0.8039173873 | E27: 0.3764677704 | F27: 0.7880111477 | G27: 3.250260031 | H27: 2.585486287 | I27: 3.115483799 | N27: spreadsheet.
A28: 25 | B28: 0.4384305586 | C28: 0.3802352804 | D28: -0.1231388827 | E28: -0.2395294392 | F28: 0.07253753667 | G28: -0.09465181071 | H28: -2.074511335 | I28: 4.65368892
A29: 26 | B29: 0.392949239 | C29: 0.8100758324 | D29: -0.2141015219 | E29: 0.6201516649 | F29: 0.4304275492 | G29: 1.15253379 | H29: 4.454712027 | I29: 1.958891295
A30: 27 | B30: 0.2515715048 | C30: 0.07194502391 | D30: -0.4968569903 | E30: -0.8561099522 | F30: 0.9797911191 | G30: 1.797141301 | H30: 1.650464109 | I30: 1.18345936
A31: 28 | B31: 0.305500214 | C31: 0.06040511925 | D31: -0.388999572 | E31: -0.8791897615 | F31: 0.9242953038 | G31: 1.678899193 | H31: 1.274270301 | I31: 0.815830431
A32: 29 | B32: 0.07938744748 | C32: 0.3639030347 | D32: -0.841225105 | E32: -0.2721939306 | F32: 0.7817492132 | G32: 0.6646771136 | H32: 1.5679316 | I32: 1.45533436
A33: 30 | B33: 0.8205781142 | C33: 0.02340593126 | D33: 0.6411562283 | E33: -0.9531881375 | F33: 1.319648935 | I33: 1.938670969
A34: 31 | B34: 0.005076745533 | C34: 0.7209489207 | D34: -0.9898465089 | E34: 0.4418978414 | F34: 1.175069814 | I34: -0.393826964
A35: 32 | B35: 0.02998045736 | C35: 0.5004593532 | D35: -0.9400390853 | E35: 0.0009187063524 | F35: 0.8836743259 | G35: 1.005347998 | H35: 2.00097208 | I35: -0.4622457116
A36: 33 | B36: 0.8969873922 | C36: 0.518542377 | D36: 0.7939747843 | E36: 0.03708475392 | F36: 0.6317712371 | G36: 3.914634672 | H36: 2.089428225 | I36: 0.3659106818
A37: 34 | B37: 0.04851801844 | C37: 0.7346561136 | D37: -0.9029639631 | E37: 0.4693122273 | F37: 1.035597885 | I37: 1.272073319
A38: 35 | B38: 0.3712391652 | C38: 0.922628827 | D38: -0.2575216697 | E38: 0.8452576541 | F38: 0.7807779121 | G38: 1.58993614 | H38: 3.345943496 | I38: 0.3026651032
A39: 36 | B39: 0.1827388583 | C39: 0.7029738861 | D39: -0.6345222835 | E39: 0.4059477722 | F39: 0.567412122 | G39: 0.2064749572 | H39: 3.147441965 | I39: -0.1609840093
A40: 37 | B40: 0.1205000529 | C40: 0.4869916073 | D40: -0.7589998942 | E40: -0.02601678534 | F40: 0.5767577125 | G40: -0.09702102651 | H40: 1.928118902 | I40: 3.682537415
A41: 38 | B41: 0.6494569336 | C41: 0.1177189898 | D41: 0.2989138672 | E41: -0.7645620204 | F41: 0.6739045831 | G41: 2.647004229 | H41: 0.3450922996 | I41: 2.973188752
A42: 39 | B42: 0.8452335485 | C42: 0.9314761065 | D42: 0.690467097 | E42: 0.862952213 | F42: 1.221431334 | I42: 1.043594781
A43: 40 | B43: 0.9655911328 | C43: 0.5218008587 | D43: 0.9311822656 | E43: 0.0436017174 | F43: 0.8690015215 | G43: 3.058690617 | H43: 2.049572174 | I43: -1.674485057
A44: 41 | B44: 0.6649923293 | C44: 0.7250160203 | D44: 0.3299846586 | E44: 0.4500320406 | F44: 0.3114187125 | G44: 3.806469061 | H44: 4.463656829 | I44: 2.853266724
A45: 42 | B45: 0.4871681719 | C45: 0.5020371216 | D45: -0.02566365627 | E45: 0.004074243254 | F45: 0.0006752227113 | G45: -5.547712565 | H45: 3.198239903 | I45: 1.869464299
A46: 43 | B46: 0.7721031561 | C46: 0.4584762652 | D46: 0.5442063123 | E46: -0.08304746968 | F46: 0.3030573926 | G46: 5.055047246 | H46: 1.533790884 | I46: 6.030358368
A47: 44 | B47: 0.8263662763 | C47: 0.2765273184 | D47: 0.6527325525 | E47: -0.4469453633 | F47: 0.6258199429 | G47: 3.597716078 | H47: 0.9059963535 | I47: 1.418717677
A48: 45 | B48: 0.3099628364 | C48: 0.1519658463 | D48: -0.3800743272 | E48: -0.6960683074 | F48: 0.6289675828 | G48: 1.076989799 | H48: 0.3095986694 | I48: 1.928635321
A49: 46 | B49: 0.1840653162 | C49: 0.4044368542 | D49: -0.6318693676 | E49: -0.1911262916 | F49: 0.4357881571 | G49: -0.4673473526 | H49: 1.253682844 | I49: 0.6520652003
A50: 47 | B50: 0.582757888 | C50: 0.5156840304 | D50: 0.165515776 | E50: 0.03136806087 | F50: 0.02837942734 | G50: 7.244874081 | H50: 2.99399304 | I50: 0.7960565358
A51: 48 | B51: 0.3211056531 | C51: 0.8870747519 | D51: -0.3577886938 | E51: 0.7741495038 | F51: 0.7273202037 | G51: 1.330443185 | H51: 3.448724024 | I51: -0.865591423
A52: 49 | B52: 0.9405997337 | C52: 0.1219970642 | D52: 0.8811994675 | E52: -0.7560058716 | F52: 1.348057379 | I52: 1.820927045
A53: 50 | B53: 0.1490762062 | C53: 0.5485823648 | D53: -0.7018475876 | E53: 0.09716472952 | F53: 0.5020310208 | G53: -0.3257421458 | H53: 2.321978889 | I53: 0.8776501235
A54: 51 | B54: 0.3830204418 | C54: 0.5410797994 | D54: -0.2339591164 | E54: 0.08215959883 | F54: 0.06148706784 | G54: -2.456683134 | H54: 3.565056767 | I54: 2.215467361
A55: 52 | B55: 0.08481595248 | C55: 0.0163538557 | D55: -0.830368095 | E55: -0.9672922886 | F55: 1.625165545 | I55: 3.868522185
A56: 53 | B56: 0.8422140741 | C56: 0.4652930511 | D56: 0.6844281483 | E56: -0.06941389783 | F56: 0.4732601794 | G56: 4.433916069 | H56: 1.753155095 | I56: 3.348968731
A57: 54 | B57: 0.404985595 | C57: 0.6417596103 | D57: -0.19002881 | E57: 0.2835192206 | F57: 0.1164940971 | G57: -0.3089955428 | H57: 5.444975615 | I57: 0.3056367432
A58: 55 | B58: 0.3119225423 | C58: 0.3842946445 | D58: -0.3761549154 | E58: -0.231410711 | F58: 0.1950434376 | G58: -1.079944627 | H58: 0.1052163701 | I58: 0.8939833015
A59: 56 | B59: 0.0739452196 | C59: 0.2671595445 | D59: -0.8521095608 | E59: -0.465680911 | F59: 0.9429494145 | G59: 1.398448287 | H59: 1.671249845 | I59: 2.570081848
A60: 57 | B60: 0.4154056191 | C60: 0.4356440688 | D60: -0.1691887617 | E60: -0.1287118625 | F60: 0.04519158063 | G60: -1.961388509 | H60: -1.013661711 | I60: 5.013401245
A61: 58 | B61: 0.9433448155 | C61: 0.648413642 | D61: 0.886689631 | E61: 0.296827284 | F61: 0.8743249382 | G61: 2.982931728 | H61: 2.329045187 | I61: 0.6998198923
A62: 59 | B62: 0.6294690698 | C62: 0.313425937 | D62: 0.2589381396 | E62: -0.3731481259 | F62: 0.206288484 | G62: 4.02592341 | H62: -0.9194985517 | I62: 0.8831071891
A63: 60 | B63: 0.2175176524 | C63: 0.08424191555 | D63: -0.5649646951 | E63: -0.8315161689 | F63: 1.010604246 | I63: 4.466208182
A64: 61 | B64: 0.8113218223 | C64: 0.6853004857 | D64: 0.6226436446 | E64: 0.3706009715 | F64: 0.5250301883 | G64: 3.950905882 | H64: 3.161190067 | I64: 3.729851789
A65: 62 | B65: 0.4764195342 | C65: 0.4937383142 | D65: -0.04716093163 | E65: -0.01252337167 | F65: 0.00238098831 | G65: -4.718554145 | H65: 0.2159183947 | I65: 6.195871072
A66: 63 | B66: 0.9230861553 | C66: 0.8285612592 | D66: 0.8461723106 | E66: 0.6571225184 | F66: 1.147817583 | I66: 3.59155368
A67: 64 | B67: 0.6224165836 | C67: 0.995215233 | D67: 0.2448331673 | E67: 0.990430466 | F67: 1.040895788 | I67: 6.812758117
A68: 65 | B68: 0.5629027479 | C68: 0.5743923956 | D68: 0.1258054958 | E68: 0.1487847912 | F68: 0.03796393686 | G68: 5.302989028 | H68: 5.906304171 | I68: 3.897793639
A69: 66 | B69: 0.2761746025 | C69: 0.9051454919 | D69: =-1+2*B69 -> -0.4476507949 | E69: =-1+2*C69 -> 0.8102909839 | F69: =D69^2+E69^2 -> 0.8569627127 | G69: =IF(OR($F69>1,$F69<0.0000000000001),NA(),$D69*SQRT(-2*LN($F69)/$F69))*$L$8+$L$7 -> 1.462631754 | H69: =IF(OR($F69>1,$F69<0.0000000000001),NA(),$E69*SQRT(-2*LN($F69)/$F69))*$L$8+$L$7 -> 2.972688198 | I69: =Normal_Polar($L$7,$L$8) -> 1.123795149
A70: =A69+1 -> 67 | B70: 0.981830979 | C70: 0.426635734 | D70: 0.963661958 | E70: -0.146728532 | F70: 0.9501736314 | G70: 2.632154831 | H70: 1.903747212 | I70: 5.01809094
A71: 68 | B71: 0.1785586425 | C71: 0.9218268293 | D71: -0.6428827149 | E71: 0.8436536586 | F71: 1.125049681 | I71: 4.565098485
A72: 69 | B72: 0.1410671686 | C72: 0.4131659608 | D72: -0.7178656628 | E72: -0.1736680784 | F72: 0.5454917113 | G72: -0.1402014519 | H72: 1.482236451 | I72: 2.726147334
A73: 70 | B73: 0.7879989282 | C73: 0.1046542347 | D73: 0.5759978564 | E73: -0.7906915307 | F73: 0.9569666272 | G73: 2.349283808 | H73: 1.52052643 | I73: 3.10212456
A74: 71 | B74: 0.6201986948 | C74: 0.03719790204 | D74: 0.2403973896 | E74: -0.9256041959 | F74: 0.9145340324 | G74: 2.212519718 | H74: 1.181733448 | I74: 3.337138292
A75: 72 | B75: 0.3207061634 | C75: 0.3477175183 | D75: -0.3585876732 | E75: -0.3045649634 | F75: 0.2213449363 | G75: -0.6473476478 | H75: -0.2485138214 | I75: 1.187516475
A76: 73 | B76: 0.7191682701 | C76: 0.6291997286 | D76: 0.4383365401 | E76: 0.2583994571 | F76: 0.2589092018 | G76: 4.832378277 | H76: 3.669687426 | I76: 1.385374813
A77: 74 | B77: 0.7029073638 | C77: 0.3302869132 | D77: 0.4058147277 | E77: -0.3394261736 | F77: 0.2798957205 | G77: 4.448198051 | H77: -0.04768935152 | I77: 1.736873955
A78: 75 | B78: 0.1541728342 | C78: 0.8293481007 | D78: -0.6916543316 | E78: 0.6586962015 | F78: 0.9122664003 | G78: 1.379346044 | H78: 2.591079076 | I78: -1.143003854
A79: 76 | B79: 0.2797729539 | C79: 0.2479116646 | D79: -0.4404540922 | E79: -0.5041766708 | F79: 0.4481939228 | G79: 0.3329711977 | H79: 0.09179424921 | I79: 1.244699112
A80: 77 | B80: 0.4232106228 | C80: 0.1169119436 | D80: -0.1535787545 | E80: -0.7661761129 | F80: 0.6106122698 | G80: 1.609567561 | H80: 0.05220449104 | I80: 2.722840537
A81: 78 | B81: 0.9813614277 | C81: 0.2126052669 | D81: 0.9627228554 | E81: -0.5747894663 | F81: 1.257218227 | I81: 3.078800243
A82: 79 | B82: 0.2008575604 | C82: 0.5448278331 | D82: -0.5982848792 | E82: 0.08965566614 | F82: 0.3659829351 | G82: -0.8044135256 | H82: 2.420253915 | I82: 1.806125832
A83: 80 | B83: 0.1613377982 | C83: 0.04819874457 | D83: -0.6773244037 | E83: -0.9036025109 | F83: 1.275265845 | I83: 2.516638619
A84: 81 | B84: 0.2586357835 | C84: 0.4225478705 | D84: -0.4827284329 | E84: -0.1549042589 | F84: 0.2570220694 | G84: -1.139116281 | H84: 0.9926790137 | I84: 4.808311694
A85: 82 | B85: 0.8347220398 | C85: 0.3930839196 | D85: 0.6694440796 | E85: -0.2138321607 | F85: 0.4938795687 | G85: 4.263007886 | H85: 1.277155657 | I85: 0.9284797886
A86: 83 | B86: 0.5159116711 | C86: 0.8518230054 | D86: 0.03182334216 | E86: 0.7036460107 | F86: 0.4961304335 | G86: 2.106985757 | H86: 4.365562381 | I86: 4.832996217
A87: 84 | B87: 0.2463319221 | C87: 0.1181290531 | D87: -0.5073361558 | E87: -0.7637418938 | F87: 0.8406916552 | G87: 1.348056242 | H87: 1.018566379 | I87: 0.9014775943
A88: 85 | B88: 0.5906387139 | C88: 0.4205643981 | D88: 0.1812774278 | E88: -0.1588712038 | F88: 0.05810156521 | G88: 5.588218537 | H88: -1.144708116 | I88: -1.438802398
A89: 86 | B89: 0.6539313475 | C89: 0.01483163667 | D89: 0.307862695 | E89: -0.9703367267 | F89: 1.036332802 | I89: 1.301023011
A90: 87 | B90: 0.5644546021 | C90: 0.3671603547 | D90: 0.1289092041 | E90: -0.2656792907 | F90: 0.08720306842 | G90: 3.928478722 | H90: -1.974556064 | I90: 3.850897515
A91: 88 | B91: 0.1056526664 | C91: 0.2451461443 | D91: -0.7886946672 | E91: -0.5097077114 | F91: 0.8818412292 | G91: 1.157633589 | H91: 1.455605987 | I91: -0.4701782306
A92: 89 | B92: 0.5922646588 | C92: 0.2032418515 | D92: 0.1845293176 | E92: -0.593516297 | F92: 0.3863126638 | G92: 2.818947131 | H92: -0.6340446877 | I92: 0.9093960225
A93: 90 | B93: 0.7208912638 | C93: 0.6153593343 | D93: 0.4417825275 | E93: 0.2307186687 | F93: 0.2484029057 | G93: 4.958724206 | H93: 3.545178606 | I93: 4.016181277
A94: 91 | B94: 0.5880380319 | C94: 0.2315669825 | D94: 0.1760760637 | E94: -0.5368660351 | F94: 0.3192279198 | G94: 2.941888293 | H94: -0.8718715217 | I94: 3.095793252
A95: 92 | B95: 0.7660283821 | C95: 0.2477513385 | D95: 0.5320567642 | E95: -0.5044973229 | F95: 0.5376019492 | G95: 3.61693041 | H95: 0.4668232451 | I95: 1.305211224
A96: 93 | B96: 0.482858566 | C96: 0.01937188814 | D96: -0.03428286794 | E96: -0.9612562237 | F96: 0.9251888427 | G96: 1.9718889 | H96: 1.211793789 | I96: 3.463893237
A97: 94 | B97: 0.628647185 | C97: 0.8552590359 | D97: 0.2572943701 | E97: 0.7105180718 | F97: 0.5710363233 | G97: 2.720866218 | H97: 3.990671133 | I97: 4.952349579
A98: 95 | B98: 0.3377979428 | C98: 0.966005029 | D98: -0.3244041144 | E98: 0.932010058 | F98: 0.9738807776 | G98: 1.848739411 | H98: 2.43457029 | I98: 0.2593325321
A99: 96 | B99: 0.4757683134 | C99: 0.1234208843 | D99: -0.04846337322 | E99: -0.7531582314 | F99: 0.5695960201 | G99: 1.863741699 | H99: -0.1175591902 | I99: 0.3542948082
A100: 97 | B100: 0.05631247312 | C100: 0.8261558409 | D100: -0.8873750538 | E100: 0.6523116818 | F100: 1.212945016 | I100: 4.899697548
A101: 98 | B101: 0.8080473364 | C101: 0.2678116684 | D101: 0.6160946728 | E101: -0.4643766633 | F101: 0.5952183313 | G101: 3.62691769 | H101: 0.7737231926 | I101: 1.765312352
A102: 99 | B102: 0.4989426697 | C102: 0.5954395098 | D102: -0.0021146606 | E102: 0.1908790196 | F102: 0.03643927193 | G102: 1.942976604 | H102: 7.147194753 | I102: -1.432345706
A103: 100 | B103: 0.320817958 | C103: 0.1521917407 | D103: -0.3583640839 | E103: -0.6956165187 | F103: 0.6123071577 | G103: 1.09277772 | H103: 0.2390009708 | I103: 1.080624811

Sheet Pareto
A1: UNIVARIATE PARETO
A3: Observation Number | B3: Uniform Random Variate | C3: Pareto Random Variate | D3: Macro Generated Variate, U(0,1) submitted | E3: Macro Generated Variate w/o U(0,1)
A4: 1 | B4: 0.2686895342 | C4: =$H$7/(($B4)^(1/$H$8)) -> 3.858376648 | D4: =Pareto($H$7,$H$8,$B4) -> 3.858376648 | E4: =Pareto($H$7,$H$8) -> 6.701989517
A5: =A4+1 -> 2 | B5: 0.7937742381 | C5: =$H$7/(($B5)^(1/$H$8)) -> 2.244819859 | D5: 2.244819859 | E5: 2.087040961 | G5: Population Parameters
A6: =A5+1 -> 3 | B6: 0.8219803517 | C6: 2.205968352 | D6: 2.205968352 | E6: 3.862065541 | G6: Name | H6: Value | I6: Type | J6: Feasible Range
A7: 4 | B7: 0.6651967236 | C7: 2.452194675 | D7: 2.452194675 | E7: 2.171781315 | G7: mu = | H7: 2 | I7: Location | J7: Real number greater than zero
A8: 5 | B8: 0.867173427 | C8: 2.147716804 | D8: 2.147716804 | E8: 10.41856441 | G8: alpha = | H8: 2 | I8: Shape | J8: Real number greater than zero
A9: 6 | B9: 0.279943005 | C9: 3.780029469 | D9: 3.780029469 | E9: 2.635733478
A10: 7 | B10: 0.9366722078 | C10: 2.066503658 | D10: 2.066503658 | E10: 2.455539513 | G10: Distribution Type: | J10: Continuous
A11: 8 | B11: 0.4319115567 | C11: 3.043214632 | D11: 3.043214632 | E11: 11.00029465 | G11: Distrbution Name: | J11: Pareto
A12: 9 | B12: 0.9620370153 | C12: 2.039079247 | D12: 2.039079247 | E12: 3.068386035 | G12: Variate Number: | J12: Univariate
A13: 10 | B13: 0.1424035458 | C13: 5.299923416 | D13: 5.299923416 | E13: 2.194300811 | G13: Simulation Method: | J13: Inverse Transform
A14: 11 | B14: 0.2017197184 | C14: 4.453032031 | D14: 4.453032031 | E14: 3.739807748
A15: 12 | B15: 0.5804161826 | C15: 2.625186966 | D15: 2.625186966 | E15: 2.130105359 | G15: Macro Format: | J15: =Pareto(mu, alpha, [unif])
A16: 13 | B16: 0.3436685132 | C16: 3.411615852 | D16: 3.411615852 | E16: 3.491681922
A17: 14 | B17: 0.9651686826 | C17: 2.035768475 | D17: 2.035768475 | E17: 2.003051635 | I17: Notes: | J17: 1. With this function you can optionally submit
A18: 15 | B18: 0.3870480883 | C18: 3.214752423 | D18: 3.214752423 | E18: 2.361462146 | J18: your own uniform random variable (unif). If
A19: 16 | B19: 0.8638575657 | C19: 2.151834792 | D19: 2.151834792 | E19: 2.911558379 | J19: not provided, the function will generate one
A20: 17 | B20: 0.1747628204 | C20: 4.78415755 | D20: 4.78415755 | E20: 3.173859002 | J20: to be used in the formula.
A21: 18 | B21: 0.3811765959 | C21: 3.239417187 | D21: 3.239417187 | E21: 5.426768768 | J21: 2. Column C shows the formula used in the
A22: 19 | B22: 0.8779450603 | C22: 2.134500819 | D22: 2.134500819 | E22: 2.119812789 | J22: macro directly in the cell. Column D generates
A23: 20 | B23: 0.1823801902 | C23: 4.683183377 | D23: 4.683183377 | E23: 2.024715274 | J23: the random variable with the macro, using the
A24: 21 | B24: 0.397533352 | C24: 3.17207327 | D24: 3.17207327 | E24: 4.212149215 | J24: same uniform random variable (column A) as
A25: 22 | B25: 0.7419975794 | C25: 2.321821088 | D25: 2.321821088 | E25: 2.924840695 | J25: used in Column C, and therefore the output of
A26: 23 | B26: 0.5708289459 | C26: 2.647140557 | D26: 2.647140557 | E26: 3.351597689 | J26: Columns C and D will match. Column E runs
A27: 24 | B27: 0.9019586936 | C27: 2.105894795 | D27: 2.105894795 | E27: 2.294126137 | J27: the macro using an internally generated
A28: 25 | B28: 0.4384305586 | C28: 3.020505196 | D28: 3.020505196 | E28: 2.654292971 | J28: uniform random input.
A29: 26 | B29: 0.392949239 | C29: 3.190522191 | D29: 3.190522191 | E29: 6.930320998
A30: 27 | B30: 0.2515715048 | C30: 3.987486924 | D30: 3.987486924 | E30: 2.463426415
A31: 28 | B31: 0.305500214 | C31: 3.618463834 | D31: 3.618463834 | E31: 2.094825124
A32: 29 | B32: 0.07938744748 | C32: 7.098295524 | D32: 7.098295524 | E32: 5.225199679
A33: 30 | B33: 0.8205781142 | C33: 2.207852372 | D33: 2.207852372 | E33: 2.127758976
A34: 31 | B34: 0.005076745533 | C34: 28.06966942 | D34: 28.06966942 | E34: 2.64223506
A35: 32 | B35: 0.02998045736 | C35: 11.5507682 | D35: 11.5507682 | E35: 5.278057993
A36: 33 | B36: 0.8969873922 | C36: 2.111722398 | D36: 2.111722398 | E36: 2.224030469
A37: 34 | B37: 0.04851801844 | C37: 9.079845694 | D37: 9.079845694 | E37: 6.643125461
A38: 35 | B38: 0.3712391652 | C38: 3.282487659 | D38: 3.282487659 | E38: 2.720555318
A39: 36 | B39: 0.1827388583 | C39: 4.678585194 | D39: 4.678585194 | E39: 2.097064118
A40: 37 | B40: 0.1205000529 | C40: 5.761510754 | D40: 5.761510754 | E40: 2.775973547
A41: 38 | B41: 0.6494569336 | C41: 2.481731635 | D41: 2.481731635 | E41: 4.618744892
A42: 39 | B42: 0.8452335485 | C42: 2.175412564 | D42: 2.175412564 | E42: 2.827881565
A43: 40 | B43: 0.9655911328 | C43: 2.035323098 | D43: 2.035323098 | E43: 4.351656496
A44: 41 | B44: 0.6649923293 | C44: 2.452571503 | D44: 2.452571503 | E44: 3.811663489
A45: 42 | B45: 0.4871681719 | C45: 2.865434874 | D45: 2.865434874 | E45: 2.770874534
A46: 43 | B46: 0.7721031561 | C46: 2.276105204 | D46: 2.276105204 | E46: 2.386082956
A47: 44 | B47: 0.8263662763 | C47: 2.200106494 | D47: 2.200106494 | E47: 3.743960354
A48: 45 | B48: 0.3099628364 | C48: 3.592321375 | D48: 3.592321375 | E48: 5.809763972
A49: 46 | B49: 0.1840653162 | C49: 4.661696712 | D49: 4.661696712 | E49: 2.102340273
A50: 47 | B50: 0.582757888 | C50: 2.619907242 | D50: 2.619907242 | E50: 3.569176705
A51: 48 | B51: 0.3211056531 | C51: 3.52944176 | D51: 3.52944176 | E51: 3.262840369
A52: 49 | B52: 0.9405997337 | C52: 2.062184745 | D52: 2.062184745 | E52: 2.859557006
A53: 50 | B53: 0.1490762062 | C53: 5.179953124 | D53: 5.179953124 | E53: 4.358202753
A54: 51 | B54: 0.3830204418 | C54: 3.231610565 | D54: 3.231610565 | E54: 4.428537073
A55: 52 | B55: 0.08481595248 | C55: 6.867382286 | D55: 6.867382286 | E55: 2.027408964
A56: 53 | B56: 0.8422140741 | C56: 2.179308679 | D56: 2.179308679 | E56: 2.680829217
A57: 54 | B57: 0.404985595 | C57: 3.142752696 | D57: 3.142752696 | E57: 2.339913194
A58: 55 | B58: 0.3119225423 | C58: 3.581018913 | D58: 3.581018913 | E58: 2.674924408
A59: 56 | B59: 0.0739452196 | C59: 7.35486904 | D59: 7.35486904 | E59: 2.214012249
A60: 57 | B60: 0.4154056191 | C60: 3.103086002 | D60: 3.103086002 | E60: 2.243574438
A61: 58 | B61: 0.9433448155 | C61: 2.059182137 | D61: 2.059182137 | E61: 2.095754617
A62: 59 | B62: 0.6294690698 | C62: 2.520825586 | D62: 2.520825586 | E62: 2.679064028
A63: 60 | B63: 0.2175176524 | C63: 4.288276123 | D63: 4.288276123 | E63: 4.005822472
A64: 61 | B64: 0.8113218223 | C64: 2.220411239 | D64: 2.220411239 | E64: 2.029062239
A65: 62 | B65: 0.4764195342 | C65: 2.897578534 | D65: 2.897578534 | E65: 2.140738612
A66: 63 | B66: 0.9230861553 | C66: 2.08165559 | D66: 2.08165559 | E66: 4.669386989
A67: 64 | B67: 0.6224165836 | C67: 2.53506686 | D67: 2.53506686 | E67: 5.428062366
A68: 65 | B68: 0.5629027479 | C68: 2.665712517 | D68: 2.665712517 | E68: 6.227051169
A69: 66 | B69: 0.2761746025 | C69: =$H$7/(($B69)^(1/$H$8)) -> 3.805731342 | D69: =Pareto($H$7,$H$8,$B69) -> 3.805731342 | E69: =Pareto($H$7,$H$8) -> 3.028548172
A70: =A69+1 -> 67 | B70: 0.981830979 | C70: 2.018420415 | D70: 2.018420415 | E70: 2.968900987
A71: 68 | B71: 0.1785586425 | C71: 4.733033276 | D71: 4.733033276 | E71: 2.017818886
A72: 69 | B72: 0.1410671686 | C72: 5.324968229 | D72: 5.324968229 | E72: 4.680580457
A73: 70 | B73: 0.7879989282 | C73: 2.253031078 | D73: 2.253031078 | E73: 2.655927955
A74: 71 | B74: 0.6201986948 | C74: 2.539595634 | D74: 2.539595634 | E74: 2.83091758
A75: 72 | B75: 0.3207061634 | C75: 3.531639312 | D75: 3.531639312 | E75: 2.392981847
A76: 73 | B76: 0.7191682701 | C76: 2.358385178 | D76: 2.358385178 | E76: 2.046711234
A77: 74 | B77: 0.7029073638 | C77: 2.385508394 | D77: 2.385508394 | E77: 2.7325242
A78: 75 | B78: 0.1541728342 | C78: 5.093614434 | D78: 5.093614434 | E78: 2.663799396
A79: 76 | B79: 0.2797729539 | C79: 3.78117808 | D79: 3.78117808 | E79: 2.278173267
A80: 77 | B80: 0.4232106228 | C80: 3.074338725 | D80: 3.074338725 | E80: 2.412602538
A81: 78 | B81: 0.9813614277 | C81: 2.018903234 | D81: 2.018903234 | E81: 2.20221109
A82: 79 | B82: 0.2008575604 | C82: 4.462578861 | D82: 4.462578861 | E82: 5.89522647
A83: 80 | B83: 0.1613377982 | C83: 4.979227079 | D83: 4.979227079 | E83: 2.419734716
A84: 81 | B84: 0.2586357835 | C84: 3.932653562 | D84: 3.932653562 | E84: 2.131598906
A85: 82 | B85: 0.8347220398 | C85: 2.189067006 | D85: 2.189067006 | E85: 2.024193655
A86: 83 | B86: 0.5159116711 | C86: 2.784468565 | D86: 2.784468565 | E86: 3.151042395
A87: 84 | B87: 0.2463319221 | C87: 4.029671538 | D87: 4.029671538 | E87: 3.132014074
A88: 85 | B88: 0.5906387139 | C88: 2.602369982 | D88: 2.602369982 | E88: 3.344162385
A89: 86 | B89: 0.6539313475 | C89: 2.473226649 | D89: 2.473226649 | E89: 6.416849511
A90: 87 | B90: 0.5644546021 | C90: 2.662045576 | D90: 2.662045576 | E90: 2.285120714
A91: 88 | B91: 0.1056526664 | C91: 6.153040373 | D91: 6.153040373 | E91: 4.275544996
A92: 89 | B92: 0.5922646588 | C92: 2.598795382 | D92: 2.598795382 | E92: 2.106466636
A93: 90 | B93: 0.7208912638 | C93: 2.355565117 | D93: 2.355565117 | E93: 2.036027663
A94: 91 | B94: 0.5880380319 | C94: 2.60811831 | D94: 2.60811831 | E94: 5.087706125
A95: 92 | B95: 0.7660283821 | C95: 2.28511239 | D95: 2.28511239 | E95: 5.794283399
A96: 93 | B96: 0.482858566 | C96: 2.878193748 | D96: 2.878193748 | E96: 3.332721384
A97: 94 | B97: 0.628647185 | C97: 2.522472894 | D97: 2.522472894 | E97: 2.077135994
A98: 95 | B98: 0.3377979428 | C98: 3.441133293 | D98: 3.441133293 | E98: 2.675973433
A99: 96 | B99: 0.4757683134 | C99: 2.899560925 | D99: 2.899560925 | E99: 2.259720633
A100: 97 | B100: 0.05631247312 | C100: 8.428061483 | D100: 8.428061483 | E100: 2.616278773
A101: 98 | B101: 0.8080473364 | C101: 2.224905626 | D101: 2.224905626 | E101: 9.067768585
A102: 99 | B102: 0.4989426697 | C102: 2.831422458 | D102: 2.831422458 | E102: 3.498502966
A103: 100 | B103: 0.320817958 | C103: 3.531023928 | D103: 3.531023928 | E103: 2.055424564

Sheet Poisson
A1: UNIVARIATE POISSON
A3: Observation Number | B3: Macro Generated Variate
A4: 1 | B4: =Poissonrv($F$7) -> 16
A5: =A4+1 -> 2 | B5: 12 | E5: Population Parameters
A6: =A5+1 -> 3 | B6: 10 | E6: Name | F6: Value | G6: Type | H6: Feasible Range
A7: 4 | B7: 11 | E7: lambda = | F7: 10.7 | G7: Shape | H7: Any Finite Positive Real Number
A8: 5 | B8: 9
A9: 6 | B9: 12 | E9: Distribution Type: | H9: Discrete
A10: 7 | B10: 6 | E10: Distrbution Name: | H10: Poisson
A11: 8 | B11: 11 | E11: Variate Number: | H11: Univariate
A12: 9 | B12: 10 | E12: Simulation Method: | H12: Convolution
A13: 10 | B13: 10
A14: 11 | B14: 17 | E14: Macro Format: | H14: =Poissonrv(lambda)
A15: 12 | B15: 15
A16: 13 | B16: 10
A17: 14 | B17: 11
A18: 15 | B18: 14 | G18: Notes: | H18: 1. The Poisson distribution does not lend
A19: 16 | B19: 5 | H19: itself easily to a manual presentation so no
A20: 17 | B20: 5 | H20: manual example is provided here, only the
A21: 18 | B21: 14 | H21: output of the macro generated variates.
A22: 19 | B22: 7
A23: 20 | B23: 12
A24: 21 | B24: 17
A25: 22 | B25: 9
A26: 23 | B26: 8
A27: 24 | B27: 11
A28: 25 | B28: 19
A29: 26 | B29: 19
A30: 27 | B30: 14
A31: 28 | B31: 13
A32: 29 | B32: 9
A33: 30 | B33: 16
A34: 31 | B34: 9
A35: 32 | B35: 13
A36: 33 | B36: 12
A37: 34 | B37: 9
A38: 35 | B38: 7
A39: 36 | B39: 18
A40: 37 | B40: 12
A41: 38 | B41: 8
A42: 39 | B42: 11
A43: 40 | B43: 17
A44: 41 | B44: 7
A45: 42 | B45: 12
A46: 43 | B46: 13
A47: 44 | B47: 10
A48: 45 | B48: 14
A49: 46 | B49: 7
A50: 47 | B50: 10
A51: 48 | B51: 12
A52: 49 | B52: 9
A53: 50 | B53: 12
A54: 51 | B54: 14
A55: 52 | B55: 12
A56: 53 | B56: 17
A57: 54 | B57: 14
A58: 55 | B58: 9
A59: 56 | B59: 9
A60: 57 | B60: 9
A61: 58 | B61: 14
A62: 59 | B62: 10
A63: 60 | B63: 12
A64: 61 | B64: 11
A65: 62 | B65: 6
A66: 63 | B66: 14
A67: 64 | B67: 15
A68: 65 | B68: 9
A69: 66 | B69: =Poissonrv($F$7) -> 13
A70: =A69+1 -> 67 | B70: 5
A71: 68 | B71: 15
A72: 69 | B72: 12
A73: 70 | B73: 7
A74: 71 | B74: 9
A75: 72 | B75: 11
A76: 73 | B76: 7
A77: 74 | B77: 9
A78: 75 | B78: 11
A79: 76 | B79: 9
A80: 77 | B80: 12
A81: 78 | B81: 15
A82: 79 | B82: 7
A83: 80 | B83: 16
A84: 81 | B84: 8
A85: 82 | B85: 12
A86: 83 | B86: 9
A87: 84 | B87: 15
A88: 85 | B88: 12
A89: 86 | B89: 10
A90: 87 | B90: 17
A91: 88 | B91: 12
A92: 89 | B92: 13
A93: 90 | B93: 7
A94: 91 | B94: 13
A95: 92 | B95: 9
A96: 93 | B96: 6
A97: 94 | B97: 11
A98: 95 | B98: 12
A99: 96 | B99: 12
A100: 97 | B100: 14
A101: 98 | B101: 10
A102: 99 | B102: 7
A103: 100 | B103: 13

Sheet Rayleigh
A1: UNIVARIATE RAYLEIGH
A3: Observation Number | B3: Uniform Random Variate | C3: Rayleigh Random Variate | D3: Macro Generated Variate, U(0,1) submitted | E3: Macro Generated Variate w/o U(0,1)
A4: 1 | B4: 0.2686895342 | C4: =$H$7*SQRT(-2*LN($B4)) -> 3.242466609 | D4: =Rayleigh($H$7,$B4) -> 3.242466609 | E4: =Rayleigh($H$7) -> 3.025764942
A5: =A4+1 -> 2 | B5: 0.7937742381 | C5: =$H$7*SQRT(-2*LN($B5)) -> 1.359282732 | D5: 1.359282732 | E5: 0.9907830715 | G5: Population Parameters
A6: =A5+1 -> 3 | B6: 0.8219803517 | C6: 1.252321963 | D6: 1.252321963 | E6: 0.2902809537 | G6: Name | H6: Value | I6: Type | J6: Feasible Range
A7: 4 | B7: 0.6651967236 | C7: 1.805929029 | D7: 1.805929029 | E7: 0.9914268612 | G7: sigma = | H7: 2 | I7: Scale | J7: Real number greater than zero
A8: 5 | B8: 0.867173427 | C8: 1.067768856 | D8: 1.067768856 | E8: 3.149498658
A9: 6 | B9: 0.279943005 | C9: 3.191450141 | D9: 3.191450141 | E9: 3.508960767 | G9: Distribution Type: | J9: Continuous
A10: 7 | B10: 0.9366722078 | C10: 0.7234466919 | D10: 0.7234466919 | E10: 2.201262579 | G10: Distrbution Name: | J10: Rayleigh
A11: 8 | B11: 0.4319115567 | C11: 2.591577807 | D11: 2.591577807 | E11: 3.196314386 | G11: Variate Number: | J11: Univariate
A12: 9 | B12: 0.9620370153 | C12: 0.556434015 | D12: 0.556434015 | E12: 4.735554307 | G12: Simulation Method: | J12: Inverse Transform
A13: 10 | B13: 0.1424035458 | C13: 3.948762217 | D13: 3.948762217 | E13: 2.222581893
A14: 11 | B14: 0.2017197184 | C14: 3.578688115 | D14: 3.578688115 | E14: 3.209699323 | G14: Macro Format: | J14: =Rayleigh(sigma, [unif])
A15: 12 | B15: 0.5804161826 | C15: 2.086163707 | D15: 2.086163707 | E15: 5.318324579
A16: 13 | B16: 0.3436685132 | C16: 2.923118486 | D16: 2.923118486 | E16: 1.382901655 | I16: Notes: | J16: 1. With this function you can optionally submit
A17: 14 | B17: 0.9651686826 | C17: 0.5325590471 | D17: 0.5325590471 | E17: 2.503269082 | J17: your own uniform random variable (unif). If
A18: 15 | B18: 0.3870480883 | C18: 2.755657939 | D18: 2.755657939 | E18: 0.04613466532 | J18: not provided, the function will generate one
A19: 16 | B19: 0.8638575657 | C19: 1.082025428 | D19: 1.082025428 | E19: 0.8576731726 | J19: to be used in the formula.
A20: 17 | B20: 0.1747628204 | C20: 3.735586205 | D20: 3.735586205 | E20: 2.966899325 | J20: 2. Column C shows the formula used in the
A21: 18 | B21: 0.3811765959 | C21: 2.777758096 | D21: 2.777758096 | E21: 2.854462934 | J21: macro directly in the cell. Column D generates
A22: 19 | B22: 0.8779450603 | C22: 1.020475423 | D22: 1.020475423 | E22: 3.61429372 | J22: the random variable with the macro, using the
A23: 20 | B23: 0.1823801902 | C23: 3.689619833 | D23: 3.689619833 | E23: 4.026539937 | J23: same uniform random variable (column A) as
A24: 21 | B24: 0.397533352 | C24: 2.716580857 | D24: 2.716580857 | E24: 1.23638511 | J24: used in Column C, and therefore the output of
A25: 22 | B25: 0.7419975794 | C25: 1.545080705 | D25: 1.545080705 | E25: 1.787401251 | J25: Columns C and D will match. Column E runs
A26: 23 | B26: 0.5708289459 | C26: 2.117858699 | D26: 2.117858699 | E26: 0.3245501427 | J26: the macro using an internally generated
A27: 24 | B27: 0.9019586936 | C27: 0.9085661414 | D27: 0.9085661414 | E27: 0.3554767679 | J27: uniform random input.
A28: 25 | B28: 0.4384305586 | C28: 2.568351753 | D28: 2.568351753 | E28: 0.6923941432
A29: 26 | B29: 0.392949239 | C29: 2.733605441 | D29: 2.733605441 | E29: 5.130752426
A30: 27 | B30: 0.2515715048 | C30: 3.322683273 | D30: 3.322683273 | E30: 1.546394737
A31: 28 | B31: 0.305500214 | C31: 3.080006234 | D31: 3.080006234 | E31: 2.942959429
A32: 29 | B32: 0.07938744748 | C32: 4.501924047 | D32: 4.501924047 | E32: 1.798487027
A33: 30 | B33: 0.8205781142 | C33: 1.257763634 | D33: 1.257763634 | E33: 2.163431929
A34: 31 | B34: 0.005076745533 | C34: 6.50112905 | D34: 6.50112905 | E34: 1.563972287
A35: 32 | B35: 0.02998045736 | C35: 5.296949712 | D35: 5.296949712 | E35: 1.48843211
A36: 33 | B36: 0.8969873922 | C36: 0.9325812462 | D36: 0.9325812462 | E36: 2.555083963
A37: 34 | B37: 0.04851801844 | C37: 4.920016289 | D37: 4.920016289 | E37: 2.864535476
A38: 35 | B38: 0.3712391652 | C38: 2.815540835 | D38: 2.815540835 | E38: 3.525594487
A39: 36 | B39: 0.1827388583 | C39: 3.687489281 | D39: 3.687489281 | E39: 1.656710947
A40: 37 | B40: 0.1205000529 | C40: 4.114467243 | D40: 4.114467243 | E40: 3.452805795
A41: 38 | B41: 0.6494569336 | C41: 1.85821151 | D41: 1.85821151 | E41: 2.052849215
A42: 39 | B42: 0.8452335485 | C42: 1.159801021 | D42: 1.159801021 | E42: 2.577827144
A43: 40 | B43: 0.9655911328 | C43: 0.5292620701 | D43: 0.5292620701 | E43: 1.5567151
A44: 41 | B44: 0.6649923293 | C44: 1.806609583 | D44: 1.806609583 | E44: 1.848093127
A45: 42 | B45: 0.4871681719 | C45: 2.398576067 | D45: 2.398576067 | E45: 6.244866128
A46: 43 | B46: 0.7721031561 | C46: 1.438435583 | D46: 1.438435583 | E46: 2.942173589
A47: 44 | B47: 0.8263662763 | C47: 1.235207416 | D47: 1.235207416 | E47: 1.17327996
A48: 45 | B48: 0.3099628364 | C48: 3.061114661 | D48: 3.061114661 | E48: 4.707129776
A49: 46 | B49: 0.1840653162 | C49: 3.679635422 | D49: 3.679635422 | E49: 2.830261215
A50: 47 | B50: 0.582757888 | C50: 2.078429148 | D50: 2.078429148 | E50: 4.764120806
A51: 48 | B51: 0.3211056531 | C51: 3.014611182 | D51: 3.014611182 | E51: 1.91001393
A52: 49 | B52: 0.9405997337 | C52: 0.6999290967 | D52: 0.6999290967 | E52: 4.583412344
A53: 50 | B53: 0.1490762062 | C53: 3.902099591 | D53: 3.902099591 | E53: 1.056392256
A54: 51 | B54: 0.3830204418 | C54: 2.770800489 | D54: 2.770800489 | E54: 4.01089171
A55: 52 | B55: 0.08481595248 | C55: 4.442766377 | D55: 4.442766377 | E55: 2.460985114
A56: 53 | B56: 0.8422140741 | C56: 1.172078674 | D56: 1.172078674 | E56: 1.216503479
A57: 54 | B57: 0.404985595 | C57: 2.689094688 | D57: 2.689094688 | E57: 1.880401905
A58: 55 | B58: 0.3119225423 | C58: 3.052868007 | D58: 3.052868007 | E58: 0.9618695475
A59: 56 | B59: 0.0739452196 | C59: 4.564586058 | D59: 4.564586058 | E59: 2.327888183
A60: 57 | B60: 0.4154056191 | C60: 2.651037292 | D60: 2.651037292 | E60: 3.071138374
A61: 58 | B61: 0.9433448155 | C61: 0.6830719154 | D61: 0.6830719154 | E61: 3.602508247
A62: 59 | B62: 0.6294690698 | C62: 1.924325464 | D62: 1.924325464 | E62: 1.844541346
A63: 60 | B63: 0.2175176524 | C63: 3.493394076 | D63: 3.493394076 | E63: 1.051673341
A64: 61 | B64: 0.8113218223 | C64: 1.29333826 | D64: 1.29333826 | E64: 4.541518208
A65: 62 | B65: 0.4764195342 | C65: 2.435498205 | D65: 2.435498205 | E65: 3.669307887
A66: 63 | B66: 0.9230861553 | C66: 0.800163514 | D66: 0.800163514 | E66: 1.123382509
A67: 64 | B67: 0.6224165836 | C67: 1.947605015 | D67: 1.947605015 | E67: 1.931498406
A68: 65 | B68: 0.5629027479 | C68: 2.14410523 | D68: 2.14410523 | E68: 1.738895204
A69: 66 | B69: 0.2761746025 | C69: =$H$7*SQRT(-2*LN($B69)) -> 3.208391492 | D69: =Rayleigh($H$7,$B69) -> 3.208391492 | E69: =Rayleigh($H$7) -> 1.985744284
A70: =A69+1 -> 67 | B70: 0.981830979 | C70: 0.382999787 | D70: 0.382999787 | E70: 0.8191690305
A71: 68 | B71: 0.1785586425 | C71: 3.712506649 | D71: 3.712506649 | E71: 1.809045886
A72: 69 | B72: 0.1410671686 | C72: 3.958301787 | D72: 3.958301787 | E72: 3.145088968
A73: 70 | B73: 0.7879989282 | C73: 1.380604358 | D73: 1.380604358 | E73: 3.227207457
A74: 71 | B74: 0.6201986948 | C74: 1.954922764 | D74: 1.954922764 | E74: 2.919422549
A75: 72 | B75: 0.3207061634 | C75: 3.016262527 | D75: 3.016262527 | E75: 4.041375962
A76: 73 | B76: 0.7191682701 | C76: 1.623970234 | D76: 1.623970234 | E76: 2.545879569
A77: 74 | B77: 0.7029073638 | C77: 1.679357421 | D77: 1.679357421 | E77: 2.231232623
A78: 75 | B78: 0.1541728342 | C78: 3.867486011 | D78: 3.867486011 | E78: 4.929437588
A79: 76 | B79: 0.2797729539 | C79: 3.192211627 | D79: 3.192211627 | E79: 1.822970947
A80: 77 | B80: 0.4232106228 | C80: 2.622800484 | D80: 2.622800484 | E80: 2.295605393
A81: 78 | B81: 0.9813614277 | C81: 0.3879634975 | D81: 0.3879634975 | E81: 0.9550628621
A82: 79 | B82: 0.2008575604 | C82: 3.583472368 | D82: 3.583472368 | E82: 4.769605906
A83: 80 | B83: 0.1613377982 | C83: 3.82021464 | D83: 3.82021464 | E83: 5.001246089
A84: 81 | B84: 0.2586357835 | C84: 3.289175518 | D84: 3.289175518 | E84: 2.999898552
A85: 82 | B85: 0.8347220398 | C85: 1.202186328 | D85: 1.202186328 | E85: 0.6915282792
A86: 83 | B86: 0.5159116711 | C86: 2.300990584 | D86: 2.300990584 | E86: 0.8708390072
A87: 84 | B87: 0.2463319221 | C87: 3.347925179 | D87: 3.347925179 | E87: 2.713707449
A88: 85 | B88: 0.5906387139 | C88: 2.052414698 | D88: 2.052414698 | E88: 4.915495596
A89: 86 | B89: 0.6539313475 | C89: 1.843372792 | D89: 1.843372792 | E89: 3.427741628
A90: 87 | B90: 0.5644546021 | C90: 2.138962964 | D90: 2.138962964 | E90: 0.8015404467
A91: 88 | B91: 0.1056526664 | C91: 4.240375735 | D91: 4.240375735 | E91: 5.91013227
A92: 89 | B92: 0.5922646588 | C92: 2.047049946 | D92: 2.047049946 | E92: 1.130563819
A93: 90 | B93: 0.7208912638 | C93: 1.618065428 | D93: 1.618065428 | E93: 3.937130944
A94: 91 | B94: 0.5880380319 | C94: 2.060997143 | D94: 2.060997143 | E94: 1.896643576
A95: 92 | B95: 0.7660283821 | C95: 1.460235755 | D95: 1.460235755 | E95: 5.13486276
A96: 93 | B96: 0.482858566 | C96: 2.413348698 | D96: 2.413348698 | E96: 2.294320093
A97: 94 | B97: 0.628647185 | C97: 1.927039374 | D97: 1.927039374 | E97: 2.424150363
A98: 95 | B98: 0.3377979428 | C98: 2.946601248 | D98: 2.946601248 | E98: 4.248137097
A99: 96 | B99: 0.4757683134 | C99: 2.437743678 | D99: 2.437743678 | E99: 1.376864115
A100: 97 | B100: 0.05631247312 | C100: 4.797365294 | D100: 4.797365294 | E100: 5.493179415
A101: 98 | B101: 0.8080473364 | C101: 1.305786009 | D101: 1.305786009 | E101: 6.164227875
A102: 99 | B102: 0.4989426697 | C102: 2.358413162 | D102: 2.358413162 | E102: 1.299843098
A103: 100 | B103: 0.320817958 | C103: 3.015800293 | D103: 3.015800293 | E103: 0.4248308089

Sheet Stable
A1: UNIVARIATE STABLE
A3: Observation Number | B3: Uniform Random Variate for Exponential | C3: Uniform Random Variate on (0,1) | D3: Uniform Random Variate on (-pi/2, pi/2) | E3: Exponential Random Variate w/ mean = 1 | F3: Stable Random Variate | G3: Macro Generated Variate, U(0,1) submitted | H3: Macro Generated Variate w/o U(0,1)
A4: 1 | B4: 0.2686895342 | C4: 0.4440558018 | D4: =-PI()/2+PI()*C4 -> -0.175753882 | E4: =Exponential(1,B4) -> 0.3129171956 | F4: =IF($K$10<>1,$K$8*($M$18*SIN($K$10*($D4+$M$17))/(COS($D4)^(1/$K$10))*(COS($D4-$K$10*($D4+$M$17))/$E4)^((1-$K$10)/$K$10))+$K$7,$K$8*((2/PI())*(((PI()/2)+$K$9*$D4)*TAN($D4)-$K$9*LN(((PI()/2)*$E4*COS($D4))/((PI()/2)+$K$9*$D4))))+(2/PI())*$K$9*$K$8*LN($K$8)+$K$7) -> 0.915986602 | G4: =Stable($K$7,$K$8,$K$9,$K$10,$B4:$C4) -> 0.915986602 | H4: =Stable($K$7,$K$8,$K$9,$K$10) -> 47.91041956
A5: =A4+1 -> 2 | B5: 0.7937742381 | C5: 0.657187953 | D5: =-PI()/2+PI()*C5 -> 0.4938205184 | E5: =Exponential(1,B5) -> 1.578783779 | F5: =IF($K$10<>1,$K$8*($M$18*SIN($K$10*($D5+$M$17))/(COS($D5)^(1/$K$10))*(COS($D5-$K$10*($D5+$M$17))/$E5)^((1-$K$10)/$K$10))+$K$7,$K$8*((2/PI())*(((PI()/2)+$K$9*$D5)*TAN($D5)-$K$9*LN(((PI()/2)*$E5*COS($D5))/((PI()/2)+$K$9*$D5))))+(2/PI())*$K$9*$K$8*LN($K$8)+$K$7) -> 6.691477515 | G5: 6.691477515 | H5: =Stable($K$7,$K$8,$K$9,$K$10) -> 1.666119987 | J5: Population Parameters
A6: =A5+1 -> 3 | B6: 0.8219803517 | C6: 0.2289734867 | D6: -0.8514549031 | E6: 1.725861351 | F6: -7.508707276 | G6: -7.508707276 | H6: 4.12283993 | J6: Name | K6: Value | L6: Type | M6: Feasible Range
A7: 4 | B7: 0.6651967236 | C7: 0.5974609611 | D7: 0.3061826394 | E7: 1.094212154 | F7: 4.386902275 | G7: 4.386902275 | H7: 22.57794307 | J7: mu = | K7: 3 | L7: Location | M7: Any finite real number
A8: 5 | B8: 0.867173427 | C8: 0.1256472972 | D8: -1.176063701 | E8: 2.018710964 | F8: -12.12141956 | G8: -12.12141956 | H8: 28.40329714 | J8: sigma = | K8: 6 | L8: Scale | M8: Real number greater than zero
A9: 6 | B9: 0.279943005 | C9: 0.5722822591 | D9: 0.2270814142 | E9: 0.3284249104 | F9: 3.411639094 | G9: 3.411639094 | H9: 13.37712575 | J9: beta = | K9: 0.25 | L9: Skew | M9: Real number between [-1, +1]
A10: 7 | B10: 0.9366722078 | C10: 0.2973990816 | D10: -0.6364895569 | E10: 2.759430991 | F10: -6.786719696 | G10: -6.786719696 | H10: -2.02895461 | J10: alpha = | K10: 1.5 | L10: Shape | M10: Real number between (0, +2]
A11: 8 | B11: 0.4319115567 | C11: 0.3355232993 | D11: -0.5167187946 | E11: 0.5654781624 | F11: -1.949754663 | G11: -1.949754663 | H11: -2.070674131
A12: 9 | B12: 0.9620370153 | C12: 0.7916290012 | D12: 0.9161795277 | E12: 3.27114368 | F12: 14.52616536 | G12: 14.52616536 | H12: -1.856081929 | J12: Distribution Type: | M12: Continuous
A13: 10 | B13: 0.1424035458 | C13: 0.2482285966 | D13: -0.7909631915 | E13: 0.1536216232 | F13: -1.420292853 | G13: -1.420292853 | H13: 57.05781571 | J13: Distrbution Name: | M13: Stable
A14: 11 | B14: 0.2017197184 | C14: 0.1405022656 | D14: -1.129395441 | E14: 0.2252955131 | F14: -3.935073245 | G14: -3.935073245 | H14: 11.93553624 | J14: Variate Number: | M14: Univariate
A15: 12 | B15: 0.5804161826 | C15: 0.243256612 | D15: -0.8065831415 | E15: 0.86849197 | F15: -4.998767763 | G15: -4.998767763 | H15: 6.770286092 | J15: Simulation Method: | M15: Pseudo-Inverse Transform
A16: 13 | B16: 0.3436685132 | C16: 0.6616591683 | D16: 0.5078672556 | E16: 0.4210893024 | F16: 5.48096798 | G16: 5.48096798 | H16: -16.34408765
A17: 14 | B17: 0.9651686826 | C17: 0.5627961296 | D17: 0.1972798595 | E17: 3.357238371 | F17: 3.474637847 | G17: 3.474637847 | H17: -65.17686763 | J17: B(alpha, beta) = | M17: =ATAN(K9*TAN(PI()*K10/2))/K10 -> -0.1633191088
A18: 15 | B18: 0.3870480883 | C18: 0.975139176 | D18: 1.492693745 | E18: 0.4894687936 | F18: 28.17151725 | G18: 28.17151725 | H18: 1.490403669 | J18: S(alpha, beta) = | M18: =(1+K9^2*TAN(PI()*K10/2)^2)^(1/(2*K10)) -> 1.020413775
A19: 16 | B19: 0.8638575657 | C19: 0.4311052388 | D19: -0.2164392756 | E19: 1.99405363 | F19: -1.312717885 | G19: -1.312717885 | H19: -16.1318001
A20: 17 | B20: 0.1747628204 | C20: 0.08372850713 | D20: -1.307755464 | E20: 0.1920844435 | F20: -5.171121547 | G20: -5.171121547 | H20: -5.000705841 | J20: Macro Format: | M20: =Stable(mu, sigma, beta, alpha, [unif])
A21: 18 | B21: 0.3811765959 | C21: 0.06616353844 | D21: -1.362937441 | E21: 0.4799353392 | F21: -9.245951955 | G21: -9.245951955 | H21: -2.441611257
A22: 19 | B22: 0.8779450603 | C22: 0.05880060313 | D22: -1.386068784 | E22: 2.10328401 | F22: -18.0970671 | G22: -18.0970671 | H22: 7.461668708 | L22: Notes: | M22: 1. With this function you can optionally submit
A23: 20 | B23: 0.1823801902 | C23: 0.9142713175 | D23: 1.301471728 | E23: 0.2013578306 | F23: 11.83987843 | G23: 11.83987843 | H23: -6.141335348 | M23: the two needed uniform random variables. If
A24: 21 | B24: 0.397533352 | C24: 0.9920845257 | D24: 1.545929131 | E24: 0.5067229712 | F24: 55.70680505 | G24: 55.70680505 | H24: 6.569896498 | M24: not provided, the macro will generate the two
A25: 22 | B25: 0.7419975794 | C25: 0.33932003 | D25: -0.5047910134 | E25: 1.354786312 | F25: -3.513180306 | G25: -3.513180306 | H25: 4.966459065 | M25: to be used in its calculation.
A26: 23 | B26: 0.5708289459 | C26: 0.5102622206 | D26: 0.03223971699 | E26: 0.8458997119 | F26: 1.858437923 | G26: 1.858437923 | H26: -0.8131554861 | M26: 2. The B() and S() calculations above are inter-
A27: 24 | B27: 0.9019586936 | C27: 0.6882338852 | D27: 0.5913541909 | E27: 2.322366396 | F27: 8.499012618 | G27: 8.499012618 | H27: 29.54876689 | M27: mediate calculations for the manual calculation
A28: 25 | B28: 0.4384305586 | C28: 0.3802352804 | D28: -0.3762519632 | E28: 0.5770198413 | F28: -0.9993543557 | G28: -0.9993543557 | H28: -10.8266854 | M28: of the Stable variates in the table. These inter-
A29: 26 | B29: 0.392949239 | C29: 0.8100758324 | D29: 0.9741319573 | E29: 0.4991428655 | F29: 9.75504453 | G29: 9.75504453 | H29: -50.84646441 | M29: mediate calculations are done internally by the
A30: 27 | B30: 0.2515715048 | C30: 0.07194502391 | D30: -1.344774368 | E30: 0.2897796105 | F30: -6.986554625 | G30: -6.986554625 | H30: 21.74417661 | M30: macro and are not necessary to provide.
A31: 28 | B31: 0.305500214 | C31: 0.06040511925 | D31: -1.381028048 | E31: 0.3645634249 | F31: -8.624396112 | G31: -8.624396112 | H31: 0.8476018474 | M31: 3. Column C shows the formula used in the
A32: 29 | B32: 0.07938744748 | C32: 0.3639030347 | D32: -0.4275612263 | E32: 0.08271601255 | F32: 0.7175661746 | G32: 0.7175661746 | H32: 7.264573173 | M32: macro directly in the cell. Column D generates
A33: 30 | B33: 0.8205781142 | C33: 0.02340593126 | D33: -1.497264425 | E33: 1.718015342 | F33: -27.98867294 | G33: -27.98867294 | H33: 2.929059769 | M33: the random variable with the macro, using the
A34: 31 | B34: 0.005076745533 | C34: 0.7209489207 | D34: 0.6941315061 | E34: 0.005089675987 | F34: 3.898620904 | G34: 3.898620904 | H34: 157.0630909 | M34: same uniform random variable (column A) as
A35: 32 | B35: 0.02998045736 | C35: 0.5004593532 | D35: 0.001443100564 | E35: 0.03043906064 | F35: 2.535736237 | G35: 2.535736237 | H35: 19.99142612 | M35: used in Column C, and therefore the output of
A36: 33 | B36: 0.8969873922 | C36: 0.518542377 | D36: 0.05825259524 | E36: 2.272903892 | F36: 1.725221607 | G36: 1.725221607 | H36: 9.085485325 | M36: Columns C and D will match. Column E runs
A37: 34 | B37: 0.04851801844 | C37: 0.7346561136 | D37: 0.7371939228 | E37: 0.04973452931 | F37: 5.091753541 | G37: 5.091753541 | H37: -19.92698566 | M37: the macro using an internally generated
A38: 35 | B38: 0.3712391652 | C38: 0.922628827 | D38: 1.327727618 | E38: 0.4640043254 | F38: 15.43031114 | G38: 15.43031114 | H38: 6.495725761 | M38: uniform random input.
A39: 36 | B39: 0.1827388583 | C39: 0.7029738861 | D39: 0.6376612695 | E39: 0.2017966003 | F39: 5.715650437 | G39: 5.715650437 | H39: 0.6680414857
A40: 37 | B40: 0.1205000529 | C40: 0.4869916073 | D40: -0.04086707085 | E40: 0.128401775 | F40: 2.057041511 | G40: 2.057041511 | H40: 9.202012466
A41: 38 | B41: 0.6494569336 | C41: 0.1177189898 | D41: -1.200971213 | E41: 1.048271709 | F41: -9.493909315 | G41: -9.493909315 | H41: 6.807767753
A42: 39 | B42: 0.8452335485 | C42: 0.9314761065 | D42: 1.355522166 | E42: 1.865838063 | F42: 24.27053169 | G42: 24.27053169 | H42: 3.210237286
A43: 40 | B43: 0.9655911328 | C43: 0.5218008587 | D43: 0.06848941753 | E43: 3.36944098 | F43: 1.686989119 | G43: 1.686989119 | H43: -7.807409641
A44: 41 | B44: 0.6649923293 | C44: 0.7250160203 | D44: 0.7069086763 | E44: 1.09360185 | F44: 8.522991661 | G44: 8.522991661 | H44: 2.116815645
A45: 42 | B45: 0.4871681719 | C45: 0.5020371216 | D45: 0.006399806338 | E45: 0.667807308 | F45: 1.739604072 | G45: 1.739604072 | H45: 9.282057406
A46: 43 | B46: 0.7721031561 | C46: 0.4584762652 | D46: -0.1304506603 | E46: 1.478862192 | F46: -0.04138723725 | G46: -0.04138723725 | H46: -2.827577381
A47: 44 | B47: 0.8263662763 | C47: 0.2765273184 | D47: -0.7020601349 | E47: 1.750807235 | F47: -6.060865429 | G47: -6.060865429 | H47: 20.68115487
A48: 45 | B48: 0.3099628364 | C48: 0.1519658463 | D48: -1.093381541 | E48: 0.3710098225 | F48: -4.903513303 | G48: -4.903513303 | H48: 8.922302659
A49: 46 | B49: 0.1840653162 | C49: 0.4044368542 | D49: -0.3002204768 | E49: 0.2034209716 | F49: 0.5574158639 | G49: 0.5574158639 | H49: -9.749371581
A50: 47 | B50: 0.582757888 | C50: 0.5156840304 | D50: 0.04927283479 | E50: 0.8740886213 | F50: 1.994475353 | G50: 1.994475353 | H50: 4.103141732
A51: 48 | B51: 0.3211056531 | C51: 0.8870747519 | D51: 1.216031197 | E51: 0.3872897645 | F51: 12.23605799 | G51: 12.23605799 | H51: 6.826113218
A52: 49 | B52: 0.9405997337 | C52: 0.1219970642 | D52: -1.187531246 | E52: 2.82345657 | F52: -14.12382736 | G52: -14.12382736 | H52: 6.837762815
A53: 50 | B53: 0.1490762062 | C53: 0.5485823648 | D53: 0.1526260002 | E53: 0.1614327034 | F53: 2.945855324 | G53: 2.945855324 | H53: -0.5629318443
A54: 51 | B54: 0.3830204418 | C54: 0.5410797994 | D54: 0.129055996 | E54: 0.4829193866 | F54: 2.750502036 | G54: 2.750502036 | H54: 0.5930493917
A55: 52 | B55: 0.08481595248 | C55: 0.0163538557 | D55: -1.519419174 | E55: 0.0886300891 | F55: -11.07950476 | G55: -11.07950476 | H55: 33.55504167
A56: 53 | B56: 0.8422140741 | C56: 0.4652930511 | D56: -0.1090350957 | E56: 1.846516064 | F56: -0.04162282474 | G56: -0.04162282474 | H56: -4.03350032
A57: 54 | B57: 0.404985595 | C57: 0.6417596103 | D57: 0.4453509503 | E57: 0.5191696636 | F57: 5.163408381 | G57: 5.163408381 | H57: 0.8627335217
A58: 55 | B58: 0.3119225423 | C58: 0.3842946445 | D58: -0.3634990949 | E58: 0.3738538635 | F58: -0.3824621614 | G58: -0.3824621614 | H58: 2.786463471
A59: 56 | B59: 0.0739452196 | C59: 0.2671595445 | D59: -0.7314898645 | E59: 0.07682188799 | F59: -0.2990470623 | G59: -0.2990470623 | H59: -4.805981987
A60: 57 | B60: 0.4154056191 | C60: 0.4356440688 | D60: -0.2021801208 | E60: 0.5368370383 | F60: 0.3166341194 | G60: 0.3166341194 | H60: 6.197354446
A61: 58 | B61: 0.9433448155 | C61: 0.648413642 | D61: 0.4662552074 | E61: 2.870771777 | F61: 7.117923854 | G61: 7.117923854 | H61: 18.37498029
A62: 59 | B62: 0.6294690698 | C62: 0.313425937 | D62: -0.5861397056 | E62: 0.9928183554 | F62: -3.546010968 | G62: -3.546010968 | H62: -9.333545786
A63: 60 | B63: 0.2175176524 | C63: 0.08424191555 | D63: -1.306142544 | E63: 0.2452839159 | F63: -5.842441287 | G63: -5.842441287 | H63: 4.031836648
A64: 61 | B64: 0.8113218223 | C64: 0.6853004857 | D64: 0.5821386447 | E64: 1.667712479 | F64: 7.812780406 | G64: 7.812780406 | H64: 1.37828204
A65: 62 | B65: 0.4764195342 | C65: 0.4937383142 | D65: -0.01967166621 | E65: 0.6470645531 | F65: 1.548654156 | G65: 1.548654156 | H65: -2.008040831
A66: 63 | B66: 0.9230861553 | C66: 0.8285612592 | D66: 1.032205638 | E66: 2.565069384 | F66: 15.77186781 | G66: 15.77186781 | H66: 2.531636189
A67: 64 | B67: 0.6224165836 | C67: 0.995215233 | D67: 1.555764538 | E67: 0.9739637642 | F67: 93.99383373 | G67: 93.99383373 | H67: -0.7587462274
A68: 65 | B68: 0.5629027479 | C68: 0.5743923956 | D68: 0.2337106035 | E68: 0.8275995638 | F68: 3.618742796 | G68: 3.618742796 | H68: -3.551758248
A69: 66 | B69: 0.2761746025 | C69: 0.9051454919 | D69: =-PI()/2+PI()*C69 -> 1.272802101 | E69: =Exponential(1,B69) -> 0.3232050794 | F69: =IF($K$10<>1,$K$8*($M$18*SIN($K$10*($D69+$M$17))/(COS($D69)^(1/$K$10))*(COS($D69-$K$10*($D69+$M$17))/$E69)^((1-$K$10)/$K$10))+$K$7,$K$8*((2/PI())*(((PI()/2)+$K$9*$D69)*TAN($D69)-$K$9*LN(((PI()/2)*$E69*COS($D69))/((PI()/2)+$K$9*$D69))))+(2/PI())*$K$9*$K$8*LN($K$8)+$K$7) -> 12.72149691 | G69: =Stable($K$7,$K$8,$K$9,$K$10,$B69:$C69) -> 12.72149691 | H69: =Stable($K$7,$K$8,$K$9,$K$10) -> 8.939436907
A70: =A69+1 -> 67 | B70: 0.981830979 | C70: 0.426635734 | D70: -0.2304806391 | E70: 4.008037277 | F70: -2.637372602 | G70: -2.637372602 | H70: 3.985558902
A71: 68 | B71: 0.1785586425 | C71: 0.9218268293 | D71: 1.325208068 | E71: 0.1966947288 | F71: 12.27940597 | G71: 12.27940597 | H71: 3.541049064
A72: 69 | B72: 0.1410671686 | C72: 0.4131659608 | D72: -0.2727971796 | E72: 0.152064554 | F72: 0.9095640264 | G72: 0.9095640264 | H72: 35.14357822
A73: 70 | B73: 0.7879989282 | C73: 0.1046542347 | D73: -1.242015352 | E73: 1.551163949 | F73: -11.95118507 | G73: -11.95118507 | H73: 17.99397823
A74: 71 | B74: 0.6201986948 | C74: 0.03719790204 | D74: -1.453935671 | E74: 0.9681070441 | F74: -17.1576795 | G74: -17.1576795 | H74: 4.703008235
A75: 72 | B75: 0.3207061634 | C75: 0.3477175183 | D75: -0.4784095257 | E75: 0.386701496 | F75: -1.127759344 | G75: -1.127759344 | H75: 0.9382670547
A76: 73 | B76: 0.7191682701 | C76: 0.6291997286 | D76: 0.4058929181 | E76: 1.269999615 | F76: 5.497475203 | G76: 5.497475203 | H76: -0.7453256267
A77: 74 | B77: 0.7029073638 | C77: 0.3302869132 | D77: -0.5331693867 | E77: 1.213711283 | F77: -3.530881501 | G77: -3.530881501 | H77: 2.579916109
A78: 75 | B78: 0.1541728342 | C78: 0.8293481007 | D78: 1.034677574 | E78: 0.167440236 | F78: 8.162543708 | G78: 8.162543708 | H78: -2.572818984
A79: 76 | B79: 0.2797729539 | C79: 0.2479116646 | D79: -0.7919588626 | E79: 0.3281887749 | F79: -2.698722751 | G79: -2.698722751 | H79: 11.59885322
A80: 77 | B80: 0.4232106228 | C80: 0.1169119436 | D80: -1.203506624 | E80: 0.5502781099 | F80: -7.10774878 | G80: -7.10774878 | H80: -4.115138423
A81: 78 | B81: 0.9813614277 | C81: 0.2126052669 | D81: -0.9028771823 | E81: 3.982522067 | F81: -11.58429955 | G81: -11.58429955 | H81: 6.220017631
A82: 79 | B82: 0.2008575604 | C82: 0.5448278331 | D82: 0.140830791 | E82: 0.2242160768 | F82: 2.873075147 | G82: 2.873075147 | H82: -8.056509444
A83: 80 | B83: 0.1613377982 | C83: 0.04819874457 | D83: -1.419375505 | E83: 0.1759472736 | F83: -7.092987351 | G83: -7.092987351 | H83: 0.009559986299
A84: 81 | B84: 0.2586357835 | C84: 0.4225478705 | D84: -0.2433230409 | E84: 0.2992632542 | F84: 0.5513707043 | G84: 0.5513707043 | H84: -1.274599799
A85: 82 | B85: 0.8347220398 | C85: 0.3930839196 | D85: -0.3358867726 | E85: 1.800126615 | F85: -2.42481567 | G85: -2.42481567 | H85: 13.43748394
A86: 83 | B86: 0.5159116711 | C86: 0.8518230054 | D86: 1.105284569 | E86: 0.7254878911 | F86: 12.41701666 | G86: 12.41701666 | H86: 9.264185166
A87: 84 | B87: 0.2463319221 | C87: 0.1181290531 | D87: -1.199682961 | E87: 0.2828032229 | F87: -5.061224169 | G87: -5.061224169 | H87: 14.53888606
A88: 85 | B88: 0.5906387139 | C88: 0.4205643981 | D88: -0.2495543033 | E88: 0.8931571727 | F88: -0.577614219 | G88: -0.577614219 | H88: -11.99947192
A89: 86 | B89: 0.6539313475 | C89: 0.01483163667 | D89: -1.524201366 | E89: 1.061118106 | F89: -31.06997968 | G89: -31.06997968 | H89: -5.487061792
A90: 87 | B90: 0.5644546021 | C90: 0.3671603547 | D90: -0.4173280539 | E90: 0.8311562449 | F90: -1.844039101 | G90: -1.844039101 | H90: 0.264932975
A91: 88 | B91: 0.1056526664 | C91: 0.2451461443 | D91: -0.8006470009 | E91: 0.1116610629 | F91: -1.013225956 | G91: -1.013225956 | H91: -0.4323622377
A92: 89 | B92: 0.5922646588 | C92: 0.2032418515 | D92: -0.9322932192 | E92: 0.8971369886 | F92: -6.121948329 | G92: -6.121948329 | H92: 7.22937893
A93: 90 | B93: 0.7208912638 | C93: 0.6153593343 | D93: 0.3624120373 | E93: 1.276153837 | F93: 5.044752078 | G93: 5.044752078 | H93: -1.011543556
A94: 91 | B94: 0.5880380319 | C94: 0.2315669825 | D94: -0.8433071959 | E94: 0.8868242442 | F94: -5.350871353 | G94: -5.350871353 | H94: -22.63779462
A95: 92 | B95: 0.7660283821 | C95: 0.2477513385 | D95: -0.7924625417 | E95: 1.452555462 | F95: -6.361259878 | G95: -6.361259878 | H95: 1.831370049
A96: 93 | B96: 0.482858566 | C96: 0.01937188814 | D96: -1.509937745 | E96: 0.6594388752 | F96: -21.98214326 | G96: -21.98214326 | H96: 5.93771617
A97: 94 | B97: 0.628647185 | C97: 0.8552590359 | D97: 1.116079177 | E97: 0.9906026845 | F97: 13.632157 | G97: 13.632157 | H97: 0.1118804197
A98: 95 | B98: 0.3377979428 | C98: 0.966005029 | D98: 1.463997976 | E98: 0.4121845473 | F98: 22.61158463 | G98: 22.61158463 | H98: 1.97901221
A99: 96 | B99: 0.4757683134 | C99: 0.1234208843 | D99: -1.183058183 | E99: 0.6458215424 | F99: -7.420989897 | G99: -7.420989897 | H99: -4.693855978
A100: 97 | B100: 0.05631247312 | C100: 0.8261558409 | D100: 1.024648794 | E100: 0.05796017729 | F100: 6.568102985 | G100: 6.568102985 | H100: 3.279509765
A101: 98 | B101: 0.8080473364 | C101: 0.2678116684 | D101: -0.7294411569 | E101: 1.650506481 | F101: -6.151344815 | G101: -6.151344815 | H101: 8.100205935
A102: 99 | B102: 0.4989426697 | C102: 0.5954395098 | D102: 0.2998320629 | E102: 0.6910347527 | F102: 4.136377217 | G102: 4.136377217 | H102: 2.230874056
A103: 100 | B103: 0.320817958 | C103: 0.1521917407 | D103: -1.092671872 | E103: 0.3868660843 | F103: -5.009027191 | G103: -5.009027191 | H103: 11.00078781

Sheet Student t
A1: UNIVARIATE STUDENT'S T
A3: Observation Number | B3: Macro Generated Variate
A4: 1 | B4: =Studentt($F$7) -> -0.7194090397
A5: =A4+1 -> 2 | B5: -0.6663016729 | E5: Population Parameters
A6: =A5+1 -> 3 | B6: -1.191573101 | E6: Name | F6: Value | G6: Type | H6: Feasible Range
A7: 4 | B7: 1.674310522 | E7: k = | F7: 7 | G7: Shape | H7: Any Finite Positive Integer
A8: 5 | B8: -0.8359804749
A9: 6 | B9: 0.1760235722 | E9: Distribution Type: | H9: Continuous
A10: 7 | B10: -1.072225755 | E10: Distrbution Name: | H10: Student's t
A11: 8 | B11: 0.4077306554 | E11: Variate Number: | H11: Univariate
A12: 9 | B12: 0.1038465473 | E12: Simulation Method: | H12: Convolution
A13: 10 | B13: 1.375505675
A14: 11 | B14: 0.09590875111 | E14: Macro Format: | H14: =Studentt(k)
A15: 12 | B15: 0.06906228938
A16: 13 | B16: 2.352640848 | G16: Notes: | H16: 1. The Student's t distribution does not lend
A17: 14 | B17: 1.131849932 | H17: itself easily to a manual presentation so no
A18: 15 | B18: -1.892578783 | H18: manual example is provided here, only the
A19: 16 | B19: 0.2914412478 | H19: output of the macro generated variates.
A20: 17 | B20: -0.802112814
A21: 18 | B21: 1.594058477
A22: 19 | B22: -2.522426429
A23: 20 | B23: -0.1076866739
A24: 21 | B24: -0.3124332182
A25: 22 | B25: 0.9267513987
A26: 23 | B26: 0.09443065899
A27: 24 | B27: 0.1535796372
A28: 25 | B28: -1.17828025
A29: 26 | B29: 0.7538488733
A30: 27 | B30: 0.2083818731
A31: 28 | B31: 0.2492688239
A32: 29 | B32: 0.3878767191
A33: 30 | B33: -1.460589536
A34: 31 | B34: -0.1757985288
A35: 32 | B35: -1.73014559
A36: 33 | B36: 3.327413804
A37: 34 | B37: 0.1472657522
A38: 35 | B38: -0.2149577142
A39: 36 | B39: 0.8009752382
A40: 37 | B40: -1.054263546
A41: 38 | B41: 1.210869267
A42: 39 | B42: -0.8252365664
A43: 40 | B43: 0.2148679683
A44: 41 | B44: 1.909620854
A45: 42 | B45: 0.9041905182
A46: 43 | B46: -1.091205056
A47: 44 | B47: 0.5224253346
A48: 45 | B48: 0.5054418069
A49: 46 | B49: -0.1232064287
A50: 47 | B50: -0.5121701221
A51: 48 | B51: 0.4524741859
A52: 49 | B52: -0.2387037874
A53: 50 | B53: 0.9538771797
A54: 51 | B54: -1.824688883
A55: 52 | B55: 0.246881371
A56: 53 | B56: -1.486197627
A57: 54 | B57: -0.01916717011
A58: 55 | B58: 1.128544511
A59: 56 | B59: -1.028789926
A60: 57 | B60: 0.3725357853
A61: 58 | B61: 0.636179965
A62: 59 | B62: -0.3126351748
A63: 60 | B63: -0.605632013
A64: 61 | B64: -0.06227056673
A65: 62 | B65: -1.629433882
A66: 63 | B66: 0.3156764671
A67: 64 | B67: -0.3550388822
A68: 65 | B68: -0.08879869659
A69: 66 | B69: =Studentt($F$7) -> -0.3111474305
A70: =A69+1 -> 67 | B70: -0.3490704181
A71: 68 | B71: 0.605055588
A72: 69 | B72: -1.277636865
A73: 70 | B73: 0.7825448243
A74: 71 | B74: -0.01101155578
A75: 72 | B75: 2.42941274
A76: 73 | B76: -0.7844489652
A77: 74 | B77: -1.106581944
A78: 75 | B78: 0.1155593008
A79: 76 | B79: -0.7450295493
A80: 77 | B80: -0.09134417557
A81: 78 | B81: -1.642252035
A82: 79 | B82: -2.480814154
A83: 80 | B83: -0.08569935698
A84: 81 | B84: 0.4025496786
A85: 82 | B85: 0.4291668144
A86: 83 | B86: 1.61651385
A87: 84 | B87: 0.8665423092
A88: 85 | B88: 0.2526551332
A89: 86 | B89: 0.1646606091
A90: 87 | B90: 0.3144589617
A91: 88 | B91: -1.20433169
A92: 89 | B92: 0.2200785437
A93: 90 | B93: 0.898231267
A94: 91 | B94: -0.07074584963
A95: 92 | B95: 0.496765418
A96: 93 | B96: 0.3411129729
A97: 94 | B97: -0.3568531462
A98: 95 | B98: -1.275270071
A99: 96 | B99: 1.82046685
A100: 97 | B100: 0.04500803265
A101: 98 | B101: -0.5307538225
A102: 99 | B102: 0.1402802679
A103: 100 | B103: -0.1844112972

Sheet Triangular
A1: UNIVARIATE TRIANGULAR
A3: Observation Number | B3: Uniform Random Variate | C3: Triangular Random Variate | D3: Macro Generated Variate, U(0,1) submitted | E3: Macro Generated Variate w/o U(0,1)
A4: 1 | B4: 0.2686895342 | C4: =IF($B4<($H$9-$H$7)/($H$8-$H$7),$H$7+SQRT($B4*($H$8-$H$7)*($H$9-$H$7)),$H$8-SQRT((1-$B4)*($H$8-$H$7)*($H$8-$H$9))) -> 3.199184307 | D4: =Triangular($H$7,$H$8,$H$9,$B4) -> 3.199184307 | E4: =Triangular($H$7,$H$8,$H$9) -> 3.151788159
A5: =A4+1 -> 2 | B5: 0.7937742381 | C5: =IF($B5<($H$9-$H$7)/($H$8-$H$7),$H$7+SQRT($B5*($H$8-$H$7)*($H$9-$H$7)),$H$8-SQRT((1-$B5)*($H$8-$H$7)*($H$8-$H$9))) -> 5.073328332 | D5: 5.073328332 | E5: 4.327697186 | G5: Population Parameters
A6: =A5+1 -> 3 | B6: 0.8219803517 | C6: 5.209929144 | D6: 5.209929144 | E6: 5.951594433 | G6: Name | H6: Value | I6: Type | J6: Feasible Range
A7: 4 | B7: 0.6651967236 | C7: 4.545115283 | D7: 4.545115283 | E7: 4.835043696 | G7: a = | H7: 1 | I7: Location | J7: Any finite real number
A8: 5 | B8: 0.867173427 | C8: 5.453753475 | D8: 5.453753475 | E8: 3.846463931 | G8: b = | H8: 7 | I8: Location | J8: Any finite real number, a<b
A9: 6 | B9: 0.279943005 | C9: 3.244765932 | D9: 3.244765932 | E9: 4.053932449 | G9: c = | H9: 4 | I9: Location | J9: Any finite real number a < c < b
A10: 7 | B10: 0.9366722078 | C10: 5.932338884 | D10: 5.932338884 | E10: 3.500505873
A11: 8 | B11: 0.4319115567 | C11: 3.788262545 | D11: 3.788262545 | E11: 4.099269448 | G11: Distribution Type: | J11: Continuous
A12: 9 | B12: 0.9620370153 | C12: 6.173359979 | D12: 6.173359979 | E12: 1.815758188 | G12: Distrbution Name: | J12: Triangular
A13: 10 | B13: 0.1424035458 | C13: 2.60101962 | D13: 2.60101962 | E13: 1.533178979 | G13: Variate Number: | J13: Univariate
A14: 11 | B14: 0.2017197184 | C14: 2.905506476 | D14: 2.905506476 | E14: 4.935880517 | G14: Simulation Method: | J14: Inverse Transform
A15: 12 | B15: 0.5804161826 | C15: 4.251817198 | D15: 4.251817198 | E15: 5.422254476
A16: 13 | B16: 0.3436685132 | C16: 3.487173745 | D16: 3.487173745 | E16: 3.581514385 | G16: Macro Format: | J16: =triangular(a, b, c, [unif])
A17: 14 | B17: 0.9651686826 | C17: 6.208189597 | D17: 6.208189597 | E17: 3.83062265
A18: 15 | B18: 0.3870480883 | C18: 3.639482068 | D18: 3.639482068 | E18: 3.202720037 | I18: Notes: | J18: 1. With this function you can optionally submit
A19: 16 | B19: 0.8638575657 | C19: 5.434572321 | D19: 5.434572321 | E19: 3.901855469 | J19: your own uniform random variable (unif). If
A20: 17 | B20: 0.1747628204 | C20: 2.773620807 | D20: 2.773620807 | E20: 5.18453226 | J20: not provided, the function will generate one
A21: 18 | B21: 0.3811765959 | C21: 3.619385181 | D21: 3.619385181 | E21: 4.782817078 | J21: to be used in the formula.
A22: 19 | B22: 0.8779450603 | C22: 5.517775687 | D22: 5.517775687 | E22: 4.506514717 | J22: 2. Column C shows the formula used in the
A23: 20 | B23: 0.1823801902 | C23: 2.811861866 | D23: 2.811861866 | E23: 3.143587249 | J23: macro directly in the cell. Column D generates
A24: 21 | B24: 0.397533352 | C24: 3.67499539 | D24: 3.67499539 | E24: 6.33127757 | J24: the random variable with the macro, using the
A25: 22 | B25: 0.7419975794 | C25: 4.844995691 | D25: 4.844995691 | E25: 4.080302004 | J25: same uniform random variable (column A) as
A26: 23 | B26: 0.5708289459 | C26: 4.220597371 | D26: 4.220597371 | E26: 2.044472115 | J26: used in Column C, and therefore the output of
A27: 24 | B27: 0.9019586936 | C27: 5.671563508 | D27: 5.671563508 | E27: 5.619137085 | J27: Columns C and D will match. Column E runs
A28: 25 | B28: 0.4384305586 | C28: 3.809225882 | D28: 3.809225882 | E28: 3.123252487 | J28: the macro using an internally generated
A29: 26 | B29: 0.392949239 | C29: 3.659527459 | D29: 3.659527459 | E29: 4.881724 | J29: uniform random input.
A30: 27 | B30: 0.2515715048 | C30: 3.127977229 | D30: 3.127977229 | E30: 3.65598794
A31: 28 | B31: 0.305500214 | C31: 3.344995491 | D31: 3.344995491 | E31: 3.002525255
A32: 29 | B32: 0.07938744748 | C32: 2.195397028 | D32: 2.195397028 | E32: 1.088262154
A33: 30 | B33: 0.8205781142 | C33: 5.202892896 | D33: 5.202892896 | E33: 3.844011965
A34: 31 | B34: 0.005076745533 | C34: 1.302293598 | D34: 1.302293598 | E34: 3.504398125
A35: 32 | B35: 0.02998045736 | C35: 1.734607536 | D35: 1.734607536 | E35: 5.059722522
A36: 33 | B36: 0.8969873922 | C36: 5.638299981 | D36: 5.638299981 | E36: 4.099506357
A37: 34 | B37: 0.04851801844 | C37: 1.934518235 | D37: 1.934518235 | E37: 5.249884098
A38: 35 | B38: 0.3712391652 | C38: 3.585015469 | D38: 3.585015469 | E38: 3.427995197
A39: 36 | B39: 0.1827388583 | C39: 2.813642591 | D39: 2.813642591 | E39: 4.766457426
A40: 37 | B40: 0.1205000529 | C40: 2.472752848 | D40: 2.472752848 | E40: 4.153507046
A41: 38 | B41: 0.6494569336 | C41: 4.48807341 | D41: 4.48807341 | E41: 4.066550267
A42: 39 | B42: 0.8452335485 | C42: 5.330929562 | D42: 5.330929562 | E42: 6.358156015
A43: 40 | B43: 0.9655911328 | C43: 6.213005966 | D43: 6.213005966 | E43: 4.693041068
A44: 41 | B44: 0.6649923293 | C44: 4.544366055 | D44: 4.544366055 | E44: 5.876218502
A45: 42 | B45: 0.4871681719 | C45: 3.961254311 | D45: 3.961254311 | E45: 5.69753601
A46: 43 | B46: 0.7721031561 | C46: 4.974625173 | D46: 4.974625173 | E46: 6.573252523
A47: 44 | B47: 0.8263662763 | C47: 5.232117926 | D47: 5.232117926 | E47: 4.222264764
A48: 45 | B48: 0.3099628364 | C48: 3.362060764 | D48: 3.362060764 | E48: 5.523542862
A49: 46 | B49: 0.1840653162 | C49: 2.82021309 | D49: 2.82021309 | E49: 3.581971507
A50: 47 | B50: 0.582757888 | C50: 4.259496759 | D50: 4.259496759 | E50: 6.071971482
A51: 48 | B51: 0.3211056531 | C51: 3.404142624 | D51: 3.404142624 | E51: 3.809023425
A52: 49 | B52: 0.9405997337 | C52: 5.965976406 | D52: 5.965976406 | E52: 3.126535674
A53: 50 | B53: 0.1490762062 | C53: 2.638100031 | D53: 2.638100031 | E53: 3.91633174
A54: 51 | B54: 0.3830204418 | C54: 3.625712846 | D54: 3.625712846 | E54: 2.362944422
A55: 52 | B55: 0.08481595248 | C55: 2.23559182 | D55: 2.23559182 | E55: 3.06765173
A56: 53 | B56: 0.8422140741 | C56: 5.314726531 | D56: 5.314726531 | E56: 4.041035205
A57: 54 | B57: 0.404985595 | C57: 3.699951983 | D57: 3.699951983 | E57: 3.306158883
A58: 55 | B58: 0.3119225423 | C58: 3.369515934 | D58: 3.369515934 | E58: 3.545588256
A59: 56 | B59: 0.0739452196 | C59: 2.15369578 | D59: 2.15369578 | E59: 4.290291661
A60: 57 | B60: 0.4154056191 | C60: 3.734465422 | D60: 3.734465422 | E60: 3.88317999
A61: 58 | B61: 0.9433448155 | C61: 5.990151832 | D61: 5.990151832 | E61: 3.796455011
A62: 59 | B62: 0.6294690698 | C62: 4.417451502 | D62: 4.417451502 | E62: 3.98934074
A63: 60 | B63: 0.2175176524 | C63: 2.978716186 | D63: 2.978716186 | E63: 4.188916372
A64: 61 | B64: 0.8113218223 | C64: 5.157119863 | D64: 5.157119863 | E64: 3.132911847
A65: 62 | B65: 0.4764195342 | C65: 3.928404278 | D65: 3.928404278 | E65: 2.706232683
A66: 63 | B66: 0.9230861553 | C66: 5.823373804 | D66: 5.823373804 | E66: 4.600464988
A67: 64 | B67: 0.6224165836 | C67: 4.392989932 | D67: 4.392989932 | E67: 4.172548174
A68: 65 | B68: 0.5629027479 | C68: 4.195048924 | D68: 4.195048924 | E68: 3.238082557
A69: 66 | B69: 0.2761746025 | C69: =IF($B69<($H$9-$H$7)/($H$8-$H$7),$H$7+SQRT($B69*($H$8-$H$7)*($H$9-$H$7)),$H$8-SQRT((1-$B69)*($H$8-$H$7)*($H$8-$H$9))) -> 3.229605984 | D69: =Triangular($H$7,$H$8,$H$9,$B69) -> 3.229605984 | E69: =Triangular($H$7,$H$8,$H$9) -> 1.63275994
A70: =A69+1 -> 67 | B70: 0.981830979 | C70: 6.428123809 | D70: 6.428123809 | E70: 2.789822679
A71: 68 | B71: 0.1785586425 | C71: 2.792778727 | D71: 2.792778727 | E71: 5.131435471
A72: 69 | B72: 0.1410671686 | C72: 2.593489578 | D72: 2.593489578 | E72: 3.747471731
A73: 70 | B73: 0.7879989282 | C73: 5.04653659 | D73: 5.04653659 | E73: 2.431740709
A74: 71 | B74: 0.6201986948 | C74: 4.385344479 | D74: 4.385344479 | E74: 3.478567353
A75: 72 | B75: 0.3207061634 | C75: 3.402646653 | D75: 3.402646653 | E75: 6.531278611
A76: 73 | B76: 0.7191682701 | C76: 4.751673703 | D76: 4.751673703 | E76: 2.391526391
A77: 74 | B77: 0.7029073638 | C77: 4.687497578 | D77: 4.687497578 | E77: 5.204697576
A78: 75 | B78: 0.1541728342 | C78: 2.665866446 | D78: 2.665866446 | E78: 3.32409106
A79: 76 | B79: 0.2797729539 | C79: 3.244084038 | D79: 3.244084038 | E79: 2.621429519
A80: 77 | B80: 0.4232106228 | C80: 3.760034639 | D80: 3.760034639 | E80: 2.974768024
A81: 78 | B81: 0.9813614277 | C81: 6.420781301 | D81: 6.420781301 | E81: 6.088014468
A82: 79 | B82: 0.2008575604 | C82: 2.901430011 | D82: 2.901430011 | E82: 4.514063049
A83: 80 | B83: 0.1613377982 | C83: 2.704136252 | D83: 2.704136252 | E83: 3.472569035
A84: 81 | B84: 0.2586357835 | C84: 3.157647817 | D84: 3.157647817 | E84: 5.748781607
A85: 82 | B85: 0.8347220398 | C85: 5.275180217 | D85: 5.275180217 | E85: 4.272920412
A86: 83 | B86: 0.5159116711 | C86: 4.048120951 | D86: 4.048120951 | E86: 5.097619372
A87: 84 | B87: 0.2463319221 | C87: 3.105700501 | D87: 3.105700501 | E87: 2.320489815
A88: 85 | B88: 0.5906387139 | C88: 4.285501308 | D88: 4.285501308 | E88: 4.263552683
A89: 86 | B89: 0.6539313475 | C89: 4.504156306 | D89: 4.504156306 | E89: 2.243343032
A90: 87 | B90: 0.5644546021 | C90: 4.20003265 | D90: 4.20003265 | E90: 4.65635071
A91: 88 | B91: 0.1056526664 | C91: 2.379038794 | D91: 2.379038794 | E91: 5.983131993
A92: 89 | B92: 0.5922646588 | C92: 4.290897539 | D92: 4.290897539 | E92: 6.466666101
A93: 90 | B93: 0.7208912638 | C93: 4.75858142 | D93: 4.75858142 | E93: 6.224083452
A94: 91 | B94: 0.5880380319 | C94: 4.276892322 | D94: 4.276892322 | E94: 2.761673616
A95: 92 | B95: 0.7660283821 | C95: 4.947808702 | D95: 4.947808702 | E95: 3.697887087
A96: 93 | B96: 0.482858566 | C96: 3.948127234 | D96: 3.948127234 | E96: 4.491956704
A97: 94 | B97: 0.628647185 | C97: 4.414588878 | D97: 4.414588878 | E97: 2.509878058
A98: 95 | B98: 0.3377979428 | C98: 3.465839202 | D98: 3.465839202 | E98: 2.702884797
A99: 96 | B99: 0.4757683134 | C99: 3.926402167 | D99: 3.926402167 | E99: 5.269213807
A100: 97 | B100: 0.05631247312 | C100: 2.006789211 | D100: 2.006789211 | E100: 4.994585839
A101: 98 | B101: 0.8080473364 | C101: 5.141197174 | D101: 5.141197174 | E101: 2.432564764
A102: 99 | B102: 0.4989426697 | C102: 3.99682633 | D102: 3.99682633 | E102: 4.289856161
A103: 100 | B103: 0.320817958 | C103: 3.403065385 | D103: 3.403065385 | E103: 1.947975758

Sheet Weibull
A1: UNIVARIATE WEIBULL
A3: Observation Number | B3: Uniform Random Variate | C3: Weibull Random Variate | D3: Macro Generated Variate, U(0,1) submitted | E3: Macro Generated Variate w/o U(0,1)
A4: 1 | B4: 0.2686895342 | C4: =$H$7+$H$8*(-LN($B4))^(1/$H$9) -> 8.42416238 | D4: =Weibullrv($H$7,$H$8,$H$9,$B4) -> 8.42416238 | E4: =Weibullrv($H$7,$H$8,$H$9) -> 8.438665056
A5: =A4+1 -> 2 | B5: 0.7937742381 | C5: =$H$7+$H$8*(-LN($B5))^(1/$H$9) -> 6.159428406 | D5: 6.159428406 | E5: 7.369949125 | G5: Population Parameters
A6: =A5+1 -> 3 | B6: 0.8219803517 | C6: 5.992424869 | D6: 5.992424869 | E6: 9.836180294 | G6: Name | H6: Value | I6: Type | J6: Feasible Range
A7: 4 | B7: 0.6651967236 | C7: 6.794342909 | D7: 6.794342909 | E7: 8.43852091 | G7: mu = | H7: 2 | I7: Location | J7: Real number greater than or equal to zero
A8: 5 | B8: 0.867173427 | C8: 5.686526654 | D8: 5.686526654 | E8: 6.190288586 | G8: sigma = | H8: 6 | I8: Scale | J8: Real number greater than zero
A9: 6 | B9: 0.279943005 | C9: 8.373423621 | D9: 8.373423621 | E9: 8.9230332 | G9: alpha = | H9: 4 | I9: Shape | J9: Real number greater than zero
A10: 7 | B10: 0.9366722078 | C10: 5.034464221 | D10: 5.034464221 | E10: 9.291218311
A11: 8 | B11: 0.4319115567 | C11: 7.74329177 | D11: 7.74329177 | E11: 8.109392463 | G11: Distribution Type: | J11: Continuous
A12: 9 | B12: 0.9620370153 | C12: 4.661249476 | D12: 4.661249476 | E12: 7.430863965 | G12: Distrbution Name: | J12: Weibull
A13: 10 | B13: 0.1424035458 | C13: 9.089396147 | D13: 9.089396147 | E13: 8.212400031 | G13: Variate Number: | J13: Univariate
A14: 11 | B14: 0.2017197184 | C14: 8.74901944 | D14: 8.74901944 | E14: 10.13693358 | G14: Simulation Method: | J14: Inverse Transform
A15: 12 | B15: 0.5804161826 | C15: 7.152914619 | D15: 7.152914619 | E15: 8.415524296
A16: 13 | B16: 0.3436685132 | C16: 8.099608534 | D16: 8.099608534 | E16: 8.343043853 | G16: Macro Format: | J16: =Weibullrv(mu, sigma, alpha, [unif])
A17: 14 | B17: 0.9651686826 | C17: 4.603530304 | D17: 4.603530304 | E17: 5.741628706
A18: 15 | B18: 0.3870480883 | C18: 7.922313693 | D18: 7.922313693 | E18: 6.55798188 | I18: Notes: | J18: 1. With this function you can optionally submit
A19: 16 | B19: 0.8638575657 | C19: 5.711055822 | D19: 5.711055822 | E19: 6.0184726 | J19: your own uniform random variable (unif). If
A20: 17 | B20: 0.1747628204 | C20: 8.895378892 | D20: 8.895378892 | E20: 7.362168512 | J20: not provided, the function will generate one
A21: 18 | B21: 0.3811765959 | C21: 7.94601451 | D21: 7.94601451 | E21: 8.056522565 | J21: to be used in the formula.
A22: 19 | B22: 0.8779450603 | C22: 5.60396055 | D22: 5.60396055 | E22: 5.934713926 | J22: 2. Column C shows the formula used in the
A23: 20 | B23: 0.1823801902 | C23: 8.852823773 | D23: 8.852823773 | E23: 4.71074507 | J23: macro directly in the cell. Column D generates
A24: 21 | B24: 0.397533352 | C24: 7.880172567 | D24: 7.880172567 | E24: 6.895548893 | J24: the random variable with the macro, using the
A25: 22 | B25: 0.7419975794 | C25: 6.434598831 | D25: 6.434598831 | E25: 6.11106096 | J25: same uniform random variable (column A) as
A26: 23 | B26: 0.5708289459 | C26: 7.19191106 | D26: 7.19191106 | E26: 6.103355472 | J26: used in Column C, and therefore the output of
A27: 24 | B27: 0.9019586936 | C27: 5.400611568 | D27: 5.400611568 | E27: 7.808100746 | J27: Columns C and D will match. Column E runs
A28: 25 | B28: 0.4384305586 | C28: 7.717497786 | D28: 7.717497786 | E28: 7.220898264 | J28: the macro using an internally generated
A29: 26 | B29: 0.392949239 | C29: 7.898569063 | D29: 7.898569063 | E29: 8.897094204 | J29: uniform random input.
A30: 27 | B30: 0.2515715048 | C30: 8.503141835 | D30: 8.503141835 | E30: 5.516936188
A31: 28 | B31: 0.305500214 | C31: 8.261156386 | D31: 8.261156386 | E31: 8.313222889
A32: 29 | B32: 0.07938744748 | C32: 9.569685488 | D32: 9.569685488 | E32: 7.810102191
A33: 30 | B33: 0.8205781142 | C33: 6.00108954 | D33: 6.00108954 | E33: 10.56176136
A34: 31 | B34: 0.005076745533 | C34: 11.09647535 | D34: 11.09647535 | E34: 5.793090596
A35: 32 | B35: 0.02998045736 | C35: 10.21091731 | D35: 10.21091731 | E35: 7.45460342
A36: 33 | B36: 0.8969873922 | C36: 5.445260718 | D36: 5.445260718 | E36: 6.4618492
A37: 34 | B37: 0.04851801844 | C37: 9.913380053 | D37: 9.913380053 | E37: 6.224269361
A38: 35 | B38: 0.3712391652 | C38: 7.986316422 | D38: 7.986316422 | E38: 4.077190413
A39: 36 | B39: 0.1827388583 | C39: 8.850844924 | D39: 8.850844924 | E39: 5.952047619
A40: 37 | B40: 0.1205000529 | C40: 9.236616502 | D40: 9.236616502 | E40: 6.786881359
A41: 38 | B41: 0.6494569336 | C41: 6.863246989 | D41: 6.863246989 | E41: 5.655151549
A42: 39 | B42: 0.8452335485 | C42: 5.842116214 | D42: 5.842116214 | E42: 9.741282691
A43: 40 | B43: 0.9655911328 | C43: 4.595458799 | D43: 4.595458799 | E43: 4.750691259
A44: 41 | B44: 0.6649923293 | C44: 6.795246185 | D44: 6.795246185 | E44: 8.920145299
A45: 42 | B45: 0.4871681719 | C45: 7.525295398 | D45: 7.525295398 | E45: 6.849330726
A46: 43 | B46: 0.7721031561 | C46: 6.278819463 | D46: 6.278819463 | E46: 5.636723696
A47: 44 | B47: 0.8263662763 | C47: 5.965050279 | D47: 5.965050279 | E47: 5.761094084
A48: 45 | B48: 0.3099628364 | C48: 8.24192509 | D48: 8.24192509 | E48: 9.569474271
A49: 46 | B49: 0.1840653162 | C49: 8.843545343 | D49: 8.843545343 | E49: 7.343544121
A50: 47 | B50: 0.582757888 | C50: 7.143353401 | D50: 7.143353401 | E50: 7.961281715
A51: 48 | B51: 0.3211056531 | C51: 8.194330971 | D51: 8.194330971 | E51: 6.9659095
A52: 49 | B52: 0.9405997337 | C52: 4.984734995 | D52: 4.984734995 | E52: 8.636666926
A53: 50 | B53: 0.1490762062 | C53: 9.047383875 | D53: 9.047383875 | E53: 9.492668816
A54: 51 | B54: 0.3830204418 | C54: 7.938563182 | D54: 7.938563182 | E54: 7.94053509
A55: 52 | B55: 0.08481595248 | C55: 9.519786179 | D55: 9.519786179 | E55: 8.42297044
A56: 53 | B56: 0.8422140741 | C56: 5.862398997 | D56: 5.862398997 | E56: 7.683673583
A57: 54 | B57: 0.404985595 | C57: 7.850349358 | D57: 7.850349358 | E57: 7.418094751
A58: 55 | B58: 0.3119225423 | C58: 8.233511535 | D58: 8.233511535 | E58: 9.7934361
A59: 56 | B59: 0.0739452196 | C59: 9.622184437 | D59: 9.622184437 | E59: 7.757394524
A60: 57 | B60: 0.4154056191 | C60: 7.808803322 | D60: 7.808803322 | E60: 5.7952973
A61: 58 | B61: 0.9433448155 | C61: 4.948573571 | D61: 4.948573571 | E61: 6.829478958
A62: 59 | B62: 0.6294690698 | C62: 6.949006418 | D62: 6.949006418 | E62: 7.391787147
A63: 60 | B63: 0.2175176524 | C63: 8.668106742 | D63: 8.668106742 | E63: 7.155235255
A64: 61 | B64: 0.8113218223 | C64: 6.057278469 | D64: 6.057278469 | E64: 8.506690935
A65: 62 | B65: 0.4764195342 | C65: 7.567659413 | D65: 7.567659413 | E65: 8.906402188
A66: 63 | B66: 0.9230861553 | C66: 5.191303627 | D66: 5.191303627 | E66: 8.141865836
A67: 64 | B67: 0.6224165836 | C67: 6.978851759 | D67: 6.978851759 | E67: 8.143975029
A68: 65 | B68: 0.5629027479 | C68: 7.223983563 | D68: 7.223983563 | E68: 6.263141754
A69: 66 | B69: 0.2761746025 | C69: =$H$7+$H$8*(-LN($B69))^(1/$H$9) -> 8.390317429 | D69: =Weibullrv($H$7,$H$8,$H$9,$B69) -> 8.390317429 | E69: =Weibullrv($H$7,$H$8,$H$9) -> 8.22969052
A70: =A69+1 -> 67 | B70: 0.981830979 | C70: 4.207892986 | D70: 4.207892986 | E70: 5.365171016
A71: 68 | B71: 0.1785586425 | C71: 8.874045045 | D71: 8.874045045 | E71: 5.424352903
A72: 69 | B72: 0.1410671686 | C72: 9.097954398 | D72: 9.097954398 | E72: 7.169665179
A73: 70 | B73: 0.7879989282 | C73: 6.191923743 | D73: 6.191923743 | E73: 8.883532907
A74: 71 | B74: 0.6201986948 | C74: 6.988196526 | D74: 6.988196526 | E74: 10.67706747
A75: 72 | B75: 0.3207061634 | C75: 8.196027305 | D75: 8.196027305 | E75: 7.233384933
A76: 73 | B76: 0.7191682701 | C76: 6.546401497 | D76: 6.546401497 | E76: 7.114120605
A77: 74 | B77: 0.7029073638 | C77: 6.623281342 | D77: 6.623281342 | E77: 9.824505881
A78: 75 | B78: 0.1541728342 | C78: 9.016057335 | D78: 9.016057335 | E78: 6.587106263
A79: 76 | B79: 0.2797729539 | C79: 8.374183931 | D79: 8.374183931 | E79: 7.598919891
A80: 77 | B80: 0.4232106228 | C80: 7.777785056 | D80: 7.777785056 | E80: 6.300338592
A81: 78 | B81: 0.9813614277 | C81: 4.222154171 | D81: 4.222154171 | E81: 7.637052462
A82: 79 | B82: 0.2008575604 | C82: 8.753529227 | D82: 8.753529227 | E82: 6.847140649
A83: 80 | B83: 0.1613377982 | C83: 8.973047698 | D83: 8.973047698 | E83: 7.198652263
A84: 81 | B84: 0.2586357835 | C84: 8.470268127 | D84: 8.470268127 | E84: 9.812319366
A85: 82 | B85: 0.8347220398 | C85: 5.911691947 | D85: 5.911691947 | E85: 9.555373782
A86: 83 | B86: 0.5159116711 | C86: 7.411730667 | D86: 7.411730667 | E86: 7.907701968
A87: 84 | B87: 0.2463319221 | C87: 8.527796776 | D87: 8.527796776 | E87: 6.98644141
A88: 85 | B88: 0.5906387139 | C88: 7.111063913 | D88: 7.111063913 | E88: 5.809756529
A89: 86 | B89: 0.6539313475 | C89: 6.843790378 | D89: 6.843790378 | E89: 10.80437894
A90: 87 | B90: 0.5644546021 | C90: 7.217715391 | D90: 7.217715391 | E90: 7.400070126
A91: 88 | B91: 0.1056526664 | C91: 9.346507461 | D91: 9.346507461 | E91: 7.177623687
A92: 89 | B92: 0.5922646588 | C92: 7.104379705 | D92: 7.104379705 | E92: 4.636128504
A93: 90 | B93: 0.7208912638 | C93: 6.538128541 | D93: 6.538128541 | E93: 7.741370564
A94: 91 | B94: 0.5880380319 | C94: 7.121739061 | D94: 7.121739061 | E94: 6.397785501
A95: 92 | B95: 0.7660283821 | C95: 6.311121302 | D95: 6.311121302 | E95: 8.586815639
A96: 93 | B96: 0.482858566 | C96: 7.542284198 | D96: 7.542284198 | E96: 6.060447129
A97: 94 | B97: 0.628647185 | C97: 6.952495024 | D97: 6.952495024 | E97: 5.363939592
A98: 95 | B98: 0.3377979428 | C98: 8.124060012 | D98: 8.124060012 | E98: 7.984361215
A99: 96 | B99: 0.4757683134 | C99: 7.570225448 | D99: 7.570225448 | E99: 7.086803981
A100: 97 | B100: 0.05631247312 | C100: 9.814121292 | D100: 9.814121292 | E100: 7.543388938
A101: 98 | B101: 0.8080473364 | C101: 6.076756376 | D101: 6.076756376 | E101: 7.926017504
A102: 99 | B102: 0.4989426697 | C102: 7.478841019 | D102: 7.478841019 | E102: 9.050661665
A103: 100 | B103: 0.320817958 | C103: 8.195552524 | D103: 8.195552524 | E103: 8.911075143
